{"text_format":"1","workbook":"xlsx","n_sheets":9,"sheets":["AER CF","AER NRs","AER lookups","AER ETL","Instructions","CONTENTS","Business & other details","2.11 Labour","7.9 STPIS"],"not_rendered":{"charts":0,"images":5,"macros":1,"external_links":1,"defined_names":570,"comments":1,"pivot_tables":0},"unopened":[],"bounds":{"document_bytes":16777216,"sheet_cells":100000,"rows_first":2000,"rows_last":500,"rows_between":2000,"halvings":0,"cell_chars":16384,"cell_head_chars":4096},"cells_cut":0,"cells_raw":0,"read":"whole","date_system":"1900"}

{"sheet":"AER CF","index":0,"n_rows":75,"n_cols":25,"rows_kept":75,"cut":false,"hidden":true,"merged":[[3,1,3,22],[38,38,38,59],[39,38,39,59],[40,38,40,59],[38,69,38,90],[39,69,39,90],[40,69,40,90]]}
[null,"AER CONDITIONAL FORMATTING"]
[]
[null,"CELLS FLAGED \"Y\" and greyed out will be greyed out in the worksheets."]
[null,"CONDITIONAL FORMATTING MAP"]
[null,null,null,null,null,"=INDEX(dms_CF_3.6.1, MATCH(dms_TradingName,dms_CF_TradingName))=\"Y\"","=INDEX(dms_CF_3.6.5, MATCH(dms_TradingName,dms_CF_TradingName))=\"Y\"","=INDEX(dms_CF_3.6.6.1, MATCH(dms_TradingName,dms_CF_TradingName))=\"Y\"","=INDEX(dms_CF_3.6.6.2, MATCH(dms_TradingName,dms_CF_TradingName))=\"Y\"","=INDEX(dms_CF_3.6.6.3, MATCH(dms_TradingName,dms_CF_TradingName))=\"Y\"","=INDEX(dms_CF_3.6.7.1, MATCH(dms_TradingName,dms_CF_TradingName))=\"Y\"","=INDEX(dms_CF_3.6.7.2, MATCH(dms_TradingName,dms_CF_TradingName))=\"Y\"","=INDEX(dms_CF_3.6.7.3, MATCH(dms_TradingName,dms_CF_TradingName))=\"Y\"","=INDEX(dms_CF_3.6.7.4, MATCH(dms_TradingName,dms_CF_TradingName))=\"Y\"","=INDEX(dms_CF_3.6.8, MATCH(dms_TradingName,dms_CF_TradingName))=\"Y\"","=INDEX(dms_CF_4.1, MATCH(dms_TradingName,dms_CF_TradingName))=\"Y\"","=INDEX(dms_CF_6.8, MATCH(dms_TradingName,dms_CF_TradingName))=\"Y\"","=INDEX(dms_CF_7.12, MATCH(dms_TradingName,dms_CF_TradingName))=\"Y\"","=INDEX(dms_CF_8.1_A, MATCH(dms_TradingName,dms_CF_TradingName))=\"Y\"","=INDEX(dms_CF_8.1_B, MATCH(dms_TradingName,dms_CF_TradingName))=\"Y\"",{"$f":"INDEX(dms_CF_8.1_Neg, MATCH(dms_TradingName,dms_CF_TradingName))=\"Y\"","v":true},"=INDEX(dms_CF_4.4.1_Neg, MATCH(dms_TradingName,dms_CF_TradingName))=\"Y\"",null,null,"=INDEX(dms_CF_F10, MATCH(dms_TradingName,dms_CF_TradingName))=\"Y\""]
[null,"dms_CF_TradingName","JurisdictionList","Sector","Segment","dms_CF_3.6.1","dms_CF_3.6.5","dms_CF_3.6.6.1","dms_CF_3.6.6.2","dms_CF_3.6.6.3","dms_CF_3.6.7.1","dms_CF_3.6.7.2","dms_CF_3.6.7.3","dms_CF_3.6.7.4","dms_CF_3.6.8","dms_CF_4.1","dms_CF_6.8 (set from dms_MAIFI_flag)","dms_CF_7.12","dms_CF_8.1_A  (and 8.4)","dms_CF_8.1_B  (and 8.4)","dms_CF_8.1_Neg  (and 8.4)","dms_CF_4.4.1","dms_CF_MAIFI_flag (set from dms_MAIFI_flag)","9.5 TUOS (set from Jurisdiction)","dms_CF_F10"]
[null,"Ausgrid","NSW","Electricity","Distribution",null,"Y","N","Y","Y","N","N","N","Y","N","N",{"$f":"IFERROR(IF(dms_MAIFI_flag=\"Yes\",\"N\",\"Y\"),\"Y\")","v":"Y"},"Y","N","Y","Y","N",{"$f":"IFERROR(LEFT(dms_MAIFI_flag),\"N\")","v":"N"},{"$f":"IF('AER CF'!$C7=\"Vic\",\"Y\",\"N\")","v":"N"}]
[null,"Ausgrid (Tx Assets)","NSW","Electricity","Distribution",null,"Y","N","Y","Y","N","N","N","Y","N","N","Y","Y","N","Y","Y","N",{"$f":"IFERROR(LEFT(dms_MAIFI_flag),\"N\")","v":"N"},{"$f":"IF('AER CF'!$C8=\"Vic\",\"Y\",\"N\")","v":"N"}]
[null,"AusNet (D)","Vic","Electricity","Distribution",null,"N","N",null,null,"N","N","N","N","N","N","Y","N","N","N","Y","N",{"$f":"IFERROR(LEFT(dms_MAIFI_flag),\"N\")","v":"N"},{"$f":"IF('AER CF'!$C9=\"Vic\",\"Y\",\"N\")","v":"Y"}]
[null,"AusNet (T)","Vic","Electricity","Transmission",null,"N",null,null,null,"N","N","N","N","N","Y","Y","N","N","N","Y","N","N",{"$f":"IF('AER CF'!$C10=\"Vic\",\"Y\",\"N\")","v":"Y"}]
[null,"Amadeus","NT","Gas","Transmission",null,"N",null,null,null,"N","N","N","N","N","Y","Y","N","N","N","Y","N","N",{"$f":"IF('AER CF'!$C11=\"Vic\",\"Y\",\"N\")","v":"N"},"N"]
[null,"APA GasNet","Vic","Gas","Transmission",null,"N",null,null,null,"N","N","N","N","N","Y","Y","N","N","N","Y","N","N",{"$f":"IF('AER CF'!$C12=\"Vic\",\"Y\",\"N\")","v":"Y"},"Y"]
[null,"Australian Distribution Co.","NSW","Electricity","Distribution","N","N","N","N",null,"N","N","N","N","N","N","Y","N","N","N","N","N","N",{"$f":"IF('AER CF'!$C13=\"Vic\",\"Y\",\"N\")","v":"N"}]
[null,"Australian Distribution Co. (Vic)","Vic","Electricity","Distribution","N","N","N","N",null,"N","N","N","N","N","N","Y","N","N","N","N","N","N",{"$f":"IF('AER CF'!$C14=\"Vic\",\"Y\",\"N\")","v":"Y"}]
[null,"CitiPower","Vic","Electricity","Distribution",null,"N","N",null,null,"N","N","N","N","N","N","Y","N","N","N","Y","N","N",{"$f":"IF('AER CF'!$C15=\"Vic\",\"Y\",\"N\")","v":"Y"}]
[null,"Directlink","Qld","Electricity","Transmission",null,"N",null,null,null,"N","N","N","N","N","Y","Y","N","N","Y","Y","N","N",{"$f":"IF('AER CF'!$C16=\"Vic\",\"Y\",\"N\")","v":"N"}]
[null,"ElectraNet","SA","Electricity","Transmission",null,"N",null,null,null,"N","N","N","N","N","Y","Y","N","N","Y","Y","N","N",{"$f":"IF('AER CF'!$C17=\"Vic\",\"Y\",\"N\")","v":"N"}]
[null,"Endeavour Energy","NSW","Electricity","Distribution",null,"Y","N","Y","Y","N","N","N","Y","N","N","Y","Y","N","Y","Y","Y","N",{"$f":"IF('AER CF'!$C18=\"Vic\",\"Y\",\"N\")","v":"N"}]
[null,"Energex","Qld","Electricity","Distribution",null,"Y","N",null,null,"N","N","N","N","N","N","Y","Y","N","Y","Y","Y","N",{"$f":"IF('AER CF'!$C19=\"Vic\",\"Y\",\"N\")","v":"N"}]
[null,"Ergon Energy","Qld","Electricity","Distribution",null,"Y","N","Y","Y","N","N","N","N","N","N","Y","Y","N","Y","Y","N","N",{"$f":"IF('AER CF'!$C20=\"Vic\",\"Y\",\"N\")","v":"N"}]
[null,"Essential Energy","NSW","Electricity","Distribution",null,"Y","N","Y","Y","N","N","N","Y","N","N","Y","Y","N","Y","Y","N","N",{"$f":"IF('AER CF'!$C21=\"Vic\",\"Y\",\"N\")","v":"N"}]
[null,"Evoenergy Distribution","ACT","Electricity","Distribution",null,"Y","N","Y","Y","Y","Y","N","Y","N","Y","Y","Y","N","Y","Y","N","N",{"$f":"IF('AER CF'!$C22=\"Vic\",\"Y\",\"N\")","v":"N"}]
[null,"Evoenergy Distribution (Tx Assets)","ACT","Electricity","Distribution",null,"Y","N","Y","Y","Y","Y","N","Y","N","Y","Y","Y","N","Y","Y","N","N",{"$f":"IF('AER CF'!$C23=\"Vic\",\"Y\",\"N\")","v":"N"}]
[null,"Jemena Electricity","Vic","Electricity","Distribution",null,"N","N",null,null,"N","N","N","N","N","N","Y","N","N","N","Y","N","N",{"$f":"IF('AER CF'!$C24=\"Vic\",\"Y\",\"N\")","v":"Y"}]
[null,"Murraylink","SA","Electricity","Transmission",null,"N",null,null,null,"N","N","N","N","N","Y","Y","N","N","Y","Y","N","N",{"$f":"IF('AER CF'!$C25=\"Vic\",\"Y\",\"N\")","v":"N"}]
[null,"Power and Water","NT","Electricity","Distribution",null,"N","N",null,null,"N","Y","N","N","N","Y","Y","Y","N","Y","Y","N","N",{"$f":"IF('AER CF'!$C26=\"Vic\",\"Y\",\"N\")","v":"N"}]
[null,"Powercor Australia","Vic","Electricity","Distribution",null,"N","N",null,null,"N","N","N","N","N","N","Y","N","N","N","Y","N","N",{"$f":"IF('AER CF'!$C27=\"Vic\",\"Y\",\"N\")","v":"Y"}]
[null,"Powerlink","Qld","Electricity","Transmission",null,"N",null,null,null,"N","N","N","N","N","Y","Y","N","N","Y","Y","N","N",{"$f":"IF('AER CF'!$C28=\"Vic\",\"Y\",\"N\")","v":"N"}]
[null,"Roma to Brisbane Pipeline","Qld","Gas","Transmission",null,"N",null,null,null,"N","N","N","N","N","Y","Y","N","N","N","Y","N","N",{"$f":"IF('AER CF'!$C29=\"Vic\",\"Y\",\"N\")","v":"N"},"Y"]
[null,"SA Power Networks","SA","Electricity","Distribution",null,"Y","N",null,null,"N","N","N","N","N","N","Y","Y","N","Y","N","N","N",{"$f":"IF('AER CF'!$C30=\"Vic\",\"Y\",\"N\")","v":"N"}]
[null,"TasNetworks (D)","Tas","Electricity","Distribution",null,"Y","N",null,null,"N","N","N","N","N","N","Y","Y","N","Y","Y","N","N",{"$f":"IF('AER CF'!$C31=\"Vic\",\"Y\",\"N\")","v":"N"}]
[null,"TasNetworks (T)","Tas","Electricity","Transmission",null,"N",null,null,null,"N","N","N","N","N","Y","Y","N","N","Y","Y","N","N",{"$f":"IF('AER CF'!$C32=\"Vic\",\"Y\",\"N\")","v":"N"}]
[null,"TransGrid","NSW","Electricity","Transmission",null,"N",null,null,null,"N","N","N","N","N","Y","Y","N","N","Y","Y","N","N",{"$f":"IF('AER CF'!$C33=\"Vic\",\"Y\",\"N\")","v":"N"}]
[null,"United Energy","Vic","Electricity","Distribution",null,"N","N",null,null,"N","N","N","N","N","N","Y","N","N","N","Y","N","N",{"$f":"IF('AER CF'!$C34=\"Vic\",\"Y\",\"N\")","v":"Y"}]
[]
[]
[null,"Confidential"]
[null,"Amended"]
[]
[null,"Worksheet 6.2 STPIS reliability"]
[null,"Formula",null,null,null,"Applied to:"]
[]
[null,"=INDEX(dms_CBD_flag,MATCH(dms_TradingName,dms_TradingName_List))=\"NO\"",null,null,null,"$D$11,$D$17,$D$23,$D$33,$D$39,$D$45,$D$55,$D$61,$D$67,$D$77,$D$83,$D$89"]
[null,"=INDEX(dms_Urban_flag,MATCH(dms_TradingName,dms_TradingName_List))=\"NO\"",null,null,null,"$D$12,$D$18,$D$24,$D$56,$D$62,$D$78,$D$68,$D$84"]
[null,"=INDEX(dms_ShortRural_flag,MATCH(dms_TradingName,dms_TradingName_List))=\"NO\"",null,null,null,"$D$13,$D$19,$D$25,$D$57,$D$63,$D$69,$D$79,$D$85"]
[null,"=INDEX(dms_LongRural_flag,MATCH(dms_TradingName,dms_TradingName_List))=\"NO\"",null,null,null,"$D$14,$D$20,$D$26,$D$58,$D$64,$D$65,$D$70,$D$71,$D$80,$D$86"]
[null,"=INDEX(dms_FeederType_5_flag,MATCH(dms_TradingName,dms_TradingName_List))=\"NO\"",null,null,null,"$D$87,$D$81,$D$71,$D$65,$D$59,$D$49,$D$43,$D$37,$D$21,$D$15"]
[null,"=dms_MAIFI_Flag=\"No\"",null,null,null,"$D$55:$D$72"]
[]
[]
[null,"Business & other details"]
[null,"=(INDEX(dms_Model_Span,MATCH(dms_Model,dms_Model_List))>1)"]
[null,"=(INDEX(dms_Model_Span,MATCH(dms_Model,dms_Model_List))=1)"]
[]
[]
[null,"STYLES IN USE"]
[null,"HEADING ONE","dms_1"]
[null,"HEADING TWO","dms_2"]
[null,"HEADING THREE","dms_3"]
[null,"HEADING FOUR","dms_4"]
[null,"HEADING FIVE","dms_5"]
[null,5.1109999999999998,"dms_NUM"]
[null,5.45E-2,"dms_NUM%"]
[null,5.5555000000000003,"dms_NUM3d"]
[null,"Text description","dms_Row_Locked"]
[null,"Text description","dms_Row1"]
[null,"Text description","dms_Row2"]
[null,"Total","dms_T1"]
[null,"Total","dms_T2"]
[null,"EXPENSES","dms_BH"]
[null,2019,"dms_BY1"]
[null,2019,"dms_BY2"]
[null,"VOLUMES","dms_GH"]
[null,2019,"dms_GY1"]
[null,2019,"dms_GY2"]

{"sheet":"AER NRs","index":1,"n_rows":227,"n_cols":15,"rows_kept":227,"cut":false,"hidden":true,"merged":[[4,1,27,1],[175,1,176,1],[178,1,183,1],[64,1,77,1],[134,1,149,1],[83,1,96,1],[151,1,157,1],[117,1,131,1],[207,1,212,1],[198,1,199,1],[31,1,54,1],[99,1,106,1],[109,1,114,1],[190,1,191,1],[194,1,195,1],[159,1,173,1],[32,67,32,88],[33,67,33,88],[34,67,34,88],[35,10,39,10],[43,10,44,10],[32,10,34,10],[32,36,32,57],[33,36,33,57],[34,36,34,57]]}
[null,"AER NAMED RANGES"]
[]
[null,"DROP DOWN SELECTORS USED IN WORKBOOKS"]
[]
[null,"COVER SHEET","dms_DataQuality_List","dms_Confid_status_List"]
[null,null,"-- select --","-- select --"]
[null,null,"Actual","Public"]
[null,null,"Estimate","Confidential"]
[null,null,"Consolidated"]
[]
[]
[null,null,"For all files either AER or business needs to be able to specify the type of submission","For PTRM & RFM templates we must provide a choice in case they change their form of control - otherwise it is drawn from the business specific lookup table above."]
[null,null,"dms_SourceList","dms_FormControl_Choices"]
[null,null,"-- select --","Revenue cap"]
[null,null,"After appeal","Revenue yield"]
[null,null,"Draft decision","Weighted average price cap"]
[null,null,"Final decision"]
[null,null,"PTRM update 1"]
[null,null,"PTRM update 2"]
[null,null,"PTRM update 3"]
[null,null,"PTRM update 4"]
[null,null,"PTRM update 5"]
[null,null,"PTRM update 6"]
[null,null,"PTRM update 7"]
[null,null,"Recast"]
[null,null,"Regulatory proposal"]
[null,null,"Reporting"]
[null,null,"Revised regulatory proposal"]
[]
[]
[null,null,null,null,null,null,null,null,null,null,"This is used to create an image to insert on 6.3 STPIS sheet - not for dropdown lists.",null,null,"GAS"]
[null,"CA & RESET RINS \nDNSP","dms_DNSP_020301_SubstationType","dms_DNSP_020301_ProjectType","dms_DNSP_020301_ProjectTrigger","dms_DNSP_020302_ProjectType","dms_DNSP_020302_ProjectTrigger","dms_STPIS_Exclusion_List","dms_Reason_Interruption","dms_Reason_Interruption_Detailed","Reason for interruption",null,null,"dms_N0205_AssetType"]
[null,null,"Subtransmission substation","New substation establishment","Demand growth","New line on new route - single circuit","Demand growth","Weather","Animal","Animal impact","Animal","Animal impact",null,"Cast Iron"]
[null,null,"Zone substation","Substation upgrade - capacity"," Voltage issues","New line on new route - dual circuit"," Voltage issues","Equipment failure","Asset failure","Animal nesting/burrowing, etc and other",null,"Animal nesting/burrowing, etc and other",null,"PVC"]
[null,null,"Switching station","Substation upgrade - voltage"," Reactive power issue","New line on new route - other"," Reactive power issue","Operational error","Other","Other",null,"Other",null,"Polyamide"]
[null,null,"Other","Other"," Fault level issues","Line rebuild over existing route - single circuit"," Fault level issues","Vegetation","Overloads","LV","Asset failure","LV",null,"High density polyethylene (80)"]
[null,null,null,null," Safety","Line rebuild over existing route - dual circuit"," Net market benefit","Animals","Planned","Distribution substation",null,"Distribution substation",null,"High density polyethylene (100)"]
[null,null,null,null," Environment","Reconductor - Single circuit"," Safety","Third party impacts","Network business","HV",null,"HV",null,"High density polyethylene (250)"]
[null,null,null,null," Other","Reconductor - Dual circuit"," Environment","Transmission failure","Third party","Zone substation",null,"Zone substation",null,"High density polyethylene (575)"]
[null,null,null,null,null,"Reconductor - Other"," Other","Load shedding","Unknown","Subtransmission",null,"Subtransmission",null,"Medium density polyethylene"]
[null,null,null,null,null,"Line upgrade - raising/retensoring",null,"Inter-distributor connection failure","Vegetation","insert description of 'other'","Other","insert description of 'other'",null,"Unprotected steel"]
[null,null,null,null,null,"Line upgrade - voltage upgrade",null,"Other","Weather","Network error","Overloads",null,null,"Protected steel"]
[null,null,null,null,null,"Line upgrade - capacity",null,null,"2 - STPIS Exclusion (3.3)(a)","Switching and protection error","Planned",null,null,"Other"]
[null,null,null,null,null,"String spare circuit",null,null,"3 - STPIS Exclusion (3.3)(a)","Fire","Network business","Network error"]
[null,null,null,null,null,"Other",null,null,"4 - STPIS Exclusion (3.3)(a)","Other",null,"Switching and protection error"]
[null,null,null,null,null,null,null,null,"5 - STPIS Exclusion (3.3)(a)","Dig-in","Third party","Fire"]
[null,null,null,null,null,null,null,null,"6 - STPIS Exclusion (3.3)(a)","Unauthorised access",null,"Other"]
[null,null,null,null,null,null,null,null,"7 - STPIS Exclusion (3.3)(a)","Vehicle impact",null,"Dig-in"]
[null,null,null,null,null,null,null,null,null,"Unknown",null,"Unauthorised access"]
[null,null,null,null,null,null,null,null,null,"Blow-in/Fall-in - NSP responsibility",null,"Vehicle impact"]
[null,null,null,null,null,null,null,null,null,"Grow-in - NSP responsibility","Unknown","Unknown"]
[null,null,null,null,null,null,null,null,null,"Blow-in/Fall-in - Other responsible party","Vegetation","Blow-in/Fall-in - NSP responsibility"]
[null,null,null,null,null,null,null,null,null,"Grow-in - Other responsible party",null,"Grow-in - NSP responsibility"]
[null,null,null,null,null,null,null,null,null,null,null,"Blow-in/Fall-in - Other responsible party"]
[null,null,null,null,null,null,null,null,null,null,null,"Grow-in - Other responsible party"]
[null,null,null,null,null,null,null,null,null,null,"Weather"]
[null,null,null,null,null,null,null,null,null,null,"2 - STPIS Exclusion (3.3)(a)"]
[null,null,null,null,null,null,null,null,null,null,"3 - STPIS Exclusion (3.3)(a)"]
[null,null,null,null,null,null,null,null,null,null,"4 - STPIS Exclusion (3.3)(a)"]
[null,null,null,null,null,null,null,null,null,null,"5 - STPIS Exclusion (3.3)(a)"]
[null,null,null,null,null,null,null,null,null,null,"6 - STPIS Exclusion (3.3)(a)"]
[null,null,null,null,null,null,null,null,null,null,"7 - STPIS Exclusion (3.3)(a)"]
[]
[]
[null,"CA & RESET RINS \nTNSP ","dms_TNSP_0203_SubstationType","dms_TNSP_020301_ProjectType","dms_TNSP_020301_ProjectTrigger","dms_TNSP_020302_ProjectType","dms_TNSP_0203_ProjectTrigger"]
[null,null,"Terminal station","New substation establishment","Demand growth","New line on new route - single circuit","Demand growth"]
[null,null,"Switching station","Capacity upgrade"," Voltage issues","New line on new route - dual circuit"," Voltage issues"]
[null,null,"Transmission substation","Voltage upgrade"," Reactive power issue","New line on new route - other"," Reactive power issue"]
[null,null,"Other","Other"," Fault level issues","Line rebuild over existing route - single circuit"," Fault level issues"]
[null,null,null,null,"Net market benefit","Line rebuild over existing route - dual circuit"," Net market benefit"]
[null,null,null,null," Safety","Reconductor - Single circuit"," Safety"]
[null,null,null,null," Environment","Reconductor - Dual circuit"," Environment"]
[null,null,null,null," Other","Reconductor - Other"," Other"]
[null,null,null,null,null,"Line upgrade - raising/retensoring"]
[null,null,null,null,null,"Line upgrade - voltage upgrade"]
[null,null,null,null,null,"Line upgrade - capacity"]
[null,null,null,null,null,"String spare circuit"]
[null,null,null,null,null,"Other"]
[]
[]
[]
[null,"NAMED RANGES USED IN ETL PROCESS"]
[null,null,null,null,null,null,null,null,null,null,null,null,"GAS ARR & RESET"]
[null,"CA & RESET RINS \nDNSP ONLY","dms_020303_01_UOM","dms_020501_01_UOM","dms_020501_02_UOM","dms_020501_03_UOM","dms_020501_04_UOM","dms_020701_01_UOM","dms_020701_02_UOM","dms_020701_01_Rows","dms_040102_01_UOM","dms_040102_04_UOM","dms_S140101_UOM","dms_E050201_UOM","dms_E050302_UOM"]
[null,null,"Circuit line length in km","0's","0's","0's","0's","km","km","Route line length within zone","0's","days","number","per metre per connection","metres per connection"]
[null,null,"Circuit line length in km","0's","0's","0's","0's","0's","0's","Number of maintenance spans","0's","0's","number","per service per connection","number per connection"]
[null,null,"Circuit line length in km","MVA added","MVA added","MVA added","MVA added","km","km","Total length of maintenance spans","0's","$0s","number","number per connection","number per connection"]
[null,null,"Circuit line length in km","0's","0's","0's","0's","km","km","Length of vegetation corridors","$0s","0's","km"]
[null,null,"Number","total spend $0s","total spend $0s","total spend $0s","total spend $0s","0's","0's","Average number of trees per maintenance span"]
[null,null,"Number","net circuit km added","net circuit km added","net circuit km added","net circuit km added","years","years","Average frequency of cutting cycle"]
[null,null,"Number","total spend $0s","total spend $0s","total spend $0s","total spend $0s"]
[null,null,null,"net circuit km added","net circuit km added","net circuit km added","net circuit km added"]
[null,null,null,"total spend $0s","total spend $0s","total spend $0s","total spend $0s"]
[null,null,null,"0's",null,"$0s"]
[null,null,null,"0's"]
[null,null,null,"0's"]
[null,null,null,"$0s"]
[]
[]
[null,"CA & RESET RINS \nTNSP ONLY","dms_020701_01_UOM"]
[null,null,"km"]
[null,null,"0's"]
[null,null,"km"]
[null,null,"0's"]
[null,null,"km"]
[null,null,"metres"]
[null,null,"years"]
[]
[]
[null,"CA & RESET RINS \nDNSP & TNSP","dms_020603_01_UOM"]
[null,null,"0's"]
[null,null,"0's"]
[null,null,"0's"]
[null,null,"0's"]
[null,null,"(per cent)"]
[]
[]
[null,"EB & RESET RINS \nDNSP ONLY","dms_030601_01_UOM","dms_030601_02_UOM","dms_030701_01_UOM","dms_030702_01_UOM","dms_030703_01_UOM"]
[null,null,"minutes/customer","minutes/customer","Customer / km","%","km"]
[null,null,"minutes/customer","minutes/customer","MWh/customer","Number of spans"]
[null,null,"interruptions/customer","interruptions/customer","kVA / customer","Number of spans"]
[null,null,"interruptions/customer","interruptions/customer",null,"Number of spans"]
[null,null,null,null,null,"Number of spans"]
[null,null,null,null,null,"Years"]
[null,null,null,null,null,"Years"]
[null,null,null,null,null,"Trees"]
[null,null,null,null,null,"Trees"]
[null,null,null,null,null,"Defects"]
[null,null,null,null,null,"Defects"]
[null,null,null,null,null,"Spans"]
[null,null,null,null,null,"km"]
[null,null,null,null,null,"Spans"]
[]
[null,null,"WHEN INSERTING COVER SHEET INTO A TNSP FILE - APPLY THESE NAMED RANGES"]
[null,"EB & RESET RINS \nTNSP ONLY","dms_030601_01_UOM",null,"dms_030701_01_UOM","dms_030702_01_UOM"]
[null,null,"%",null,"Number of spans","km"]
[null,null,"number",null,"Years","%"]
[null,null,"number",null,"Trees","km"]
[null,null,"%",null,"Defects","number"]
[null,null,"number",null,"Number of spans"]
[null,null,"number",null,"km"]
[null,null,"%",null,"km"]
[null,null,"number",null,"Number of spans"]
[null,null,"number"]
[null,null,"%"]
[null,null,"number"]
[null,null,"%"]
[null,null,"number"]
[null,null,"%"]
[null,null,"number"]
[]
[null,"EB & RESET RINS \nDNSP & TNSP","dms_EB_RAB_PIT"]
[null,null,"Beginning of year"]
[null,null,"End of year"]
[null,null,"End of year"]
[null,null,"End of year"]
[null,null,"End of year"]
[null,null,"End of year"]
[]
[null,"ARR \nDNSP ONLY","dms_030605_UOM","dms_03060703_UOM","dms_E020202_UOM","Spare"]
[null,null,"number","number","Length of mains replaced"]
[null,null,"number","number","Number of services replaced"]
[null,null,"number","number"]
[null,null,"number","number"]
[null,null,"number","(per cent)"]
[null,null,"number"]
[null,null,"number"]
[null,null,"number"]
[null,null,"number"]
[null,null,"number"]
[null,null,"number"]
[null,null,"number"]
[null,null,"(per cent)"]
[null,null,"(per cent)",""]
[]
[null,"RFM","dms_Beg","dms_Mid","dms_End"]
[null,null,"Beginning of year","Mid year","End of Year"]
[]
[null,"PTRM","dms_PTRM_RAB_PIT","dms_PTRM_TAB_PIT","DMS_Xfactor"]
[null,null,"Beginning of year","Beginning of year","x factors"]
[null,null,"End of year","End of year"]
[null,null,"End of year","End of year"]
[null,null,"End of year","End of year"]
[null,null,"End of year"]
[]
[]
[null,"STPIS & MIC NAMED RANGES "]
[]
[null,"These \"row descriptions\" are the column headings in the various templates but become row descriptions in the ETL process"]
[]
[null,"Table 6.3 sustained interruptions - row descriptions","dms_060301_CustNo_Affected_Row","dms_060301_Avg_Duration_Sustained_Int_Row","dms_060301_Effect_unplanned_SAIDI_Row","dms_060301_Effect_unplanned_SAIFI_Row"]
[null,null,"Number of customers affected by the interruption","Average duration of sustained customer interruption","Effect on unplanned SAIDI","Effect on unplanned SAIFI"]
[]
[]
[null,"Table 6.1 telephone answering - row descriptions and start date","dms_060101_Rows","dms_060102_Rows","dms_060101_StartDateTxt"]
[null,null,"Total number of calls \n(after removing excluded events)","Number of calls answered within 30 seconds \n(after excluding excluded events) ",{"$f":"dms_060701_StartDateTxt","v":"1-Jul-2017"}]
[]
[]
[null,"Table 6.8.1 - row descriptions","dms_060801_01_Rows","dms_060801_02_Rows","dms_060801_03_Rows","dms_060801_04_Rows"]
[null,null,"Number of interruptions","Duration of interruptions","Total unplanned minutes off supply","Effect on unplanned MAIFI"]
[]
[]
[null,"Table 7.9.4 - market impact component - row descriptions","dms_070904_01_Rows","without exclusions","with exclusions"]
[]
[]
[null,"These headings (Lists) are determined from the INDEX/MATCH function on the NSP selected on the Business & other details sheet"]
[]
[null,"Table 6.7.1 - daily performance data - unplanned - MAIFI  -- row descriptions and header named range values","dms_060701_Feeder_Header_Lvl4",{"$f":"INDEX(dms_FeederName_1,MATCH(dms_TradingName,dms_TradingName_List))","v":"-"},{"$f":"INDEX(dms_FeederName_1,MATCH(dms_TradingName,dms_TradingName_List))","v":"-"},{"$f":"INDEX(dms_FeederName_2,MATCH(dms_TradingName,dms_TradingName_List))","v":"CBD"},{"$f":"INDEX(dms_FeederName_2,MATCH(dms_TradingName,dms_TradingName_List))","v":"CBD"},{"$f":"INDEX(dms_FeederName_3,MATCH(dms_TradingName,dms_TradingName_List))","v":"Urban"},{"$f":"INDEX(dms_FeederName_3,MATCH(dms_TradingName,dms_TradingName_List))","v":"Urban"},{"$f":"INDEX(dms_FeederName_4,MATCH(dms_TradingName,dms_TradingName_List))","v":"Short rural"},{"$f":"INDEX(dms_FeederName_4,MATCH(dms_TradingName,dms_TradingName_List))","v":"Short rural"},{"$f":"IF((INDEX(dms_FeederName_5,MATCH(dms_TradingName,dms_TradingName_List))=0),\"Network\",(INDEX(dms_FeederName_5,MATCH(dms_TradingName,dms_TradingName_List))))","v":"Long rural"},{"$f":"IF((INDEX(dms_FeederName_5,MATCH(dms_TradingName,dms_TradingName_List))=0),\"Network\",(INDEX(dms_FeederName_5,MATCH(dms_TradingName,dms_TradingName_List))))","v":"Long rural"},"Network","Network"]
[]
[null,null,"dms_060701_Rows","All events","After removing excluded events","All events","After removing excluded events","All events","After removing excluded events","All events","After removing excluded events","All events","After removing excluded events","All events","After removing excluded events"]
[null,null,null,"the number of column headings changes from 10 to 12 depending on the number of feeder categories for the NSP"]
[]
[null,null,"dms_0603_FeederList",{"$f":"INDEX(dms_FeederName_1,MATCH(dms_TradingName,dms_TradingName_List))","v":"-"},{"$f":"INDEX(dms_FeederName_2,MATCH(dms_TradingName,dms_TradingName_List))","v":"CBD"},{"$f":"INDEX(dms_FeederName_3,MATCH(dms_TradingName,dms_TradingName_List))","v":"Urban"},{"$f":"INDEX(dms_FeederName_4,MATCH(dms_TradingName,dms_TradingName_List))","v":"Short rural"}]
[]
[]
[null,"Use these to add to specific worksheets in existing files","Use these to add to specific worksheets in existing files"]
[]
[]
[null,"ARRs 6.7 STPIS daily performance","dms_060101_Values","dms_060102_Values","dms_060701_Values"]
[null,null,"dms_LeapYear"]
[]
[]
[null,"ARR's  6.8 STPIS exclusions","dms_060801_Event_Date","dms_060801_OutageID","dms_060801_FeederID","dms_060801_FeederClass","dms_060801_CauseID","dms_060801_01_Values","dms_060801_02_Values","dms_060801_03_Values","dms_060801_Excl_Cat","dms_060801_04_Values"]
[null,null,"dms_060801_StartCell"]
[]
[]
[null,"CA 6.3 sustained interruptions","dms_060301_Event_Date","dms_060301_Event_Time","dms_060301_AssetID","dms_060301_FeederClass","dms_060301_Reason","dms_060301_DetailedReason","dms_060301_CustNo_Affected_Values","dms_060301_Avg_Duration_Sustained_Int_Values","dms_060301_Effect_unplanned_SAIDI_Values","dms_060301_Effect_unplanned_SAIFI_Values","dms_060301_MED"]

{"sheet":"AER lookups","index":2,"n_rows":94,"n_cols":38,"rows_kept":94,"cut":false,"hidden":true,"merged":[[10,25,10,35],[28,1,28,4],[11,25,11,28],[11,30,11,34],[11,35,13,35]]}
[null,"AER LOOKUP TABLES"]
[]
[null,"Data in these columns used for data validation and database purposes."]
[null,"Date last modified:","2017-01-16","added (Albury and Victora) for AGN"]
[null,null,"2016-10-17","updated TransGrid's correct legal name, corrected TasNetworks (T) to June financial year"]
[null,null,"2017-02-01","inserted Power and Water, added NRs (dms_FeederCat_1 and dms_FeederCat_2)"]
[null,null,"2017-03-03","inserted AEMO as a business"]
[null,null,"2018-03-28","major changes to accommodate STPIS"]
[null,null,"Template Version",5]
[]
[null,null,null,null,null,null,null,null,null,null,null,null,null,null,null,null,null,null,null,null,null,null,null,null,null,"FOR ELECTRICITY BUSINESSES ONLY"]
[null,null,null,null,null,null,null,null,null,null,null,null,null,null,null,null,null,null,null,null,null,null,null,null,null,"Feeder Types",null,null,null,"TasNetworks (D)","Feeder Names"]
[]
[null,null,null,null,null,null,null,null,null,null,null,null,null,null,null,null,null,null,null,null,null,null,null,null,null,"CBD","Urban","Short rural","long rural","EXTRA"]
[null,"dms_TradingName_List","dms_TradingNameFull_List","dms_ABN_List","dms_JurisdictionList","dms_Sector_List","dms_Segment_List","dms_FormControl_List","dms_RPT_List","dms_RPTMonth_List","dms_CRCPlength_List","dms_FRCPlength_List","dms_PRCPlength_List","dms_663_List","dms_DeterminationRef_List","dms_Addr1_List","dms_Addr2_List","dms_Suburb_List","dms_State_List","dms_PostCode_List","dms_PAddr1_List","dms_PAddr2_List","dms_PSuburb_List","dms_PState_List","dms_PPostCode_List","dms_CBD_flag","dms_Urban_flag","dms_ShortRural_flag","dms_LongRural_flag","dms_FeederType_5_flag","dms_FeederName_1","dms_FeederName_2","dms_FeederName_3","dms_FeederName_4","dms_FeederName_5","dms_Public_Lighting_List","Name"]
[null,"AEMO","Australian Energy Market Operator Ltd",94072010327,"Vic","Electricity","Transmission","-","Financial","March",5,5,5,"x","-","Level 22","530 Collins Street","MELBOURNE","Vic",3000,"GPO Box 2008",null,"MELBOURNE","Vic",3001,"NO","NO","NO","NO","NO","-","CBD","Urban","Short rural","Long rural",null,"NO"]
[null,"AusNet (T)","AusNet Transmission Group Pty Ltd",78079798173,"Vic","Electricity","Transmission","Revenue cap","Financial","March",5,5,5,2,"transmission determination","Level 32","2 Southbank Boulevard","SOUTHBANK","Vic",3006,"Locked Bag 14051",null,"MELBOURNE CITY MAIL CENTRE","Vic",8001,"NO","NO","NO","NO","NO","CBD","Urban","Short rural","Long rural",null,"NO",{"$f":"B17","v":"AusNet (T)"},"AEMO"]
[null,"Australian Transmission Co.","Australian Transmission Co.",11222333444,"NSW","Electricity","Transmission","Revenue cap","Financial","June",5,5,5,5,"transmission determination","123 Straight Street",null,"SYDNEY","NSW",2000,"PO Box 123",null,"SYDNEY","NSW",2000,"NO","NO","NO","NO","NO","CBD","Urban","Short rural","Long rural",null,"NO","Australian Transmission Co."]
[null,"Directlink","Directlink",16779340889,"Qld","Electricity","Transmission","Revenue cap","Financial","June",5,5,5,5,"transmission determination","Level 25","580 George Street","SYDNEY","NSW",2000,"PO Box R41",null,"ROYAL EXCHANGE","NSW",1225,"NO","NO","NO","NO","NO","-","CBD","Urban","Short rural","Long rural",null,"NO","Directlink"]
[null,"ElectraNet","ElectraNet",41094482416,"SA","Electricity","Transmission","Revenue cap","Financial","June",5,5,5,5,"transmission determination","52-55 East Terrace","Rymill Park","ADELAIDE","SA",5000,"PO Box 7096","Hutt Street Post Office","ADELAIDE","SA",5000,"NO","NO","NO","NO","NO","-","CBD","Urban","Short rural","Long rural",null,"NO","ElectraNet"]
[null,"Murraylink","Murraylink",79181207909,"SA","Electricity","Transmission","Revenue cap","Financial","June",5,5,5,5,"transmission determination","Level 19","580 George Street","SYDNEY","NSW",2000,"PO Box R41",null,"ROYAL EXCHANGE","NSW",1225,"NO","NO","NO","NO","NO","-","CBD","Urban","Short rural","Long rural",null,"NO","Murraylink"]
[null,"Powerlink","Queensland Electricity Transmission Corporation Limited trading as Powerlink Queensland",82078849233,"Qld","Electricity","Transmission","Revenue cap","Financial","June",5,5,5,5,"transmission determination","33 Harold St",null,"VIRGINIA","Qld",4014,"PO Box 1193",null,"VIRGINIA","QLD",4014,"NO","NO","NO","NO","NO","CBD","Urban","Short rural","Long rural",null,"NO",{"$f":"B22","v":"Powerlink"},"TasNetworks (T)"]
[null,"TasNetworks (T)","TasNetworks (T)",24167357299,"Tas","Electricity","Transmission","Revenue cap","Financial","June",5,5,5,5,"transmission determination","1-7 Maria Street",null,"LENAH VALLEY","Tas",7008,"PO Box 606",null,"MOONAH","Tas",7009,"NO","NO","NO","NO","NO","-","CBD","Urban","Short rural","Long rural",null,"NO","TransGrid"]
[null,"TransGrid","NSW Electricity Networks Operations Pty Ltd trading as TransGrid","70 250 995 390","NSW","Electricity","Transmission","Revenue cap","Financial","June",5,5,4,5,"transmission determination","180 Thomas Street",null,"SYDNEY","NSW",2000,"PO Box A1000",null,"SYDNEY SOUTH","NSW",1235,"NO","NO","NO","NO","NO","-","CBD","Urban","Short rural","Long rural",null,"NO"]
[]
[]
[]
[]
[null,"The Reg Year Ending (dms_RYE) must be set to the last year of the regulatory period. For forecast data is is usually (FRCP_y5) for actual it is a single year (CRY). For historical actual data the RYE will need to be set manually in the business details sheet by setting the dms_Multiyear_flag to 1 and putting the correct value in 'dms_Specified_FinalYear. See cells C67:C68"]
[null,"dms_Model_List ","dms_Model_Name_Format1","dms_Worksheet_List","dms_Model_Span_List"]
[null,"ARR","Annual Reporting",{"$f":"IF(dms_MultiYear_ResponseFlag=\"yes\",\"NEW HISTORICAL ANNUAL REPORTING\",\"ANNUAL REPORTING\")","v":"ANNUAL REPORTING"},1]
[null,"CA","Category Analysis",{"$f":"IF(dms_MultiYear_ResponseFlag=\"yes\",\"NEW HISTORICAL CATEGORY ANALYSIS\",\"CATEGORY ANALYSIS\")","v":"CATEGORY ANALYSIS"},1]
[null,"CESS","Capitlal Expenditure","CAPITLAL EXPENDITURE SHARING SCHEMING",5]
[null,"CPI","CPI","CPI",5]
[null,"EB","Economic Benchmarking",{"$f":"IF(dms_MultiYear_ResponseFlag=\"yes\",\"NEW HISTORICAL ECONOMIC BENCHMARKING\",\"ECONOMIC BENCHMARKING\")","v":"ECONOMIC BENCHMARKING"},1]
[null,"Pricing","Pricing Proposal","PRICING PROPOSAL",5]
[null,"PTRM","Post Tax Revenue Model","POST TAX REVENUE MODEL",5]
[null,"Reset","Regulatory Reporting (Reset)","REGULATORY REPORTING STATEMENT",5]
[null,"RFM","Roll Forward Model","ROLL FORWARD MODEL",5]
[null,"WACC","Weighted Average Cost of Capital","WEIGHTED AVERAGE COST OF CAPITAL",1]
[]
[]
[]
[null,"Financial","Calendar",null,"PREVIOUS",null,"CURRENT",null,"FORTHCOMING"]
[null,"1987-88","1988","PRCP_y1",{"$f":"INDEX(INDIRECT(dms_RPT),dms_PRCP_start_row)","v":"2014-15"},"CRCP_y1",{"$f":"INDEX(INDIRECT(dms_RPT),dms_CRCP_start_row)","v":"2018-19"},{"$f":"FRCP_y1","v":"2023-24"},{"$f":"INDEX(INDIRECT(dms_RPT),dms_FRCP_start_row)","v":"2023-24"}]
[null,"1988-89","1989","PRCP_y2",{"$f":"INDEX(INDIRECT(dms_RPT),dms_PRCP_start_row+1)","v":"2015-16"},"CRCP_y2",{"$f":"INDEX(INDIRECT(dms_RPT),dms_CRCP_start_row+1)","v":"2019-20"},"FRCP_y2",{"$f":"INDEX(INDIRECT(dms_RPT),dms_FRCP_start_row+1)","v":"2024-25"}]
[null,"1989-90","1990","PRCP_y3",{"$f":"INDEX(INDIRECT(dms_RPT),dms_PRCP_start_row+2)","v":"2016-17"},"CRCP_y3",{"$f":"INDEX(INDIRECT(dms_RPT),dms_CRCP_start_row+2)","v":"2020-21"},"FRCP_y3",{"$f":"INDEX(INDIRECT(dms_RPT),dms_FRCP_start_row+2)","v":"2025-26"}]
[null,"1990-91","1991","PRCP_y4",{"$f":"INDEX(INDIRECT(dms_RPT),dms_PRCP_start_row+3)","v":"2017-18"},"CRCP_y4",{"$f":"INDEX(INDIRECT(dms_RPT),dms_CRCP_start_row+3)","v":"2021-22"},"FRCP_y4",{"$f":"INDEX(INDIRECT(dms_RPT),dms_FRCP_start_row+3)","v":"2026-27"}]
[null,"1991-92","1992","PRCP_y5",{"$f":"INDEX(INDIRECT(dms_RPT),dms_PRCP_start_row+4)","v":"2018-19"},"CRCP_y5",{"$f":"INDEX(INDIRECT(dms_RPT),dms_CRCP_start_row+4)","v":"2022-23"},"FRCP_y5",{"$f":"INDEX(INDIRECT(dms_RPT),dms_FRCP_start_row+4)","v":"2027-28"}]
[null,"1992-93","1993","PRCP_y6",{"$f":"INDEX(INDIRECT(dms_RPT),dms_PRCP_start_row+5)","v":"2019-20"},"CRCP_y6",{"$f":"INDEX(INDIRECT(dms_RPT),dms_CRCP_start_row+5)","v":"2023-24"},"FRCP_y6",{"$f":"INDEX(INDIRECT(dms_RPT),dms_FRCP_start_row+5)","v":"2028-29"}]
[null,"1993-94","1994","PRCP_y7",{"$f":"INDEX(INDIRECT(dms_RPT),dms_PRCP_start_row+6)","v":"2020-21"},"CRCP_y7",{"$f":"INDEX(INDIRECT(dms_RPT),dms_CRCP_start_row+6)","v":"2024-25"},"FRCP_y7",{"$f":"INDEX(INDIRECT(dms_RPT),dms_FRCP_start_row+6)","v":"2029-30"}]
[null,"1994-95","1995","PRCP_y8",{"$f":"INDEX(INDIRECT(dms_RPT),dms_PRCP_start_row+7)","v":"2021-22"},"CRCP_y8",{"$f":"INDEX(INDIRECT(dms_RPT),dms_CRCP_start_row+7)","v":"2025-26"},"FRCP_y8",{"$f":"INDEX(INDIRECT(dms_RPT),dms_FRCP_start_row+7)","v":"2030-31"}]
[null,"1995-96","1996","PRCP_y9",{"$f":"INDEX(INDIRECT(dms_RPT),dms_PRCP_start_row+8)","v":"2022-23"},"CRCP_y9",{"$f":"INDEX(INDIRECT(dms_RPT),dms_CRCP_start_row+8)","v":"2026-27"},"FRCP_y9",{"$f":"INDEX(INDIRECT(dms_RPT),dms_FRCP_start_row+8)","v":"2031-32"}]
[null,"1996-97","1997","PRCP_y10",{"$f":"INDEX(INDIRECT(dms_RPT),dms_PRCP_start_row+9)","v":"2023-24"},"CRCP_y10",{"$f":"INDEX(INDIRECT(dms_RPT),dms_CRCP_start_row+9)","v":"2027-28"},"FRCP_y10",{"$f":"INDEX(INDIRECT(dms_RPT),dms_FRCP_start_row+9)","v":"2032-33"}]
[null,"1997-98","1998","PRCP_y11",{"$f":"INDEX(INDIRECT(dms_RPT),dms_PRCP_start_row+10)","v":"2024-25"},"CRCP_y11",{"$f":"INDEX(INDIRECT(dms_RPT),dms_CRCP_start_row+10)","v":"2028-29"},"FRCP_y11",{"$f":"INDEX(INDIRECT(dms_RPT),dms_FRCP_start_row+10)","v":"2033-34"}]
[null,"1998-99","1999","PRCP_y12",{"$f":"INDEX(INDIRECT(dms_RPT),dms_PRCP_start_row+11)","v":"2025-26"},"CRCP_y12",{"$f":"INDEX(INDIRECT(dms_RPT),dms_CRCP_start_row+11)","v":"2029-30"},"FRCP_y12",{"$f":"INDEX(INDIRECT(dms_RPT),dms_FRCP_start_row+11)","v":"2034-35"}]
[null,"1999-00","2000","PRCP_y13",{"$f":"INDEX(INDIRECT(dms_RPT),dms_PRCP_start_row+12)","v":"2026-27"},"CRCP_y13",{"$f":"INDEX(INDIRECT(dms_RPT),dms_CRCP_start_row+12)","v":"2030-31"},"FRCP_y13",{"$f":"INDEX(INDIRECT(dms_RPT),dms_FRCP_start_row+12)","v":"2035-36"}]
[null,"2000-01","2001","PRCP_y14",{"$f":"INDEX(INDIRECT(dms_RPT),dms_PRCP_start_row+13)","v":"2027-28"},"CRCP_y14",{"$f":"INDEX(INDIRECT(dms_RPT),dms_CRCP_start_row+13)","v":"2031-32"},"FRCP_y14",{"$f":"INDEX(INDIRECT(dms_RPT),dms_FRCP_start_row+13)","v":"2036-37"}]
[null,"2001-02","2002","PRCP_y15",{"$f":"INDEX(INDIRECT(dms_RPT),dms_PRCP_start_row+14)","v":"2028-29"},"CRCP_y15",{"$f":"INDEX(INDIRECT(dms_RPT),dms_CRCP_start_row+14)","v":"2032-33"},"FRCP_y15",{"$f":"INDEX(INDIRECT(dms_RPT),dms_FRCP_start_row+14)","v":{"$error":"#REF!"}}]
[null,"2002-03","2003","PRCP_y16",{"$f":"INDEX(INDIRECT(dms_RPT),dms_PRCP_start_row+15)","v":"2029-30"},"CRCP_y16",{"$f":"INDEX(INDIRECT(dms_RPT),dms_CRCP_start_row+15)","v":"2033-34"},"FRCP_y16",{"$f":"INDEX(INDIRECT(dms_RPT),dms_FRCP_start_row+15)","v":{"$error":"#REF!"}}]
[null,"2003-04","2004"]
[null,"2004-05","2005"]
[null,"2005-06","2006",null,"CRY - FRY"]
[null,"2006-07","2007","dms_y1",{"$f":"IFERROR(INDEX(INDIRECT(dms_RPT),dms_CRY_start_row),0)","v":"2021-22"}]
[null,"2007-08","2008","dms_y2",{"$f":"IFERROR(INDEX(INDIRECT(dms_RPT),dms_CRY_start_row+1),0)","v":"2022-23"}]
[null,"2008-09","2009","dms_y3",{"$f":"IFERROR(INDEX(INDIRECT(dms_RPT),dms_CRY_start_row+2),0)","v":"2023-24"}]
[null,"2009-10",2010,"dms_y4",{"$f":"IFERROR(INDEX(INDIRECT(dms_RPT),dms_CRY_start_row+3),0)","v":"2024-25"}]
[null,"2010-11",2011,"dms_y5",{"$f":"IFERROR(INDEX(INDIRECT(dms_RPT),dms_CRY_start_row+4),0)","v":"2025-26"}]
[null,"2011-12",2012,"dms_y6",{"$f":"IFERROR(INDEX(INDIRECT(dms_RPT),dms_CRY_start_row+5),0)","v":"2026-27"}]
[null,"2012-13",2013,"dms_y7",{"$f":"IFERROR(INDEX(INDIRECT(dms_RPT),dms_CRY_start_row+6),0)","v":"2027-28"}]
[null,"2013-14",2014,"dms_y8",{"$f":"IFERROR(INDEX(INDIRECT(dms_RPT),dms_CRY_start_row+7),0)","v":"2028-29"}]
[null,"2014-15",2015,"dms_y9",{"$f":"IFERROR(INDEX(INDIRECT(dms_RPT),dms_CRY_start_row+8),0)","v":"2029-30"}]
[null,"2015-16",2016,"dms_y10",{"$f":"IFERROR(INDEX(INDIRECT(dms_RPT),dms_CRY_start_row+9),0)","v":"2030-31"}]
[null,"2016-17",2017,"dms_y11",{"$f":"IFERROR(INDEX(INDIRECT(dms_RPT),dms_CRY_start_row+10),0)","v":"2031-32"}]
[null,"2017-18",2018,"dms_y12",{"$f":"IFERROR(INDEX(INDIRECT(dms_RPT),dms_CRY_start_row+11),0)","v":"2032-33"}]
[null,"2018-19",2019,"dms_y13",{"$f":"IFERROR(INDEX(INDIRECT(dms_RPT),dms_CRY_start_row+12),0)","v":"2033-34"}]
[null,"2019-20",2020,"dms_y14",{"$f":"IFERROR(INDEX(INDIRECT(dms_RPT),dms_CRY_start_row+13),0)","v":"2034-35"}]
[null,"2020-21",2021,"dms_y15",{"$f":"IFERROR(INDEX(INDIRECT(dms_RPT),dms_CRY_start_row+14),0)","v":"2035-36"}]
[null,"2021-22",2022,"dms_y16",{"$f":"IFERROR(INDEX(INDIRECT(dms_RPT),dms_CRY_start_row+15),0)","v":"2036-37"}]
[null,"2022-23",2023]
[null,"2023-24",2024]
[null,"2024-25",2025]
[null,"2025-26",2026]
[null,"2026-27",2027]
[null,"2027-28",2028]
[null,"2028-29",2029]
[null,"2029-30",2030]
[null,"2030-31",2031]
[null,"2031-32",2032]
[null,"2032-33",2033]
[null,"2033-34",2034]
[null,"2034-35",2035]
[null,"2035-36",2036]
[null,"2036-37","2037"]

{"sheet":"AER ETL","index":3,"n_rows":145,"n_cols":8,"rows_kept":145,"cut":false,"hidden":true,"merged":[[12,4,12,8],[71,1,73,1],[11,0,15,0],[18,0,25,0],[26,0,31,0],[34,0,59,0],[14,2,14,4],[32,37,32,58],[33,37,33,58],[34,37,34,58],[32,68,32,89],[33,68,33,89],[34,68,34,89]]}
["DRAFT RIN - 20200429  (WIP)","AER ETL INFORMATION"]
[]
[null,"USES NAMED RANGES FLAG","yes","dms_Defined_Names_Used"]
[]
[null,"IF THIS IS AN ABC RIN - make sure the the named range CRY is applied and the named range dms_dollar_nom_UOM is applied"]
[null,"IF THIS IS A RESET RIN - make sure the named ranges CRY and dms_dollar_nom_UOM are NOT present in the workbook"]
[null,"FOR ABC RINS THAT SPAN MULTIPLE YEARS - make sure MultiYear Flag is set and final year entered as required"]
[]
[null,"Full trading name",{"$f":"INDEX(dms_TradingNameFull_List,MATCH(dms_TradingName,dms_TradingName_List))","v":"NSW Electricity Networks Operations Pty Ltd trading as TransGrid"},null,"dms_TradingNameFull"]
[null,"Trading name",{"$f":"dms_TradingName","v":"TransGrid"}]
["Selected here","Model / RIN","Reset","dms_Model"]
["Read from Business & other details","Source","Regulatory proposal","dms_Source"]
[null,"Data quality","Consolidated","For DB purposes this is always Consoldiated"]
[null,"Data status","Public","For DB purposes this is always Public"]
[null,"Amendment reason",{"$f":"dms_Amendment_Text","v":"."},null,null,"dms_AmendmentReason"]
[null,"Submission date",{"$f":"dms_Typed_Submission_Date","v":"2022-11-30"},"dms_SubmissionDate"]
[]
["Redundant","EBSS - First application of scheme in forthcoming period?","No"]
["Pre-populated from lookup table","Data ingestion data quality","Consolidated","dms_DataQuality","Always Consolidated"]
[null,"Sector",{"$f":"INDEX(dms_Sector_List,MATCH(dms_TradingName,dms_TradingName_List))","v":"Electricity"},"dms_Sector","=INDEX(dms_Sector_List,MATCH(dms_TradingName,dms_TradingName_List))"]
[null,"Segment",{"$f":"INDEX(dms_Segment_List,MATCH(dms_TradingName,dms_TradingName_List))","v":"Transmission"},"dms_Segment","=INDEX(dms_Segment_List,MATCH(dms_TradingName,dms_TradingName_List))"]
[null,"Regulatory Year Ending",{"$f":"dms_RYE_result","v":"2028"},"dms_RYE","=IF(dms_MultiYear_Flag=1,LEFT(dms_Specified_FinalYear,2)&RIGHT(dms_Specified_FinalYear,2),INDEX(dms_RYE_Formula_Result,MATCH(dms_Model,dms_Model_List)))"]
[null,"Reporting Period Type",{"$f":"INDEX(dms_RPT_List,MATCH(dms_TradingName,dms_TradingName_List))","v":"Financial"},"dms_RPT","=INDEX(dms_RPT_List,MATCH(dms_TradingName,dms_TradingName_List))"]
[null,"EB/CA Unit of Measure for Monetary Values","$0s","dms_dollar_nom_UOM","If the cover sheet is attached to an ABC RIN apply the NAMED RANGE to the cell"]
[null,"Security Classification","Public","dms_Classification","Always Public"]
[null,"Jurisdiction",{"$f":"INDEX(dms_JurisdictionList,MATCH(dms_TradingName,dms_TradingName_List))","v":"NSW"},"dms_Jurisdiction","=INDEX(dms_JurisdictionList,MATCH(dms_TradingName,dms_TradingName_List))"]
["Relevant for PTRM, RFMs and Reset RINS","$ REAL REFERENCES"]
[null,"Does the named range CRY exist in this file? ",{"$f":"IFERROR(CRY,\"NO\")","v":"NO"}]
[null,"CRY-1  (last full calendar year before CRY)",{"$f":"IFERROR(IF(dms_RPT=\"calendar\",CRY-1,LEFT(CRY,4)),\"CRY not present\")","v":"CRY not present"},"dms_Cal_Year_B4_CRY","'=IF(dms_RPT=\"financial\",VALUE(LEFT(dms_SingleYear_FinalYear_Result,4)),VALUE(LEFT(dms_SingleYear_FinalYear_Result,4)-1))"]
[null,"Dollar $ real month",{"$f":"INDEX(dms_RPTMonth_List,MATCH(dms_TradingName,dms_TradingName_List))","v":"June"},"dms_RPTMonth","=INDEX(dms_RPTMonth_List,MATCH(dms_TradingName,dms_TradingName_List))"]
[null,"Dollar $ real  (the last month before the FRCP_y1)",{"$f":"IF(dms_SingleYearModel=\"yes\",CONCATENATE(dms_RPTMonth)&\" \"&VALUE((LEFT(dms_CRY_start_year,2)&RIGHT(dms_CRY_start_year,2))),CONCATENATE(dms_RPTMonth)&\" \"&dms_DollarReal_year)","v":"June 2023"},"dms_DollarReal","=IF(SUM(dms_SingleYear_Model)>0,CONCATENATE(dms_RPTMonth)&\" \"&VALUE((LEFT(CRY,2))&RIGHT(CRY,2)),CONCATENATE(dms_RPTMonth)&\" \"&VALUE((LEFT(dms_RYE,2)&RIGHT(dms_RYE,2))))"]
[null,"Dollar $ real previous year (PRCP_y5)",{"$f":"CONCATENATE(dms_RPTMonth)&\" \"&dms_Previous_DollarReal_year","v":"June 2019"},"dms_DollarReal_Prev","=IF(SUM(dms_SingleYear_Model)>0,CONCATENATE(dms_RPTMonth)&\" \"&VALUE(((LEFT(CRY,2))&RIGHT(CRY,2))-1),CONCATENATE(dms_RPTMonth)&\" \"&VALUE(((LEFT(dms_CRCP_FirstYear_Result,2)&RIGHT(dms_CRCP_FirstYear_Result,2))))-1)"]
[null,"PTRM/ RFMs"]
[null,"Form of control",{"$f":"INDEX(dms_FormControl_List,MATCH(dms_TradingName,dms_TradingName_List))","v":"Revenue cap"},"dms_FormControl","=INDEX(dms_FormControl_List,MATCH(dms_TradingName,dms_TradingName_List))"]
["All potential values for Regulatory Years or RYEs as calculated","This block works out the various RYE's for ALL RIN types and MODELS"]
[null,"dms_start_year",{"$f":"FRCP_y1","v":"2023-24"},"=FRCP_y1","FRCP_y1 from cover sheet"]
[null,"dms_CRY_start_year",{"$f":"IFERROR(CRY,CRCP_y4)","v":"2021-22"},"=IFERROR(CRY,CRCP_y4)"]
[null,"dms_CRY_start_row",{"$f":"IFERROR(MATCH(dms_CRY_start_year,INDIRECT(dms_RPT),0),0)","v":35},"=IFERROR(MATCH(dms_CRY_start_year,INDIRECT(dms_RPT),0),0)"]
[null,"dms_FRCP_start_row",{"$f":"MATCH(dms_start_year,INDIRECT(dms_RPT),0)","v":37},"=MATCH(dms_start_year,INDIRECT(dms_RPT),0)","Uses FRCP_y1 as a start reference"]
[null,"dms_CRCP_start_row",{"$f":"dms_FRCP_start_row-dms_CRCPlength_Num","v":32},"=dms_FRCP_start_row-dms_CRCPlength_Num","Uses the value in dms_CRCPlength_Num"]
[null,"dms_PRCP_start_row",{"$f":"dms_FRCP_start_row-dms_CRCPlength_Num-dms_PRCPlength_Num","v":28},"=dms_FRCP_start_row-dms_CRCPlength_Num-dms_PRCPlength_Num","Uses the value in dms_CRCPlength_Num and dms_PRCPlength_Num"]
[null,"dms_RYE_start_row",{"$f":"dms_FRCP_start_row+(dms_FRCPlength_Num-1)","v":41},"=dms_FRCP_start_row+(dms_FRCPlength_Num-1)","Uses the value in dms_FRCPlength_Num-1"]
[null,"FRCP_start_year",{"$f":"INDEX(INDIRECT(dms_RPT),dms_FRCP_start_row)","v":"2023-24"},"=INDEX(INDIRECT(dms_RPT),dms_FRCP_start_row)","Converts the FRCP start row to display the year"]
[null,"CRCP_start_year",{"$f":"INDEX(INDIRECT(dms_RPT),dms_CRCP_start_row)","v":"2018-19"},"=INDEX(INDIRECT(dms_RPT),dms_CRCP_start_row)","Converts the CRCP start row to display the year"]
[null,"PRCP_start_year",{"$f":"INDEX(INDIRECT(dms_RPT),dms_PRCP_start_row)","v":"2014-15"},"=INDEX(INDIRECT(dms_RPT),dms_PRCP_start_row)","Converts the PRCP start row to display the year"]
[null,"FRCP_final_year",{"$f":"INDEX(INDIRECT(dms_RPT),dms_FRCP_start_row+dms_FRCPlength_Num-1)","v":"2027-28"},"=INDEX(INDIRECT(dms_RPT),dms_FRCP_start_row+dms_FRCPlength_Num-1)","Finds the FRCP final year"]
[null,"CRCP_final_year",{"$f":"INDEX(INDIRECT(dms_RPT),dms_CRCP_start_row+dms_CRCPlength_Num-1)","v":"2022-23"},"=INDEX(INDIRECT(dms_RPT),dms_CRCP_start_row+dms_CRCPlength_Num-1)","Finds the CRCP final year"]
[null,"PRCP_final_year",{"$f":"INDEX(INDIRECT(dms_RPT),dms_PRCP_start_row+dms_FRCPlength_Num-1)","v":"2018-19"},"=INDEX(INDIRECT(dms_RPT),dms_PRCP_start_row+dms_FRCPlength_Num-1)","Finds the PRCP final year"]
[null,"dms_Reset_final_year",{"$f":"INDEX(INDIRECT(dms_RPT),dms_RYE_start_row)","v":"2027-28"},"=INDEX(INDIRECT(dms_RPT),dms_RYE_start_row)","For Resets and PTRM/RFMs (same as FRCP_final_year)"]
[null,"dms_SpecifiedYear_final_year",{"$f":"FRY","v":{"$error":"#NAME?"}},"=FRY","FRY from cover sheet"]
[null,"dms_DollarReal_year",{"$f":"LEFT(CRCP_final_year,2)&RIGHT(CRCP_final_year,2)","v":"2023"},"=LEFT(CRCP_final_year,2)&RIGHT(CRCP_final_year,2)","Uses the value in CRCP_final_year"]
[null,"dms_Previous_DollarReal_year",{"$f":"LEFT(PRCP_final_year,2)&RIGHT(PRCP_final_year,2)","v":"2019"},"=LEFT(PRCP_final_year,2)&RIGHT(PRCP_final_year,2)","Uses the value in PRCP_final_year"]
[null,"dms_CRY_RYE",{"$f":"IFERROR(LEFT(CRY,2)&RIGHT(CRY,2),0)","v":0},"=IFERROR(LEFT(CRY,2)&RIGHT(CRY,2),0)","For ABC single year RINS"]
[null,"dms_Reset_RYE",{"$f":"IF(dms_Model_Span>1,IF(dms_Model=\"RFM\",(LEFT(dms_DollarReal_year,2)&RIGHT(dms_DollarReal_year,2)),(LEFT(dms_Reset_final_year,2)&RIGHT(dms_Reset_final_year,2))),0)","v":"2028"},"=IF(dms_Model_Span>1,IF(dms_Model=\"RFM\",(LEFT(dms_DollarReal_year,2)&RIGHT(dms_DollarReal_year,2)),(LEFT(dms_Reset_final_year,2)&RIGHT(dms_Reset_final_year,2))),0)","If model span > 1 then uses dms_Reset_RYE otherwise it's a multi year ABC and uses dms_Specified_RYE"]
[null,"dms_Specified_RYE",{"$f":"IF(dms_MultiYear_ResponseFlag=\"Yes\",(LEFT(dms_Specified_FinalYear,2)&RIGHT(dms_Specified_FinalYear,2)),0)","v":0},"=IF(dms_MultiYear_ResponseFlag=\"Yes\",(LEFT(dms_Specified_FinalYear,2)&RIGHT(dms_Specified_FinalYear,2)),0)","If multi year ABC - uses dms_Specified_FinalYear"]
[null,"dms_Model_Span",{"$f":"INDEX(dms_Model_Span_List,MATCH(dms_Model,dms_Model_List))","v":5},"=INDEX(dms_Model_Span_List,MATCH(dms_Model,dms_Model_List))","A result of 5 is used to signify that it is more than 1 year span"]
[null,"dms_RYE_result",{"$f":"IF(dms_MultiYear_ResponseFlag=\"yes\",dms_Specified_RYE,(IF(dms_Model_Span>1,dms_Reset_RYE,dms_CRY_RYE)))","v":"2028"},"=IF(dms_MultiYear_ResponseFlag=\"yes\",dms_Specified_RYE,(IF(dms_Model_Span>1,dms_Reset_RYE,dms_CRY_RYE)))","Nested IF - feeds into dms_RYE"]
[null,"dms_Reset_Span",{"$f":"IF(dms_Reset_RYE>0,CONCATENATE(FRCP_y1,\" to \",FRCP_final_year),0)","v":"2023-24 to 2027-28"},"=IF(dms_Reset_RYE>0,CONCATENATE(FRCP_y1,\" to \",FRCP_final_year),0)","Reset span of years as text"]
[null,"dms_SpecifiedYear_Span",{"$f":"IF(dms_Specified_RYE>0,CONCATENATE(CRY,\" to \",dms_Specified_FinalYear),0)","v":0},"=IF(dms_Specified_RYE>0,CONCATENATE(CRY,\" to \",dms_Specified_FinalYear),0)","Multi year ABC span of years as text"]
[null,"dms_Header_Span",{"$f":"IF(dms_MultiYear_Flag=1,dms_SpecifiedYear_Span,IF(dms_Model_Span>1,dms_y1&\" to \"&FRCP_final_year,CRY))","v":"2021-22 to 2027-28"},"=IF(dms_MultiYear_Flag=1,dms_SpecifiedYear_Span,IF(dms_Model_Span>1,dms_Reset_Span,CRY))","NESTED IF - for Sheet Headers"]
[null,"ABC RINS THAT SPAN MULTIPLE YEARS"]
[null,"This is a multi year ABC RIN?","No"]
[null,null,{"$f":"IF(dms_MultiYear_ResponseFlag=\"No\",0,1)","v":0},"dms_MultiYear_Flag","This is set from the answer provided above"]
[null,null,{"$f":"IF(dms_MultiYear_Flag=1,FRY,\"not a Multiple year submission\")","v":"not a Multiple year submission"},"dms_Specified_FinalYear","The result here is returned to dms_CRCP_FinalYear_Result if response to Q in C73 is \"yes\" and dms_MultiYear_Flag is set to 1"]
[null," Start year for 5.2 in Multi year ABC RINS",{"$f":"IFERROR(IF(dms_MultiYear_Flag=1,FRY,CRY),\"not an ABC\")","v":"not an ABC"},"dms_0502_Inst_Year","=IF(dms_MultiYear_Flag=1,FRY,CRY)",null,"For single year RINS this is CRY - multi year RINS need to start a the end of the span of years (ie. FRY)"]
[null,"WHAT IS THE RYE?"]
[null,"Reg Period Lengths"]
[null,"PRCP length in years",{"$f":"INDEX(dms_PRCPlength_List,MATCH(dms_TradingName,dms_TradingName_List))","v":4},"dms_PRCPlength_Num","=INDEX(dms_PRCPlength_List,MATCH(dms_TradingName,dms_TradingName_List))"]
[null,"CRCP length in years",{"$f":"INDEX(dms_CRCPlength_List,MATCH(dms_TradingName,dms_TradingName_List))","v":5},"dms_CRCPlength_Num","=INDEX(dms_CRCPlength_List,MATCH(dms_TradingName,dms_TradingName_List))"]
[null,"FRCP length in years",{"$f":"INDEX(dms_FRCPlength_List,MATCH(dms_TradingName,dms_TradingName_List))","v":5},"dms_FRCPlength_Num","=INDEX(dms_FRCPlength_List,MATCH(dms_TradingName,dms_TradingName_List))"]
[null,"Single year RIN?"]
[null,"Single Year ABC RIN ?",{"$f":"IF(dms_Model=\"EB\",1,0)","v":0},"dms_EB"]
[null,null,{"$f":"IF(dms_Model=\"CA\",1,0)","v":0},"dms_CA","=dms_SingleYear_Model"]
[null,null,{"$f":"IF(dms_Model=\"ARR\",1,0)","v":0},"dms_ARR"]
[null,"Is this a single Year ABC RIN?",{"$f":"IF(SUM(dms_SingleYear_Model)=1,\"yes\",\"no\")","v":"no"},"dms_SingleYearModel","=IF(SUM(dms_SingleYear_Model)=1,\"yes\",\"no\")"]
[null,"Single Year Final Year Result",{"$f":"IF(AND(dms_SingleYearModel=\"yes\",dms_MultiYear_Flag=0),CRY,0)","v":0},"dms_SingleYear_FinalYear_Result","=IFERROR(IF(SUM(dms_SingleYear_Model)<>0,(INDIRECT(dms_SingleYear_FinalYear_Ref)),\"not a single year RIN\"),\"CRY not present\")"]
[null,"Multi year RIN?"]
[]
[null,"Multi Year Reset/Model?",{"$f":"IF(dms_Model_Span>1,\"yes\",\"no\")","v":"yes"}]
[null,"Final year result for Reset/Model",{"$f":"IF(dms_Model_Span>1,dms_Reset_final_year,0)","v":"2027-28"},"dms_MultiYear_FinalYear_Result","dms_CRCP_FinalYear_Result"]
[]
[null,"Multi Year ABC RIN?",{"$f":"IF(dms_MultiYear_Flag=1,\"yes\",\"no\")","v":"no"},"dms_MultiYear_ABC_RIN"]
[null,"Final year result for ABC multi year",{"$f":"IF(dms_MultiYear_Flag=1,C50,0)","v":0}]
[]
[null,"EB RINS"]
[null,"Calendar Year for table 3.6 data",{"$f":"IFERROR(IF(dms_Segment=\"Transmission\",dms_Cal_Year_B4_CRY,CRY),\"CRY not present\")","v":"CRY not present"},"dms_0306_Year","=IF(dms_Segment=\"Transmission\",dms_Cal_Year_B4_CRY,CRY)"]
[null,"CA RINS"]
[null,"Find how many rows in tables 6.3 sustained interruptions?",null,null,"dms_060301_MaxRows only returns a valid value when cover sheet is attached to a CA file"]
[null,null,{"$f":"IF(dms_Model<>\"CA\",\"not a CA\",\"Is a CA\")","v":"not a CA"},null,"=IF(dms_Model<>\"CA\",\"not a CA\",\"Is a CA\")"]
[null,"dms_060301_Avg_Duration_Sustained_Int_Values present?",{"$f":"IFERROR(IF(INDEX(dms_060301_Avg_Duration_Sustained_Int_Values,1,1)<>\"\",\"yes\",\"no\"),\"no\")","v":"no"},"dms_060301_checkvalue","=IFERROR(IF(INDEX(dms_060301_Avg_Duration_Sustained_Int_Values,1,1)<>\"\",\"yes\",\"no\"),\"no\")"]
[null,null,{"$f":"IF(AND(dms_Model=\"CA\",(dms_060301_checkvalue=\"no\")),\"error - NR not present\",\"no errors\")","v":"no errors"},null,"=IF(AND(dms_Model=\"CA\",(dms_060301_checkvalue=\"no\")),\"error - NR not present\",\"no errors\")"]
[null,"Table 6.3.1 - last row reference",{"$f":"IFERROR(IF(dms_Model=\"CA\",LOOKUP(2,1/(dms_060301_Avg_Duration_Sustained_Int_Values<>\"\"),(ROW(dms_060301_Avg_Duration_Sustained_Int_Values))),\"not a CA\"),\"6.3 not present\")","v":"not a CA"},"dms_060301_LastRow","=IFERROR(IF(dms_Model=\"CA\",LOOKUP(2,1/(dms_060301_Avg_Duration_Sustained_Int_Values<>\"\"),(ROW(dms_060301_Avg_Duration_Sustained_Int_Values))),\"not a CA\"),\"6.3 not present\")"]
[null,"Table 6.3.1 - max number rows",{"$f":"IFERROR(IF(dms_Model=\"CA\",(dms_060301_LastRow-15),\"not a CA\"),\"error\")","v":"not a CA"},"dms_060301_MaxRows","=IFERROR(IF(dms_Model=\"CA\",(dms_060301_LastRow-15),\"not a CA\"),\"error\")"]
[null,"Table 6.6.3 - Public lighting repair - no. business days",{"$f":"INDEX(dms_663_List,MATCH(dms_TradingName,dms_TradingName_List))","v":5},"dms_663","=INDEX(dms_663_List,MATCH(dms_TradingName,dms_TradingName_List))"]
[null,"ARR or RESET RINS"]
[null,"How many rows in tables 6.1 or 6.7?  (leap year?)","insert dms_LeapYear NR if required",null,"'dms_LeapYear is used to determine dms_060701_Max_Rows BUT it is only found on worksheet 6.1 or 6.7 and the date value in the cell is used to determine whether it is a leap year"]
[null,"Is dms_LeapYear named range present?",{"$f":"IFERROR(IF(dms_LeapYear,\"yes\"),\"no\")","v":"no"}]
[null,"Table 6.7.1 - includes a leap year?",{"$f":"\nIFERROR(IF(MONTH(DATE(YEAR(dms_LeapYear),2,29))=2,\"is a leap year\",\"not a leap year\"),\n\"dms_LeapYear not present\")","v":"dms_LeapYear not present"},"dms_LeapYear_Result","=IFERROR(IF(MONTH(DATE(YEAR(dms_LeapYear),2,29))=2,\"is a leap year\",\"not a leap year\"),\"dms_LeapYear not present\")"]
[null,"MaxRows if Reset and leap year",{"$f":"IF(dms_LeapYear_Result=\"is a leap year\",1827,1826)","v":1826},"dms_060701_Reset_MaxRows","=IF(dms_LeapYear_Result=\"is a leap year\",1827,1826)",null,null,"number of days present in Reset RIN table"]
[null,"MaxRows if ARR and leap year",{"$f":"IF(dms_LeapYear_Result=\"is a leap year\",366,365)","v":365},"dms_060701_ARR_MaxRows","=IF(dms_LeapYear_Result=\"is a leap year\",366,365)",null,null,"number of days present in ARR RIN table"]
[null,"Table 6.7.1 - Max Rows (leap year/ non leap year)",{"$f":"IF(dms_Model=\"ARR\",dms_060701_ARR_MaxRows,IF(dms_Model=\"Reset\",dms_060701_Reset_MaxRows,\"not a relevant RIN type\"))","v":1826},"dms_060701_MaxRows","=IF(dms_Model=\"ARR\",dms_060701_ARR_MaxRows,IF(dms_Model=\"Reset\",dms_060701_Reset_MaxRows,\"not a relevant RIN type\"))"]
[null,"How many columns in 6.7?   (4 or 5 feeder categories)",{"$f":"IF(dms_FifthFeeder_flag_NSP=\"NO\",\"This NSP has only 4 feeder categories\",\"This NSP has 5 feeder categories\")","v":"This NSP has only 4 feeder categories"}]
[null,"Table 6.7.1 - Last column (# of feeder categories > 4)",{"$f":"IF(dms_FifthFeeder_flag_NSP=\"NO\",10,12)","v":10},"dms_060701_MaxCols","=IF(dms_FifthFeeder_flag_NSP=\"NO\",8,10)"]
[null,"Table 6.7.1 - Number of offset rows",{"$f":"IF(dms_Model=\"ARR\",15,9)","v":9},"dms_060701_OffsetRows","=IF(dms_Model=\"ARR\",15,9)"]
[null,"Start date for telephone answering in 6.1 or 6.7?",null,null,"Using 060101 as naming standard not 060701 for start dates"]
[null,"Table 6.1.1 and 6.7.1 - Start Date as Text",{"$f":"IF(dms_SingleYearModel=\"yes\",(CONCATENATE(IF(LEN(CRY)=4,\"1-Jan-\",\"1-Jul-\"),LEFT(CRY,4))),(CONCATENATE(IF(LEN(PRCP_y4)=4,\"1-Jan-\",\"1-Jul-\"),LEFT(PRCP_y4,4))))","v":"1-Jul-2017"},"dms_060101_StartDateTxt","=IF(SUM(dms_SingleYear_Model)>1,(CONCATENATE(IF(LEN(CRY)=4,\"1-Jan-\",\"1-Jul-\"),LEFT(CRY,4))),(CONCATENATE(IF(LEN(CRCP_y4)=4,\"1-Jan-\",\"1-Jul-\"),LEFT(CRCP_y4,4))))"]
[null,"Table 6.1.1 and 6.7.1 - Start Date as Date Value",{"$f":"DATEVALUE(dms_060701_StartDateTxt)","v":42917},"dms_060101_StartDateVal","=DATEVALUE(dms_060701_StartDateTxt)"]
[null,"ARRs"]
[null,"How many rows in table 6.8?","insert dms_060801_StartCell NR if required",null,"dms_060801_StartCell is only found on worksheet 6.8 and is used to determine the starting date for the date range"]
[null,"Is dms_060801_StartCell named range present?","yes",null,"=IFERROR(IF((ROW(dms_060801_StartCell)-1)=1,\"yes\",\"yes\"),\"no\")"]
[null,"Table 6.8 - Number of offset rows",12,"dms_0608_OffsetRows","=IFERROR(IF(dms_Model=\"ARR\",(ROW(dms_060801_StartCell)-1),\"not an ARR\"),\"6.8 error\")"]
[null,"Table 6.8 - Last row","0","dms_0608_LastRow","=IFERROR(IF(dms_060801_StartCell<>\"\",IF(dms_Model=\"ARR\",(LOOKUP(2,1/(dms_060801_01_Values<>\"\"),(ROW(dms_060801_01_Values)))),\"not an ARR\"),0),\"0\")"]
[null,"Table 6.8 - MaxRows",{"$f":"IFERROR(IF(dms_Model=\"ARR\",(MAX(0,dms_0608_LastRow-dms_0608_OffsetRows)),\"not an ARR\"),\"0\")","v":"not an ARR"},"dms_060801_MaxRows","=IFERROR(IF(dms_Model=\"ARR\",(MAX(0,dms_0608_LastRow-dms_0608_OffsetRows)),\"not an ARR\"),\"0\")"]
[null,"TNSP RESET RINS"]
[null,"Table 7.9.4 only appears in TNSPs Reset RIN"]
[null,"Table 7.9.4 - first year",{"$f":"LEFT(PRCP_y3,4)","v":"2016"},"dms_070904_Start_Year","=LEFT(PRCP_y3,4)"]
[]
[null,"MISC"]
[null,"Distribution Determination Reference",{"$f":"INDEX(dms_DeterminationRef_List,MATCH(dms_TradingName,dms_TradingName_List))","v":"transmission determination"},"dms_DeterminationRef"]
[null,"Public lighting NSP?",{"$f":"INDEX(dms_Public_Lighting_List,MATCH(dms_TradingName,dms_TradingName_List))","v":0},"dms_Public_Lighting","=INDEX(dms_Public_Lighting_List,MATCH(dms_TradingName,dms_TradingName_List))"]
[null,"CBD Feeder for this business",{"$f":"INDEX(dms_CBD_flag,MATCH(dms_TradingName,dms_TradingName_List))","v":"NO"},"dms_CBD_flag_NSP"]
[null,"Urban Feeder for this business",{"$f":"INDEX(dms_Urban_flag,MATCH(dms_TradingName,dms_TradingName_List))","v":"NO"},"dms_Urban_flag_NSP"]
[null,"Short rural Feeder for this business",{"$f":"INDEX(dms_ShortRural_flag,MATCH(dms_TradingName,dms_TradingName_List))","v":"NO"},"dms_ShortRural_flag_NSP"]
[null,"Long rural Feeder for this business",{"$f":"INDEX(dms_LongRural_flag,MATCH(dms_TradingName,dms_TradingName_List))","v":"NO"},"dms_LongRural_flag_NSP"]
[null,"Fifth Feeder Category (eg. TasNetworks (D))",{"$f":"INDEX(dms_FeederType_5_flag,MATCH(dms_TradingName,dms_TradingName_List))","v":"NO"},"dms_FifthFeeder_flag_NSP","=INDEX(dms_FeederType_5_flag,MATCH(dms_TradingName,dms_TradingName_List))"]
[]
[null,"DISCARD FILES"]
[null,"discard this record?","NO","dms_DISCARD","If record is to be discarded from DB set this flag to YES"]
[]
[null,"SUBSET FILES"]
[null,"Is this Submission File a Subset File","NO","dms_Partial"]
[]
[]
[null,"REGULATORY YEARS FOR MULTI RYE SUBMISSIONS"]
[null,"Multiple RYE flag","NO","dms_Multi_RYE_flag"]
[null,null,"Manually specify RYE","Named ranges to apply"]
[null,null,2013,"dms_RYE_01"]
[null,null,2014,"dms_RYE_02"]
[null,null,2015,"dms_RYE_03"]
[null,null,2016,"dms_RYE_04"]
[null,null,2017,"dms_RYE_05"]
[null,null,2018,"dms_RYE_06"]
[null,null,2019,"dms_RYE_07"]
[null,null,2020,"dms_RYE_08"]
[null,null,2021,"dms_RYE_09"]

{"sheet":"Instructions","index":4,"n_rows":25,"n_cols":4,"rows_kept":25,"cut":false,"hidden":false,"merged":[[1,1,1,4],[2,1,2,4],[3,1,3,4],[4,1,4,4],[5,2,5,4],[7,1,8,1],[7,2,7,3],[8,2,8,4],[16,1,22,1],[16,2,16,4],[24,2,24,4],[10,1,12,1],[10,2,10,4],[11,2,11,3],[12,2,12,4],[14,2,14,4]]}
[]
[null,{"$f":"CONCATENATE(dms_Sector,\" \",dms_Segment,\" \", \"Network Service Provider\")","v":"Electricity Transmission Network Service Provider"}]
[null,{"$f":"IF(dms_Model=\"Reset\",\"Regulatory Proposal RIN Template\",\"Annual Reporting RIN\")","v":"Regulatory Proposal RIN Template"}]
[null,{"$f":"CONCATENATE(\"This template is to be used by \",dms_TradingNameFull,\" to fulfil its reporting obligations to the AER.\")","v":"This template is to be used by NSW Electricity Networks Operations Pty Ltd trading as TransGrid to fulfil its reporting obligations to the AER."}]
[null,"INSTRUCTIONS"]
[null,"GENERAL","Complete the Business & other details worksheet before entering data or values in any other worksheets. The Business & other details worksheet is linked to other worksheets within the workbook and automatically generates certain column headings and conditional formatting."]
[]
[null,"CONFIDENTIAL INFORMATION","\nPlease use the macro at the top of each \nworksheet to identify confidential information\nin the confidential workbook. \n\n"]
[null,null,"-Do this by selecting the cell or cells that contain confidential information and then run the Mark selection as CONFIDENTIAL macro. This will format the cells a specific colour that is identified by the AER's database which in turn marks that information as confidential.\n\n-To reverse this, select the cell or cells and run the Return selection to NON-CONFIDENTIAL macro."]
[]
[null,"AMENDMENTS","\nIf an NSP wishes to correct data previously submitted to the AER it should resubmit that data using the original completed submission as the starting point. Please make any necessary changes to the data. Data that is not being amended should be left unchanged. \n\nNSPs must identify the reason for the amendments in the Amendment Reason box on the  Business and other details worksheet. NSPs may provide further details regarding any amendments in the Amendments worksheet. \n\n."]
[null,null,"NSP may use Amended Data macro \nto highlight cells that contain amended data.\nNB: if data is also CONFIDENTIAL, re-apply \nthe Confidentiality macro after applying the \nAmended macro"]
[null,null,"Please resubmit two (2) files - a confidential version and a public version of the amended submission to the AER"]
[]
[null,"UNITS OF MEASURE","\nAll amounts are to be unrounded and reported on a one for one basis: that is 1000 is to be entered as '1000'. Applicable units of measure may be identified in the table column headings or row descriptors.\n\n"]
[]
[null,"INPUT / NON-INPUT CELLS"]
[null,null,null,"Yellow = Input cell (mandatory)"]
[null,null,null,"Darker yellow = input cell (mandatory)"]
[null,null,null,"Orange = input cell (if data available)"]
[null,null,null,"Grey = Not applicable/No inputs required"]
[null,null,null," \nPLEASE DO NOT ENTER TEXT into cells that are to contain numeric data."]
[]
[]
[null,"NAVIGATION","\nMany tables in the worksheets have been \"grouped\" to allow for easy navigation. To ungroup or group data use the outline symbols in the left margin (for Row groupings) or above the columns (for column groupings). \n\n\n\n"]

{"sheet":"CONTENTS","index":5,"n_rows":39,"n_cols":6,"rows_kept":39,"cut":false,"hidden":false,"merged":[[4,4,4,5]]}
[null,null,null,{"$f":"INDEX(dms_Worksheet_List,MATCH(dms_Model,dms_Model_List))","v":"REGULATORY REPORTING STATEMENT"}]
[null,null,null,{"$f":"INDEX(dms_TradingNameFull_List,MATCH(dms_TradingName,dms_TradingName_List))","v":"NSW Electricity Networks Operations Pty Ltd trading as TransGrid"}]
[]
[]
[null,null,null,null,"CONTENTS"]
[]
[null,null,null,null,"TEMPLATE DATE","SEPTEMBER 2021"]
[]
[null,null,null,null,"SUBMISSION","Business & other details"]
[null,null,null,null,null,"CPI series"]
[]
[null,null,null,null,"EXPENDITURE","2.1 Expenditure summary"]
[null,null,null,null,null,"2.2 Repex"]
[null,null,null,null,null,"2.3 Augex (a)"]
[null,null,null,null,null,"2.3 Augex (b)"]
[null,null,null,null,null,"2.5 Connections"]
[null,null,null,null,null,"2.6 Non-network"]
[null,null,null,null,null,"2.10 Overheads"]
[null,null,null,null,null,"2.11 Labour"]
[null,null,null,null,null,"2.14 Forecast price changes"]
[null,null,null,null,null,"2.16 Opex Summary"]
[null,null,null,null,null,"2.17 Step Changes"]
[]
[null,null,null,null,"ECONOMIC BENCHMARKING","3.1 Revenue"]
[null,null,null,null,null,"3.2 Operating expenditure"]
[null,null,null,null,null,"3.3 Assets (RAB)"]
[null,null,null,null,null,"3.4 Operational data"]
[null,null,null,null,null,"3.5 Physical assets"]
[null,null,null,null,null,"3.7 Operating environment"]
[]
[null,null,null,null,"NETWORK","5.4 MD & Utilisation - Spatial"]
[]
[null,null,null,null,"OTHER","7.1  Policies and Procedures"]
[null,null,null,null,null,"7.2 Contingent projects"]
[null,null,null,null,null,"7.3 Obligations"]
[null,null,null,null,null,"7.4 Shared Assets"]
[null,null,null,null,null,"7.9 STPIS"]
[]
[null,null,null,null,"CAPEX","8.2 Capex"]

{"sheet":"Business & other details","index":6,"n_rows":74,"n_cols":81,"rows_kept":74,"cut":false,"hidden":false,"merged":[[0,7,2,15],[6,21,6,75],[24,21,24,35],[42,37,42,44],[42,46,42,53],[42,55,42,62],[42,64,42,71],[3,21,3,57],[8,16,8,93],[22,68,22,89],[23,68,23,89],[25,68,25,71],[25,80,25,82],[24,68,24,82],[25,37,25,40],[22,37,22,58],[23,37,23,58],[31,21,31,35],[22,21,22,35],[16,21,16,35],[16,37,16,48],[15,21,15,35],[15,37,15,58],[24,37,24,51],[25,21,25,35],[23,21,23,35],[45,73,45,80],[45,64,45,71],[46,73,46,80],[45,55,45,62],[50,46,50,53],[46,46,46,53],[46,37,46,44],[50,37,50,44],[31,68,31,89],[32,68,32,89],[33,68,33,89],[43,64,43,71],[43,73,43,80],[41,73,41,80],[25,49,25,51],[24,60,24,66],[25,60,25,66],[42,73,42,80],[32,21,32,35],[33,21,33,35],[33,60,33,66],[32,60,32,66],[50,73,50,80],[50,64,50,71],[46,64,46,71],[46,55,46,62],[50,55,50,62],[47,73,47,80],[51,73,51,80],[51,64,51,71],[22,60,22,66],[23,60,23,66],[31,60,31,66],[49,25,49,34],[53,25,53,34],[45,46,45,53],[45,37,45,44],[49,37,49,44],[41,46,41,53],[49,55,49,62],[49,64,49,71],[41,55,41,62],[41,64,41,71],[47,46,47,53],[47,55,47,62],[47,64,47,71],[51,55,51,62],[53,37,53,44],[49,46,49,53],[51,46,51,53],[51,37,51,44],[47,37,47,44],[73,25,73,34],[73,37,73,52],[55,25,55,34],[63,25,63,34],[65,25,65,34],[55,37,55,44],[61,25,61,34],[61,37,61,52],[31,37,31,58],[32,37,32,58],[33,37,33,58],[43,37,43,44],[43,46,43,53],[43,55,43,62],[63,37,63,52],[65,37,65,52],[67,37,67,52],[69,37,71,81],[67,25,67,34],[69,25,71,34],[49,73,49,80],[41,25,41,34],[45,25,45,34],[41,37,41,44]]}
[null,null,null,null,null,null,null,null,null,null,null,null,null,null,null,null,null,null,null,null,null,{"$f":"INDEX(dms_Worksheet_List,MATCH(dms_Model,dms_Model_List))","v":"REGULATORY REPORTING STATEMENT"}]
[null,null,null,null,null,null,null,null,null,null,null,null,null,null,null,null,null,null,null,null,null,{"$f":"INDEX(dms_TradingNameFull_List,MATCH(dms_TradingName,dms_TradingName_List))","v":"NSW Electricity Networks Operations Pty Ltd trading as TransGrid"}]
[null,null,null,null,null,null,null,null,null,null,null,null,null,null,null,null,null,null,null,null,null,{"$f":"CONCATENATE( \"DATA SPAN \", dms_Header_Span)","v":"DATA SPAN 2021-22 to 2027-28"}]
[null,null,null,null,null,null,null,null,null,null,null,null,null,null,null,null,null,null,null,null,null,"BUSINESS & OTHER DETAILS"]
[]
[null,null,null,null,null,null,null,null,null,null,null,null,null,null,null,null,null,null,null,null,null,"INSTRUCTIONS"]
[null,null,null,null,null,null,null,null,null,null,null,null,null,null,null,null,null,null,null,null,null,"Complete the following business details regulatory template before entering data or values in any other regulatory template. This regulatory template is linked to other cells within the spreadsheet and automatically generates column headings and conditional formatting to distinguish business specific input and non-input cells. "]
[]
[null,null,null,null,null,null,null,null,null,null,null,null,null,null,null,null,"SUBMISSION PARTICULARS INPUT SHEET"]
[]
[]
[null,null,null,null,null,null,null,null,null,null,null,null,null,null,null,null,null,null,null,null,null,"ENTITY DETAILS"]
[]
[null,null,null,null,null,null,null,null,null,null,null,null,null,null,null,null,null,null,null,null,null,"Business Name"]
[]
[null,null,null,null,null,null,null,null,null,null,null,null,null,null,null,null,null,null,null,null,null,"Short name",null,null,null,null,null,null,null,null,null,null,null,null,null,null,null,"TransGrid"]
[null,null,null,null,null,null,null,null,null,null,null,null,null,null,null,null,null,null,null,null,null,"ACN/ABN",null,null,null,null,null,null,null,null,null,null,null,null,null,null,null,{"$f":"INDEX(dms_ABN_List,MATCH(dms_TradingName,dms_TradingName_List))","v":"70 250 995 390"}]
[]
[]
[]
[null,null,null,null,null,null,null,null,null,null,null,null,null,null,null,null,null,null,null,null,null,"Business Address",null,null,null,null,null,null,null,null,null,null,null,null,null,null,null,null,null,null,null,null,null,null,null,null,null,null,null,null,null,null,null,null,null,null,null,null,null,null,null,null,null,null,null,null,null,null,"Postal Address"]
[]
[null,null,null,null,null,null,null,null,null,null,null,null,null,null,null,null,null,null,null,null,null,"Address 1",null,null,null,null,null,null,null,null,null,null,null,null,null,null,null,{"$f":"INDEX(dms_Addr1_List,MATCH(dms_TradingName,dms_TradingName_List))","v":"180 Thomas Street"},null,null,null,null,null,null,null,null,null,null,null,null,null,null,null,null,null,null,null,null,null,null,"Address 1",null,null,null,null,null,null,null,{"$f":"INDEX(dms_PAddr1_List,MATCH(dms_TradingName,dms_TradingName_List))","v":"PO Box A1000"}]
[null,null,null,null,null,null,null,null,null,null,null,null,null,null,null,null,null,null,null,null,null,"Address 2",null,null,null,null,null,null,null,null,null,null,null,null,null,null,null,{"$f":"IF(ISBLANK(INDEX(dms_Addr2_List,MATCH(dms_TradingName,dms_TradingName_List))),\"\",(INDEX(dms_Addr2_List,MATCH(dms_TradingName,dms_TradingName_List))))","v":""},null,null,null,null,null,null,null,null,null,null,null,null,null,null,null,null,null,null,null,null,null,null,"Address 2",null,null,null,null,null,null,null,{"$f":"IF(ISBLANK(INDEX(dms_PAddr2_List,MATCH(dms_TradingName,dms_TradingName_List))),\"\",(INDEX(dms_PAddr2_List,MATCH(dms_TradingName,dms_TradingName_List))))","v":""}]
[null,null,null,null,null,null,null,null,null,null,null,null,null,null,null,null,null,null,null,null,null,"Suburb",null,null,null,null,null,null,null,null,null,null,null,null,null,null,null,{"$f":"INDEX(dms_Suburb_List,MATCH(dms_TradingName,dms_TradingName_List))","v":"SYDNEY"},null,null,null,null,null,null,null,null,null,null,null,null,null,null,null,null,null,null,null,null,null,null,"Suburb",null,null,null,null,null,null,null,{"$f":"INDEX(dms_PSuburb_List,MATCH(dms_TradingName,dms_TradingName_List))","v":"SYDNEY SOUTH"}]
[null,null,null,null,null,null,null,null,null,null,null,null,null,null,null,null,null,null,null,null,null,"State",null,null,null,null,null,null,null,null,null,null,null,null,null,null,null,{"$f":"INDEX(dms_State_List,MATCH(dms_TradingName,dms_TradingName_List))","v":"NSW"},null,null,null,null,null,null,null,null,null,"Post code",null,2000,null,null,null,null,null,null,null,null,null,null,"State",null,null,null,null,null,null,null,{"$f":"INDEX(dms_PState_List,MATCH(dms_TradingName,dms_TradingName_List))","v":"NSW"},null,null,null,null,null,null,null,null,null,"Post code",null,1235]
[]
[null,null,null,null,null,null,null,null,null,null,null,null,null,null,null,null,null,null,null,null,null,null,null,null,null,null,null,null,null,null,null,null,null,null,null,null,null,null,null,null,null,null,null,null,null,null,null,null,null,null,null,null,"`"]
[]
[null,null,null,null,null,null,null,null,null,null,null,null,null,null,null,null,null,null,null,null,null,"Contact Names"]
[]
[null,null,null,null,null,null,null,null,null,null,null,null,null,null,null,null,null,null,null,null,null,"Name",null,null,null,null,null,null,null,null,null,null,null,null,null,null,null,null,null,null,null,null,null,null,null,null,null,null,null,null,null,null,null,null,null,null,null,null,null,null,"Name"]
[null,null,null,null,null,null,null,null,null,null,null,null,null,null,null,null,null,null,null,null,null,"Phone",null,null,null,null,null,null,null,null,null,null,null,null,null,null,null,null,null,null,null,null,null,null,null,null,null,null,null,null,null,null,null,null,null,null,null,null,null,null,"Phone"]
[null,null,null,null,null,null,null,null,null,null,null,null,null,null,null,null,null,null,null,null,null,"Email",null,null,null,null,null,null,null,null,null,null,null,null,null,null,null,null,null,null,null,null,null,null,null,null,null,null,null,null,null,null,null,null,null,null,null,null,null,null,"Email"]
[]
[]
[]
[]
[null,null,null,null,null,null,null,null,null,null,null,null,null,null,null,null,"REGULATORY CONTROL PERIODS"]
[]
[]
[null,null,null,null,null,null,null,null,null,null,null,null,null,null,null,null,null,null,null,null,null,null,null,null,null,"Forthcoming period",null,null,null,null,null,null,null,null,null,null,null,"2023-24",null,null,null,null,null,null,null,null,{"$f":"FRCP_y2","v":"2024-25"},null,null,null,null,null,null,null,null,{"$f":"FRCP_y3","v":"2025-26"},null,null,null,null,null,null,null,null,{"$f":"FRCP_y4","v":"2026-27"},null,null,null,null,null,null,null,null,{"$f":"FRCP_y5","v":"2027-28"}]
[null,null,null,null,null,null,null,null,null,null,null,null,null,null,null,null,null,null,null,null,null,null,null,null,null,null,null,null,null,null,null,null,null,null,null,null,null,{"$f":"FRCP_y6","v":"2028-29"},null,null,null,null,null,null,null,null,{"$f":"FRCP_y7","v":"2029-30"},null,null,null,null,null,null,null,null,{"$f":"FRCP_y8","v":"2030-31"},null,null,null,null,null,null,null,null,{"$f":"FRCP_y9","v":"2031-32"},null,null,null,null,null,null,null,null,{"$f":"FRCP_y10","v":"2032-33"}]
[null,null,null,null,null,null,null,null,null,null,null,null,null,null,null,null,null,null,null,null,null,null,null,null,null,null,null,null,null,null,null,null,null,null,null,null,null,{"$f":"FRCP_y11","v":"2033-34"},null,null,null,null,null,null,null,null,{"$f":"FRCP_y12","v":"2034-35"},null,null,null,null,null,null,null,null,{"$f":"FRCP_y13","v":"2035-36"},null,null,null,null,null,null,null,null,{"$f":"FRCP_y14","v":"2036-37"},null,null,null,null,null,null,null,null,{"$f":"FRCP_y15","v":{"$error":"#REF!"}}]
[]
[null,null,null,null,null,null,null,null,null,null,null,null,null,null,null,null,null,null,null,null,null,null,null,"RESETS",null,"Current period",null,null,null,null,null,null,null,null,null,null,null,{"$f":"CRCP_y1","v":"2018-19"},null,null,null,null,null,null,null,null,{"$f":"CRCP_y2","v":"2019-20"},null,null,null,null,null,null,null,null,{"$f":"CRCP_y3","v":"2020-21"},null,null,null,null,null,null,null,null,{"$f":"CRCP_y4","v":"2021-22"},null,null,null,null,null,null,null,null,{"$f":"CRCP_y5","v":"2022-23"}]
[null,null,null,null,null,null,null,null,null,null,null,null,null,null,null,null,null,null,null,null,null,null,null,null,null,null,null,null,null,null,null,null,null,null,null,null,null,{"$f":"CRCP_y6","v":"2023-24"},null,null,null,null,null,null,null,null,{"$f":"CRCP_y7","v":"2024-25"},null,null,null,null,null,null,null,null,{"$f":"CRCP_y8","v":"2025-26"},null,null,null,null,null,null,null,null,{"$f":"CRCP_y9","v":"2026-27"},null,null,null,null,null,null,null,null,{"$f":"CRCP_y10","v":"2027-28"}]
[null,null,null,null,null,null,null,null,null,null,null,null,null,null,null,null,null,null,null,null,null,null,null,null,null,null,null,null,null,null,null,null,null,null,null,null,null,{"$f":"CRCP_y11","v":"2028-29"},null,null,null,null,null,null,null,null,{"$f":"CRCP_y12","v":"2029-30"},null,null,null,null,null,null,null,null,{"$f":"CRCP_y13","v":"2030-31"},null,null,null,null,null,null,null,null,{"$f":"CRCP_y14","v":"2031-32"},null,null,null,null,null,null,null,null,{"$f":"CRCP_y15","v":"2032-33"}]
[]
[null,null,null,null,null,null,null,null,null,null,null,null,null,null,null,null,null,null,null,null,null,null,null,null,null,"Previous period",null,null,null,null,null,null,null,null,null,null,null,{"$f":"PRCP_y1","v":"2014-15"},null,null,null,null,null,null,null,null,{"$f":"PRCP_y2","v":"2015-16"},null,null,null,null,null,null,null,null,{"$f":"PRCP_y3","v":"2016-17"},null,null,null,null,null,null,null,null,{"$f":"PRCP_y4","v":"2017-18"},null,null,null,null,null,null,null,null,{"$f":"PRCP_y5","v":"2018-19"}]
[null,null,null,null,null,null,null,null,null,null,null,null,null,null,null,null,null,null,null,null,null,null,null,null,null,null,null,null,null,null,null,null,null,null,null,null,null,{"$f":"PRCP_y6","v":"2019-20"},null,null,null,null,null,null,null,null,{"$f":"PRCP_y7","v":"2020-21"},null,null,null,null,null,null,null,null,{"$f":"PRCP_y8","v":"2021-22"},null,null,null,null,null,null,null,null,{"$f":"PRCP_y9","v":"2022-23"},null,null,null,null,null,null,null,null,{"$f":"PRCP_y10","v":"2023-24"}]
[null,null,null,null,null,null,null,null,null,null,null,null,null,null,null,null,null,null,null,null,null,null,null,null,null,null,null,null,null,null,null,null,null,null,null,null,null,{"$f":"PRCP_y11","v":"2024-25"},null,null,null,null,null,null,null,null,{"$f":"PRCP_y12","v":"2025-26"},null,null,null,null,null,null,null,null,{"$f":"PRCP_y13","v":"2026-27"},null,null,null,null,null,null,null,null,{"$f":"PRCP_y14","v":"2027-28"},null,null,null,null,null,null,null,null,{"$f":"PRCP_y15","v":"2028-29"}]
[]
[null,null,null,null,null,null,null,null,null,null,null,null,null,null,null,null,null,null,null,null,null,null,null,null,null,"Commencing year",null,null,null,null,null,null,null,null,null,null,null,"2021-22"]
[null,null,null,null,null,null,null,null,null,null,null,null,null,null,null,null,null,null,null,null,null,null,null,"ANNUAL RINS"]
[null,null,null,null,null,null,null,null,null,null,null,null,null,null,null,null,null,null,null,null,null,null,null,null,null,"Final year",null,null,null,null,null,null,null,null,null,null,null,"2027-28"]
[]
[]
[]
[null,null,null,null,null,null,null,null,null,null,null,null,null,null,null,null,"SUBMISSION DETAILS"]
[]
[null,null,null,null,null,null,null,null,null,null,null,null,null,null,null,null,null,null,null,null,null,null,null,null,null,"RIN type",null,null,null,null,null,null,null,null,null,null,null,{"$f":"INDIRECT(dms_Model)","v":"Regulatory Reporting (Reset)"}]
[]
[null,null,null,null,null,null,null,null,null,null,null,null,null,null,null,null,null,null,null,null,null,null,null,null,null,"Source",null,null,null,null,null,null,null,null,null,null,null,"Regulatory proposal"]
[]
[null,null,null,null,null,null,null,null,null,null,null,null,null,null,null,null,null,null,null,null,null,null,null,"THIS FILE",null,"Data Quality",null,null,null,null,null,null,null,null,null,null,null,"Consolidated"]
[]
[null,null,null,null,null,null,null,null,null,null,null,null,null,null,null,null,null,null,null,null,null,null,null,null,null,"Confidentiality Status",null,null,null,null,null,null,null,null,null,null,null,"Public"]
[]
[null,null,null,null,null,null,null,null,null,null,null,null,null,null,null,null,null,null,null,null,null,null,null,null,null,"Amended RIN \nAmendment Reason",null,null,null,null,null,null,null,null,null,null,null,"."]
[]
[]
[]
[null,null,null,null,null,null,null,null,null,null,null,null,null,null,null,null,null,null,null,null,null,null,null,null,null,"Submission Date",null,null,null,null,null,null,null,null,null,null,null,"2022-11-30",null,null,null,null,null,null,null,null,null,null,null,null,null,null,null,null,null,"Please enter date this file submitted to AER"]

{"sheet":"2.11 Labour","index":7,"n_rows":31,"n_cols":14,"rows_kept":31,"cut":false,"hidden":true,"merged":[[23,2,23,6],[23,7,23,13],[22,2,22,13],[5,1,5,2],[7,1,7,2],[11,2,11,13],[12,2,12,6],[12,7,12,13]]}
[null,{"$f":"(LOOKUP(dms_Model,dms_Model_List,dms_Worksheet_List))","v":"REGULATORY REPORTING STATEMENT"}]
[null,{"$f":"INDEX(dms_TradingNameFull_List,MATCH(dms_TradingName,dms_TradingName_List))","v":"NSW Electricity Networks Operations Pty Ltd trading as TransGrid"}]
[null,{"$f":"IF(SUM(dms_SingleYear_Model)>0,CRY,CONCATENATE(FRCP_y1,\" to \",dms_MultiYear_FinalYear_Result))","v":"2023-24 to 2027-28"}]
[null,"2.11 LABOUR"]
[]
[null,"There is ONE table on this worksheet. The table has been 'grouped' (and sub-grouped) for easy navigation.  See the Instructions sheet on how to group or ungroup data."]
[]
[null,"Table numbering in this template starts at 2.11.3.\n\nTables 2.11.1 & 2.11.2 appear in the Category Analysis RIN and are not required for this RIN."]
[]
[null,"2.11.3 - LABOUR / NON-LABOUR EXPENDITURE SPLIT"]
[null,"OPEX"]
[null,null,"EXPENDITURE"]
[null,null,"($0's, nominal)",null,null,null,null,{"$f":"CONCATENATE(\"($0's, real \", dms_DollarReal,\")\")","v":"($0's, real June 2023)"}]
[null,null,{"$f":"PRCP_y4","v":"2017-18"},{"$f":"PRCP_y5","v":"2018-19"},{"$f":"CRCP_y1","v":"2018-19"},{"$f":"CRCP_y2","v":"2019-20"},{"$f":"CRCP_y3","v":"2020-21"},{"$f":"dms_y1","v":"2021-22"},{"$f":"dms_y2","v":"2022-23"},{"$f":"dms_y3","v":"2023-24"},{"$f":"dms_y4","v":"2024-25"},{"$f":"dms_y5","v":"2025-26"},{"$f":"dms_y6","v":"2026-27"},{"$f":"dms_y7","v":"2027-28"}]
[null,"In-house labour expenditure"]
[null,"Labour expenditure outsourced to related parties"]
[null,"Labour expenditure outsourced to unrelated parties"]
[null,"Controllable non-labour expenditure"]
[null,"Uncontrollable non-labour expenditure"]
[null,"Total",{"$f":"SUM(C15:C19)","v":0},0,0,0,0,0,0,0,0,0,0,0]
[]
[null,"CAPEX"]
[null,null,"EXPENDITURE"]
[null,null,"($0's, nominal)",null,null,null,null,{"$f":"CONCATENATE(\"($0's, real \", dms_DollarReal,\")\")","v":"($0's, real June 2023)"}]
[null,null,{"$f":"PRCP_y4","v":"2017-18"},{"$f":"PRCP_y5","v":"2018-19"},{"$f":"CRCP_y1","v":"2018-19"},{"$f":"CRCP_y2","v":"2019-20"},{"$f":"CRCP_y3","v":"2020-21"},{"$f":"dms_y1","v":"2021-22"},{"$f":"dms_y2","v":"2022-23"},{"$f":"dms_y3","v":"2023-24"},{"$f":"dms_y4","v":"2024-25"},{"$f":"dms_y5","v":"2025-26"},{"$f":"dms_y6","v":"2026-27"},{"$f":"dms_y7","v":"2027-28"}]
[null,"In-house labour expenditure"]
[null,"Labour expenditure outsourced to related parties"]
[null,"Labour expenditure outsourced to unrelated parties"]
[null,"Controllable non-labour expenditure"]
[null,"Uncontrollable non-labour expenditure"]
[null,"Total",{"$f":"SUM(C26:C30)","v":0},0,0,0,0,0,0,0,0,0,0,0]

{"sheet":"7.9 STPIS","index":8,"n_rows":3164,"n_cols":13,"rows_kept":3164,"cut":false,"hidden":false,"merged":[[5,1,5,2],[8,1,9,1],[8,8,9,8],[8,9,9,9],[8,12,9,12],[8,2,8,7],[29,1,30,1],[29,2,30,2],[29,3,30,3],[29,4,30,4],[29,5,29,11],[3057,3,3057,7],[3058,3,3058,4],[3058,5,3058,6],[8,10,9,10],[8,11,9,11]]}
[null,{"$f":"(LOOKUP(dms_Model,dms_Model_List,dms_Worksheet_List))","v":"REGULATORY REPORTING STATEMENT"}]
[null,{"$f":"INDEX(dms_TradingNameFull_List,MATCH(dms_TradingName,dms_TradingName_List))","v":"NSW Electricity Networks Operations Pty Ltd trading as TransGrid"}]
[null,{"$f":"IF(SUM(dms_SingleYear_Model)>0,CRY,CONCATENATE(FRCP_y1,\" to \",dms_MultiYear_FinalYear_Result))","v":"2023-24 to 2027-28"}]
[null,"7.9 SERVICE TARGET PERFORMANCE INCENTIVE SCHEME (STPIS)"]
[]
[null,"There are FOUR tables on this worksheet. Each table has been grouped (and sub-grouped) for ease of navigation. See the Instructions sheet on how to group or ungroup tables. "]
[]
[null,"7.9.1 - Historical performance and proposed floor, caps and targets for the service component of the STPIS"]
[null,"Parameter","Performance actuals",null,null,null,null,null,"Average of actual performance","Floor","Target","Cap","Weighting \n(% of MAR)"]
[null,null,{"$f":"D10-1","v":2016},"2017","2018",{"$f":"(LEFT(CRCP_y1,2)&RIGHT(CRCP_y1,2))","v":"2019"},{"$f":"(LEFT(CRCP_y2,2)&RIGHT(CRCP_y2,2))","v":"2020"},{"$f":"(LEFT(CRCP_y3,2)&RIGHT(CRCP_y3,2))","v":"2021"}]
[null,"Unplanned outage circuit event rate:"]
[null,"Transmission line outage - fault",null,0.12934131736526946,0.18023715415019761,0.12249705535924617,0.18648018648018649,9.5890410958904104E-2,{"$f":"+AVERAGE(C12:H12)","v":0.14288922486276076},9.5100000000000004E-2,0.1429,0.24110000000000001,2E-3]
[null,"Transformer outage – fault ",null,9.4795539033457249E-2,0.12861136999068032,6.741573033707865E-2,0.11836542977923908,7.3724007561436669E-2,{"$f":"+AVERAGE(C13:H13)","v":9.6582415340378397E-2},5.8700000000000002E-2,9.6600000000000005E-2,0.14979999999999999,2E-3]
[null,"Reactive plant – fault ",null,0.1037037037037037,0.17723076923076922,0.1366906474820144,0.11971830985915492,6.9565217391304349E-2,0.12138172953338933,6.3600000000000004E-2,0.12139999999999999,0.1867,1E-3]
[null,"Transmission line outage – forced outage",null,0.12934131736526946,8.5375494071146238E-2,7.0671378091872794E-2,0.11188811188811189,3.6529680365296802E-2,8.6761196356339429E-2,3.7600000000000001E-2,8.6800000000000002E-2,0.15240000000000001,1E-3]
[null,"Transformer outage – forced outage",null,0.1895910780669145,7.8285181733457596E-2,6.741573033707865E-2,9.5819633630812598E-2,6.2381852551984876E-2,9.8698695264049646E-2,5.6899999999999999E-2,9.8699999999999996E-2,0.16539999999999999,1E-3]
[null,"Reactive plant – forced outage",null,0.14074074074074075,8.1230769230769218E-2,0.10071942446043165,9.154929577464789E-2,7.6521739130434779E-2,9.8152393867404861E-2,7.3499999999999996E-2,9.8199999999999996E-2,0.13730000000000001,5.0000000000000001E-4]
[null,"Loss of supply event frequency (number of events):"]
[null,">  (x) system minutes",null,1,1,3,1,0,1.2,0,1,3,1.5E-3]
[null,">  (y) system minutes",null,0,0,0,1,0,0.2,0,1,2,1.5E-3]
[null,"Average outage duration (minutes): ",null,35.639999896287918,58.200000151991844,69.824999794363976,45.171428727252142,99.579998850822449,61.683285484143667,33.5,61.68,107.38,2E-3]
[null,"Proper operation of equipment (number of events):"]
[null,"Failure of protection system",null,11,20,12,11,10,12.8,7,13,19,0]
[null,"Material failure of SCADA",null,0,0,0,0,0,0,0,0,0,0]
[null,"Incorrect operational isolation of primary or secondary equipment",null,6,6,3,6,6,5.4,2,5,9,0]
[]
[]
[]
[null,"7.9.2 - Proposed priority projects for the network capability incentive parameter"]
[null,"Project ranking","Transmission Circuit /  Injection Point","Scope of works",{"$f":"CONCATENATE((\"If applicable, the present value of quantified benefits associated with the project\n ($0's, \"),CRCP_y5,\")\")","v":"If applicable, the present value of quantified benefits associated with the project\n ($0's, 2022-23)"},{"$f":"CONCATENATE((\"Project cost ($0's, \"),CRCP_y5,\")\")","v":"Project cost ($0's, 2022-23)"}]
[null,null,null,null,null,{"$f":"FRCP_y1","v":"2023-24"},{"$f":"FRCP_y2","v":"2024-25"},{"$f":"FRCP_y3","v":"2025-26"},{"$f":"FRCP_y4","v":"2026-27"},{"$f":"FRCP_y5","v":"2027-28"},"Opex","Capex"]
[null,1,"Darlington Point 330/132 kV transformers","Upgrade cooler banks of 330/132 kV transformers at Darlington Point Substation to increase their rating",51000000,507611.65010042739,3453195.4750135797,0,0,0,86781.108749999999,3960807.1251140069]
[null,2,"Yass 330/132 kV transformers","Installation of online monitoring and dynamic rating system for the Yass 330/132 kV transformers",24100000,1046661.4204572202,476372.93718561908,0,0,0,33829.923749999994,1523034.3576428392]
[null,3,"94T Molong to Parkes 132 kV line","Install Dynamic Line Rating system",5600000,12012.136654280213,409961.98680507537,0,0,0,9581.643,421974.12345935556]
[null,4,"Balranald 220 kV","Install a 20 MVAr capacitor bank at Balranald 220 kV Substation to increase the capacity for generation by 5-10 MW",4270000,851988.76758756745,4359664.8053179458,0,0,0,114307.31999999999,5211653.5729055135]
[null,5,"Multiple","To combat climate change, installation of Dynamic Line Ratings on highly utilised lines",3500000,40457.139906707482,113453.04582877229,4595043.9213108793,24395.949315959846,0,123552.765,4773350.0563623188]
[null,6,"Darlington Point 330/220 kV transformers","Install transformer tripping scheme on the two 330/220 kV transformers at Darlington Point Substation",476000,128188.80723324665,166097.62415327283,0,0,0,7711.5416249999998,294286.43138651946]
[null,7]
[null,8]
[null,9]
[null,10]
[null,11]
[null,12]
[null,13]
[null,14]
[null,15]
[null,16]
[]
[]
[]
[]
[null,"7.9.3 – Network limit information"]
[null,"Limit identification ","Define limit  ","Reason for the limit ","Is limit addressed by priority project","Supporting information reference"]
[null,"5A1 Eraring to Kemps Creek Transmission Line Normal Limit","1039 MVA","Secondary of CT (protection metering or indication)","No",""]
[null,"5A1 Eraring to Kemps Creek Transmission Line Contingency Limit","1732 MVA","Secondary of CT (protection metering or indication)","No",""]
[null,"5A1 Eraring to Kemps Creek Transmission Line 15 Minute Limit","1732 MVA","Secondary of CT (protection metering or indication)","No",""]
[null,"5A1 Eraring to Kemps Creek Transmission Line 10 Minute Limit","1732 MVA","Secondary of CT (protection metering or indication)","No",""]
[null,"5A1 Eraring to Kemps Creek Transmission Line 5 Minute Limit","1732 MVA","Secondary of CT (protection metering or indication)","No",""]
[null,"5A2 Eraring to Kemps Creek Transmission Line Normal Limit","1039 MVA","Secondary of CT (protection metering or indication)","No",""]
[null,"5A2 Eraring to Kemps Creek Transmission Line Contingency Limit","1732 MVA","Secondary of CT (protection metering or indication)","No",""]
[null,"5A2 Eraring to Kemps Creek Transmission Line 15 Minute Limit","1732 MVA","Secondary of CT (protection metering or indication)","No",""]
[null,"5A2 Eraring to Kemps Creek Transmission Line 10 Minute Limit","1732 MVA","Secondary of CT (protection metering or indication)","No",""]
[null,"5A2 Eraring to Kemps Creek Transmission Line 5 Minute Limit","1732 MVA","Secondary of CT (protection metering or indication)","No",""]
[null,"5A3 Bayswater to Mt Piper Transmission Line Normal Limit","3239 MVA","Overhead transmission line","No",""]
[null,"5A3 Bayswater to Mt Piper Transmission Line Contingency Limit","3464 MVA","Breaker","No",""]
[null,"5A3 Bayswater to Mt Piper Transmission Line 15 Minute Limit","3464 MVA","Breaker","No",""]
[null,"5A3 Bayswater to Mt Piper Transmission Line 10 Minute Limit","3464 MVA","Breaker","No",""]
[null,"5A3 Bayswater to Mt Piper Transmission Line 5 Minute Limit","3464 MVA","Breaker","No",""]
[null,"5A4 Bayswater to Wollar Transmission Line Normal Limit","3239 MVA","Overhead transmission line","No",""]
[null,"5A4 Bayswater to Wollar Transmission Line Contingency Limit","3394 MVA","High voltage connections","No",""]
[null,"5A4 Bayswater to Wollar Transmission Line 15 Minute Limit","3394 MVA","High voltage connections","No",""]
[null,"5A4 Bayswater to Wollar Transmission Line 10 Minute Limit","3394 MVA","High voltage connections","No",""]
[null,"5A4 Bayswater to Wollar Transmission Line 5 Minute Limit","3394 MVA","High voltage connections","No",""]
[null,"5A5 Wollar to Mt Piper Transmission Line Normal Limit","3239 MVA","Overhead transmission line","No",""]
[null,"5A5 Wollar to Mt Piper Transmission Line Contingency Limit","3394 MVA","High voltage connections","No",""]
[null,"5A5 Wollar to Mt Piper Transmission Line 15 Minute Limit","3394 MVA","High voltage connections","No",""]
[null,"5A5 Wollar to Mt Piper Transmission Line 10 Minute Limit","3394 MVA","High voltage connections","No",""]
[null,"5A5 Wollar to Mt Piper Transmission Line 5 Minute Limit","3394 MVA","High voltage connections","No",""]
[null,"5A6 Mt Piper to Bannaby Transmission Line Normal Limit","3281 MVA","Overhead transmission line","No",""]
[null,"5A6 Mt Piper to Bannaby Transmission Line Contingency Limit","3394 MVA","High voltage connections","No",""]
[null,"5A6 Mt Piper to Bannaby Transmission Line 15 Minute Limit","3394 MVA","High voltage connections","No",""]
[null,"5A6 Mt Piper to Bannaby Transmission Line 10 Minute Limit","3394 MVA","High voltage connections","No",""]
[null,"5A6 Mt Piper to Bannaby Transmission Line 5 Minute Limit","3394 MVA","High voltage connections","No",""]
[null,"5A7 Mt Piper to Bannaby Transmission Line Normal Limit","3281 MVA","Overhead transmission line","No",""]
[null,"5A7 Mt Piper to Bannaby Transmission Line Contingency Limit","3394 MVA","High voltage connections","No",""]
[null,"5A7 Mt Piper to Bannaby Transmission Line 15 Minute Limit","3394 MVA","High voltage connections","No",""]
[null,"5A7 Mt Piper to Bannaby Transmission Line 10 Minute Limit","3394 MVA","High voltage connections","No",""]
[null,"5A7 Mt Piper to Bannaby Transmission Line 5 Minute Limit","3394 MVA","High voltage connections","No",""]
[null,"1 Upper Tumut to Canberra Transmission Line Normal Limit","915 MVA","Overhead transmission line","No",""]
[null,"1 Upper Tumut to Canberra Transmission Line Contingency Limit","995 MVA","Overhead transmission line","No",""]
[null,"1 Upper Tumut to Canberra Transmission Line 15 Minute Limit","1011 MVA","Overhead transmission line","No",""]
[null,"1 Upper Tumut to Canberra Transmission Line 10 Minute Limit","1085 MVA","Overhead transmission line","No",""]
[null,"1 Upper Tumut to Canberra Transmission Line 5 Minute Limit","1132 MVA","Wave traps","No",""]
[null,"1 Canberra to Upper Tumut Transmission Line 15 Minute Limit","995 MVA","Overhead transmission line","No",""]
[null,"1 Canberra to Upper Tumut Transmission Line 10 Minute Limit","995 MVA","Overhead transmission line","No",""]
[null,"1 Canberra to Upper Tumut Transmission Line 5 Minute Limit","996 MVA","Overhead transmission line","No",""]
[null,"2 Ravine to Yass Transmission Line Normal Limit","915 MVA","Overhead transmission line","No",""]
[null,"2 Ravine to Yass Transmission Line Contingency Limit","995 MVA","Overhead transmission line","No",""]
[null,"2 Ravine to Yass Transmission Line 15 Minute Limit","1011 MVA","Overhead transmission line","No",""]
[null,"2 Ravine to Yass Transmission Line 10 Minute Limit","1085 MVA","Overhead transmission line","No",""]
[null,"2 Ravine to Yass Transmission Line 5 Minute Limit","1280 MVA","High voltage connections","No",""]
[null,"2 Yass to Ravine Transmission Line 15 Minute Limit","995 MVA","Overhead transmission line","No",""]
[null,"2 Yass to Ravine Transmission Line 10 Minute Limit","995 MVA","Overhead transmission line","No",""]
[null,"2 Yass to Ravine Transmission Line 5 Minute Limit","996 MVA","Overhead transmission line","No",""]
[null,"3 Lower Tumut to Yass Transmission Line Normal Limit","972 MVA","Overhead transmission line","No",""]
[null,"3 Lower Tumut to Yass Transmission Line Contingency Limit","1132 MVA","Overhead transmission line","No",""]
[null,"3 Lower Tumut to Yass Transmission Line 15 Minute Limit","1200 MVA","Wave traps","No",""]
[null,"3 Lower Tumut to Yass Transmission Line 10 Minute Limit","1235 MVA","Wave traps","No",""]
[null,"3 Lower Tumut to Yass Transmission Line 5 Minute Limit","1257 MVA","Wave traps","No",""]
[null,"3 Yass to Lower Tumut Transmission Line 15 Minute Limit","1145 MVA","Overhead transmission line","No",""]
[null,"3 Yass to Lower Tumut Transmission Line 10 Minute Limit","1169 MVA","Overhead transmission line","No",""]
[null,"3 Yass to Lower Tumut Transmission Line 5 Minute Limit","1257 MVA","Wave traps","No",""]
[null,"4 Collector Wind Farm to Marulan Transmission Line Normal Limit","697 MVA","Overhead transmission line","No",""]
[null,"4 Collector Wind Farm to Marulan Transmission Line Contingency Limit","880 MVA","Overhead transmission line","No",""]
[null,"4 Collector Wind Farm to Marulan Transmission Line 15 Minute Limit","1141 MVA","Overhead transmission line","No",""]
[null,"4 Collector Wind Farm to Marulan Transmission Line 10 Minute Limit","1205 MVA","Overhead transmission line","No",""]
[null,"4 Collector Wind Farm to Marulan Transmission Line 5 Minute Limit","1280 MVA","High voltage connections","No",""]
[null,"4 Marulan to Collector Wind Farm Transmission Line 15 Minute Limit","1107 MVA","Overhead transmission line","No",""]
[null,"4 Marulan to Collector Wind Farm Transmission Line 10 Minute Limit","1140 MVA","Overhead transmission line","No",""]
[null,"4 Marulan to Collector Wind Farm Transmission Line 5 Minute Limit","1280 MVA","High voltage connections","No",""]
[null,"5 Yass to Marulan Transmission Line Normal Limit","697 MVA","Overhead transmission line","No",""]
[null,"5 Yass to Marulan Transmission Line Contingency Limit","880 MVA","Overhead transmission line","No",""]
[null,"5 Yass to Marulan Transmission Line 15 Minute Limit","1141 MVA","Overhead transmission line","No",""]
[null,"5 Yass to Marulan Transmission Line 10 Minute Limit","1205 MVA","Overhead transmission line","No",""]
[null,"5 Yass to Marulan Transmission Line 5 Minute Limit","1280 MVA","High voltage connections","No",""]
[null,"5 Marulan to Yass Transmission Line 15 Minute Limit","1107 MVA","Overhead transmission line","No",""]
[null,"5 Marulan to Yass Transmission Line 10 Minute Limit","1140 MVA","Overhead transmission line","No",""]
[null,"5 Marulan to Yass Transmission Line 5 Minute Limit","1280 MVA","High voltage connections","No",""]
[null,"6 Canberra to Capital Wind Farm Transmission Line Normal Limit","915 MVA","Overhead transmission line","No",""]
[null,"6 Canberra to Capital Wind Farm Transmission Line Contingency Limit","995 MVA","Overhead transmission line","No",""]
[null,"6 Canberra to Capital Wind Farm Transmission Line 15 Minute Limit","1011 MVA","Overhead transmission line","No",""]
[null,"6 Canberra to Capital Wind Farm Transmission Line 10 Minute Limit","1085 MVA","Overhead transmission line","No",""]
[null,"6 Canberra to Capital Wind Farm Transmission Line 5 Minute Limit","1280 MVA","High voltage connections","No",""]
[null,"6 Capital Wind Farm to Canberra Transmission Line 15 Minute Limit","995 MVA","Overhead transmission line","No",""]
[null,"6 Capital Wind Farm to Canberra Transmission Line 10 Minute Limit","995 MVA","Overhead transmission line","No",""]
[null,"6 Capital Wind Farm to Canberra Transmission Line 5 Minute Limit","996 MVA","Overhead transmission line","No",""]
[null,"7 Lower Tumut to Canberra Transmission Line Normal Limit","972 MVA","Overhead transmission line","No",""]
[null,"7 Lower Tumut to Canberra Transmission Line Contingency Limit","1132 MVA","Overhead transmission line","No",""]
[null,"7 Lower Tumut to Canberra Transmission Line 15 Minute Limit","1143 MVA","Primary of CT","No",""]
[null,"7 Lower Tumut to Canberra Transmission Line 10 Minute Limit","1143 MVA","Primary of CT","No",""]
[null,"7 Lower Tumut to Canberra Transmission Line 5 Minute Limit","1143 MVA","Primary of CT","No",""]
[null,"7 Canberra to Lower Tumut Transmission Line Normal Limit","972 MVA","Overhead transmission line","No",""]
[null,"7 Canberra to Lower Tumut Transmission Line Contingency Limit","1041 MVA","Protection trip setting","No",""]
[null,"7 Canberra to Lower Tumut Transmission Line 15 Minute Limit","1041 MVA","Protection trip setting","No",""]
[null,"7 Canberra to Lower Tumut Transmission Line 10 Minute Limit","1041 MVA","Protection trip setting","No",""]
[null,"7 Canberra to Lower Tumut Transmission Line 5 Minute Limit","1041 MVA","Protection trip setting","No",""]
[null,"8 Marulan to Dapto Transmission Line Normal Limit","915 MVA","Overhead transmission line","No",""]
[null,"8 Marulan to Dapto Transmission Line Contingency Limit","995 MVA","Overhead transmission line","No",""]
[null,"8 Marulan to Dapto Transmission Line 15 Minute Limit","1011 MVA","Overhead transmission line","No",""]
[null,"8 Marulan to Dapto Transmission Line 10 Minute Limit","1085 MVA","Overhead transmission line","No",""]
[null,"8 Marulan to Dapto Transmission Line 5 Minute Limit","1280 MVA","High voltage connections","No",""]
[null,"8 Dapto to Marulan Transmission Line 15 Minute Limit","995 MVA","Overhead transmission line","No",""]
[null,"8 Dapto to Marulan Transmission Line 10 Minute Limit","995 MVA","Overhead transmission line","No",""]
[null,"8 Dapto to Marulan Transmission Line 5 Minute Limit","996 MVA","Overhead transmission line","No",""]
[null,"9 Canberra to Yass Transmission Line Normal Limit","915 MVA","Overhead transmission line","No",""]
[null,"9 Canberra to Yass Transmission Line Contingency Limit","995 MVA","Overhead transmission line","No",""]
[null,"9 Canberra to Yass Transmission Line 15 Minute Limit","1011 MVA","Overhead transmission line","No",""]
[null,"9 Canberra to Yass Transmission Line 10 Minute Limit","1085 MVA","Overhead transmission line","No",""]
[null,"9 Canberra to Yass Transmission Line 5 Minute Limit","1280 MVA","High voltage connections","No",""]
[null,"9 Yass to Canberra Transmission Line 15 Minute Limit","995 MVA","Overhead transmission line","No",""]
[null,"9 Yass to Canberra Transmission Line 10 Minute Limit","995 MVA","Overhead transmission line","No",""]
[null,"9 Yass to Canberra Transmission Line 5 Minute Limit","996 MVA","Overhead transmission line","No",""]
[null,"10 Dapto to Avon Transmission Line Normal Limit","1260 MVA","Secondary of CT (protection metering or indication)","No",""]
[null,"10 Dapto to Avon Transmission Line Contingency Limit","1260 MVA","Secondary of CT (protection metering or indication)","No",""]
[null,"10 Dapto to Avon Transmission Line 15 Minute Limit","1260 MVA","Secondary of CT (protection metering or indication)","No",""]
[null,"10 Dapto to Avon Transmission Line 10 Minute Limit","1260 MVA","Secondary of CT (protection metering or indication)","No",""]
[null,"10 Dapto to Avon Transmission Line 5 Minute Limit","1260 MVA","Secondary of CT (protection metering or indication)","No",""]
[null,"11 Dapto to Sydney South Transmission Line Normal Limit","1280 MVA","Overhead transmission line","No",""]
[null,"11 Dapto to Sydney South Transmission Line Contingency Limit","1428 MVA","High voltage connections","No",""]
[null,"11 Dapto to Sydney South Transmission Line 15 Minute Limit","1428 MVA","High voltage connections","No",""]
[null,"11 Dapto to Sydney South Transmission Line 10 Minute Limit","1428 MVA","High voltage connections","No",""]
[null,"11 Dapto to Sydney South Transmission Line 5 Minute Limit","1428 MVA","High voltage connections","No",""]
[null,"12 Liverpool 330kV to Sydney South Transmission Line Normal Limit","1215 MVA","Overhead transmission line","No",""]
[null,"12 Liverpool 330kV to Sydney South Transmission Line Contingency Limit","1429 MVA","Overhead transmission line","No",""]
[null,"12 Liverpool 330kV to Sydney South Transmission Line 15 Minute Limit","1429 MVA","High voltage connections","No",""]
[null,"12 Liverpool 330kV to Sydney South Transmission Line 10 Minute Limit","1429 MVA","High voltage connections","No",""]
[null,"12 Liverpool 330kV to Sydney South Transmission Line 5 Minute Limit","1429 MVA","High voltage connections","No",""]
[null,"13 Kemps Creek to Sydney South Transmission Line Normal Limit","1215 MVA","Overhead transmission line","No",""]
[null,"13 Kemps Creek to Sydney South Transmission Line Contingency Limit","1428 MVA","High voltage connections","No",""]
[null,"13 Kemps Creek to Sydney South Transmission Line 15 Minute Limit","1428 MVA","High voltage connections","No",""]
[null,"13 Kemps Creek to Sydney South Transmission Line 10 Minute Limit","1428 MVA","High voltage connections","No",""]
[null,"13 Kemps Creek to Sydney South Transmission Line 5 Minute Limit","1428 MVA","High voltage connections","No",""]
[null,"14 Kemps Creek to Sydney North Transmission Line Normal Limit","1215 MVA","Overhead transmission line","No",""]
[null,"14 Kemps Creek to Sydney North Transmission Line Contingency Limit","1429 MVA","Overhead transmission line","No",""]
[null,"14 Kemps Creek to Sydney North Transmission Line 15 Minute Limit","1429 MVA","Breaker","No",""]
[null,"14 Kemps Creek to Sydney North Transmission Line 10 Minute Limit","1429 MVA","Breaker","No",""]
[null,"14 Kemps Creek to Sydney North Transmission Line 5 Minute Limit","1429 MVA","Breaker","No",""]
[null,"16 Marulan to Avon Transmission Line Normal Limit","915 MVA","Overhead transmission line","No",""]
[null,"16 Marulan to Avon Transmission Line Contingency Limit","995 MVA","Overhead transmission line","No",""]
[null,"16 Marulan to Avon Transmission Line 15 Minute Limit","1011 MVA","Overhead transmission line","No",""]
[null,"16 Marulan to Avon Transmission Line 10 Minute Limit","1085 MVA","Overhead transmission line","No",""]
[null,"16 Marulan to Avon Transmission Line 5 Minute Limit","1189 MVA","High voltage connections","No",""]
[null,"16 Avon to Marulan Transmission Line 15 Minute Limit","995 MVA","Overhead transmission line","No",""]
[null,"16 Avon to Marulan Transmission Line 10 Minute Limit","995 MVA","Overhead transmission line","No",""]
[null,"16 Avon to Marulan Transmission Line 5 Minute Limit","996 MVA","Overhead transmission line","No",""]
[null,"17 Macarthur to Avon Transmission Line Normal Limit","1280 MVA","Overhead transmission line","No",""]
[null,"17 Macarthur to Avon Transmission Line Contingency Limit","1428 MVA","High voltage connections","No",""]
[null,"17 Macarthur to Avon Transmission Line 15 Minute Limit","1428 MVA","High voltage connections","No",""]
[null,"17 Macarthur to Avon Transmission Line 10 Minute Limit","1428 MVA","High voltage connections","No",""]
[null,"17 Macarthur to Avon Transmission Line 5 Minute Limit","1428 MVA","High voltage connections","No",""]
[null,"18 Dapto to Kangaroo Valley Transmission Line Normal Limit","915 MVA","Overhead transmission line","No",""]
[null,"18 Dapto to Kangaroo Valley Transmission Line Contingency Limit","995 MVA","Overhead transmission line","No",""]
[null,"18 Dapto to Kangaroo Valley Transmission Line 15 Minute Limit","1011 MVA","Overhead transmission line","No",""]
[null,"18 Dapto to Kangaroo Valley Transmission Line 10 Minute Limit","1085 MVA","Overhead transmission line","No",""]
[null,"18 Dapto to Kangaroo Valley Transmission Line 5 Minute Limit","1134 MVA","Secondary of CT (protection metering or indication)","No",""]
[null,"18 Kangaroo Valley to Dapto Transmission Line 15 Minute Limit","995 MVA","Overhead transmission line","No",""]
[null,"18 Kangaroo Valley to Dapto Transmission Line 10 Minute Limit","995 MVA","Overhead transmission line","No",""]
[null,"18 Kangaroo Valley to Dapto Transmission Line 5 Minute Limit","996 MVA","Overhead transmission line","No",""]
[null,"19 Kangaroo Valley to Bendeela Transmission Line Normal Limit","153 MVA","Secondary of CT (protection metering or indication)","No",""]
[null,"19 Kangaroo Valley to Bendeela Transmission Line Contingency Limit","153 MVA","Secondary of CT (protection metering or indication)","No",""]
[null,"19 Kangaroo Valley to Bendeela Transmission Line 15 Minute Limit","153 MVA","Secondary of CT (protection metering or indication)","No",""]
[null,"19 Kangaroo Valley to Bendeela Transmission Line 10 Minute Limit","153 MVA","Secondary of CT (protection metering or indication)","No",""]
[null,"19 Kangaroo Valley to Bendeela Transmission Line 5 Minute Limit","153 MVA","Secondary of CT (protection metering or indication)","No",""]
[null,"1C Sydney West to Holroyd Transmission Line Normal Limit","1086 MVA","Overhead transmission line","No",""]
[null,"1C Sydney West to Holroyd Transmission Line Contingency Limit","1275 MVA","Overhead transmission line","No",""]
[null,"1C Sydney West to Holroyd Transmission Line 15 Minute Limit","1428 MVA","High voltage connections","No",""]
[null,"1C Sydney West to Holroyd Transmission Line 10 Minute Limit","1428 MVA","High voltage connections","No",""]
[null,"1C Sydney West to Holroyd Transmission Line 5 Minute Limit","1428 MVA","High voltage connections","No",""]
[null,"1C Holroyd to Sydney West Transmission Line 15 Minute Limit","1428 MVA","High voltage connections","No",""]
[null,"1C Holroyd to Sydney West Transmission Line 10 Minute Limit","1428 MVA","High voltage connections","No",""]
[null,"1C Holroyd to Sydney West Transmission Line 5 Minute Limit","1428 MVA","High voltage connections","No",""]
[null,"1F Sydney West to Holroyd Transmission Line Normal Limit","1086 MVA","Overhead transmission line","No",""]
[null,"1F Sydney West to Holroyd Transmission Line Contingency Limit","1275 MVA","Overhead transmission line","No",""]
[null,"1F Sydney West to Holroyd Transmission Line 15 Minute Limit","1428 MVA","High voltage connections","No",""]
[null,"1F Sydney West to Holroyd Transmission Line 10 Minute Limit","1428 MVA","High voltage connections","No",""]
[null,"1F Sydney West to Holroyd Transmission Line 5 Minute Limit","1428 MVA","High voltage connections","No",""]
[null,"1F Holroyd to Sydney West Transmission Line 15 Minute Limit","1428 MVA","High voltage connections","No",""]
[null,"1F Holroyd to Sydney West Transmission Line 10 Minute Limit","1428 MVA","High voltage connections","No",""]
[null,"1F Holroyd to Sydney West Transmission Line 5 Minute Limit","1428 MVA","High voltage connections","No",""]
[null,"20 Sydney North to Sydney West Transmission Line Normal Limit","1215 MVA","Overhead transmission line","No",""]
[null,"20 Sydney North to Sydney West Transmission Line Contingency Limit","1428 MVA","High voltage connections","No",""]
[null,"20 Sydney North to Sydney West Transmission Line 15 Minute Limit","1428 MVA","High voltage connections","No",""]
[null,"20 Sydney North to Sydney West Transmission Line 10 Minute Limit","1428 MVA","High voltage connections","No",""]
[null,"20 Sydney North to Sydney West Transmission Line 5 Minute Limit","1428 MVA","High voltage connections","No",""]
[null,"21 Sydney North to Tuggerah Transmission Line Normal Limit","1215 MVA","Overhead transmission line","No",""]
[null,"21 Sydney North to Tuggerah Transmission Line Contingency Limit","1406 MVA","Overhead transmission line","No",""]
[null,"21 Sydney North to Tuggerah Transmission Line 15 Minute Limit","1429 MVA","Secondary of CT (protection metering or indication)","No",""]
[null,"21 Sydney North to Tuggerah Transmission Line 10 Minute Limit","1429 MVA","Secondary of CT (protection metering or indication)","No",""]
[null,"21 Sydney North to Tuggerah Transmission Line 5 Minute Limit","1429 MVA","Secondary of CT (protection metering or indication)","No",""]
[null,"22 Vales Point to Sydney North Transmission Line Normal Limit","1215 MVA","Overhead transmission line","No",""]
[null,"22 Vales Point to Sydney North Transmission Line Contingency Limit","1234 MVA","High voltage connections","No",""]
[null,"22 Vales Point to Sydney North Transmission Line 15 Minute Limit","1234 MVA","High voltage connections","No",""]
[null,"22 Vales Point to Sydney North Transmission Line 10 Minute Limit","1234 MVA","High voltage connections","No",""]
[null,"22 Vales Point to Sydney North Transmission Line 5 Minute Limit","1234 MVA","High voltage connections","No",""]
[null,"23 Munmorah to Vales Point Transmission Line Normal Limit","1215 MVA","Overhead transmission line","No",""]
[null,"23 Munmorah to Vales Point Transmission Line Contingency Limit","1429 MVA","Overhead transmission line","No",""]
[null,"23 Munmorah to Vales Point Transmission Line 15 Minute Limit","1588 MVA","Overhead transmission line","No",""]
[null,"23 Munmorah to Vales Point Transmission Line 10 Minute Limit","1646 MVA","Secondary of CT (protection metering or indication)","No",""]
[null,"23 Munmorah to Vales Point Transmission Line 5 Minute Limit","1646 MVA","Secondary of CT (protection metering or indication)","No",""]
[null,"23 Vales Point to Munmorah Transmission Line 15 Minute Limit","1470 MVA","Overhead transmission line","No",""]
[null,"23 Vales Point to Munmorah Transmission Line 10 Minute Limit","1541 MVA","Overhead transmission line","No",""]
[null,"23 Vales Point to Munmorah Transmission Line 5 Minute Limit","1646 MVA","Secondary of CT (protection metering or indication)","No",""]
[null,"24 Vales Point to Eraring Transmission Line Normal Limit","1215 MVA","Overhead transmission line","No",""]
[null,"24 Vales Point to Eraring Transmission Line Contingency Limit","1428 MVA","High voltage connections","No",""]
[null,"24 Vales Point to Eraring Transmission Line 15 Minute Limit","1428 MVA","High voltage connections","No",""]
[null,"24 Vales Point to Eraring Transmission Line 10 Minute Limit","1428 MVA","High voltage connections","No",""]
[null,"24 Vales Point to Eraring Transmission Line 5 Minute Limit","1428 MVA","High voltage connections","No",""]
[null,"25 Eraring to Vineyard Transmission Line Normal Limit","1215 MVA","Overhead transmission line","No",""]
[null,"25 Eraring to Vineyard Transmission Line Contingency Limit","1429 MVA","Overhead transmission line","No",""]
[null,"25 Eraring to Vineyard Transmission Line 15 Minute Limit","1500 MVA","Wave traps","No",""]
[null,"25 Eraring to Vineyard Transmission Line 10 Minute Limit","1543 MVA","Wave traps","No",""]
[null,"25 Eraring to Vineyard Transmission Line 5 Minute Limit","1572 MVA","Wave traps","No",""]
[null,"26 Munmorah to Sydney West Transmission Line Normal Limit","1215 MVA","Overhead transmission line","No",""]
[null,"26 Munmorah to Sydney West Transmission Line Contingency Limit","1347 MVA","Protection trip setting","No",""]
[null,"26 Munmorah to Sydney West Transmission Line 15 Minute Limit","1347 MVA","Protection trip setting","No",""]
[null,"26 Munmorah to Sydney West Transmission Line 10 Minute Limit","1347 MVA","Protection trip setting","No",""]
[null,"26 Munmorah to Sydney West Transmission Line 5 Minute Limit","1347 MVA","Protection trip setting","No",""]
[null,"26 Sydney West to Munmorah Transmission Line Normal Limit","1215 MVA","Overhead transmission line","No",""]
[null,"26 Sydney West to Munmorah Transmission Line Contingency Limit","1372 MVA","Disconnector","No",""]
[null,"26 Sydney West to Munmorah Transmission Line 15 Minute Limit","1433 MVA","Protection trip setting","No",""]
[null,"26 Sydney West to Munmorah Transmission Line 10 Minute Limit","1433 MVA","Protection trip setting","No",""]
[null,"26 Sydney West to Munmorah Transmission Line 5 Minute Limit","1433 MVA","Protection trip setting","No",""]
[null,"27 Sydney North to Sydney East Transmission Line Normal Limit","1215 MVA","Overhead transmission line","No",""]
[null,"27 Sydney North to Sydney East Transmission Line Contingency Limit","1428 MVA","High voltage connections","No",""]
[null,"27 Sydney North to Sydney East Transmission Line 15 Minute Limit","1428 MVA","High voltage connections","No",""]
[null,"27 Sydney North to Sydney East Transmission Line 10 Minute Limit","1428 MVA","High voltage connections","No",""]
[null,"27 Sydney North to Sydney East Transmission Line 5 Minute Limit","1428 MVA","High voltage connections","No",""]
[null,"28 Sydney North to Sydney East Transmission Line Normal Limit","1215 MVA","Overhead transmission line","No",""]
[null,"28 Sydney North to Sydney East Transmission Line Contingency Limit","1428 MVA","High voltage connections","No",""]
[null,"28 Sydney North to Sydney East Transmission Line 15 Minute Limit","1428 MVA","High voltage connections","No",""]
[null,"28 Sydney North to Sydney East Transmission Line 10 Minute Limit","1428 MVA","High voltage connections","No",""]
[null,"28 Sydney North to Sydney East Transmission Line 5 Minute Limit","1428 MVA","High voltage connections","No",""]
[null,"29 Sydney West to Vineyard Transmission Line Normal Limit","1215 MVA","Overhead transmission line","No",""]
[null,"29 Sydney West to Vineyard Transmission Line Contingency Limit","1429 MVA","Overhead transmission line","No",""]
[null,"29 Sydney West to Vineyard Transmission Line 15 Minute Limit","1512 MVA","Secondary of CT (protection metering or indication)","No",""]
[null,"29 Sydney West to Vineyard Transmission Line 10 Minute Limit","1512 MVA","Secondary of CT (protection metering or indication)","No",""]
[null,"29 Sydney West to Vineyard Transmission Line 5 Minute Limit","1512 MVA","Secondary of CT (protection metering or indication)","No",""]
[null,"2M Munmorah to Tuggerah Transmission Line Normal Limit","1215 MVA","Overhead transmission line","No",""]
[null,"2M Munmorah to Tuggerah Transmission Line Contingency Limit","1406 MVA","Overhead transmission line","No",""]
[null,"2M Munmorah to Tuggerah Transmission Line 15 Minute Limit","1647 MVA","Overhead transmission line","No",""]
[null,"2M Munmorah to Tuggerah Transmission Line 10 Minute Limit","1715 MVA","Secondary of CT (protection metering or indication)","No",""]
[null,"2M Munmorah to Tuggerah Transmission Line 5 Minute Limit","1715 MVA","Secondary of CT (protection metering or indication)","No",""]
[null,"30 Sydney West to Liverpool Transmission Line Normal Limit","1215 MVA","Overhead transmission line","No",""]
[null,"30 Sydney West to Liverpool Transmission Line Contingency Limit","1428 MVA","High voltage connections","No",""]
[null,"30 Sydney West to Liverpool Transmission Line 15 Minute Limit","1428 MVA","High voltage connections","No",""]
[null,"30 Sydney West to Liverpool Transmission Line 10 Minute Limit","1428 MVA","High voltage connections","No",""]
[null,"30 Sydney West to Liverpool Transmission Line 5 Minute Limit","1428 MVA","High voltage connections","No",""]
[null,"31 Bayswater to Regentville Transmission Line Normal Limit","1215 MVA","Overhead transmission line","No",""]
[null,"31 Bayswater to Regentville Transmission Line Contingency Limit","1429 MVA","Overhead transmission line","No",""]
[null,"31 Bayswater to Regentville Transmission Line 15 Minute Limit","1647 MVA","Overhead transmission line","No",""]
[null,"31 Bayswater to Regentville Transmission Line 10 Minute Limit","1715 MVA","Secondary of CT (protection metering or indication)","No",""]
[null,"31 Bayswater to Regentville Transmission Line 5 Minute Limit","1715 MVA","Secondary of CT (protection metering or indication)","No",""]
[null,"31 Regentville to Bayswater Transmission Line Normal Limit","1210 MVA","Protection trip setting","No",""]
[null,"31 Regentville to Bayswater Transmission Line Contingency Limit","1210 MVA","Protection trip setting","No",""]
[null,"31 Regentville to Bayswater Transmission Line 15 Minute Limit","1210 MVA","Protection trip setting","No",""]
[null,"31 Regentville to Bayswater Transmission Line 10 Minute Limit","1210 MVA","Protection trip setting","No",""]
[null,"31 Regentville to Bayswater Transmission Line 5 Minute Limit","1210 MVA","Protection trip setting","No",""]
[null,"32 Bayswater to Sydney West Transmission Line Normal Limit","1215 MVA","Overhead transmission line","No",""]
[null,"32 Bayswater to Sydney West Transmission Line Contingency Limit","1258 MVA","Protection trip setting","No",""]
[null,"32 Bayswater to Sydney West Transmission Line 15 Minute Limit","1258 MVA","Protection trip setting","No",""]
[null,"32 Bayswater to Sydney West Transmission Line 10 Minute Limit","1258 MVA","Protection trip setting","No",""]
[null,"32 Bayswater to Sydney West Transmission Line 5 Minute Limit","1258 MVA","Protection trip setting","No",""]
[null,"33 Bayswater to Liddell Transmission Line Normal Limit","1215 MVA","Overhead transmission line","No",""]
[null,"33 Bayswater to Liddell Transmission Line Contingency Limit","1428 MVA","High voltage connections","No",""]
[null,"33 Bayswater to Liddell Transmission Line 15 Minute Limit","1428 MVA","High voltage connections","No",""]
[null,"33 Bayswater to Liddell Transmission Line 10 Minute Limit","1428 MVA","High voltage connections","No",""]
[null,"33 Bayswater to Liddell Transmission Line 5 Minute Limit","1428 MVA","High voltage connections","No",""]
[null,"34 Bayswater to Liddell Transmission Line Normal Limit","1215 MVA","Overhead transmission line","No",""]
[null,"34 Bayswater to Liddell Transmission Line Contingency Limit","1280 MVA","High voltage connections","No",""]
[null,"34 Bayswater to Liddell Transmission Line 15 Minute Limit","1280 MVA","High voltage connections","No",""]
[null,"34 Bayswater to Liddell Transmission Line 10 Minute Limit","1280 MVA","High voltage connections","No",""]
[null,"34 Bayswater to Liddell Transmission Line 5 Minute Limit","1280 MVA","High voltage connections","No",""]
[null,"35 Bannaby to Marulan Transmission Line Normal Limit","1220 MVA","Overhead transmission line","No",""]
[null,"35 Bannaby to Marulan Transmission Line Contingency Limit","1280 MVA","High voltage connections","No",""]
[null,"35 Bannaby to Marulan Transmission Line 15 Minute Limit","1280 MVA","High voltage connections","No",""]
[null,"35 Bannaby to Marulan Transmission Line 10 Minute Limit","1280 MVA","High voltage connections","No",""]
[null,"35 Bannaby to Marulan Transmission Line 5 Minute Limit","1280 MVA","High voltage connections","No",""]
[null,"36 Bannaby to Marulan Transmission Line Normal Limit","1220 MVA","Overhead transmission line","No",""]
[null,"36 Bannaby to Marulan Transmission Line Contingency Limit","1280 MVA","High voltage connections","No",""]
[null,"36 Bannaby to Marulan Transmission Line 15 Minute Limit","1280 MVA","High voltage connections","No",""]
[null,"36 Bannaby to Marulan Transmission Line 10 Minute Limit","1280 MVA","High voltage connections","No",""]
[null,"36 Bannaby to Marulan Transmission Line 5 Minute Limit","1280 MVA","High voltage connections","No",""]
[null,"37 Kemps Creek to Macarthur Transmission Line Normal Limit","1280 MVA","Overhead transmission line","No",""]
[null,"37 Kemps Creek to Macarthur Transmission Line Contingency Limit","1280 MVA","High voltage connections","No",""]
[null,"37 Kemps Creek to Macarthur Transmission Line 15 Minute Limit","1280 MVA","High voltage connections","No",""]
[null,"37 Kemps Creek to Macarthur Transmission Line 10 Minute Limit","1280 MVA","High voltage connections","No",""]
[null,"37 Kemps Creek to Macarthur Transmission Line 5 Minute Limit","1280 MVA","High voltage connections","No",""]
[null,"38 Sydney West to Regentville Transmission Line Normal Limit","1143 MVA","Secondary of CT (protection metering or indication)","No",""]
[null,"38 Sydney West to Regentville Transmission Line Contingency Limit","1143 MVA","Secondary of CT (protection metering or indication)","No",""]
[null,"38 Sydney West to Regentville Transmission Line 15 Minute Limit","1143 MVA","Secondary of CT (protection metering or indication)","No",""]
[null,"38 Sydney West to Regentville Transmission Line 10 Minute Limit","1143 MVA","Secondary of CT (protection metering or indication)","No",""]
[null,"38 Sydney West to Regentville Transmission Line 5 Minute Limit","1143 MVA","Secondary of CT (protection metering or indication)","No",""]
[null,"39 Bannaby to Sydney West Transmission Line Normal Limit","915 MVA","Overhead transmission line","No",""]
[null,"39 Bannaby to Sydney West Transmission Line Contingency Limit","995 MVA","Overhead transmission line","No",""]
[null,"39 Bannaby to Sydney West Transmission Line 15 Minute Limit","995 MVA","Overhead transmission line","No",""]
[null,"39 Bannaby to Sydney West Transmission Line 10 Minute Limit","1045 MVA","Overhead transmission line","No",""]
[null,"39 Bannaby to Sydney West Transmission Line 5 Minute Limit","1208 MVA","Overhead transmission line","No",""]
[null,"39 Sydney West to Bannaby Transmission Line 15 Minute Limit","995 MVA","Overhead transmission line","No",""]
[null,"39 Sydney West to Bannaby Transmission Line 10 Minute Limit","995 MVA","Overhead transmission line","No",""]
[null,"39 Sydney West to Bannaby Transmission Line 5 Minute Limit","996 MVA","Overhead transmission line","No",""]
[null,"3C Canberra to Williamsdale Transmission Line Normal Limit","1280 MVA","Overhead transmission line","No",""]
[null,"3C Canberra to Williamsdale Transmission Line Contingency Limit","1429 MVA","Disconnector","No",""]
[null,"3C Canberra to Williamsdale Transmission Line 15 Minute Limit","1509 MVA","Overhead transmission line","No",""]
[null,"3C Canberra to Williamsdale Transmission Line 10 Minute Limit","1521 MVA","Overhead transmission line","No",""]
[null,"3C Canberra to Williamsdale Transmission Line 5 Minute Limit","1544 MVA","Secondary of CT (protection metering or indication)","No",""]
[null,"3C Williamsdale to Canberra Transmission Line 15 Minute Limit",1509,"Overhead transmission line","No",""]
[null,"3C Williamsdale to Canberra Transmission Line 10 Minute Limit",1509,"Overhead transmission line","No",""]
[null,"3C Williamsdale to Canberra Transmission Line 5 Minute Limit",1509,"Overhead transmission line","No",""]
[null,"3F Stockdill to Williamsdale Transmission Line Normal Limit","915 MVA","Secondary of CT (protection metering or indication)","No",""]
[null,"3F Stockdill to Williamsdale Transmission Line Contingency Limit","915 MVA","Secondary of CT (protection metering or indication)","No",""]
[null,"3F Stockdill to Williamsdale Transmission Line 15 Minute Limit","915 MVA","Secondary of CT (protection metering or indication)","No",""]
[null,"3F Stockdill to Williamsdale Transmission Line 10 Minute Limit","915 MVA","Secondary of CT (protection metering or indication)","No",""]
[null,"3F Stockdill to Williamsdale Transmission Line 5 Minute Limit","915 MVA","Secondary of CT (protection metering or indication)","No",""]
[null,"3H Crookwell to Gullen Range Transmission Line Normal Limit","1008 MVA","Overhead transmission line","No",""]
[null,"3H Crookwell to Gullen Range Transmission Line Contingency Limit","1008 MVA","Overhead transmission line","No",""]
[null,"3H Crookwell to Gullen Range Transmission Line 15 Minute Limit","1090 MVA","Overhead transmission line","No",""]
[null,"3H Crookwell to Gullen Range Transmission Line 10 Minute Limit","1164 MVA","Overhead transmission line","No",""]
[null,"3H Crookwell to Gullen Range Transmission Line 5 Minute Limit","1280 MVA","High voltage connections","No",""]
[null,"3H Gullen Range to Crookwell Transmission Line 15 Minute Limit","1011 MVA","Overhead transmission line","No",""]
[null,"3H Gullen Range to Crookwell Transmission Line 10 Minute Limit","1011 MVA","Overhead transmission line","No",""]
[null,"3H Gullen Range to Crookwell Transmission Line 5 Minute Limit","1011 MVA","Overhead transmission line","No",""]
[null,"3J Yass to Gullen Transmission Line Normal Limit","1008 MVA","Overhead transmission line","No",""]
[null,"3J Yass to Gullen Transmission Line Contingency Limit","1008 MVA","Overhead transmission line","No",""]
[null,"3J Yass to Gullen Transmission Line 15 Minute Limit","1090 MVA","Overhead transmission line","No",""]
[null,"3J Yass to Gullen Transmission Line 10 Minute Limit","1164 MVA","Overhead transmission line","No",""]
[null,"3J Yass to Gullen Transmission Line 5 Minute Limit","1280 MVA","High voltage connections","No",""]
[null,"3J Gullen to Yass Transmission Line 15 Minute Limit","1011 MVA","Overhead transmission line","No",""]
[null,"3J Gullen to Yass Transmission Line 10 Minute Limit","1011 MVA","Overhead transmission line","No",""]
[null,"3J Gullen to Yass Transmission Line 5 Minute Limit","1011 MVA","Overhead transmission line","No",""]
[null,"3L Yass to Collector Wind Farm Transmission Line Normal Limit","697 MVA","Overhead transmission line","No",""]
[null,"3L Yass to Collector Wind Farm Transmission Line Contingency Limit","880 MVA","Overhead transmission line","No",""]
[null,"3L Yass to Collector Wind Farm Transmission Line 15 Minute Limit","1141 MVA","Overhead transmission line","No",""]
[null,"3L Yass to Collector Wind Farm Transmission Line 10 Minute Limit","1205 MVA","Overhead transmission line","No",""]
[null,"3L Yass to Collector Wind Farm Transmission Line 5 Minute Limit","1280 MVA","High voltage connections","No",""]
[null,"3W Capital Wind Farm to Kangaroo Valley Transmission Line Normal Limit","915 MVA","Overhead transmission line","No",""]
[null,"3W Capital Wind Farm to Kangaroo Valley Transmission Line Contingency Limit","995 MVA","Overhead transmission line","No",""]
[null,"3W Capital Wind Farm to Kangaroo Valley Transmission Line 15 Minute Limit","1008 MVA","Secondary of CT (protection metering or indication)","No",""]
[null,"3W Capital Wind Farm to Kangaroo Valley Transmission Line 10 Minute Limit","1008 MVA","Secondary of CT (protection metering or indication)","No",""]
[null,"3W Capital Wind Farm to Kangaroo Valley Transmission Line 5 Minute Limit","1008 MVA","Secondary of CT (protection metering or indication)","No",""]
[null,"3W Kangaroo Valley to Capital Wind Farm Transmission Line 15 Minute Limit","995 MVA","Overhead transmission line","No",""]
[null,"3W Kangaroo Valley to Capital Wind Farm Transmission Line 10 Minute Limit","995 MVA","Overhead transmission line","No",""]
[null,"3W Kangaroo Valley to Capital Wind Farm Transmission Line 5 Minute Limit","996 MVA","Overhead transmission line","No",""]
[null,"41 Sydney South to Beaconsfield West Transmission Line Normal Limit","575 MVA","Overhead transmission line","No",""]
[null,"41 Sydney South to Beaconsfield West Transmission Line Contingency Limit","575 MVA","Overhead transmission line","No",""]
[null,"42 Sydney South to Haymarket Transmission Line Normal Limit","750 MVA","Overhead transmission line","No",""]
[null,"42 Sydney South to Haymarket Transmission Line Contingency Limit","900 MVA","Overhead transmission line","No",""]
[null,"42 Sydney South to Haymarket Transmission Line 15 Minute Limit","1000 MVA","Overhead transmission line","No",""]
[null,"43 Holroyd to Rookwood Transmission Line Normal Limit","680 MVA","Overhead transmission line","No",""]
[null,"43 Holroyd to Rookwoodt Transmission Line Contingency Limit","900 MVA","Overhead transmission line","No",""]
[null,"44 Holroyd to Rookwood Transmission Line Normal Limit","680 MVA","Overhead transmission line","No",""]
[null,"44 Holroyd to Rookwoodt Transmission Line Contingency Limit","900 MVA","Overhead transmission line","No",""]
[null,"O51 Lower Tumut to Wagga Transmission Line Normal Limit","910 MVA","High voltage connections","No",""]
[null,"O51 Lower Tumut to Wagga Transmission Line Contingency Limit","910 MVA","High voltage connections","No",""]
[null,"O51 Lower Tumut to Wagga Transmission Line 15 Minute Limit","910 MVA","High voltage connections","No",""]
[null,"O51 Lower Tumut to Wagga Transmission Line 10 Minute Limit","910 MVA","High voltage connections","No",""]
[null,"O51 Lower Tumut to Wagga Transmission Line 5 Minute Limit","910 MVA","High voltage connections","No",""]
[null,"O60 Jindera to Wodonga Transmission Line Normal Limit","915 MVA","Overhead transmission line","No",""]
[null,"O60 Jindera to Wodonga Transmission Line Contingency Limit","995 MVA","Overhead transmission line","No",""]
[null,"O60 Jindera to Wodonga Transmission Line 15 Minute Limit","1008 MVA","Secondary of CT (protection metering or indication)","No",""]
[null,"O60 Jindera to Wodonga Transmission Line 10 Minute Limit","1008 MVA","Secondary of CT (protection metering or indication)","No",""]
[null,"O60 Jindera to Wodonga Transmission Line 5 Minute Limit","1008 MVA","Secondary of CT (protection metering or indication)","No",""]
[null,"61 Bannaby to Gullen Transmission Line Normal Limit","1008 MVA","Overhead transmission line","No",""]
[null,"61 Bannaby to Gullen Transmission Line Contingency Limit","1008 MVA","Overhead transmission line","No",""]
[null,"61 Bannaby to Gullen Transmission Line 15 Minute Limit","1090 MVA","Overhead transmission line","No",""]
[null,"61 Bannaby to Gullen Transmission Line 10 Minute Limit","1164 MVA","Overhead transmission line","No",""]
[null,"61 Bannaby to Gullen Transmission Line 5 Minute Limit","1280 MVA","High voltage connections","No",""]
[null,"61 Gullen to Bannaby Transmission Line 15 Minute Limit","1011 MVA","Overhead transmission line","No",""]
[null,"61 Gullen to Bannaby Transmission Line 10 Minute Limit","1011 MVA","Overhead transmission line","No",""]
[null,"61 Gullen to Bannaby Transmission Line 5 Minute Limit","1011 MVA","Overhead transmission line","No",""]
[null,"62 Wagga to Jindera Transmission Line Normal Limit","915 MVA","Overhead transmission line","No",""]
[null,"62 Wagga to Jindera Transmission Line Contingency Limit","995 MVA","Overhead transmission line","No",""]
[null,"62 Wagga to Jindera Transmission Line 15 Minute Limit","998 MVA","Secondary of CT (protection metering or indication)","No",""]
[null,"62 Wagga to Jindera Transmission Line 10 Minute Limit","998 MVA","Secondary of CT (protection metering or indication)","No",""]
[null,"62 Wagga to Jindera Transmission Line 5 Minute Limit","998 MVA","Secondary of CT (protection metering or indication)","No",""]
[null,"63 Wagga to Darlington Point Transmission Line Normal Limit","572 MVA","Secondary of CT (protection metering or indication)","No",""]
[null,"63 Wagga to Darlington Point Transmission Line Contingency Limit","915 MVA","Secondary of CT (protection metering or indication)","No",""]
[null,"63 Wagga to Darlington Point Transmission Line 15 Minute Limit","915 MVA","Secondary of CT (protection metering or indication)","No",""]
[null,"63 Wagga to Darlington Point Transmission Line 10 Minute Limit","915 MVA","Secondary of CT (protection metering or indication)","No",""]
[null,"63 Wagga to Darlington Point Transmission Line 5 Minute Limit","915 MVA","Secondary of CT (protection metering or indication)","No",""]
[null,"64 Upper Tumut to Lower Tumut Transmission Line Normal Limit","714 MVA","Overhead transmission line","No",""]
[null,"64 Upper Tumut to Lower Tumut Transmission Line Contingency Limit","857 MVA","Overhead transmission line","No",""]
[null,"65 Murray to Upper Tumut Transmission Line Normal Limit","715 MVA","Overhead transmission line","No",""]
[null,"65 Murray to Upper Tumut Transmission Line Contingency Limit","715 MVA","Overhead transmission line","No",""]
[null,"65 Murray to Upper Tumut Transmission Line 15 Minute Limit","860 MVA","Overhead transmission line","No",""]
[null,"66 Murray to Lower Tumut Transmission Line Normal Limit","715 MVA","Overhead transmission line","No",""]
[null,"66 Murray to Lower Tumut Transmission Line Contingency Limit","715 MVA","Overhead transmission line","No",""]
[null,"66 Murray to Lower Tumut Transmission Line 15 Minute Limit","860 MVA","Overhead transmission line","No",""]
[null,"67 Murray to Dederang (No.1) Transmission Line Normal Limit","910 MVA","High voltage connections","No",""]
[null,"67 Murray to Dederang (No.1) Transmission Line Contingency Limit","910 MVA","High voltage connections","No",""]
[null,"67 Murray to Dederang (No.1) Transmission Line 15 Minute Limit","910 MVA","High voltage connections","No",""]
[null,"67 Murray to Dederang (No.1) Transmission Line 10 Minute Limit","910 MVA","High voltage connections","No",""]
[null,"67 Murray to Dederang (No.1) Transmission Line 5 Minute Limit","910 MVA","High voltage connections","No",""]
[null,"68 Murray to Dederang (No.2) Transmission Line Normal Limit","910 MVA","High voltage connections","No",""]
[null,"68 Murray to Dederang (No.2) Transmission Line Contingency Limit","910 MVA","High voltage connections","No",""]
[null,"68 Murray to Dederang (No.2) Transmission Line 15 Minute Limit","910 MVA","High voltage connections","No",""]
[null,"68 Murray to Dederang (No.2) Transmission Line 10 Minute Limit","910 MVA","High voltage connections","No",""]
[null,"68 Murray to Dederang (No.2) Transmission Line 5 Minute Limit","910 MVA","High voltage connections","No",""]
[null,"6X Upper Tumut to Ravine Transmission Line Normal Limit","915 MVA","Overhead transmission line","No",""]
[null,"6X Upper Tumut to Ravine Transmission Line Contingency Limit","995 MVA","Overhead transmission line","No",""]
[null,"6X Upper Tumut to Ravine Transmission Line 15 Minute Limit","1011 MVA","Overhead transmission line","No",""]
[null,"6X Upper Tumut to Ravine Transmission Line 10 Minute Limit","1085 MVA","Overhead transmission line","No",""]
[null,"6X Upper Tumut to Ravine Transmission Line 5 Minute Limit","1132 MVA","Wave traps","No",""]
[null,"6X Ravine to Upper Tumut Transmission Line 15 Minute Limit","995 MVA","Overhead transmission line","No",""]
[null,"6X Ravine to Upper Tumut Transmission Line 10 Minute Limit","995 MVA","Overhead transmission line","No",""]
[null,"6X Ravine to Upper Tumut Transmission Line 5 Minute Limit","996 MVA","Overhead transmission line","No",""]
[null,"70 Wallerawang to Mt Piper Transmission Line Normal Limit","1239 MVA","Overhead transmission line","No",""]
[null,"70 Wallerawang to Mt Piper Transmission Line Contingency Limit","1429 MVA","Disconnectors","No",""]
[null,"70 Wallerawang to Mt Piper Transmission Line 15 Minute Limit","1572 MVA","Disconnectors","No",""]
[null,"70 Wallerawang to Mt Piper Transmission Line 10 Minute Limit","1643 MVA","Disconnectors","No",""]
[null,"70 Wallerawang to Mt Piper Transmission Line 5 Minute Limit","1646 MVA","Secondary of CT (protection metering or indication)","No",""]
[null,"71 Wallerawang to Mt Piper Transmission Line Normal Limit","1239 MVA","Overhead transmission line","No",""]
[null,"71 Wallerawang to Mt Piper Transmission Line Contingency Limit","1429 MVA","Primary of CT","No",""]
[null,"71 Wallerawang to Mt Piper Transmission Line 15 Minute Limit","1429 MVA","Primary of CT","No",""]
[null,"71 Wallerawang to Mt Piper Transmission Line 10 Minute Limit","1429 MVA","Primary of CT","No",""]
[null,"71 Wallerawang to Mt Piper Transmission Line 5 Minute Limit","1429 MVA","Primary of CT","No",""]
[null,"72 Mt Piper to Wellington Transmission Line Normal Limit","985 MVA","Secondary of CT (protection metering or indication)","No",""]
[null,"72 Mt Piper to Wellington Transmission Line Contingency Limit","1008 MVA","Secondary of CT (protection metering or indication)","No",""]
[null,"72 Mt Piper to Wellington Transmission Line 15 Minute Limit","1008 MVA","Secondary of CT (protection metering or indication)","No",""]
[null,"72 Mt Piper to Wellington Transmission Line 10 Minute Limit","1008 MVA","Secondary of CT (protection metering or indication)","No",""]
[null,"72 Mt Piper to Wellington Transmission Line 5 Minute Limit","1008 MVA","Secondary of CT (protection metering or indication)","No",""]
[null,"76 Wallerawang to Sydney South Transmission Line Normal Limit","1215 MVA","Overhead transmission line","No",""]
[null,"76 Wallerawang to Sydney South Transmission Line Contingency Limit","1429 MVA","Overhead transmission line","No",""]
[null,"76 Wallerawang to Sydney South Transmission Line 15 Minute Limit","1557 MVA","Protection trip setting","No",""]
[null,"76 Wallerawang to Sydney South Transmission Line 10 Minute Limit","1557 MVA","Protection trip setting","No",""]
[null,"76 Wallerawang to Sydney South Transmission Line 5 Minute Limit","1557 MVA","Protection trip setting","No",""]
[null,"76 Sydney South to Wallerawang Transmission Line Normal Limit","1215 MVA","Overhead transmission line","No",""]
[null,"76 Sydney South to Wallerawang Transmission Line Contingency Limit","1262 MVA","Protection trip setting","No",""]
[null,"76 Sydney South to Wallerawang Transmission Line 15 Minute Limit","1262 MVA","Protection trip setting","No",""]
[null,"76 Sydney South to Wallerawang Transmission Line 10 Minute Limit","1262 MVA","Protection trip setting","No",""]
[null,"76 Sydney South to Wallerawang Transmission Line 5 Minute Limit","1262 MVA","Protection trip setting","No",""]
[null,"77 Wallerawang to Ingleburn Transmission Line Normal Limit","1215 MVA","Overhead transmission line","No",""]
[null,"77 Wallerawang to Ingleburn Transmission Line Contingency Limit","1428 MVA","High voltage connections","No",""]
[null,"77 Wallerawang to Ingleburn Transmission Line 15 Minute Limit","1428 MVA","High voltage connections","No",""]
[null,"77 Wallerawang to Ingleburn Transmission Line 10 Minute Limit","1428 MVA","High voltage connections","No",""]
[null,"77 Wallerawang to Ingleburn Transmission Line 5 Minute Limit","1428 MVA","High voltage connections","No",""]
[null,"78 Ingleburn to Sydney South Transmission Line Normal Limit","1215 MVA","Overhead transmission line","No",""]
[null,"78 Ingleburn to Sydney South Transmission Line Contingency Limit","1428 MVA","High voltage connections","No",""]
[null,"78 Ingleburn to Sydney South Transmission Line 15 Minute Limit","1428 MVA","High voltage connections","No",""]
[null,"78 Ingleburn to Sydney South Transmission Line 10 Minute Limit","1428 MVA","High voltage connections","No",""]
[null,"78 Ingleburn to Sydney South Transmission Line 5 Minute Limit","1428 MVA","High voltage connections","No",""]
[null,"79 Wellington to Wollar Transmission Line Normal Limit","985 MVA","Overhead transmission line","No",""]
[null,"79 Wellington to Wollar Transmission Line Contingency Limit","1048 MVA","Overhead transmission line","No",""]
[null,"79 Wellington to Wollar Transmission Line 15 Minute Limit","1127 MVA","Overhead transmission line","No",""]
[null,"79 Wellington to Wollar Transmission Line 10 Minute Limit","1201 MVA","Overhead transmission line","No",""]
[null,"79 Wellington to Wollar Transmission Line 5 Minute Limit","1280 MVA","High voltage connections","No",""]
[null,"79 Wollar to Wellington Transmission Line 15 Minute Limit",1056,"Overhead transmission line","No",""]
[null,"79 Wollar to Wellington Transmission Line 10 Minute Limit",1070,"Overhead transmission line","No",""]
[null,"79 Wollar to Wellington Transmission Line 5 Minute Limit",1117,"Overhead transmission line","No",""]
[null,"81 Liddell to Newcastle Transmission Line Normal Limit","1215 MVA","Overhead transmission line","No",""]
[null,"81 Liddell to Newcastle Transmission Line Contingency Limit","1429 MVA","Overhead transmission line","No",""]
[null,"81 Liddell to Newcastle Transmission Line 15 Minute Limit","1588 MVA","Overhead transmission line","No",""]
[null,"81 Liddell to Newcastle Transmission Line 10 Minute Limit","1646 MVA","Secondary of CT (protection metering or indication)","No",""]
[null,"81 Liddell to Newcastle Transmission Line 5 Minute Limit","1646 MVA","Secondary of CT (protection metering or indication)","No",""]
[null,"81 Newcastle to Liddell Transmission Line 15 Minute Limit","1470 MVA","Overhead transmission line","No",""]
[null,"81 Newcastle to Liddell Transmission Line 10 Minute Limit","1541 MVA","Overhead transmission line","No",""]
[null,"81 Newcastle to Liddell Transmission Line 5 Minute Limit","1646 MVA","Secondary of CT (protection metering or indication)","No",""]
[null,"82 Liddell to Tomago Transmission Line Normal Limit","1215 MVA","Overhead transmission line","No",""]
[null,"82 Liddell to Tomago Transmission Line Contingency Limit","1429 MVA","Overhead transmission line","No",""]
[null,"82 Liddell to Tomago Transmission Line 15 Minute Limit","1582 MVA","High voltage connections","No",""]
[null,"82 Liddell to Tomago Transmission Line 10 Minute Limit","1582 MVA","High voltage connections","No",""]
[null,"82 Liddell to Tomago Transmission Line 5 Minute Limit","1582 MVA","High voltage connections","No",""]
[null,"82 Tomago to Liddell Transmission Line 15 Minute Limit","1470 MVA","Overhead transmission line","No",""]
[null,"82 Liddell to Tomago Transmission Line 10 Minute Limit","1541 MVA","Overhead transmission line","No",""]
[null,"82 Liddell to Tomago Transmission Line 5 Minute Limit","1582 MVA","High voltage connections","No",""]
[null,"83 Liddell to Muswellbrook Transmission Line Normal Limit","983 MVA","Overhead transmission line","No",""]
[null,"83 Liddell to Muswellbrook Transmission Line Contingency Limit","1160 MVA","Overhead transmission line","No",""]
[null,"83 Liddell to Muswellbrook Transmission Line 15 Minute Limit","1239 MVA","Overhead transmission line","No",""]
[null,"83 Liddell to Muswellbrook Transmission Line 10 Minute Limit","1280 MVA","High voltage connections","No",""]
[null,"83 Liddell to Muswellbrook Transmission Line 5 Minute Limit","1280 MVA","High voltage connections","No",""]
[null,"83 Muswellbrook to Liddell Transmission Line 15 Minute Limit","1166 MVA","Overhead transmission line","No",""]
[null,"83 Muswellbrook to Liddell Transmission Line 10 Minute Limit","1223 MVA","Overhead transmission line","No",""]
[null,"83 Muswellbrook to Liddell Transmission Line 5 Minute Limit","1280 MVA","High voltage connections","No",""]
[null,"84 Liddell to Tamworth 330 Transmission Line Normal Limit","892 MVA","Overhead transmission line","No",""]
[null,"84 Liddell to Tamworth 330 Transmission Line Contingency Limit","983 MVA","Overhead transmission line","No",""]
[null,"84 Liddell to Tamworth 330 Transmission Line 15 Minute Limit","1002 MVA","Overhead transmission line","No",""]
[null,"84 Liddell to Tamworth 330 Transmission Line 10 Minute Limit","1076 MVA","Overhead transmission line","No",""]
[null,"84 Liddell to Tamworth 330 Transmission Line 5 Minute Limit","1296 MVA","Overhead transmission line","No",""]
[null,"84 Tamworth 330 to Liddell Transmission Line 15 Minute Limit","983 MVA","Overhead transmission line","No",""]
[null,"84 Tamworth 330 to Liddell Transmission Line 10 Minute Limit","983 MVA","Overhead transmission line","No",""]
[null,"84 Tamworth 330 to Liddell Transmission Line 5 Minute Limit","990 MVA","Overhead transmission line","No",""]
[null,"85 Tamworth 330 to Armidale Transmission Line Normal Limit","892 MVA","Overhead transmission line","No",""]
[null,"85 Tamworth 330 to Armidale Transmission Line Contingency Limit","983 MVA","Overhead transmission line","No",""]
[null,"85 Tamworth 330 to Armidale Transmission Line 15 Minute Limit","1002 MVA","Overhead transmission line","No",""]
[null,"85 Tamworth 330 to Armidale Transmission Line 10 Minute Limit","1076 MVA","Overhead transmission line","No",""]
[null,"85 Tamworth 330 to Armidale Transmission Line 5 Minute Limit","1260 MVA","Secondary of CT (protection metering or indication)","No",""]
[null,"85 Armidale to Tamworth 330 Transmission Line 15 Minute Limit","983 MVA","Overhead transmission line","No",""]
[null,"85 Armidale to Tamworth 330 Transmission Line 10 Minute Limit","983 MVA","Overhead transmission line","No",""]
[null,"85 Armidale to Tamworth 330 Transmission Line 5 Minute Limit","990 MVA","Overhead transmission line","No",""]
[null,"86 Tamworth 330 to Armidale Transmission Line Normal Limit","840 MVA","Overhead transmission line","No",""]
[null,"86 Tamworth 330 to Armidale Transmission Line Contingency Limit","989 MVA","Overhead transmission line","No",""]
[null,"86 Tamworth 330 to Armidale Transmission Line 15 Minute Limit","1057 MVA","Overhead transmission line","No",""]
[null,"86 Tamworth 330 to Armidale Transmission Line 10 Minute Limit","1143 MVA","Primary of CT","No",""]
[null,"86 Tamworth 330 to Armidale Transmission Line 5 Minute Limit","1143 MVA","Primary of CT","No",""]
[null,"86 Armidale to Tamworth 330 Transmission Line 15 Minute Limit","1005 MVA","Overhead transmission line","No",""]
[null,"86 Armidale to Tamworth 330 Transmission Line 10 Minute Limit","1054 MVA","Overhead transmission line","No",""]
[null,"86 Armidale to Tamworth 330 Transmission Line 5 Minute Limit","1143 MVA","Primary of CT","No",""]
[null,"87 Armidale to Coffs Harbour Transmission Line Normal Limit","823 MVA","Secondary of CT (protection metering or indication)","No",""]
[null,"87 Armidale to Coffs Harbour Transmission Line Contingency Limit","823 MVA","Secondary of CT (protection metering or indication)","No",""]
[null,"87 Armidale to Coffs Harbour Transmission Line 15 Minute Limit","823 MVA","Secondary of CT (protection metering or indication)","No",""]
[null,"87 Armidale to Coffs Harbour Transmission Line 10 Minute Limit","823 MVA","Secondary of CT (protection metering or indication)","No",""]
[null,"87 Armidale to Coffs Harbour Transmission Line 5 Minute Limit","823 MVA","Secondary of CT (protection metering or indication)","No",""]
[null,"88 Muswellbrook 330 to Tamworth 330 Transmission Line Normal Limit","892 MVA","Overhead transmission line","No",""]
[null,"88 Muswellbrook 330 to Tamworth 330 Transmission Line Contingency Limit","983 MVA","Overhead transmission line","No",""]
[null,"88 Muswellbrook 330 to Tamworth 330 Transmission Line 15 Minute Limit","1002 MVA","Overhead transmission line","No",""]
[null,"88 Muswellbrook 330 to Tamworth 330 Transmission Line 10 Minute Limit","1076 MVA","Overhead transmission line","No",""]
[null,"88 Muswellbrook 330 to Tamworth 330 Transmission Line 5 Minute Limit","1280 MVA","High voltage connections","No",""]
[null,"88 Tamworth 330 to Muswellbrook 330 Transmission Line 15 Minute Limit","983 MVA","Overhead transmission line","No",""]
[null,"88 Tamworth 330 to Muswellbrook 330 Transmission Line 10 Minute Limit","983 MVA","Overhead transmission line","No",""]
[null,"88 Tamworth 330 to Muswellbrook 330 Transmission Line 5 Minute Limit","990 MVA","Overhead transmission line","No",""]
[null,"89 Coffs Harbour to Lismore 330 Transmission Line Normal Limit","892 MVA","Overhead transmission line","No",""]
[null,"89 Coffs Harbour to Lismore 330 Transmission Line Contingency Limit","915 MVA","Secondary of CT (protection metering or indication)","No",""]
[null,"89 Coffs Harbour to Lismore 330 Transmission Line 15 Minute Limit","915 MVA","Secondary of CT (protection metering or indication)","No",""]
[null,"89 Coffs Harbour to Lismore 330 Transmission Line 10 Minute Limit","915 MVA","Secondary of CT (protection metering or indication)","No",""]
[null,"89 Coffs Harbour to Lismore 330 Transmission Line 5 Minute Limit","915 MVA","Secondary of CT (protection metering or indication)","No",""]
[null,"8C Armidale to Dumaresq Transmission Line Normal Limit","1269 MVA","Overhead transmission line","No",""]
[null,"8C Armidale to Dumaresq Transmission Line Contingency Limit","1307 MVA","Protection trip setting","No",""]
[null,"8C Armidale to Dumaresq Transmission Line 15 Minute Limit","1307 MVA","Protection trip setting","No",""]
[null,"8C Armidale to Dumaresq Transmission Line 10 Minute Limit","1307 MVA","Protection trip setting","No",""]
[null,"8C Armidale to Dumaresq Transmission Line 5 Minute Limit","1307 MVA","Protection trip setting","No",""]
[null,"8C Dumaresq to Armidale Transmission Line Normal Limit","1269 MVA","Overhead transmission line","No",""]
[null,"8C Dumaresq to Armidale Transmission Line Contingency Limit","1406 MVA","Overhead transmission line","No",""]
[null,"8C Dumaresq to Armidale Transmission Line 15 Minute Limit","1406 MVA","Overhead transmission line","No",""]
[null,"8C Dumaresq to Armidale Transmission Line 10 Minute Limit","1406 MVA","Overhead transmission line","No",""]
[null,"8C Dumaresq to Armidale Transmission Line 5 Minute Limit","1406 MVA","Overhead transmission line","No",""]
[null,"8E Armidale to Dumaresq Transmission Line Normal Limit","1280 MVA","Overhead transmission line","No",""]
[null,"8E Armidale to Dumaresq Transmission Line Contingency Limit","1280 MVA","High voltage connections","No",""]
[null,"8E Armidale to Dumaresq Transmission Line 15 Minute Limit","1280 MVA","High voltage connections","No",""]
[null,"8E Armidale to Dumaresq Transmission Line 10 Minute Limit","1280 MVA","High voltage connections","No",""]
[null,"8E Armidale to Dumaresq Transmission Line 5 Minute Limit","1280 MVA","High voltage connections","No",""]
[null,"8J Sapphire Wind Farm to Dumaresq Transmission Line Normal Limit","1280 MVA","Overhead transmission line","No",""]
[null,"8J Sapphire Wind Farm to Dumaresq Transmission Line Contingency Limit","1280 MVA","High voltage connections","No",""]
[null,"8J Sapphire Wind Farm to Dumaresq Transmission Line 15 Minute Limit","1280 MVA","High voltage connections","No",""]
[null,"8J Sapphire Wind Farm to Dumaresq Transmission Line 10 Minute Limit","1280 MVA","High voltage connections","No",""]
[null,"8J Sapphire Wind Farm to Dumaresq Transmission Line 5 Minute Limit","1280 MVA","High voltage connections","No",""]
[null,"8L Dumaresq to Bulli Creek Transmission Line Normal Limit","1237 MVA","Overhead transmission line","No",""]
[null,"8L Dumaresq to Bulli Creek Transmission Line Contingency Limit","1406 MVA","Overhead transmission line","No",""]
[null,"8L Dumaresq to Bulli Creek Transmission Line 15 Minute Limit","1406 MVA","Overhead transmission line","No",""]
[null,"8L Dumaresq to Bulli Creek Transmission Line 10 Minute Limit","1406 MVA","Overhead transmission line","No",""]
[null,"8L Dumaresq to Bulli Creek Transmission Line 5 Minute Limit","1406 MVA","Overhead transmission line","No",""]
[null,"8M Dumaresq to Bulli Creek Transmission Line Normal Limit","1237 MVA","Overhead transmission line","No",""]
[null,"8M Dumaresq to Bulli Creek Transmission Line Contingency Limit","1406 MVA","Overhead transmission line","No",""]
[null,"8M Dumaresq to Bulli Creek Transmission Line 15 Minute Limit","1406 MVA","Overhead transmission line","No",""]
[null,"8M Dumaresq to Bulli Creek Transmission Line 10 Minute Limit","1406 MVA","Overhead transmission line","No",""]
[null,"8M Dumaresq to Bulli Creek Transmission Line 5 Minute Limit","1406 MVA","Overhead transmission line","No",""]
[null,"90 Eraring to Newcastle Transmission Line Normal Limit","1215 MVA","Overhead transmission line","No",""]
[null,"90 Eraring to Newcastle Transmission Line Contingency Limit","1429 MVA","Overhead transmission line","No",""]
[null,"90 Eraring to Newcastle Transmission Line 15 Minute Limit","1500 MVA","Wavw Traps","No",""]
[null,"90 Eraring to Newcastle Transmission Line 10 Minute Limit","1543 MVA","Wavw Traps","No",""]
[null,"90 Eraring to Newcastle Transmission Line 5 Minute Limit","1572 MVA","Wavw Traps","No",""]
[null,"92 Vales Point to Newcastle Transmission Line Normal Limit","1097 MVA","Secondary of CT (protection metering or indication)","No",""]
[null,"92 Vales Point to Newcastle Transmission Line Contingency Limit","1280 MVA","High voltage connections","No",""]
[null,"92 Vales Point to Newcastle Transmission Line 15 Minute Limit","1280 MVA","High voltage connections","No",""]
[null,"92 Vales Point to Newcastle Transmission Line 10 Minute Limit","1280 MVA","High voltage connections","No",""]
[null,"92 Vales Point to Newcastle Transmission Line 5 Minute Limit","1280 MVA","High voltage connections","No",""]
[null,"93 Eraring to Newcastle Transmission Line Normal Limit","1215 MVA","Overhead transmission line","No",""]
[null,"93 Eraring to Newcastle Transmission Line Contingency Limit","1429 MVA","Overhead transmission line","No",""]
[null,"93 Eraring to Newcastle Transmission Line 15 Minute Limit","1500 MVA","Wave traps","No",""]
[null,"93 Eraring to Newcastle Transmission Line 10 Minute Limit","1543 MVA","Wave traps","No",""]
[null,"93 Eraring to Newcastle Transmission Line 5 Minute Limit","1572 MVA","Wave traps","No",""]
[null,"94 Newcastle to Tomago 330 Transmission Line Normal Limit","1215 MVA","Overhead transmission line","No",""]
[null,"94 Newcastle to Tomago 330 Transmission Line Contingency Limit","1280 MVA","High voltage connections","No",""]
[null,"94 Newcastle to Tomago 330 Transmission Line 15 Minute Limit","1280 MVA","High voltage connections","No",""]
[null,"94 Newcastle to Tomago 330 Transmission Line 10 Minute Limit","1280 MVA","High voltage connections","No",""]
[null,"94 Newcastle to Tomago 330 Transmission Line 5 Minute Limit","1280 MVA","High voltage connections","No",""]
[null,"95 Newcastle to Tomago 330 Transmission Line Normal Limit","1215 MVA","Overhead transmission line","No",""]
[null,"95 Newcastle to Tomago 330 Transmission Line Contingency Limit","1280 MVA","High voltage connections","No",""]
[null,"95 Newcastle to Tomago 330 Transmission Line 15 Minute Limit","1280 MVA","High voltage connections","No",""]
[null,"95 Newcastle to Tomago 330 Transmission Line 10 Minute Limit","1280 MVA","High voltage connections","No",""]
[null,"95 Newcastle to Tomago 330 Transmission Line 5 Minute Limit","1280 MVA","High voltage connections","No",""]
[null,"96 Newcastle to Waratah West Transmission Line Normal Limit","1215 MVA","Overhead transmission line","No",""]
[null,"96 Newcastle to Waratah West Transmission Line Contingency Limit","1215 MVA","High voltage connections","No",""]
[null,"96 Newcastle to Waratah West Transmission Line 15 Minute Limit","1215 MVA","High voltage connections","No",""]
[null,"96 Newcastle to Waratah West Transmission Line 10 Minute Limit","1215 MVA","High voltage connections","No",""]
[null,"96 Newcastle to Waratah West Transmission Line 5 Minute Limit","1215 MVA","High voltage connections","No",""]
[null,"9W Tomago 330 to Waratah West Transmission Line Normal Limit","1215 MVA","Overhead transmission line","No",""]
[null,"9W Tomago 330 to Waratah West Transmission Line Contingency Limit","1280 MVA","High voltage connections","No",""]
[null,"9W Tomago 330 to Waratah West Transmission Line 15 Minute Limit","1280 MVA","High voltage connections","No",""]
[null,"9W Tomago 330 to Waratah West Transmission Line 10 Minute Limit","1280 MVA","High voltage connections","No",""]
[null,"9W Tomago 330 to Waratah West Transmission Line 5 Minute Limit","1280 MVA","High voltage connections","No",""]
[null,"C1 Munmorah to Colongra Transmission Line Normal Limit","549 MVA","Secondary of CT (protection metering or indication)","No",""]
[null,"C1 Munmorah to Colongra Transmission Line Contingency Limit","572 MVA","Secondary of CT (protection metering or indication)","No",""]
[null,"C1 Munmorah to Colongra Transmission Line 15 Minute Limit","572 MVA","Secondary of CT (protection metering or indication)","No",""]
[null,"C1 Munmorah to Colongra Transmission Line 10 Minute Limit","572 MVA","Secondary of CT (protection metering or indication)","No",""]
[null,"C1 Munmorah to Colongra Transmission Line 5 Minute Limit","572 MVA","Secondary of CT (protection metering or indication)","No",""]
[null,"C3 Munmorah to Colongra Transmission Line Normal Limit","549 MVA","Secondary of CT (protection metering or indication)","No",""]
[null,"C3 Munmorah to Colongra Transmission Line Contingency Limit","572 MVA","Secondary of CT (protection metering or indication)","No",""]
[null,"C3 Munmorah to Colongra Transmission Line 15 Minute Limit","572 MVA","Secondary of CT (protection metering or indication)","No",""]
[null,"C3 Munmorah to Colongra Transmission Line 10 Minute Limit","572 MVA","Secondary of CT (protection metering or indication)","No",""]
[null,"C3 Munmorah to Colongra Transmission Line 5 Minute Limit","572 MVA","Secondary of CT (protection metering or indication)","No",""]
[null,"No.1 Eraring 330 SS to Eraring PS Transmission Line Normal Limit","800 MVA","Secondary of CT (protection metering or indication)","No",""]
[null,"No.1 Eraring 330 SS to Eraring PS Transmission Line Contingency Limit","800 MVA","Secondary of CT (protection metering or indication)","No",""]
[null,"No.1 Eraring 330 SS to Eraring PS Transmission Line 15 Minute Limit","800 MVA","Secondary of CT (protection metering or indication)","No",""]
[null,"No.1 Eraring 330 SS to Eraring PS Transmission Line 10 Minute Limit","800 MVA","Secondary of CT (protection metering or indication)","No",""]
[null,"No.1 Eraring 330 SS to Eraring PS Transmission Line 5 Minute Limit","800 MVA","Secondary of CT (protection metering or indication)","No",""]
[null,"No.2 Eraring 330 SS to Eraring PS Transmission Line Normal Limit","800 MVA","Secondary of CT (protection metering or indication)","No",""]
[null,"No.2 Eraring 330 SS to Eraring PS Transmission Line Contingency Limit","800 MVA","Secondary of CT (protection metering or indication)","No",""]
[null,"No.2 Eraring 330 SS to Eraring PS Transmission Line 15 Minute Limit","800 MVA","Secondary of CT (protection metering or indication)","No",""]
[null,"No.2 Eraring 330 SS to Eraring PS Transmission Line 10 Minute Limit","800 MVA","Secondary of CT (protection metering or indication)","No",""]
[null,"No.2 Eraring 330 SS to Eraring PS Transmission Line 5 Minute Limit","800 MVA","Secondary of CT (protection metering or indication)","No",""]
[null,"No.1 Mt Piper 330 SS to Mt Piper PS Transmission Line Normal Limit","836 MVA","Secondary of CT (protection metering or indication)","No",""]
[null,"No.1 Mt Piper 330 SS to Mt Piper PS Transmission Line Contingency Limit","836 MVA","Secondary of CT (protection metering or indication)","No",""]
[null,"No.1 Mt Piper 330 SS to Mt Piper PS Transmission Line 15 Minute Limit","836 MVA","Secondary of CT (protection metering or indication)","No",""]
[null,"No.1 Mt Piper 330 SS to Mt Piper PS Transmission Line 10 Minute Limit","836 MVA","Secondary of CT (protection metering or indication)","No",""]
[null,"No.1 Mt Piper 330 SS to Mt Piper PS Transmission Line 5 Minute Limit","836 MVA","Secondary of CT (protection metering or indication)","No",""]
[null,"No.2 Mt Piper 330 SS to Mt Piper PS Transmission Line Normal Limit","1097 MVA","Secondary of CT (protection metering or indication)","No",""]
[null,"No.2 Mt Piper 330 SS to Mt Piper PS Transmission Line Contingency Limit","1280 MVA","High voltage connections","No",""]
[null,"No.2 Mt Piper 330 SS to Mt Piper PS Transmission Line 15 Minute Limit","1280 MVA","High voltage connections","No",""]
[null,"No.2 Mt Piper 330 SS to Mt Piper PS Transmission Line 10 Minute Limit","1280 MVA","High voltage connections","No",""]
[null,"No.2 Mt Piper 330 SS to Mt Piper PS Transmission Line 5 Minute Limit","1280 MVA","High voltage connections","No",""]
[null,"No.1 Bayswater SS to Bayswater PS Transmission Line Normal Limit","836 MVA","Secondary of CT (protection metering or indication)","No",""]
[null,"No.1 Bayswater SS to Bayswater PS Transmission Line Contingency Limit","836 MVA","Secondary of CT (protection metering or indication)","No",""]
[null,"No.1 Bayswater SS to Bayswater PS Transmission Line 15 Minute Limit","836 MVA","Secondary of CT (protection metering or indication)","No",""]
[null,"No.1 Bayswater SS to Bayswater PS Transmission Line 10 Minute Limit","836 MVA","Secondary of CT (protection metering or indication)","No",""]
[null,"No.1 Bayswater SS to Bayswater PS Transmission Line 5 Minute Limit","836 MVA","Secondary of CT (protection metering or indication)","No",""]
[null,"No.3 Bayswater SS to Bayswater PS Transmission Line Normal Limit","836 MVA","Secondary of CT (protection metering or indication)","No",""]
[null,"No.3 Bayswater SS to Bayswater PS Transmission Line Contingency Limit","836 MVA","Secondary of CT (protection metering or indication)","No",""]
[null,"No.3 Bayswater SS to Bayswater PS Transmission Line 15 Minute Limit","836 MVA","Secondary of CT (protection metering or indication)","No",""]
[null,"No.3 Bayswater SS to Bayswater PS Transmission Line 10 Minute Limit","836 MVA","Secondary of CT (protection metering or indication)","No",""]
[null,"No.3 Bayswater SS to Bayswater PS Transmission Line 5 Minute Limit","836 MVA","Secondary of CT (protection metering or indication)","No",""]
[null,"No.4 Bayswater SS to Bayswater PS Transmission Line Normal Limit","836 MVA","Secondary of CT (protection metering or indication)","No",""]
[null,"No.4 Bayswater SS to Bayswater PS Transmission Line Contingency Limit","836 MVA","Secondary of CT (protection metering or indication)","No",""]
[null,"No.4 Bayswater SS to Bayswater PS Transmission Line 15 Minute Limit","836 MVA","Secondary of CT (protection metering or indication)","No",""]
[null,"No.4 Bayswater SS to Bayswater PS Transmission Line 10 Minute Limit","836 MVA","Secondary of CT (protection metering or indication)","No",""]
[null,"No.4 Bayswater SS to Bayswater PS Transmission Line 5 Minute Limit","836 MVA","Secondary of CT (protection metering or indication)","No",""]
[null,"No.7 Wallerawang 330 SS to Wallerawang PS Transmission Line Normal Limit","1097 MVA","Secondary of CT (protection metering or indication)","No",""]
[null,"No.7 Wallerawang 330 SS to Wallerawang PS Transmission Line Contingency Limit","1372 MVA","Secondary of CT (protection metering or indication)","No",""]
[null,"No.7 Wallerawang 330 SS to Wallerawang PS Transmission Line 15 Minute Limit","1372 MVA","Secondary of CT (protection metering or indication)","No",""]
[null,"No.7 Wallerawang 330 SS to Wallerawang PS Transmission Line 10 Minute Limit","1372 MVA","Secondary of CT (protection metering or indication)","No",""]
[null,"No.7 Wallerawang 330 SS to Wallerawang PS Transmission Line 5 Minute Limit","1372 MVA","Secondary of CT (protection metering or indication)","No",""]
[null,"No.8 Wallerawang 330 SS to Wallerawang PS Transmission Line Normal Limit","1429 MVA","Breaker","No",""]
[null,"No.8 Wallerawang 330 SS to Wallerawang PS Transmission Line Contingency Limit","1429 MVA","Breaker","No",""]
[null,"No.8 Wallerawang 330 SS to Wallerawang PS Transmission Line 15 Minute Limit","1429 MVA","Breaker","No",""]
[null,"No.8 Wallerawang 330 SS to Wallerawang PS Transmission Line 10 Minute Limit","1429 MVA","Breaker","No",""]
[null,"No.8 Wallerawang 330 SS to Wallerawang PS Transmission Line 5 Minute Limit","1429 MVA","Breaker","No",""]
[null,"U3 Kangaroo Valley SS to Kangaroo Valley PS Transmission Line Normal Limit","102 MVA","Secondary of CT (protection metering or indication)","No",""]
[null,"U3 Kangaroo Valley SS to Kangaroo Valley PS Transmission Line Contingency Limit","102 MVA","Secondary of CT (protection metering or indication)","No",""]
[null,"U3 Kangaroo Valley SS to Kangaroo Valley PS Transmission Line 15 Minute Limit","102 MVA","Secondary of CT (protection metering or indication)","No",""]
[null,"U3 Kangaroo Valley SS to Kangaroo Valley PS Transmission Line 10 Minute Limit","102 MVA","Secondary of CT (protection metering or indication)","No",""]
[null,"U3 Kangaroo Valley SS to Kangaroo Valley PS Transmission Line 5 Minute Limit","102 MVA","Secondary of CT (protection metering or indication)","No",""]
[null,"U4 Kangaroo Valley SS to Kangaroo Valley PS Transmission Line Normal Limit","102 MVA","Secondary of CT (protection metering or indication)","No",""]
[null,"U4 Kangaroo Valley SS to Kangaroo Valley PS Transmission Line Contingency Limit","102 MVA","Secondary of CT (protection metering or indication)","No",""]
[null,"U4 Kangaroo Valley SS to Kangaroo Valley PS Transmission Line 15 Minute Limit","102 MVA","Secondary of CT (protection metering or indication)","No",""]
[null,"U4 Kangaroo Valley SS to Kangaroo Valley PS Transmission Line 10 Minute Limit","102 MVA","Secondary of CT (protection metering or indication)","No",""]
[null,"U4 Kangaroo Valley SS to Kangaroo Valley PS Transmission Line 5 Minute Limit","102 MVA","Secondary of CT (protection metering or indication)","No",""]
[null,"L1 LTSS to Tumut 3 PS Transmission Line Normal Limit","521 MVA","Overhead transmission line","No",""]
[null,"L1 LTSS to Tumut 3 PS Transmission Line Contingency Limit","768 MVA","Secondary of CT (protection metering or indication)","No",""]
[null,"L1 LTSS to Tumut 3 PS Transmission Line 15 Minute Limit","768 MVA","Secondary of CT (protection metering or indication)","No",""]
[null,"L1 LTSS to Tumut 3 PS Transmission Line 10 Minute Limit","768 MVA","Secondary of CT (protection metering or indication)","No",""]
[null,"L1 LTSS to Tumut 3 PS Transmission Line 5 Minute Limit","768 MVA","Secondary of CT (protection metering or indication)","No",""]
[null,"L3 LTSS to Tumut 3 PS Transmission Line Normal Limit","521 MVA","Overhead transmission line","No",""]
[null,"L3 LTSS to Tumut 3 PS Transmission Line Contingency Limit","768 MVA","Secondary of CT (protection metering or indication)","No",""]
[null,"L3 LTSS to Tumut 3 PS Transmission Line 15 Minute Limit","768 MVA","Secondary of CT (protection metering or indication)","No",""]
[null,"L3 LTSS to Tumut 3 PS Transmission Line 10 Minute Limit","768 MVA","Secondary of CT (protection metering or indication)","No",""]
[null,"L3 LTSS to Tumut 3 PS Transmission Line 5 Minute Limit","768 MVA","Secondary of CT (protection metering or indication)","No",""]
[null,"L5 LTSS to Tumut 3 PS Transmission Line Normal Limit","521 MVA","Overhead transmission line","No",""]
[null,"L5 LTSS to Tumut 3 PS Transmission Line Contingency Limit","768 MVA","Secondary of CT (protection metering or indication)","No",""]
[null,"L5 LTSS to Tumut 3 PS Transmission Line 15 Minute Limit","768 MVA","Secondary of CT (protection metering or indication)","No",""]
[null,"L5 LTSS to Tumut 3 PS Transmission Line 10 Minute Limit","768 MVA","Secondary of CT (protection metering or indication)","No",""]
[null,"L5 LTSS to Tumut 3 PS Transmission Line 5 Minute Limit","768 MVA","Secondary of CT (protection metering or indication)","No",""]
[null,"M1 Murray to Murray 1 PS Transmission Line Normal Limit","274 MVA","Secondary of CT (protection metering or indication)","No",""]
[null,"M1 Murray to Murray 1 PS Transmission Line Contingency Limit","285 MVA","Secondary of CT (protection metering or indication)","No",""]
[null,"M1 Murray to Murray 1 PS Transmission Line 15 Minute Limit","285 MVA","Secondary of CT (protection metering or indication)","No",""]
[null,"M1 Murray to Murray 1 PS Transmission Line 10 Minute Limit","285 MVA","Secondary of CT (protection metering or indication)","No",""]
[null,"M1 Murray to Murray 1 PS Transmission Line 5 Minute Limit","285 MVA","Secondary of CT (protection metering or indication)","No",""]
[null,"M3 Murray to Murray 1 PS Transmission Line Normal Limit","274 MVA","Secondary of CT (protection metering or indication)","No",""]
[null,"M3 Murray to Murray 1 PS Transmission Line Contingency Limit","285 MVA","Secondary of CT (protection metering or indication)","No",""]
[null,"M3 Murray to Murray 1 PS Transmission Line 15 Minute Limit","285 MVA","Secondary of CT (protection metering or indication)","No",""]
[null,"M3 Murray to Murray 1 PS Transmission Line 10 Minute Limit","285 MVA","Secondary of CT (protection metering or indication)","No",""]
[null,"M3 Murray to Murray 1 PS Transmission Line 5 Minute Limit","285 MVA","Secondary of CT (protection metering or indication)","No",""]
[null,"M5 Murray to Murray 1 PS Transmission Line Normal Limit","274 MVA","Secondary of CT (protection metering or indication)","No",""]
[null,"M5 Murray to Murray 1 PS Transmission Line Contingency Limit","274 MVA","Secondary of CT (protection metering or indication)","No",""]
[null,"M5 Murray to Murray 1 PS Transmission Line 15 Minute Limit","274 MVA","Secondary of CT (protection metering or indication)","No",""]
[null,"M5 Murray to Murray 1 PS Transmission Line 10 Minute Limit","274 MVA","Secondary of CT (protection metering or indication)","No",""]
[null,"M5 Murray to Murray 1 PS Transmission Line 5 Minute Limit","274 MVA","Secondary of CT (protection metering or indication)","No",""]
[null,"M7 Murray to Murray 1 PS Transmission Line Normal Limit","274 MVA","Secondary of CT (protection metering or indication)","No",""]
[null,"M7 Murray to Murray 1 PS Transmission Line Contingency Limit","274 MVA","Secondary of CT (protection metering or indication)","No",""]
[null,"M7 Murray to Murray 1 PS Transmission Line 15 Minute Limit","274 MVA","Secondary of CT (protection metering or indication)","No",""]
[null,"M7 Murray to Murray 1 PS Transmission Line 10 Minute Limit","274 MVA","Secondary of CT (protection metering or indication)","No",""]
[null,"M7 Murray to Murray 1 PS Transmission Line 5 Minute Limit","274 MVA","Secondary of CT (protection metering or indication)","No",""]
[null,"M9 Murray to Murray 1 PS Transmission Line Normal Limit","274 MVA","Secondary of CT (protection metering or indication)","No",""]
[null,"M9 Murray to Murray 1 PS Transmission Line Contingency Limit","274 MVA","Secondary of CT (protection metering or indication)","No",""]
[null,"M9 Murray to Murray 1 PS Transmission Line 15 Minute Limit","274 MVA","Secondary of CT (protection metering or indication)","No",""]
[null,"M9 Murray to Murray 1 PS Transmission Line 10 Minute Limit","274 MVA","Secondary of CT (protection metering or indication)","No",""]
[null,"M9 Murray to Murray 1 PS Transmission Line 5 Minute Limit","274 MVA","Secondary of CT (protection metering or indication)","No",""]
[null,"M11 Murray to Murray 2 PS Transmission Line Normal Limit","343 MVA","Primary of CT","No",""]
[null,"M11 Murray to Murray 2 PS Transmission Line Contingency Limit","343 MVA","Primary of CT","No",""]
[null,"M11 Murray to Murray 2 PS Transmission Line 15 Minute Limit","343 MVA","Primary of CT","No",""]
[null,"M11 Murray to Murray 2 PS Transmission Line 10 Minute Limit","343 MVA","Primary of CT","No",""]
[null,"M11 Murray to Murray 2 PS Transmission Line 5 Minute Limit","343 MVA","Primary of CT","No",""]
[null,"M13 Murray to Murray 2 PS Transmission Line Normal Limit","343 MVA","Primary of CT","No",""]
[null,"M13 Murray to Murray 2 PS Transmission Line Contingency Limit","343 MVA","Primary of CT","No",""]
[null,"M13 Murray to Murray 2 PS Transmission Line 15 Minute Limit","343 MVA","Primary of CT","No",""]
[null,"M13 Murray to Murray 2 PS Transmission Line 10 Minute Limit","343 MVA","Primary of CT","No",""]
[null,"M13 Murray to Murray 2 PS Transmission Line 5 Minute Limit","343 MVA","Primary of CT","No",""]
[null,"U1 UTSS to Tumut 1 PS Transmission Line Normal Limit","206 MVA","Secondary of CT (protection metering or indication)","No",""]
[null,"U1 UTSS to Tumut 1 PS Transmission Line Contingency Limit","214 MVA","Secondary of CT (protection metering or indication)","No",""]
[null,"U1 UTSS to Tumut 1 PS Transmission Line 15 Minute Limit","214 MVA","Secondary of CT (protection metering or indication)","No",""]
[null,"U1 UTSS to Tumut 1 PS Transmission Line 10 Minute Limit","214 MVA","Secondary of CT (protection metering or indication)","No",""]
[null,"U1 UTSS to Tumut 1 PS Transmission Line 5 Minute Limit","214 MVA","Secondary of CT (protection metering or indication)","No",""]
[null,"U3 UTSS to Tumut 1 PS Transmission Line Normal Limit","206 MVA","Secondary of CT (protection metering or indication)","No",""]
[null,"U3 UTSS to Tumut 1 PS Transmission Line Contingency Limit","214 MVA","Secondary of CT (protection metering or indication)","No",""]
[null,"U3 UTSS to Tumut 1 PS Transmission Line 15 Minute Limit","214 MVA","Secondary of CT (protection metering or indication)","No",""]
[null,"U3 UTSS to Tumut 1 PS Transmission Line 10 Minute Limit","214 MVA","Secondary of CT (protection metering or indication)","No",""]
[null,"U3 UTSS to Tumut 1 PS Transmission Line 5 Minute Limit","214 MVA","Secondary of CT (protection metering or indication)","No",""]
[null,"U5 UTSS to Tumut 2 PS Transmission Line Normal Limit","206 MVA","Secondary of CT (protection metering or indication)","No",""]
[null,"U5 UTSS to Tumut 2 PS Transmission Line Contingency Limit","214 MVA","Secondary of CT (protection metering or indication)","No",""]
[null,"U5 UTSS to Tumut 2 PS Transmission Line 15 Minute Limit","214 MVA","Secondary of CT (protection metering or indication)","No",""]
[null,"U5 UTSS to Tumut 2 PS Transmission Line 10 Minute Limit","214 MVA","Secondary of CT (protection metering or indication)","No",""]
[null,"U5 UTSS to Tumut 2 PS Transmission Line 5 Minute Limit","214 MVA","Secondary of CT (protection metering or indication)","No",""]
[null,"U7 UTSS to Tumut 2 PS Transmission Line Normal Limit","206 MVA","Secondary of CT (protection metering or indication)","No",""]
[null,"U7 UTSS to Tumut 2 PS Transmission Line Contingency Limit","214 MVA","Secondary of CT (protection metering or indication)","No",""]
[null,"U7 UTSS to Tumut 2 PS Transmission Line 15 Minute Limit","214 MVA","Secondary of CT (protection metering or indication)","No",""]
[null,"U7 UTSS to Tumut 2 PS Transmission Line 10 Minute Limit","214 MVA","Secondary of CT (protection metering or indication)","No",""]
[null,"U7 UTSS to Tumut 2 PS Transmission Line 5 Minute Limit","214 MVA","Secondary of CT (protection metering or indication)","No",""]
[null,"BBS-BATS Berrybank to Ballarat Transmission Line Normal Limit","686 MVA","Secondary of CT (protection metering or indication)","No",""]
[null,"BBS-BATS Berrybank to Ballarat Transmission Line Contingency Limit","686 MVA","Secondary of CT (protection metering or indication)","No",""]
[null,"BBS-BATS Berrybank to Ballarat Transmission Line 15 Minute Limit","686 MVA","Secondary of CT (protection metering or indication)","No",""]
[null,"BBS-BATS Berrybank to Ballarat Transmission Line 10 Minute Limit","686 MVA","Secondary of CT (protection metering or indication)","No",""]
[null,"BBS-BATS Berrybank to Ballarat Transmission Line 5 Minute Limit","686 MVA","Secondary of CT (protection metering or indication)","No",""]
[null,"BBS-BBW Berrybank to Berrybank Wind Farm Transmission Line Normal Limit","274 MVA","Secondary of CT (protection metering or indication)","No",""]
[null,"BBS-BBW Berrybank to Berrybank Wind Farm Transmission Line Contingency Limit","274 MVA","Secondary of CT (protection metering or indication)","No",""]
[null,"BBS-BBW Berrybank to Berrybank Wind Farm Transmission Line 15 Minute Limit","274 MVA","Secondary of CT (protection metering or indication)","No",""]
[null,"BBS-BBW Berrybank to Berrybank Wind Farm Transmission Line 10 Minute Limit","274 MVA","Secondary of CT (protection metering or indication)","No",""]
[null,"BBS-BBW Berrybank to Berrybank Wind Farm Line 5 Minute Limit","274 MVA","Secondary of CT (protection metering or indication)","No",""]
[null,"BBS-TGTS Berrybank to Terang Transmission Line Normal Limit","686 MVA","Secondary of CT (protection metering or indication)","No",""]
[null,"BBS-TGTS Berrybank to Terang Transmission Line Contingency Limit","686 MVA","Secondary of CT (protection metering or indication)","No",""]
[null,"BBS-TGTS Berrybank to Terang Transmission Line 15 Minute Limit","686 MVA","Secondary of CT (protection metering or indication)","No",""]
[null,"BBS-TGTS Berrybank to Terang Transmission Line 10 Minute Limit","686 MVA","Secondary of CT (protection metering or indication)","No",""]
[null,"BBS-TGTS Berrybank to Terang Transmission Line 5 Minute Limit","686 MVA","Secondary of CT (protection metering or indication)","No",""]
[null,"GTS2 Geelong to Deer Park Transmission Line Normal Limit","632 MVA","Secondary of CT (protection metering or indication)","No",""]
[null,"GTS2 Geelong to Deer Park Transmission Line Contingency Limit","632 MVA","Secondary of CT (protection metering or indication)","No",""]
[null,"GTS2 Geelong to Deer Park Transmission Line 15 Minute Limit","632 MVA","Secondary of CT (protection metering or indication)","No",""]
[null,"GTS2 Geelong to Deer Park Transmission Line 10 Minute Limit","632 MVA","Secondary of CT (protection metering or indication)","No",""]
[null,"GTS2 Geelong to Deer Park Transmission Line 5 Minute Limit","632 MVA","Secondary of CT (protection metering or indication)","No",""]
[null,"KTS2 Keilor to Deer Park Transmission Line Normal Limit","632 MVA","Secondary of CT (protection metering or indication)","No",""]
[null,"KTS2 Keilor to Deer Park Transmission Line Contingency Limit","632 MVA","Secondary of CT (protection metering or indication)","No",""]
[null,"KTS2 Keilor to Deer Park Transmission Line 15 Minute Limit","632 MVA","Secondary of CT (protection metering or indication)","No",""]
[null,"KTS2 Keilor to Deer Park Transmission Line 10 Minute Limit","632 MVA","Secondary of CT (protection metering or indication)","No",""]
[null,"KTS2 Keilor to Deer Park Transmission Line 5 Minute Limit","632 MVA","Secondary of CT (protection metering or indication)","No",""]
[null,"MRTS Kiamal to Murra Warra Transmission Line Normal Limit","480 MVA","High voltage connections","No",""]
[null,"MRTS Kiamal to Deer Park Transmission Line Contingency Limit","480 MVA","High voltage connections","No",""]
[null,"MRTS Kiamal to Deer Park Transmission Line 15 Minute Limit","480 MVA","High voltage connections","No",""]
[null,"MRTS Kiamal to Deer Park Transmission Line 10 Minute Limit","480 MVA","High voltage connections","No",""]
[null,"MRTS Kiamal to Deer Park Transmission Line 5 Minute Limit","480 MVA","High voltage connections","No",""]
[null,"RCTS Kiamal to Red Cliffs Transmission Line Normal Limit","480 MVA","High voltage connections","No",""]
[null,"RCTS Kiamal to Red Cliffs Transmission Line Contingency Limit","480 MVA","High voltage connections","No",""]
[null,"RCTS Kiamal to Red Cliffs Transmission Line 15 Minute Limit","480 MVA","High voltage connections","No",""]
[null,"RCTS Kiamal to Red Cliffs Transmission Line 10 Minute Limit","480 MVA","High voltage connections","No",""]
[null,"RCTS Kiamal to Red Cliffs Transmission Line 5 Minute Limit","480 MVA","High voltage connections","No",""]
[null,"X2 Buronga to Broken Hill Transmission Line Normal Limit","252 MVA","Secondary of CT (protection metering or indication)","No",""]
[null,"X2 Buronga to Broken Hill Transmission Line Contingency Limit","252 MVA","Secondary of CT (protection metering or indication)","No",""]
[null,"X2 Buronga to Broken Hill Transmission Line 15 Minute Limit","252 MVA","Secondary of CT (protection metering or indication)","No",""]
[null,"X2 Buronga to Broken Hill Transmission Line 10 Minute Limit","252 MVA","Secondary of CT (protection metering or indication)","No",""]
[null,"X2 Buronga to Broken Hill Transmission Line 5 Minute Limit","252 MVA","Secondary of CT (protection metering or indication)","No",""]
[null,"X3 Buronga to Balranald Transmission Line Normal Limit","419 MVA","Overhead transmission line","No",""]
[null,"X3 Buronga to Balranald Transmission Line Contingency Limit","461 MVA","Overhead transmission line","No",""]
[null,"X3 Buronga to Balranald Transmission Line 15 Minute Limit","470 MVA","Overhead transmission line","No",""]
[null,"X3 Buronga to Balranald Transmission Line 10 Minute Limit","476 MVA","Primary of CT","No",""]
[null,"X3 Buronga to Balranald Transmission Line 5 Minute Limit","476 MVA","Primary of CT","No",""]
[null,"X4 Broken Hill to Broken Hill Mines Transmission Line Normal Limit","60 MVA","Secondary of CT (protection metering or indication)","No",""]
[null,"X4 Broken Hill to Broken Hill Mines Transmission Line Contingency Limit","60 MVA","Secondary of CT (protection metering or indication)","No",""]
[null,"X4 Broken Hill to Broken Hill Mines Transmission Line 15 Minute Limit","60 MVA","Secondary of CT (protection metering or indication)","No",""]
[null,"X4 Broken Hill to Broken Hill Mines Transmission Line 10 Minute Limit","60 MVA","Secondary of CT (protection metering or indication)","No",""]
[null,"X4 Broken Hill to Broken Hill Mines Transmission Line 5 Minute Limit","60 MVA","Secondary of CT (protection metering or indication)","No",""]
[null,"X5 Darlington Point to Balranald Transmission Line Normal Limit","381 MVA","Secondary of CT (protection metering or indication)","No",""]
[null,"X5 Darlington Point to Balranald Transmission Line Contingency Limit","461 MVA","Overhead transmission line","No",""]
[null,"X5 Darlington Point to Balranald Transmission Line 15 Minute Limit","476 MVA","Primary of CT","No",""]
[null,"X5 Darlington Point to Balranald Transmission Line 10 Minute Limit","476 MVA","Primary of CT","No",""]
[null,"X5 Darlington Point to Balranald Transmission Line 5 Minute Limit","476 MVA","Primary of CT","No",""]
[null,"X6 Broken Hill to Silverton Wind Farm Transmission Line Normal Limit","229 MVA","Secondary of CT (protection metering or indication)","No",""]
[null,"X6 Broken Hill to Silverton Wind Farm Transmission Line Contingency Limit","229 MVA","Secondary of CT (protection metering or indication)","No",""]
[null,"X6 Broken Hill to Silverton Wind Farm Transmission Line 15 Minute Limit","229 MVA","Secondary of CT (protection metering or indication)","No",""]
[null,"X6 Broken Hill to Silverton Wind Farm Transmission Line 10 Minute Limit","229 MVA","Secondary of CT (protection metering or indication)","No",""]
[null,"X6 Broken Hill to Silverton Wind Farm Transmission Line 5 Minute Limit","229 MVA","Secondary of CT (protection metering or indication)","No",""]
[null,"X7 Balranald to Sunraysia Transmission Line Normal Limit","274MVA","Secondary of CT (protection metering or indication)","No",""]
[null,"X7 Balranald to Sunraysia Transmission Line Contingency Limit","274MVA","Secondary of CT (protection metering or indication)","No",""]
[null,"X7 Balranald to Sunraysia Transmission Line 15 Minute Limit","274MVA","Secondary of CT (protection metering or indication)","No",""]
[null,"X7 Balranald to Sunraysia Transmission Line 10 Minute Limit","274MVA","Secondary of CT (protection metering or indication)","No",""]
[null,"X7 Balranald to Sunraysia Transmission Line 5 Minute Limit","274MVA","Secondary of CT (protection metering or indication)","No",""]
[null,"X8 Balranald to Limondale Transmission Line Normal Limit","274MVA","Secondary of CT (protection metering or indication)","No",""]
[null,"X8 Balranald to Limondale Transmission Line Contingency Limit","274MVA","Secondary of CT (protection metering or indication)","No",""]
[null,"X8 Balranald to Limondale Transmission Line 15 Minute Limit","274MVA","Secondary of CT (protection metering or indication)","No",""]
[null,"X8 Balranald to Limondale Transmission Line 10 Minute Limit","274MVA","Secondary of CT (protection metering or indication)","No",""]
[null,"X8 Balranald to Limondale Transmission Line 5 Minute Limit","274MVA","Secondary of CT (protection metering or indication)","No",""]
[null,"OX1 Buronga to Red Cliffs Transmission Line Normal Limit","419 MVA","Overhead transmission line","No",""]
[null,"OX1 Buronga to Red Cliffs Transmission Line Contingency Limit","427 MVA","High voltage connections","No",""]
[null,"OX1 Buronga to Red Cliffs Transmission Line 15 Minute Limit","427 MVA","High voltage connections","No",""]
[null,"OX1 Buronga to Red Cliffs Transmission Line 10 Minute Limit","427 MVA","High voltage connections","No",""]
[null,"OX1 Buronga to Red Cliffs Transmission Line 5 Minute Limit","427 MVA","High voltage connections","No",""]
[null,"94L Tuggerah to Berkeley Vale Transmission Line Normal Limit","205 MVA","Overhead transmission line","No",""]
[null,"94L Tuggerah to Berkeley Vale Transmission Line Contingency Limit","255 MVA","Overhead transmission line","No",""]
[null,"94L Tuggerah to Berkeley Vale Transmission Line 15 Minute Limit","256 MVA","High voltage connections","No",""]
[null,"94L Tuggerah to Berkeley Vale Transmission Line 10 Minute Limit","256 MVA","High voltage connections","No",""]
[null,"94L Tuggerah to Berkeley Vale Transmission Line 5 Minute Limit","256 MVA","High voltage connections","No",""]
[null,"950 Newcastle to Jesmond (EA) Transmission Line Normal Limit","153 MVA","Overhead transmission line","No",""]
[null,"950 Newcastle to Jesmond (EA) Transmission Line Contingency Limit","153 MVA","Overhead transmission line","No",""]
[null,"950 Newcastle to Jesmond (EA) Transmission Line 15 Minute Limit","295 MVA","Secondary of CT (protection metering or indication)","No",""]
[null,"950 Newcastle to Jesmond (EA) Transmission Line 10 Minute Limit","295 MVA","Secondary of CT (protection metering or indication)","No",""]
[null,"950 Newcastle to Jesmond (EA) Transmission Line 5 Minute Limit","295 MVA","Secondary of CT (protection metering or indication)","No",""]
[null,"952 Newcastle to Rathmines Transmission Line Normal Limit","175 MVA","Overhead transmission line","No",""]
[null,"952 Newcastle to Rathmines Transmission Line Contingency Limit","175 MVA","Overhead transmission line","No",""]
[null,"952 Newcastle to Rathmines Transmission Line 15 Minute Limit","202 MVA","Secondary of CT (protection metering or indication)","No",""]
[null,"952 Newcastle to Rathmines Transmission Line 10 Minute Limit","202 MVA","Secondary of CT (protection metering or indication)","No",""]
[null,"952 Newcastle to Rathmines Transmission Line 5 Minute Limit","202 MVA","Secondary of CT (protection metering or indication)","No",""]
[null,"954 Tuggerah to Berkeley Vale Transmission Line Normal Limit","225 MVA","Overhead transmission line","No",""]
[null,"954 Tuggerah to Berkeley Vale Transmission Line Contingency Limit","240 MVA","Overhead transmission line","No",""]
[null,"954 Tuggerah to Berkeley Vale Transmission Line 15 Minute Limit","243 MVA","High voltage connections","No",""]
[null,"954 Tuggerah to Berkeley Vale Transmission Line 10 Minute Limit","243 MVA","High voltage connections","No",""]
[null,"954 Tuggerah to Berkeley Vale Transmission Line 5 Minute Limit","243 MVA","High voltage connections","No",""]
[null,"957 Vales Point to Ourimbah tee Morisset Transmission Line Normal Limit","180 MVA","Overhead transmission line","No",""]
[null,"957 Vales Point to Ourimbah tee Morisset Transmission Line Contingency Limit","180 MVA","Overhead transmission line","No",""]
[null,"957 Vales Point to Ourimbah tee Morisset Transmission Line 15 Minute Limit","201 MVA","Disconnectors","No",""]
[null,"957 Vales Point to Ourimbah tee Morisset Transmission Line 10 Minute Limit","201 MVA","Disconnectors","No",""]
[null,"957 Vales Point to Ourimbah tee Morisset Transmission Line 5 Minute Limit","201 MVA","Disconnectors","No",""]
[null,"958 Tuggerah to Gosford Transmission Line Normal Limit","205 MVA","Overhead transmission line","No",""]
[null,"958 Tuggerah to Gosford Transmission Line Contingency Limit","240 MVA","Overhead transmission line","No",""]
[null,"958 Tuggerah to Gosford Transmission Line 15 Minute Limit","300 MVA","Wave traps","No",""]
[null,"958 Tuggerah to Gosford Transmission Line 10 Minute Limit","309 MVA","Wave traps","No",""]
[null,"958 Tuggerah to Gosford Transmission Line 5 Minute Limit","314 MVA","Wave traps","No",""]
[null,"95A Newcastle to Awaba Transmission Line Normal Limit","155 MVA","Overhead transmission line","No",""]
[null,"95A Newcastle to Awaba Transmission Line Contingency Limit","155 MVA","Overhead transmission line","No",""]
[null,"95A Newcastle to Awaba Transmission Line 15 Minute Limit","302 MVA","Secondary of CT (protection metering or indication)","No",""]
[null,"95A Newcastle to Awaba Transmission Line 10 Minute Limit","302 MVA","Secondary of CT (protection metering or indication)","No",""]
[null,"95A Newcastle to Awaba Transmission Line 5 Minute Limit","302 MVA","Secondary of CT (protection metering or indication)","No",""]
[null,"95B Muswellbrook to Barnard River Transmission Line Normal Limit","55 MVA","Secondary of CT (protection metering or indication)","No",""]
[null,"95B Muswellbrook to Barnard River Transmission Line Contingency Limit","55 MVA","Secondary of CT (protection metering or indication)","No",""]
[null,"95B Muswellbrook to Barnard River Transmission Line 15 Minute Limit","55 MVA","Secondary of CT (protection metering or indication)","No",""]
[null,"95B Muswellbrook to Barnard River Transmission Line 10 Minute Limit","55 MVA","Secondary of CT (protection metering or indication)","No",""]
[null,"95B Muswellbrook to Barnard River Transmission Line 5 Minute Limit","55 MVA","Secondary of CT (protection metering or indication)","No",""]
[null,"95C Tuggerah to Ourimbah Transmission Line Normal Limit","205 MVA","Overhead transmission line","No",""]
[null,"95C Tuggerah to Ourimbah Transmission Line Contingency Limit","240 MVA","Overhead transmission line","No",""]
[null,"95C Tuggerah to Ourimbah Transmission Line 15 Minute Limit","286 MVA","High voltage connections","No",""]
[null,"95C Tuggerah to Ourimbah Transmission Line 10 Minute Limit","286 MVA","High voltage connections","No",""]
[null,"95C Tuggerah to Ourimbah Transmission Line 5 Minute Limit","286 MVA","High voltage connections","No",""]
[null,"95E Gosford to Somersby Transmission Line Normal Limit","130 MVA","Overhead transmission line","No",""]
[null,"95E Gosford to Somersby Transmission Line Contingency Limit","140 MVA","Overhead transmission line","No",""]
[null,"95F Muswellbrook to Mitchell Line Transmission Line Normal Limit","175 MVA","Overhead transmission line","No",""]
[null,"95G Awaba to Rathmines Transmission Line Normal Limit","154 MVA","Overhead transmission line","No",""]
[null,"95H Muswellbrook to Muswellbrook Transmission Line Normal Limit","256 MVA","High voltage connections","No",""]
[null,"95H Muswellbrook to Muswellbrook Transmission Line Contingency Limit","256 MVA","High voltage connections","No",""]
[null,"95H Muswellbrook to Muswellbrook Transmission Line 15 Minute Limit","256 MVA","High voltage connections","No",""]
[null,"95H Muswellbrook to Muswellbrook Transmission Line 10 Minute Limit","256 MVA","High voltage connections","No",""]
[null,"95H Muswellbrook to Muswellbrook Transmission Line 5 Minute Limit","256 MVA","High voltage connections","No",""]
[null,"95M Muswellbrook to Mitchell Line Transmission Line Normal Limit","240 MVA","Overhead transmission line","No",""]
[null,"95M Muswellbrook to Mitchell Line Transmission Line Contingency Limit","240 MVA","Overhead transmission line","No",""]
[null,"95M Muswellbrook to Mitchell Line Transmission Line 15 Minute Limit","285 MVA","High voltage connections","No",""]
[null,"95M Muswellbrook to Mitchell Line Transmission Line 10 Minute Limit","285 MVA","High voltage connections","No",""]
[null,"95M Muswellbrook to Mitchell Line Transmission Line 5 Minute Limit","285 MVA","High voltage connections","No",""]
[null,"95T Vales Point to Lk Munmorah Transmission Line Normal Limit","180 MVA","Overhead transmission line","No",""]
[null,"95T Vales Point to Lk Munmorah Transmission Line Contingency Limit","180 MVA","Overhead transmission line","No",""]
[null,"95T Vales Point to Lk Munmorah Transmission Line 15 Minute Limit","201 MVA","Disconnector","No",""]
[null,"95T Vales Point to Lk Munmorah Transmission Line 10 Minute Limit","201 MVA","Disconnector","No",""]
[null,"95T Vales Point to Lk Munmorah Transmission Line 5 Minute Limit","219 MVA","Disconnector","No",""]
[null,"95U Muswellbrook to Singleton Transmission Line Normal Limit","240 MVA","Overhead transmission line","No",""]
[null,"95U Muswellbrook to Singleton Transmission Line Contingency Limit","240 MVA","Overhead transmission line","No",""]
[null,"95U Muswellbrook to Singleton Transmission Line 15 Minute Limit","256 MVA","High voltage connections","No",""]
[null,"95U Muswellbrook to Singleton Transmission Line 10 Minute Limit","256 MVA","High voltage connections","No",""]
[null,"95U Muswellbrook to Singleton Transmission Line 5 Minute Limit","256 MVA","High voltage connections","No",""]
[null,"960 Newcastle to Charlestown Transmission Line Normal Limit","457 MVA","Overhead transmission line","No",""]
[null,"960 Newcastle to Charlestown Transmission Line Contingency Limit","457 MVA","Overhead transmission line","No",""]
[null,"960 Newcastle to Charlestown Transmission Line 15 Minute Limit","504 MVA","Secondary of CT (protection metering or indication)","No",""]
[null,"960 Newcastle to Charlestown Transmission Line 10 Minute Limit","504 MVA","Secondary of CT (protection metering or indication)","No",""]
[null,"960 Newcastle to Charlestown Transmission Line 5 Minute Limit","504 MVA","Secondary of CT (protection metering or indication)","No",""]
[null,"961 Newcastle to Charlestown Transmission Line Normal Limit","457 MVA","Overhead transmission line","No",""]
[null,"961 Newcastle to Charlestown Transmission Line Contingency Limit","457 MVA","Overhead transmission line","No",""]
[null,"961 Newcastle to Charlestown Transmission Line 15 Minute Limit","504 MVA","Secondary of CT (protection metering or indication)","No",""]
[null,"961 Newcastle to Charlestown Transmission Line 10 Minute Limit","504 MVA","Secondary of CT (protection metering or indication)","No",""]
[null,"961 Newcastle to Charlestown Transmission Line 5 Minute Limit","504 MVA","Secondary of CT (protection metering or indication)","No",""]
[null,"963 Tomago 330 to Taree Tee Hawks Nest Transmission Line Normal Limit","128 MVA","Overhead transmission line","No",""]
[null,"963 Tomago 330 to Taree Tee Hawks Nest Transmission Line Contingency Limit","128 MVA","Overhead transmission line","No",""]
[null,"963 Tomago 330 to Taree Tee Hawks Nest Transmission Line 15 Minute Limit","153 MVA","Protection trip setting","No",""]
[null,"963 Tomago 330 to Taree Tee Hawks Nest Transmission Line 10 Minute Limit","153 MVA","Protection trip setting","No",""]
[null,"963 Tomago 330 to Taree Tee Hawks Nest Transmission Line 5 Minute Limit","153 MVA","Protection trip setting","No",""]
[null,"963 Taree to Tomago Tee Haaws Nest Transmission Line Normal Limit","122 MVA","Overhead transmission line","No",""]
[null,"963 Taree to Tomago Tee Haaws Nest Transmission Line Contingency Limit","136 MVA","Overhead transmission line","No",""]
[null,"963 Taree to Tomago Tee Haaws Nest Transmission Line 15 Minute Limit","136 MVA","Overhead transmission line","No",""]
[null,"963 Taree to Tomago Tee Haaws Nest Transmission Line 10 Minute Limit","136 MVA","Overhead transmission line","No",""]
[null,"963 Taree to Tomago Tee Haaws Nest Transmission Line 5 Minute Limit","145 MVA","Overhead transmission line","No",""]
[null,"964 Pt Macquarie to Taree Transmission Line Normal Limit","137 MVA","Overhead transmission line","No",""]
[null,"964 Pt Macquarie to Taree Transmission Line Contingency Limit","161 MVA","Overhead transmission line","No",""]
[null,"964 Pt Macquarie to Taree Transmission Line 15 Minute Limit","161 MVA","Overhead transmission line","No",""]
[null,"964 Pt Macquarie to Taree Transmission Line 10 Minute Limit","168 MVA","Overhead transmission line","No",""]
[null,"964 Pt Macquarie to Taree Transmission Line 5 Minute Limit","183 MVA","Overhead transmission line","No",""]
[null,"965 Armidale to Kempsey Transmission Line Normal Limit","114 MVA","Overhead transmission line","No",""]
[null,"965 Armidale to Kempsey Transmission Line Contingency Limit","129 MVA","Overhead transmission line","No",""]
[null,"965 Armidale to Kempsey Transmission Line 15 Minute Limit","133 MVA","Overhead transmission line","No",""]
[null,"965 Armidale to Kempsey Transmission Line 10 Minute Limit","134 MVA","Overhead transmission line","No",""]
[null,"965 Armidale to Kempsey Transmission Line 5 Minute Limit","142 MVA","Overhead transmission line","No",""]
[null,"966 Armidale to Koolkhan tee Metz Solar Farm Transmission Line Normal Limit","105 MVA","Overhead transmission line","No",""]
[null,"966 Armidale to Koolkhan tee Metz Solar Farm Transmission Line Contingency Limit","121 MVA","Overhead transmission line","No",""]
[null,"966 Armidale to Koolkhan tee Metz Solar Farm Transmission Line 15 Minute Limit","127 MVA","Overhead transmission line","No",""]
[null,"966 Armidale to Koolkhan tee Metz Solar Farm Transmission Line 10 Minute Limit","132 MVA","Overhead transmission line","No",""]
[null,"966 Armidale to Koolkhan tee Metz Solar Farm Transmission Line 5 Minute Limit","143 MVA","Overhead transmission line","No",""]
[null,"967 Lismore 330 to Koolkhan Transmission Line Normal Limit","122 MVA","Overhead transmission line","No",""]
[null,"967 Lismore 330 to Koolkhan Transmission Line Contingency Limit","136 MVA","Overhead transmission line","No",""]
[null,"967 Lismore 330 to Koolkhan Transmission Line 15 Minute Limit","136 MVA","Overhead transmission line","No",""]
[null,"967 Lismore 330 to Koolkhan Transmission Line 10 Minute Limit","136 MVA","Overhead transmission line","No",""]
[null,"967 Lismore 330 to Koolkhan Transmission Line 5 Minute Limit","145 MVA","Overhead transmission line","No",""]
[null,"968 Tamworth 330 to Narrabri Transmission Line Normal Limit","122 MVA","Overhead transmission line","No",""]
[null,"968 Tamworth 330 to Narrabri Transmission Line Contingency Limit","136 MVA","Overhead transmission line","No",""]
[null,"968 Tamworth 330 to Narrabri Transmission Line 15 Minute Limit","136 MVA","Overhead transmission line","No",""]
[null,"968 Tamworth 330 to Narrabri Transmission Line 10 Minute Limit","136 MVA","Overhead transmission line","No",""]
[null,"968 Tamworth 330 to Narrabri Transmission Line 5 Minute Limit","142 MVA","Protection trip setting","No",""]
[null,"968 Narrabri 330 to Tamworth Transmission Line Normal Limit","122 MVA","Overhead transmission line","No",""]
[null,"968 Narrabri 330 to Tamworth Transmission Line Contingency Limit","125 MVA","Protection trip setting","No",""]
[null,"968 Narrabri 330 to Tamworth Transmission Line 15 Minute Limit","125 MVA","Protection trip setting","No",""]
[null,"968 Narrabri 330 to Tamworth Transmission Line 10 Minute Limit","125 MVA","Protection trip setting","No",""]
[null,"968 Narrabri 330 to Tamworth Transmission Line 5 Minute Limit","125 MVA","Protection trip setting","No",""]
[null,"969 Tamworth 330 to Gunnedah Transmission Line Normal Limit","73 MVA","Overhead transmission line","No",""]
[null,"969 Tamworth 330 to Gunnedah Transmission Line Contingency Limit","82 MVA","Overhead transmission line","No",""]
[null,"969 Tamworth 330 to Gunnedah Transmission Line 15 Minute Limit","82 MVA","Overhead transmission line","No",""]
[null,"969 Tamworth 330 to Gunnedah Transmission Line 10 Minute Limit","86 MVA","Overhead transmission line","No",""]
[null,"969 Tamworth 330 to Gunnedah Transmission Line 5 Minute Limit","91 MVA","Overhead transmission line","No",""]
[null,"96A Newcastle to Kurri Transmission Line Normal Limit","290 MVA","Overhead transmission line","No",""]
[null,"96A Newcastle to Kurri Transmission Line Contingency Limit","290 MVA","Overhead transmission line","No",""]
[null,"96A Newcastle to Kurri Transmission Line 15 Minute Limit","343 MVA","Secondary of CT (protection metering or indication)","No",""]
[null,"96A Newcastle to Kurri Transmission Line 10 Minute Limit","343 MVA","Secondary of CT (protection metering or indication)","No",""]
[null,"96A Newcastle to Kurri Transmission Line 5 Minute Limit","343 MVA","Secondary of CT (protection metering or indication)","No",""]
[null,"96B Newcastle to Capral Transmission Line Normal Limit","290 MVA","Overhead transmission line","No",""]
[null,"96B Newcastle to Capral Transmission Line Contingency Limit","290 MVA","Overhead transmission line","No",""]
[null,"96B Newcastle to Capral Transmission Line 15 Minute Limit","346 MVA","Secondary of CT (protection metering or indication)","No",""]
[null,"96B Newcastle to Capral Transmission Line 10 Minute Limit","346 MVA","Secondary of CT (protection metering or indication)","No",""]
[null,"96B Newcastle to Capral Transmission Line 5 Minute Limit","346 MVA","Secondary of CT (protection metering or indication)","No",""]
[null,"96C/1 Armidale to Coffs Harbour Transmission Line Normal Limit","136 MVA","Overhead transmission line","No",""]
[null,"96C/1 Armidale to Coffs Harbour Transmission Line Contingency Limit","158 MVA","Overhead transmission line","No",""]
[null,"96C/1 Armidale to Coffs Harbour Transmission Line 15 Minute Limit","159 MVA","Overhead transmission line","No",""]
[null,"96C/1 Armidale to Coffs Harbour Transmission Line 10 Minute Limit","161 MVA","Overhead transmission line","No",""]
[null,"96C/1 Armidale to Coffs Harbour Transmission Line 5 Minute Limit","176 MVA","Overhead transmission line","No",""]
[null,"96C/1 Coffs Harbour to Armidale Transmission Line Normal Limit","110 MVA","Protection trip setting","No",""]
[null,"96C/1 Coffs Harbour to Armidale Transmission Line Contingency Limit","110 MVA","Protection trip setting","No",""]
[null,"96C/1 Coffs Harbour to Armidale Transmission Line 15 Minute Limit","110 MVA","Protection trip setting","No",""]
[null,"96C/1 Coffs Harbour to Armidale Transmission Line 10 Minute Limit","110 MVA","Protection trip setting","No",""]
[null,"96C/1 Coffs Harbour to Armidale Transmission Line 5 Minute Limit","110 MVA","Protection trip setting","No",""]
[null,"96F Tomago 330 to Stroud tee Brandy Hill Transmission Line Normal Limit","122 MVA","Overhead transmission line","No",""]
[null,"96F Tomago 330 to Stroud tee Brandy Hill Transmission Line Contingency Limit","136 MVA","Overhead transmission line","No",""]
[null,"96F Tomago 330 to Stroud tee Brandy Hill Transmission Line 15 Minute Limit","136 MVA","Overhead transmission line","No",""]
[null,"96F Tomago 330 to Stroud tee Brandy Hill Transmission Line 10 Minute Limit","136 MVA","Overhead transmission line","No",""]
[null,"96F Tomago 330 to Stroud tee Brandy Hill Transmission Line 5 Minute Limit","145 MVA","Overhead transmission line","No",""]
[null,"96G Port Macquarie to Kempsey Transmission Line Normal Limit","158 MVA","Overhead transmission line","No",""]
[null,"96G Port Macquarie to Kempsey Transmission Line Contingency Limit","169 MVA","Overhead transmission line","No",""]
[null,"96G Port Macquarie to Kempsey Transmission Line 15 Minute Limit","169 MVA","Overhead transmission line","No",""]
[null,"96G Port Macquarie to Kempsey Transmission Line 10 Minute Limit","173 MVA","Overhead transmission line","No",""]
[null,"96G Port Macquarie to Kempsey Transmission Line 5 Minute Limit","180 MVA","Overhead transmission line","No",""]
[null,"96H Coffs Harbour to Koolkhan Transmission Line Normal Limit","122 MVA","Overhead transmission line","No",""]
[null,"96H Coffs Harbour to Koolkhan Transmission Line Contingency Limit","136 MVA","Overhead transmission line","No",""]
[null,"96H Coffs Harbour to Koolkhan Transmission Line 15 Minute Limit","136 MVA","Overhead transmission line","No",""]
[null,"96H Coffs Harbour to Koolkhan Transmission Line 10 Minute Limit","136 MVA","Overhead transmission line","No",""]
[null,"96H Coffs Harbour to Koolkhan Transmission Line 5 Minute Limit","145 MVA","Overhead transmission line","No",""]
[null,"96L/1 Tenterfield to Casino tee Transmission Line Normal Limit","122 MVA","Overhead transmission line","No",""]
[null,"96L/1 Tenterfield to Casino tee Transmission Line Contingency Limit","133 MVA","High voltage connections","No",""]
[null,"96L/1 Tenterfield to Casino tee Transmission Line 15 Minute Limit","133 MVA","High voltage connections","No",""]
[null,"96L/1 Tenterfield to Casino tee Transmission Line 10 Minute Limit","133 MVA","High voltage connections","No",""]
[null,"96L/1 Tenterfield to Casino tee Transmission Line 5 Minute Limit","133 MVA","High voltage connections","No",""]
[null,"96L/2 Lismore 330 to Casino tee Transmission Line Normal Limit","122 MVA","Overhead transmission line","No",""]
[null,"96L/2 Lismore 330 to Casino tee Transmission Line Contingency Limit","133 MVA","High voltage connections","No",""]
[null,"96L/2 Lismore 330 to Casino tee Transmission Line 15 Minute Limit","133 MVA","High voltage connections","No",""]
[null,"96L/2 Lismore 330 to Casino tee Transmission Line 10 Minute Limit","133 MVA","High voltage connections","No",""]
[null,"96L/2 Lismore 330 to Casino tee Transmission Line 5 Minute Limit","133 MVA","High voltage connections","No",""]
[null,"96M Narrabri to Moree Transmission Line Normal Limit","101 MVA","Overhead transmission line","No",""]
[null,"96M Narrabri to Moree Transmission Line Contingency Limit","110 MVA","Overhead transmission line","No",""]
[null,"96M Narrabri to Moree Transmission Line 15 Minute Limit","110 MVA","Overhead transmission line","No",""]
[null,"96M Narrabri to Moree Transmission Line 10 Minute Limit","110 MVA","Overhead transmission line","No",""]
[null,"96M Narrabri to Moree Transmission Line 5 Minute Limit","113 MVA","Overhead transmission line","No",""]
[null,"96M Moree to Narrabri Transmission Line Normal Limit","96 MVA","Protection trip setting","No",""]
[null,"96M Moree to Narrabri Transmission Line Contingency Limit","96 MVA","Protection trip setting","No",""]
[null,"96M Moree to Narrabri Transmission Line 15 Minute Limit","96 MVA","Protection trip setting","No",""]
[null,"96M Moree to Narrabri Transmission Line 10 Minute Limit","96 MVA","Protection trip setting","No",""]
[null,"96M Moree to Narrabri Transmission Line 5 Minute Limit","96 MVA","Protection trip setting","No",""]
[null,"96N Armidale to Inverell Transmission Line Normal Limit","122 MVA","Overhead transmission line","No",""]
[null,"96N Armidale to Inverell Transmission Line Contingency Limit","136 MVA","Overhead transmission line","No",""]
[null,"96N Armidale to Inverell Transmission Line 15 Minute Limit","136 MVA","Overhead transmission line","No",""]
[null,"96N Armidale to Inverell Transmission Line 10 Minute Limit","136 MVA","Overhead transmission line","No",""]
[null,"96N Armidale to Inverell Transmission Line 5 Minute Limit","145 MVA","Overhead transmission line","No",""]
[null,"96N Inverell to Armidale Transmission Line Normal Limit","110 MVA","Protection trip setting","No",""]
[null,"96N Inverell to Armidale Transmission Line Contingency Limit","110 MVA","Protection trip setting","No",""]
[null,"96N Inverell to Armidale Transmission Line 15 Minute Limit","110 MVA","Protection trip setting","No",""]
[null,"96N Inverell to Armidale Transmission Line 10 Minute Limit","110 MVA","Protection trip setting","No",""]
[null,"96N Inverell to Armidale Transmission Line 5 Minute Limit","110 MVA","Protection trip setting","No",""]
[null,"96P Taree to Stroud Transmission Line Normal Limit","112 MVA","Overhead transmission line","No",""]
[null,"96P Taree to Stroud Transmission Line Contingency Limit","123 MVA","Overhead transmission line","No",""]
[null,"96P Taree to Stroud Transmission Line 15 Minute Limit","134 MVA","Overhead transmission line","No",""]
[null,"96P Taree to Stroud Transmission Line 10 Minute Limit","140 MVA","Overhead transmission line","No",""]
[null,"96P Taree to Stroud Transmission Line 5 Minute Limit","155 MVA","Overhead transmission line","No",""]
[null,"96R Glen Innes to Tenterfield Transmission Line Normal Limit","122 MVA","Overhead transmission line","No",""]
[null,"96R Glen Innes to Tenterfield Transmission Line Contingency Limit","133 MVA","High voltage connections","No",""]
[null,"96R Glen Innes to Tenterfield Transmission Line 15 Minute Limit","133 MVA","High voltage connections","No",""]
[null,"96R Glen Innes to Tenterfield Transmission Line 10 Minute Limit","133 MVA","High voltage connections","No",""]
[null,"96R Glen Innes to Tenterfield Transmission Line 5 Minute Limit","133 MVA","High voltage connections","No",""]
[null,"96T Armidale to Glen Innes Transmission Line Normal Limit","122 MVA","Overhead transmission line","No",""]
[null,"96T Armidale to Glen Innes Transmission Line Contingency Limit","136 MVA","Overhead transmission line","No",""]
[null,"96T Armidale to Glen Innes Transmission Line 15 Minute Limit","136 MVA","Overhead transmission line","No",""]
[null,"96T Armidale to Glen Innes Transmission Line 10 Minute Limit","136 MVA","Overhead transmission line","No",""]
[null,"96T Armidale to Glen Innes Transmission Line 5 Minute Limit","145 MVA","Overhead transmission line","No",""]
[null,"96U Newcastle to Kurri  ZS Transmission Line Normal Limit","250 MVA","Overhead transmission line","No",""]
[null,"96U Newcastle to Kurri  ZS Transmission Line Contingency Limit","250 MVA","Overhead transmission line","No",""]
[null,"96U Newcastle to Kurri  ZS Transmission Line 15 Minute Limit","302 MVA","Secondary of CT (protection metering or indication)","No",""]
[null,"96U Newcastle to Kurri  ZS Transmission Line 10 Minute Limit","302 MVA","Secondary of CT (protection metering or indication)","No",""]
[null,"96U Newcastle to Kurri  ZS Transmission Line 5 Minute Limit","302 MVA","Secondary of CT (protection metering or indication)","No",""]
[null,"96W Newcastle to Capral Transmission Line Normal Limit","290 MVA","Overhead transmission line","No",""]
[null,"96W Newcastle to Capral Transmission Line Contingency Limit","290 MVA","Overhead transmission line","No",""]
[null,"96W Newcastle to Capral Transmission Line 15 Minute Limit","346 MVA","Secondary of CT (protection metering or indication)","No",""]
[null,"96W Newcastle to Capral Transmission Line 10 Minute Limit","346 MVA","Secondary of CT (protection metering or indication)","No",""]
[null,"96W Newcastle to Capral Transmission Line 5 Minute Limit","346 MVA","Secondary of CT (protection metering or indication)","No",""]
[null,"96X Waratah West to Kooragang Transmission Line Normal Limit","110 MVA","Overhead transmission line","No",""]
[null,"96X Waratah West to Kooragang Transmission Line Contingency Limit","115 MVA","Overhead transmission line","No",""]
[null,"96X Waratah West to Kooragang Transmission Line 15 Minute Limit","229 MVA","Secondary of CT (protection metering or indication)","No",""]
[null,"96X Waratah West to Kooragang Transmission Line 10 Minute Limit","229 MVA","Secondary of CT (protection metering or indication)","No",""]
[null,"96X Waratah West to Kooragang Transmission Line 5 Minute Limit","229 MVA","Secondary of CT (protection metering or indication)","No",""]
[null,"96Y Waratah West to Mayfield West Transmission Line Normal Limit","115 MVA","Overhead transmission line","No",""]
[null,"96Y Waratah West to Mayfield West Transmission Line Contingency Limit","115 MVA","Overhead transmission line","No",""]
[null,"96Y Waratah West to Mayfield West Transmission Line 15 Minute Limit","229 MVA","Secondary of CT (protection metering or indication)","No",""]
[null,"96Y Waratah West to Mayfield West Transmission Line 10 Minute Limit","229 MVA","Secondary of CT (protection metering or indication)","No",""]
[null,"96Y Waratah West to Mayfield West Transmission Line 5 Minute Limit","229 MVA","Secondary of CT (protection metering or indication)","No",""]
[null,"96Z Newcastle to Maryland Transmission Line Normal Limit","155 MVA","Overhead transmission line","No",""]
[null,"96Z Newcastle to Maryland Transmission Line Contingency Limit","155 MVA","Overhead transmission line","No",""]
[null,"96Z Newcastle to Maryland Transmission Line 15 Minute Limit","237 MVA","Protection trip setting","No",""]
[null,"96Z Newcastle to Maryland Transmission Line 10 Minute Limit","237 MVA","Protection trip setting","No",""]
[null,"96Z Newcastle to Maryland Transmission Line 5 Minute Limit","237 MVA","Protection trip setting","No",""]
[null,"97B Tamworth 330 to Tamworth 132 Transmission Line Normal Limit","157 MVA","Overhead transmission line","No",""]
[null,"97B Tamworth 330 to Tamworth 132 Transmission Line Contingency Limit","173 MVA","Overhead transmission line","No",""]
[null,"97B Tamworth 330 to Tamworth 132 Transmission Line 15 Minute Limit","174 MVA","Overhead transmission line","No",""]
[null,"97B Tamworth 330 to Tamworth 132 Transmission Line 10 Minute Limit","181 MVA","Overhead transmission line","No",""]
[null,"97B Tamworth 330 to Tamworth 132 Transmission Line 5 Minute Limit","189 MVA","Overhead transmission line","No",""]
[null,"97C Tamworth 330 to Tamworth 132 Transmission Line Normal Limit","122 MVA","Overhead transmission line","No",""]
[null,"97C Tamworth 330 to Tamworth 132 Transmission Line Contingency Limit","136 MVA","Overhead transmission line","No",""]
[null,"97C Tamworth 330 to Tamworth 132 Transmission Line 15 Minute Limit","136 MVA","Overhead transmission line","No",""]
[null,"97C Tamworth 330 to Tamworth 132 Transmission Line 10 Minute Limit","136 MVA","Overhead transmission line","No",""]
[null,"97C Tamworth 330 to Tamworth 132 Transmission Line 5 Minute Limit","145 MVA","Overhead transmission line","No",""]
[null,"97E Munmorah to Charmhaven tee Transmission Line Normal Limit","205 MVA","Overhead transmission line","No",""]
[null,"97E Munmorah to Charmhaven tee Transmission Line Contingency Limit","206 MVA","High voltage connections","No",""]
[null,"97E Munmorah to Charmhaven tee Transmission Line 15 Minute Limit","206 MVA","High voltage connections","No",""]
[null,"97E Munmorah to Charmhaven tee Transmission Line 10 Minute Limit","206 MVA","High voltage connections","No",""]
[null,"97E Munmorah to Charmhaven tee Transmission Line 5 Minute Limit","206 MVA","High voltage connections","No",""]
[null,"98A Tomago 330 to Tomago 132 Transmission Line Normal Limit","285 MVA","High voltage connections","No",""]
[null,"98A Tomago 330 to Tomago 132 Transmission Line Contingency Limit","285 MVA","High voltage connections","No",""]
[null,"98A Tomago 330 to Tomago 132 Transmission Line 15 Minute Limit","285 MVA","High voltage connections","No",""]
[null,"98A Tomago 330 to Tomago 132 Transmission Line 10 Minute Limit","285 MVA","High voltage connections","No",""]
[null,"98A Tomago 330 to Tomago 132 Transmission Line 5 Minute Limit","285 MVA","High voltage connections","No",""]
[null,"98N Tomago 330 to Beresfield Transmission Line Normal Limit","285 MVA","High voltage connections","No",""]
[null,"98N Tomago 330 to Beresfield Transmission Line Contingency Limit","285 MVA","High voltage connections","No",""]
[null,"98N Tomago 330 to Beresfield Transmission Line 15 Minute Limit","285 MVA","High voltage connections","No",""]
[null,"98N Tomago 330 to Beresfield Transmission Line 10 Minute Limit","285 MVA","High voltage connections","No",""]
[null,"98N Tomago 330 to Beresfield Transmission Line 5 Minute Limit","285 MVA","High voltage connections","No",""]
[null,"98R Tomago 330 to Beresfield Transmission Line Normal Limit","225 MVA","Overhead transmission line","No",""]
[null,"98R Tomago 330 to Beresfield Transmission Line Contingency Limit","225 MVA","Overhead transmission line","No",""]
[null,"98R Tomago 330 to Beresfield Transmission Line 15 Minute Limit","285 MVA","High voltage connections","No",""]
[null,"98R Tomago 330 to Beresfield Transmission Line 10 Minute Limit","285 MVA","High voltage connections","No",""]
[null,"98R Tomago 330 to Beresfield Transmission Line 5 Minute Limit","285 MVA","High voltage connections","No",""]
[null,"99C Tuggerah to Wyong Transmission Line Normal Limit","225 MVA","Overhead transmission line","No",""]
[null,"99C Tuggerah to Wyong Transmission Line Contingency Limit","260 MVA","Overhead transmission line","No",""]
[null,"99C Tuggerah to Wyong Transmission Line 15 Minute Limit","314 MVA","Disconnector","No",""]
[null,"99C Tuggerah to Wyong Transmission Line 10 Minute Limit","329 MVA","Disconnector","No",""]
[null,"99C Tuggerah to Wyong Transmission Line 5 Minute Limit","343 MVA","Disconnector","No",""]
[null,"9C5 Tomago 330 to Brandy Hill Transmission Line Normal Limit","157 MVA","Overhead transmission line","No",""]
[null,"9C5 Tomago 330 to Brandy Hill Transmission Line Contingency Limit","173 MVA","Overhead transmission line","No",""]
[null,"9C5 Tomago 330 to Brandy Hill Transmission Line 15 Minute Limit","229 MVA","Secondary of CT (protection metering or indication)","No",""]
[null,"9C5 Tomago 330 to Brandy Hill Transmission Line 10 Minute Limit","229 MVA","Secondary of CT (protection metering or indication)","No",""]
[null,"9C5 Tomago 330 to Brandy Hill Transmission Line 5 Minute Limit","229 MVA","Secondary of CT (protection metering or indication)","No",""]
[null,"9C6 Tomago 330 to Brandy Hill Transmission Line Normal Limit","122 MVA","Overhead transmission line","No",""]
[null,"9C6 Tomago 330 to Brandy Hill Transmission Line Contingency Limit","136 MVA","Overhead transmission line","No",""]
[null,"9C6 Tomago 330 to Brandy Hill Transmission Line 15 Minute Limit","136 MVA","Overhead transmission line","No",""]
[null,"9C6 Tomago 330 to Brandy Hill Transmission Line 10 Minute Limit","136 MVA","Overhead transmission line","No",""]
[null,"9C6 Tomago 330 to Brandy Hill Transmission Line 5 Minute Limit","145 MVA","Overhead transmission line","No",""]
[null,"9C8 Brandy Hill to Stroud Transmission Line Normal Limit","157 MVA","Overhead transmission line","No",""]
[null,"9C8 Brandy Hill to Stroud Transmission Line Contingency Limit","173 MVA","Overhead transmission line","No",""]
[null,"9F4 Tomago 330 to Tomago 132 Transmission Line Normal Limit","285 MVA","High voltage connections","No",""]
[null,"9F4 Tomago 330 to Tomago 132 Transmission Line Contingency Limit","285 MVA","High voltage connections","No",""]
[null,"9F4 Tomago 330 to Tomago 132 Transmission Line 15 Minute Limit","285 MVA","High voltage connections","No",""]
[null,"9F4 Tomago 330 to Tomago 132 Transmission Line 10 Minute Limit","285 MVA","High voltage connections","No",""]
[null,"9F4 Tomago 330 to Tomago 132 Transmission Line 5 Minute Limit","285 MVA","High voltage connections","No",""]
[null,"9N9 Waratah West to Waratah tee Transmission Line Normal Limit","219 MVA","Secondary of CT (protection metering or indication)","No",""]
[null,"9N9 Waratah West to Waratah tee Transmission Line Contingency Limit","256 MVA","High voltage connections","No",""]
[null,"9N9 Waratah West to Waratah tee Transmission Line 15 Minute Limit","256 MVA","High voltage connections","No",""]
[null,"9N9 Waratah West to Waratah tee Transmission Line 10 Minute Limit","256 MVA","High voltage connections","No",""]
[null,"9N9 Waratah West to Waratah tee Transmission Line 5 Minute Limit","256 MVA","High voltage connections","No",""]
[null,"9NA Newcastle to Beresfield Transmission Line Normal Limit","225 MVA","Overhead transmission line","No",""]
[null,"9NA Newcastle to Beresfield Transmission Line Contingency Limit","225 MVA","Overhead transmission line","No",""]
[null,"9NA Newcastle to Beresfield Transmission Line 15 Minute Limit","346 MVA","Secondary of CT (protection metering or indication)","No",""]
[null,"9NA Newcastle to Beresfield Transmission Line 10 Minute Limit","346 MVA","Secondary of CT (protection metering or indication)","No",""]
[null,"9NA Newcastle to Beresfield Transmission Line 5 Minute Limit","346 MVA","Secondary of CT (protection metering or indication)","No",""]
[null,"9U2 Inverell to Moree Transmission Line Normal Limit","101 MVA","Secondary of CT (protection metering or indication)","No",""]
[null,"9U2 Inverell to Moree Transmission Line Contingency Limit","101 MVA","Secondary of CT (protection metering or indication)","No",""]
[null,"9U2 Inverell to Moree Transmission Line 15 Minute Limit","101 MVA","Secondary of CT (protection metering or indication)","No",""]
[null,"9U2 Inverell to Moree Transmission Line 10 Minute Limit","101 MVA","Secondary of CT (protection metering or indication)","No",""]
[null,"9U2 Inverell to Moree Transmission Line 5 Minute Limit","101 MVA","Secondary of CT (protection metering or indication)","No",""]
[null,"9U3 Gunnedah to Boggabri East tee Gunnedah East Transmission Line Normal Limit","122 MVA","Overhead transmission line","No",""]
[null,"9U3 Gunnedah to Boggabri East tee Gunnedah East Transmission Line Contingency Limit","136 MVA","Overhead transmission line","No",""]
[null,"9U3 Gunnedah to Boggabri East tee Gunnedah East Transmission Line 15 Minute Limit","136 MVA","Overhead transmission line","No",""]
[null,"9U3 Gunnedah to Boggabri East tee Gunnedah East Transmission Line 10 Minute Limit","136 MVA","Overhead transmission line","No",""]
[null,"9U3 Gunnedah to Boggabri East tee Gunnedah East Transmission Line 5 Minute Limit","145 MVA","Overhead transmission line","No",""]
[null,"9U3 Boggabri East to Gunnedah tee Gunnedah East Transmission Line Normal Limit","73 MVA","Overhead transmission line","No",""]
[null,"9U3 Boggabri East to Gunnedah tee Gunnedah East Transmission Line Contingency Limit","82 MVA","Overhead transmission line","No",""]
[null,"9U3 Boggabri East to Gunnedah tee Gunnedah East Transmission Line 15 Minute Limit","82 MVA","Overhead transmission line","No",""]
[null,"9U3 Boggabri East to Gunnedah tee Gunnedah East Transmission Line 10 Minute Limit","86 MVA","Overhead transmission line","No",""]
[null,"9U3 Boggabri East to Gunnedah tee Gunnedah East Transmission Line 5 Minute Limit","91 MVA","Overhead transmission line","No",""]
[null,"9U4 Inverell to Glen Innes Transmission Line Normal Limit","122 MVA","Overhead transmission line","No",""]
[null,"9U4 Inverell to Glen Innes Transmission Line Contingency Limit","136 MVA","Overhead transmission line","No",""]
[null,"9U4 Inverell to Glen Innes Transmission Line 15 Minute Limit","136 MVA","Overhead transmission line","No",""]
[null,"9U4 Inverell to Glen Innes Transmission Line 10 Minute Limit","136 MVA","Overhead transmission line","No",""]
[null,"9U4 Inverell to Glen Innes Transmission Line 5 Minute Limit","145 MVA","Overhead transmission line","No",""]
[null,"9U8 Lismore 330kV to Lismore 132kV Transmission Line Normal Limit","213 MVA","Overhead transmission line","No",""]
[null,"9U8 Lismore 330kV to Lismore 132kV Transmission Line Contingency Limit","252 MVA","Overhead transmission line","No",""]
[null,"9U8 Lismore 330kV to Lismore 132kV Transmission Line 15 Minute Limit","274 MVA","Secondary of CT (protection metering or indication)","No",""]
[null,"9U8 Lismore 330kV to Lismore 132kV Transmission Line 10 Minute Limit","274 MVA","Secondary of CT (protection metering or indication)","No",""]
[null,"9U8 Lismore 330kV to Lismore 132kV Transmission Line 5 Minute Limit","274 MVA","Secondary of CT (protection metering or indication)","No",""]
[null,"9U9 Lismore 330kV to Lismore 132kV Transmission Line Normal Limit","128 MVA","Overhead transmission line","No",""]
[null,"9U9 Lismore 330kV to Lismore 132kV Transmission Line Contingency Limit","151 MVA","Overhead transmission line","No",""]
[null,"9U9 Lismore 330kV to Lismore 132kV Transmission Line 15 Minute Limit","274 MVA","Secondary of CT (protection metering or indication)","No",""]
[null,"9U9 Lismore 330kV to Lismore 132kV Transmission Line 10 Minute Limit","274 MVA","Secondary of CT (protection metering or indication)","No",""]
[null,"9U9 Lismore 330kV to Lismore 132kV Transmission Line 5 Minute Limit","274 MVA","Secondary of CT (protection metering or indication)","No",""]
[null,"9UG Glen Innes to White Rock 132kV Transmission Line Normal Limit","122 MVA","Overhead transmission line","No",""]
[null,"9UG Glen Innes to White Rock 132kV Transmission Line Contingency Limit","136 MVA","Overhead transmission line","No",""]
[null,"9UG Glen Innes to White Rock 132kV Transmission Line 15 Minute Limit","136 MVA","Overhead transmission line","No",""]
[null,"9UG Glen Innes to White Rock 132kV Transmission Line 10 Minute Limit","136 MVA","Overhead transmission line","No",""]
[null,"9UG Glen Innes to White Rock 132kV Transmission Line 5 Minute Limit","145 MVA","Overhead transmission line","No",""]
[null,"9UH Narrabri to Boggabri North 132kV Transmission Line Normal Limit","73 MVA","Overhead transmission line","No",""]
[null,"9UH Narrabri to Boggabri North 132kV Transmission Line Contingency Limit","82 MVA","Overhead transmission line","No",""]
[null,"9UH Narrabri to Boggabri North 132kV Transmission Line 15 Minute Limit","82 MVA","Overhead transmission line","No",""]
[null,"9UH Narrabri to Boggabri North 132kV Transmission Line 10 Minute Limit","86 MVA","Overhead transmission line","No",""]
[null,"9UH Narrabri to Boggabri North 132kV Transmission Line 5 Minute Limit","91 MVA","Overhead transmission line","No",""]
[null,"9UJ Boggabri East to Boggabri North 132kV Transmission Line Normal Limit","136 MVA","Secondary of CT (protection metering or indication)","No",""]
[null,"9UJ Boggabri East to Boggabri North 132kV Transmission Line Contingency Limit","136 MVA","Secondary of CT (protection metering or indication)","No",""]
[null,"9UJ Boggabri East to Boggabri North 132kV Transmission Line 15 Minute Limit","136 MVA","Secondary of CT (protection metering or indication)","No",""]
[null,"9UJ Boggabri East to Boggabri North 132kV Transmission Line 10 Minute Limit","136 MVA","Secondary of CT (protection metering or indication)","No",""]
[null,"9UJ Boggabri East to Boggabri North 132kV Transmission Line 5 Minute Limit","136 MVA","Secondary of CT (protection metering or indication)","No",""]
[null,"9W0 Grafton East to Koolkhan 132kV Transmission Line Normal Limit","122 MVA","Overhead transmission line","No",""]
[null,"9W0 Grafton East to Koolkhan 132kV Transmission Line Contingency Limit","136 MVA","Overhead transmission line","No",""]
[null,"9W0 Grafton East to Koolkhan 132kV Transmission Line 15 Minute Limit","136 MVA","Overhead transmission line","No",""]
[null,"9W0 Grafton East to Koolkhan 132kV Transmission Line 10 Minute Limit","136 MVA","Overhead transmission line","No",""]
[null,"9W0 Grafton East to Koolkhan 132kV Transmission Line 5 Minute Limit","136 MVA","High voltage connections","No",""]
[null,"9W1 Lismore 330kV to Lismore 132kV Transmission Line Normal Limit","128 MVA","Overhead transmission line","No",""]
[null,"9W1 Lismore 330kV to Lismore 132kV Transmission Line Contingency Limit","151 MVA","Overhead transmission line","No",""]
[null,"9W1 Lismore 330kV to Lismore 132kV Transmission Line 15 Minute Limit","274 MVA","Secondary of CT (protection metering or indication)","No",""]
[null,"9W1 Lismore 330kV to Lismore 132kV Transmission Line 10 Minute Limit","274 MVA","Secondary of CT (protection metering or indication)","No",""]
[null,"9W1 Lismore 330kV to Lismore 132kV Transmission Line 5 Minute Limit","274 MVA","Secondary of CT (protection metering or indication)","No",""]
[null,"9W2 Kempsey to Raleigh Transmission Line Normal Limit","115 MVA","Overhead transmission line","No",""]
[null,"9W2 Kempsey to Raleigh Transmission Line Contingency Limit","125 MVA","Overhead transmission line","No",""]
[null,"9W2 Kempsey to Raleigh Transmission Line 15 Minute Limit","125 MVA","Overhead transmission line","No",""]
[null,"9W2 Kempsey to Raleigh Transmission Line 10 Minute Limit","125 MVA","Overhead transmission line","No",""]
[null,"9W2 Kempsey to Raleigh Transmission Line 5 Minute Limit","127 MVA","Overhead transmission line","No",""]
[null,"9W3 Coffs Harbour to Raleigh Transmission Line Normal Limit","159 MVA","Overhead transmission line","No",""]
[null,"9W3 Coffs Harbour to Raleigh Transmission Line Contingency Limit","171 MVA","Overhead transmission line","No",""]
[null,"9W3 Coffs Harbour to Raleigh Transmission Line 15 Minute Limit","171 MVA","Overhead transmission line","No",""]
[null,"9W3 Coffs Harbour to Raleigh Transmission Line 10 Minute Limit","173 MVA","Overhead transmission line","No",""]
[null,"9W3 Coffs Harbour to Raleigh Transmission Line 5 Minute Limit","178 MVA","Overhead transmission line","No",""]
[null,"9W5 Kempsey to Macksville Transmission Line Normal Limit","115 MVA","Overhead transmission line","No",""]
[null,"9W5 Kempsey to Macksville Transmission Line Contingency Limit","125 MVA","Overhead transmission line","No",""]
[null,"9W5 Kempsey to Macksville Transmission Line 15 Minute Limit","125 MVA","Overhead transmission line","No",""]
[null,"9W5 Kempsey to Macksville Transmission Line 10 Minute Limit","125 MVA","Overhead transmission line","No",""]
[null,"9W5 Kempsey to Macksville Transmission Line 5 Minute Limit","127 MVA","Overhead transmission line","No",""]
[null,"9W6 Nambucca to Macksville Transmission Line Normal Limit","115 MVA","Overhead transmission line","No",""]
[null,"9W6 Nambucca to Macksville Transmission Line Contingency Limit","125 MVA","Overhead transmission line","No",""]
[null,"9W6 Nambucca to Macksville Transmission Line 15 Minute Limit","125 MVA","Overhead transmission line","No",""]
[null,"9W6 Nambucca to Macksville Transmission Line 10 Minute Limit","125 MVA","Overhead transmission line","No",""]
[null,"9W6 Nambucca to Macksville Transmission Line 5 Minute Limit","127 MVA","Overhead transmission line","No",""]
[null,"9W7 Nambucca to Boambee South Transmission Line Normal Limit","159 MVA","Overhead transmission line","No",""]
[null,"9W7 Nambucca to Boambee South Transmission Line Contingency Limit","171 MVA","Overhead transmission line","No",""]
[null,"9W7 Nambucca to Boambee South Transmission Line 15 Minute Limit","171 MVA","Overhead transmission line","No",""]
[null,"9W7 Nambucca to Boambee South Transmission Line 10 Minute Limit","173 MVA","Overhead transmission line","No",""]
[null,"9W7 Nambucca to Boambee South Transmission Line 5 Minute Limit","178 MVA","Overhead transmission line","No",""]
[null,"9W8 Coffs Harbour to Boambee South Transmission Line Normal Limit","159 MVA","Overhead transmission line","No",""]
[null,"9W8 Coffs Harbour to Boambee South Transmission Line Contingency Limit","171 MVA","Overhead transmission line","No",""]
[null,"9W8 Coffs Harbour to Boambee South Transmission Line 15 Minute Limit","171 MVA","Overhead transmission line","No",""]
[null,"9W8 Coffs Harbour to Boambee South Transmission Line 10 Minute Limit","173 MVA","Overhead transmission line","No",""]
[null,"9W8 Coffs Harbour to Boambee South Transmission Line 5 Minute Limit","178 MVA","Overhead transmission line","No",""]
[null,"9W9 Port Macquarie to Kempsey Transmission Line Normal Limit","158 MVA","Overhead transmission line","No",""]
[null,"9W9 Port Macquarie to Kempsey Transmission Line Contingency Limit","169 MVA","Overhead transmission line","No",""]
[null,"9W9 Port Macquarie to Kempsey Transmission Line 15 Minute Limit","169 MVA","Overhead transmission line","No",""]
[null,"9W9 Port Macquarie to Kempsey Transmission Line 10 Minute Limit","173 MVA","Overhead transmission line","No",""]
[null,"9W9 Port Macquarie to Kempsey Transmission Line 5 Minute Limit","180 MVA","Overhead transmission line","No",""]
[null,"217 Sydney West to Nth Eastern Creek Transmission Line Normal Limit","145 MVA","Overhead transmission line","No",""]
[null,"217 Sydney West to Nth Eastern Creek Transmission Line Contingency Limit","216 MVA","Overhead transmission line","No",""]
[null,"217 Sydney West to Nth Eastern Creek Transmission Line 15 Minute Limit","256 MVA","High voltage connections","No",""]
[null,"217 Sydney West to Nth Eastern Creek Transmission Line 10 Minute Limit","256 MVA","High voltage connections","No",""]
[null,"217 Sydney West to Nth Eastern Creek Transmission Line 5 Minute Limit","256 MVA","High voltage connections","No",""]
[null,"218 Sydney West to Eastern Creek Transmission Line Normal Limit","172 MVA","Overhead transmission line","No",""]
[null,"218 Sydney West to Eastern Creek Transmission Line Contingency Limit","216 MVA","Overhead transmission line","No",""]
[null,"218 Sydney West to Eastern Creek Transmission Line 15 Minute Limit","256 MVA","High voltage connections","No",""]
[null,"218 Sydney West to Eastern Creek Transmission Line 10 Minute Limit","256 MVA","High voltage connections","No",""]
[null,"218 Sydney West to Eastern Creek Transmission Line 5 Minute Limit","256 MVA","High voltage connections","No",""]
[null,"221 Sydney North to Kenthurst Transmission Line Normal Limit","72 MVA","Secondary of CT (protection metering or indication)","No",""]
[null,"221 Sydney North to Kenthurst Transmission Line Contingency Limit","72 MVA","Secondary of CT (protection metering or indication)","No",""]
[null,"221 Sydney North to Kenthurst Transmission Line 15 Minute Limit","72 MVA","Secondary of CT (protection metering or indication)","No",""]
[null,"221 Sydney North to Kenthurst Transmission Line 10 Minute Limit","72 MVA","Secondary of CT (protection metering or indication)","No",""]
[null,"221 Sydney North to Kenthurst Transmission Line 5 Minute Limit","72 MVA","Secondary of CT (protection metering or indication)","No",""]
[null,"222 Regentville to Penrith Transmission Line Normal Limit","448 MVA","Overhead transmission line","No",""]
[null,"222 Regentville to Penrith Transmission Line Contingency Limit","448 MVA","Overhead transmission line","No",""]
[null,"222 Regentville to Penrith Transmission Line 15 Minute Limit","571 MVA","High voltage connections","No",""]
[null,"222 Regentville to Penrith Transmission Line 10 Minute Limit","571 MVA","High voltage connections","No",""]
[null,"222 Regentville to Penrith Transmission Line 5 Minute Limit","571 MVA","High voltage connections","No",""]
[null,"223 Sydney West to Rooty Hill Transmission Line Normal Limit","158 MVA","Overhead transmission line","No",""]
[null,"223 Sydney West to Rooty Hill Transmission Line Contingency Limit","158 MVA","Overhead transmission line","No",""]
[null,"223 Sydney West to Rooty Hill Transmission Line 15 Minute Limit","239 MVA","Protection trip setting","No",""]
[null,"223 Sydney West to Rooty Hill Transmission Line 10 Minute Limit","239 MVA","Protection trip setting","No",""]
[null,"223 Sydney West to Rooty Hill Transmission Line 5 Minute Limit","239 MVA","Protection trip setting","No",""]
[null,"227 Vineyard to Hawkesbury Transmission Line Normal Limit","145 MVA","Overhead transmission line","No",""]
[null,"227 Vineyard to Hawkesbury Transmission Line Contingency Limit","230 MVA","Overhead transmission line","No",""]
[null,"227 Vineyard to Hawkesbury Transmission Line 15 Minute Limit","277 MVA","High voltage connections","No",""]
[null,"227 Vineyard to Hawkesbury Transmission Line 10 Minute Limit","277 MVA","High voltage connections","No",""]
[null,"227 Vineyard to Hawkesbury Transmission Line 5 Minute Limit","277 MVA","High voltage connections","No",""]
[null,"231 Regentville to Glenmore Pk Transmission Line Normal Limit","172 MVA","Overhead transmission line","No",""]
[null,"231 Regentville to Glenmore Pk Transmission Line Contingency Limit","172 MVA","Overhead transmission line","No",""]
[null,"231 Regentville to Glenmore Pk Transmission Line 15 Minute Limit","286 MVA","High voltage connections","No",""]
[null,"231 Regentville to Glenmore Pk Transmission Line 10 Minute Limit","286 MVA","High voltage connections","No",""]
[null,"231 Regentville to Glenmore Pk Transmission Line 5 Minute Limit","286 MVA","High voltage connections","No",""]
[null,"232 Regentville to Glenmore Pk Transmission Line Normal Limit","172 MVA","Overhead transmission line","No",""]
[null,"232 Regentville to Glenmore Pk Transmission Line Contingency Limit","172 MVA","Overhead transmission line","No",""]
[null,"232 Regentville to Glenmore Pk Transmission Line 15 Minute Limit","286 MVA","High voltage connections","No",""]
[null,"232 Regentville to Glenmore Pk Transmission Line 10 Minute Limit","286 MVA","High voltage connections","No",""]
[null,"232 Regentville to Glenmore Pk Transmission Line 5 Minute Limit","286 MVA","High voltage connections","No",""]
[null,"234 Vineyard to Hawkesbury Transmission Line Normal Limit","145 MVA","Overhead transmission line","No",""]
[null,"234 Vineyard to Hawkesbury Transmission Line Contingency Limit","230 MVA","Overhead transmission line","No",""]
[null,"234 Vineyard to Hawkesbury Transmission Line 15 Minute Limit","277 MVA","High voltage connections","No",""]
[null,"234 Vineyard to Hawkesbury Transmission Line 10 Minute Limit","277 MVA","High voltage connections","No",""]
[null,"234 Vineyard to Hawkesbury Transmission Line 5 Minute Limit","277 MVA","High voltage connections","No",""]
[null,"237 Sydney West to BHP Transmission Line Normal Limit","120 MVA","Overhead transmission line","No",""]
[null,"237 Sydney West to BHP Transmission Line Contingency Limit","120 MVA","Overhead transmission line","No",""]
[null,"237 Sydney West to BHP Transmission Line 15 Minute Limit","215 MVA","Protection trip setting","No",""]
[null,"237 Sydney West to BHP Transmission Line 10 Minute Limit","215 MVA","Protection trip setting","No",""]
[null,"237 Sydney West to BHP Transmission Line 5 Minute Limit","215 MVA","Protection trip setting","No",""]
[null,"238 Regentville to Penrith Transmission Line Normal Limit","448 MVA","Overhead transmission line","No",""]
[null,"238 Regentville to Penrith Transmission Line Contingency Limit","448 MVA","Overhead transmission line","No",""]
[null,"238 Regentville to Penrith Transmission Line 15 Minute Limit","571 MVA","High voltage connections","No",""]
[null,"238 Regentville to Penrith Transmission Line 10 Minute Limit","571 MVA","High voltage connections","No",""]
[null,"238 Regentville to Penrith Transmission Line 5 Minute Limit","571 MVA","High voltage connections","No",""]
[null,"245 Kernell to Bunnerong Transmission Line Normal Limit","220 MVA","Overhead transmission line","No",""]
[null,"245 Kernell to Bunnerong Transmission Line Contingency Limit","225 MVA","Overhead transmission line","No",""]
[null,"246 Kernell to Bunnerong Transmission Line Normal Limit","220 MVA","Overhead transmission line","No",""]
[null,"246 Kernell to Bunnerong Transmission Line Contingency Limit","225 MVA","Overhead transmission line","No",""]
[null,"250 Sydney North to Berowra Transmission Line Normal Limit","195 MVA","Overhead transmission line","No",""]
[null,"250 Sydney North to Berowra Transmission Line Contingency Limit","260 MVA","Overhead transmission line","No",""]
[null,"250 Sydney North to Berowra Transmission Line 15 Minute Limit","302 MVA","Secondary of CT (protection metering or indication)","No",""]
[null,"250 Sydney North to Berowra Transmission Line 10 Minute Limit","302 MVA","Secondary of CT (protection metering or indication)","No",""]
[null,"250 Sydney North to Berowra Transmission Line 5 Minute Limit","302 MVA","Secondary of CT (protection metering or indication)","No",""]
[null,"251 Sydney North to Pennant Hills Transmission Line Normal Limit","225 MVA","Overhead transmission line","No",""]
[null,"251 Sydney North to Pennant Hills Transmission Line Contingency Limit","260 MVA","Overhead transmission line","No",""]
[null,"251 Sydney North to Pennant Hills Transmission Line 15 Minute Limit","302 MVA","Secondary of CT (protection metering or indication)","No",""]
[null,"251 Sydney North to Pennant Hills Transmission Line 10 Minute Limit","302 MVA","Secondary of CT (protection metering or indication)","No",""]
[null,"251 Sydney North to Pennant Hills Transmission Line 5 Minute Limit","302 MVA","Secondary of CT (protection metering or indication)","No",""]
[null,"257 Sydney North to Galston Transmission Line Normal Limit","65 MVA","Underground cable","No",""]
[null,"257 Sydney North to Galston Transmission Line Contingency Limit","65 MVA","Underground cable","No",""]
[null,"257 Sydney North to Galston Transmission Line 15 Minute Limit","114 MVA","Secondary of CT (protection metering or indication)","No",""]
[null,"257 Sydney North to Galston Transmission Line 10 Minute Limit","114 MVA","Secondary of CT (protection metering or indication)","No",""]
[null,"257 Sydney North to Galston Transmission Line 5 Minute Limit","114 MVA","Secondary of CT (protection metering or indication)","No",""]
[null,"258 Sydney North to Galston Transmission Line Normal Limit","65 MVA","Underground cable","No",""]
[null,"258 Sydney North to Galston Transmission Line Contingency Limit","65 MVA","Underground cable","No",""]
[null,"258 Sydney North to Galston Transmission Line 15 Minute Limit","114 MVA","Secondary of CT (protection metering or indication)","No",""]
[null,"258 Sydney North to Galston Transmission Line 10 Minute Limit","114 MVA","Secondary of CT (protection metering or indication)","No",""]
[null,"258 Sydney North to Galston Transmission Line 5 Minute Limit","114 MVA","Secondary of CT (protection metering or indication)","No",""]
[null,"260 Beaconsfield to Zetland Transmission Line Normal Limit","90 MVA","Underground cable","No",""]
[null,"260 Beaconsfield to Zetland Transmission Line Contingency Limit","110 MVA","Underground cable","No",""]
[null,"260 Beaconsfield to Zetland Transmission Line 15 Minute Limit","237 MVA","Secondary of CT (protection metering or indication)","No",""]
[null,"260 Beaconsfield to Zetland Transmission Line 10 Minute Limit","237 MVA","Secondary of CT (protection metering or indication)","No",""]
[null,"260 Beaconsfield to Zetland Transmission Line 5 Minute Limit","237 MVA","Secondary of CT (protection metering or indication)","No",""]
[null,"261 Beaconsfield to Zetland Transmission Line Normal Limit","90 MVA","Underground cable","No",""]
[null,"261 Beaconsfield to Zetland Transmission Line Contingency Limit","110 MVA","Underground cable","No",""]
[null,"261 Beaconsfield to Zetland Transmission Line 15 Minute Limit","237 MVA","Secondary of CT (protection metering or indication)","No",""]
[null,"261 Beaconsfield to Zetland Transmission Line 10 Minute Limit","237 MVA","Secondary of CT (protection metering or indication)","No",""]
[null,"261 Beaconsfield to Zetland Transmission Line 5 Minute Limit","237 MVA","Secondary of CT (protection metering or indication)","No",""]
[null,"264 Beaconsfield to Kingsford Transmission Line Normal Limit","150 MVA","Underground cable","No",""]
[null,"264 Beaconsfield to Kingsford Transmission Line Contingency Limit","210 MVA","Underground cable","No",""]
[null,"264 Beaconsfield to Kingsford Transmission Line 15 Minute Limit","320 MVA","Protection trip setting","No",""]
[null,"264 Beaconsfield to Kingsford Transmission Line 10 Minute Limit","320 MVA","Protection trip setting","No",""]
[null,"264 Beaconsfield to Kingsford Transmission Line 5 Minute Limit","320 MVA","Protection trip setting","No",""]
[null,"282 Sydney South to Milperra tee Revesby Transmission Line Normal Limit","190 MVA","Overhead transmission line","No",""]
[null,"282 Sydney South to Milperra tee Revesby Transmission Line Contingency Limit","190 MVA","Overhead transmission line","No",""]
[null,"282 Sydney South to Milperra tee Revesby Transmission Line 15 Minute Limit","202 MVA","Secondary of CT (protection metering or indication)","No",""]
[null,"282 Sydney South to Milperra tee Revesby Transmission Line 10 Minute Limit","202 MVA","Secondary of CT (protection metering or indication)","No",""]
[null,"282 Sydney South to Milperra tee Revesby Transmission Line 5 Minute Limit","202 MVA","Secondary of CT (protection metering or indication)","No",""]
[null,"283 Sydney South to Milperra tee Revesby Transmission Line Normal Limit","185 MVA","Overhead transmission line","No",""]
[null,"283 Sydney South to Milperra tee Revesby Transmission Line Contingency Limit","185 MVA","Overhead transmission line","No",""]
[null,"283 Sydney South to Milperra tee Revesby Transmission Line 15 Minute Limit","202 MVA","Secondary of CT (protection metering or indication)","No",""]
[null,"283 Sydney South to Milperra tee Revesby Transmission Line 10 Minute Limit","202 MVA","Secondary of CT (protection metering or indication)","No",""]
[null,"283 Sydney South to Milperra tee Revesby Transmission Line 5 Minute Limit","202 MVA","Secondary of CT (protection metering or indication)","No",""]
[null,"284 Sydney South to Menai Transmission Line Normal Limit","175 MVA","Overhead transmission line","No",""]
[null,"284 Sydney South to Menai Transmission Line Contingency Limit","230 MVA","Overhead transmission line","No",""]
[null,"284 Sydney South to Menai Transmission Line 15 Minute Limit","259 MVA","Secondary of CT (protection metering or indication)","No",""]
[null,"284 Sydney South to Menai Transmission Line 10 Minute Limit","259 MVA","Secondary of CT (protection metering or indication)","No",""]
[null,"284 Sydney South to Menai Transmission Line 5 Minute Limit","259 MVA","Secondary of CT (protection metering or indication)","No",""]
[null,"300 Parkes to North Parkes Transmission Line Normal Limit","72 MVA","Secondary of CT (protection metering or indication)","No",""]
[null,"300 Parkes to North Parkes Transmission Line Contingency Limit","72 MVA","Secondary of CT (protection metering or indication)","No",""]
[null,"300 Parkes to North Parkes Transmission Line 15 Minute Limit","72 MVA","Secondary of CT (protection metering or indication)","No",""]
[null,"300 Parkes to North Parkes Transmission Line 10 Minute Limit","72 MVA","Secondary of CT (protection metering or indication)","No",""]
[null,"300 Parkes to North Parkes Transmission Line 5 Minute Limit","72 MVA","Secondary of CT (protection metering or indication)","No",""]
[null,"90P/1 Haymarket to City South Transmission Line Normal Limit","240 MVA","Underground cable","No",""]
[null,"90P/1 Haymarket to City South Transmission Line Contingency Limit","240 MVA","Underground cable","No",""]
[null,"90P/1 Haymarket to City South Transmission Line 15 Minute Limit","366 MVA","Breaker","No",""]
[null,"90P/1 Haymarket to City South Transmission Line 10 Minute Limit","366 MVA","Breaker","No",""]
[null,"90P/1 Haymarket to City South Transmission Line 5 Minute Limit","366 MVA","Breaker","No",""]
[null,"90T Haymarket to Beaconsfield South tee Green Square Transmission Line Normal Limit","220 MVA","Underground cable","No",""]
[null,"90T Haymarket to Beaconsfield South tee Green Square Transmission Line Contingency Limit","220 MVA","Underground cable","No",""]
[null,"90T Haymarket to Beaconsfield South tee Green Square Transmission Line 15 Minute Limit","366 MVA","Breaker","No",""]
[null,"90T Haymarket to Beaconsfield South tee Green Square Transmission Line 10 Minute Limit","366 MVA","Breaker","No",""]
[null,"90T Haymarket to Beaconsfield South tee Green Square Transmission Line 5 Minute Limit","366 MVA","Breaker","No",""]
[null,"90V/1 Haymarket to City Central tee City South Transmission Line Normal Limit","240 MVA","Underground cable","No",""]
[null,"90V/1 Haymarket to City Central tee City South Transmission Line Contingency Limit","240 MVA","Underground cable","No",""]
[null,"90V/1 Haymarket to City Central tee City South Transmission Line 15 Minute Limit","366 MVA","Primary of CT","No",""]
[null,"90V/1 Haymarket to City Central tee City South Transmission Line 10 Minute Limit","366 MVA","Primary of CT","No",""]
[null,"90V/1 Haymarket to City Central tee City South Transmission Line 5 Minute Limit","366 MVA","Primary of CT","No",""]
[null,"90W/1 Haymarket to City Central tee City South Transmission Line Normal Limit","240 MVA","Underground cable","No",""]
[null,"90W/1 Haymarket to City Central tee City South Transmission Line Contingency Limit","240 MVA","Underground cable","No",""]
[null,"90W/1 Haymarket to City Central tee City South Transmission Line 15 Minute Limit","366 MVA","Primary of CT","No",""]
[null,"90W/1 Haymarket to City Central tee City South Transmission Line 10 Minute Limit","366 MVA","Primary of CT","No",""]
[null,"90W/1 Haymarket to City Central tee City South Transmission Line 5 Minute Limit","366 MVA","Primary of CT","No",""]
[null,"90Y Beaconsfield South to Belmore Park Transmission Line Normal Limit","245 MVA","Underground cable","No",""]
[null,"90Y Beaconsfield South to Belmore Park Transmission Line Contingency Limit","275 MVA","Underground cable","No",""]
[null,"90Y Beaconsfield South to Belmore Park Transmission Line 15 Minute Limit","329 MVA","Secondary of CT (protection metering or indication)","No",""]
[null,"90Y Beaconsfield South to Belmore Park Transmission Line 10 Minute Limit","329 MVA","Secondary of CT (protection metering or indication)","No",""]
[null,"90Y Beaconsfield South to Belmore Park Transmission Line 5 Minute Limit","329 MVA","Secondary of CT (protection metering or indication)","No",""]
[null,"90Z/1 Haymarket to City Northtee City South Transmission Line Normal Limit","240 MVA","Underground cable","No",""]
[null,"90Z/1 Haymarket to City Northtee City South Transmission Line Contingency Limit","240 MVA","Underground cable","No",""]
[null,"90Z/1 Haymarket to City Northtee City South Transmission Line 15 Minute Limit","366 MVA","Breaker","No",""]
[null,"90Z/1 Haymarket to City Northtee City South Transmission Line 10 Minute Limit","366 MVA","Breaker","No",""]
[null,"90Z/1 Haymarket to City Northtee City South Transmission Line 5 Minute Limit","366 MVA","Breaker","No",""]
[null,"910 Sydney South to Canterbury Transmission Line Normal Limit","225 MVA","Overhead transmission line","No",""]
[null,"910 Sydney South to Canterbury Transmission Line Contingency Limit","245 MVA","Overhead transmission line","No",""]
[null,"910 Sydney South to Canterbury Transmission Line 15 Minute Limit","247 MVA","Protection trip setting","No",""]
[null,"910 Sydney South to Canterbury Transmission Line 10 Minute Limit","247 MVA","Protection trip setting","No",""]
[null,"910 Sydney South to Canterbury Transmission Line 5 Minute Limit","247 MVA","Protection trip setting","No",""]
[null,"911 Sydney South to Canterbury Transmission Line Normal Limit","205 MVA","Overhead transmission line","No",""]
[null,"911 Sydney South to Canterbury Transmission Line Contingency Limit","235 MVA","Overhead transmission line","No",""]
[null,"911 Sydney South to Canterbury Transmission Line 15 Minute Limit","247 MVA","Protection trip setting","No",""]
[null,"911 Sydney South to Canterbury Transmission Line 10 Minute Limit","247 MVA","Protection trip setting","No",""]
[null,"911 Sydney South to Canterbury Transmission Line 5 Minute Limit","247 MVA","Protection trip setting","No",""]
[null,"912 Sydney South to Port Hacking Transmission Line Normal Limit","175 MVA","Overhead transmission line","No",""]
[null,"912 Sydney South to Port Hacking Transmission Line Contingency Limit","230 MVA","Overhead transmission line","No",""]
[null,"912 Sydney South to Port Hacking Transmission Line 15 Minute Limit","229 MVA","Secondary of CT (protection metering or indication)","No",""]
[null,"912 Sydney South to Port Hacking Transmission Line 10 Minute Limit","229 MVA","Secondary of CT (protection metering or indication)","No",""]
[null,"912 Sydney South to Port Hacking Transmission Line 5 Minute Limit","229 MVA","Secondary of CT (protection metering or indication)","No",""]
[null,"914 Sydney South to Bankstown Transmission Line Normal Limit","225 MVA","Overhead transmission line","No",""]
[null,"914 Sydney South to Bankstown Transmission Line Contingency Limit","275 MVA","Overhead transmission line","No",""]
[null,"914 Sydney South to Bankstown Transmission Line 15 Minute Limit","302 MVA","Secondary of CT (protection metering or indication)","No",""]
[null,"914 Sydney South to Bankstown Transmission Line 10 Minute Limit","302 MVA","Secondary of CT (protection metering or indication)","No",""]
[null,"914 Sydney South to Bankstown Transmission Line 5 Minute Limit","302 MVA","Secondary of CT (protection metering or indication)","No",""]
[null,"915 Sydney South to Bankstown Transmission Line Normal Limit","225 MVA","Overhead transmission line","No",""]
[null,"915 Sydney South to Bankstown Transmission Line Contingency Limit","275 MVA","Overhead transmission line","No",""]
[null,"915 Sydney South to Bankstown Transmission Line 15 Minute Limit","302 MVA","Secondary of CT (protection metering or indication)","No",""]
[null,"915 Sydney South to Bankstown Transmission Line 10 Minute Limit","302 MVA","Secondary of CT (protection metering or indication)","No",""]
[null,"915 Sydney South to Bankstown Transmission Line 5 Minute Limit","302 MVA","Secondary of CT (protection metering or indication)","No",""]
[null,"916 Sydney South to Kurnell tee Cronulla Transmission Line Normal Limit","455 MVA","Overhead transmission line","No",""]
[null,"916 Sydney South to Kurnell tee Cronulla Transmission Line Contingency Limit","455 MVA","Overhead transmission line","No",""]
[null,"916 Sydney South to Kurnell tee Cronulla Transmission Line 15 Minute Limit","503 MVA","Disconnector","No",""]
[null,"916 Sydney South to Kurnell tee Cronulla Transmission Line 10 Minute Limit","518 MVA","Secondary of CT (protection metering or indication)","No",""]
[null,"916 Sydney South to Kurnell tee Cronulla Transmission Line 5 Minute Limit","518 MVA","Secondary of CT (protection metering or indication)","No",""]
[null,"917 Sydney South to Kurnell tee Gwawley Bay Transmission Line Normal Limit","439 MVA","Secondary of CT (protection metering or indication)","No",""]
[null,"917 Sydney South to Kurnell tee Gwawley Bay Transmission Line Contingency Limit","457 MVA","Secondary of CT (protection metering or indication)","No",""]
[null,"917 Sydney South to Kurnell tee Gwawley Bay Transmission Line 15 Minute Limit","486 MVA","High voltage connections","No",""]
[null,"917 Sydney South to Kurnell tee Gwawley Bay Transmission Line 10 Minute Limit","486 MVA","High voltage connections","No",""]
[null,"917 Sydney South to Kurnell tee Gwawley Bay Transmission Line 5 Minute Limit","486 MVA","High voltage connections","No",""]
[null,"91A Beaconsfield to Chullora tee St Peters Transmission Line Normal Limit","95 MVA","Underground cable","No",""]
[null,"91A Beaconsfield to Chullora tee St Peters Transmission Line Contingency Limit","115 MVA","Underground cable","No",""]
[null,"91A Beaconsfield to Chullora tee St Peters Transmission Line 15 Minute Limit","231 MVA","Secondary of CT (protection metering or indication)","No",""]
[null,"91A Beaconsfield to Chullora tee St Peters Transmission Line 10 Minute Limit","231 MVA","Secondary of CT (protection metering or indication)","No",""]
[null,"91A Beaconsfield to Chullora tee St Peters Transmission Line 5 Minute Limit","231 MVA","Secondary of CT (protection metering or indication)","No",""]
[null,"91B Beaconsfield to Chullora tee St Peters Transmission Line Normal Limit","95 MVA","Underground cable","No",""]
[null,"91B Beaconsfield to Chullora tee St Peters Transmission Line Contingency Limit","115 MVA","Underground cable","No",""]
[null,"91B Beaconsfield to Chullora tee St Peters Transmission Line 15 Minute Limit","231 MVA","Secondary of CT (protection metering or indication)","No",""]
[null,"91B Beaconsfield to Chullora tee St Peters Transmission Line 10 Minute Limit","231 MVA","Secondary of CT (protection metering or indication)","No",""]
[null,"91B Beaconsfield to Chullora tee St Peters Transmission Line 5 Minute Limit","231 MVA","Secondary of CT (protection metering or indication)","No",""]
[null,"91F Sydney South to Peakhurst Transmission Line Normal Limit","455 MVA","Overhead transmission line","No",""]
[null,"91F Sydney South to Peakhurst Transmission Line Contingency Limit","570 MVA","Overhead transmission line","No",""]
[null,"91F Sydney South to Peakhurst Transmission Line 15 Minute Limit","571 MVA","High voltage connections","No",""]
[null,"91F Sydney South to Peakhurst Transmission Line 10 Minute Limit","571 MVA","High voltage connections","No",""]
[null,"91F Sydney South to Peakhurst Transmission Line 5 Minute Limit","572 MVA","Secondary of CT (protection metering or indication)","No",""]
[null,"91G Haymarket to City North  Transmission Line Normal Limit","225 MVA","Underground cable","No",""]
[null,"91G Haymarket to City North  Transmission Line Contingency Limit","225 MVA","Underground cable","No",""]
[null,"91G Haymarket to City North  Transmission Line 15 Minute Limit","240 MVA","Secondary of CT (protection metering or indication)","No",""]
[null,"91G Haymarket to City North  Transmission Line 10 Minute Limit","240 MVA","Secondary of CT (protection metering or indication)","No",""]
[null,"91G Haymarket to City North  Transmission Line 5 Minute Limit","240 MVA","Secondary of CT (protection metering or indication)","No",""]
[null,"91J Sydney South to Peakhurst Transmission Line Normal Limit","455 MVA","Overhead transmission line","No",""]
[null,"91J Sydney South to Peakhurst Transmission Line Contingency Limit","545 MVA","Overhead transmission line","No",""]
[null,"91J Sydney South to Peakhurst Transmission Line 15 Minute Limit","571 MVA","High voltage connections","No",""]
[null,"91J Sydney South to Peakhurst Transmission Line 10 Minute Limit","571 MVA","High voltage connections","No",""]
[null,"91J Sydney South to Peakhurst Transmission Line 5 Minute Limit","572 MVA","Secondary of CT (protection metering or indication)","No",""]
[null,"91U Beaconsfield South to Marrickville Transmission Line Normal Limit","230 MVA","Underground cable","No",""]
[null,"91U Beaconsfield South to Marrickville Transmission Line Contingency Limit","230 MVA","Underground cable","No",""]
[null,"91U Beaconsfield South to Marrickville Transmission Line 15 Minute Limit","300 MVA","Secondary of CT (protection metering or indication)","No",""]
[null,"91U Beaconsfield South to Marrickville Transmission Line 10 Minute Limit","300 MVA","Secondary of CT (protection metering or indication)","No",""]
[null,"91U Beaconsfield South to Marrickville Transmission Line 5 Minute Limit","300 MVA","Secondary of CT (protection metering or indication)","No",""]
[null,"91X Beaconsfield South to Chullora tee Marrickville Transmission Line Normal Limit","100 MVA","Underground cable","No",""]
[null,"91X Beaconsfield South to Chullora tee Marrickville Transmission Line Contingency Limit","115 MVA","Underground cable","No",""]
[null,"91X Beaconsfield South to Chullora tee Marrickville Transmission Line 15 Minute Limit","231 MVA","Secondary of CT (protection metering or indication)","No",""]
[null,"91X Beaconsfield South to Chullora tee Marrickville Transmission Line 10 Minute Limit","231 MVA","Secondary of CT (protection metering or indication)","No",""]
[null,"91X Beaconsfield South to Chullora tee Marrickville Transmission Line 5 Minute Limit","231 MVA","Secondary of CT (protection metering or indication)","No",""]
[null,"91Y Beaconsfield South to Chullora tee Marrickville Transmission Line Normal Limit","100 MVA","Underground cable","No",""]
[null,"91Y Beaconsfield South to Chullora tee Marrickville Transmission Line Contingency Limit","115 MVA","Underground cable","No",""]
[null,"91Y Beaconsfield South to Chullora tee Marrickville Transmission Line 15 Minute Limit","231 MVA","Secondary of CT (protection metering or indication)","No",""]
[null,"91Y Beaconsfield South to Chullora tee Marrickville Transmission Line 10 Minute Limit","231 MVA","Secondary of CT (protection metering or indication)","No",""]
[null,"91Y Beaconsfield South to Chullora tee Marrickville Transmission Line 5 Minute Limit","231 MVA","Secondary of CT (protection metering or indication)","No",""]
[null,"925 Sydney  East to Willoughby tee Castle Cove tee Mosman Transmission Line Normal Limit","225 MVA","Underground cable","No",""]
[null,"925 Sydney  East to Willoughby tee Castle Cove tee Mosman Transmission Line Contingency Limit","240 MVA","Contingencies Reactor","No",""]
[null,"925 Sydney  East to Willoughby tee Castle Cove tee Mosman Transmission Line 15 Minute Limit","240 MVA","Contingencies Reactor","No",""]
[null,"925 Sydney  East to Willoughby tee Castle Cove tee Mosman Transmission Line 10 Minute Limit","240 MVA","Contingencies Reactor","No",""]
[null,"925 Sydney  East to Willoughby tee Castle Cove tee Mosman Transmission Line 5 Minute Limit","240 MVA","Contingencies Reactor","No",""]
[null,"926 Sydney North to Mason Park tee Carlingford Transmission Line Normal Limit","455 MVA","Overhead transmission line","No",""]
[null,"926 Sydney North to Mason Park tee Carlingford Transmission Line Contingency Limit","545 MVA","Overhead transmission line","No",""]
[null,"926 Sydney North to Mason Park tee Carlingford Transmission Line 15 Minute Limit","686 MVA","Secondary of CT (protection metering or indication)","No",""]
[null,"926 Sydney North to Mason Park tee Carlingford Transmission Line 10 Minute Limit","686 MVA","Secondary of CT (protection metering or indication)","No",""]
[null,"926 Sydney North to Mason Park tee Carlingford Transmission Line 5 Minute Limit","686 MVA","Secondary of CT (protection metering or indication)","No",""]
[null,"927 Sydney North to Homebush Bay Transmission Line Normal Limit","465 MVA","Overhead transmission line","No",""]
[null,"927 Sydney North to Homebush Bay Transmission Line Contingency Limit","535 MVA","Overhead transmission line","No",""]
[null,"927 Sydney North to Homebush Bay Transmission Line 15 Minute Limit","581 MVA","Protection trip setting","No",""]
[null,"927 Sydney North to Homebush Bay Transmission Line 10 Minute Limit","581 MVA","Protection trip setting","No",""]
[null,"927 Sydney North to Homebush Bay Transmission Line 5 Minute Limit","581 MVA","Protection trip setting","No",""]
[null,"928 Dalley St to Surry Hills Transmission Line Normal Limit","125 MVA","Underground cable","No",""]
[null,"928 Dalley St to Surry Hills Transmission Line Contingency Limit","145 MVA","Underground cable","No",""]
[null,"929 Dalley St to Lane Cove Transmission Line Normal Limit","120 MVA","Underground cable","No",""]
[null,"929 Dalley St to Lane Cove Transmission Line Contingency Limit","130 MVA","Underground cable","No",""]
[null,"92A Sydney North to Lane Cove tee Macquarie Park Transmission Line Normal Limit","455 MVA","Overhead transmission line","No",""]
[null,"92A Sydney North to Lane Cove tee Macquarie Park Transmission Line Contingency Limit","545 MVA","Overhead transmission line","No",""]
[null,"92A Sydney North to Lane Cove tee Macquarie Park Transmission Line 15 Minute Limit","640 MVA","Protection trip setting","No",""]
[null,"92A Sydney North to Lane Cove tee Macquarie Park Transmission Line 10 Minute Limit","640 MVA","Protection trip setting","No",""]
[null,"92A Sydney North to Lane Cove tee Macquarie Park Transmission Line 5 Minute Limit","640 MVA","Protection trip setting","No",""]
[null,"92B Sydney North to Lane Cove tee Macquarie Park Transmission Line Normal Limit","455 MVA","Overhead transmission line","No",""]
[null,"92B Sydney North to Lane Cove tee Macquarie Park Transmission Line Contingency Limit","510 MVA","Overhead transmission line","No",""]
[null,"92B Sydney North to Lane Cove tee Macquarie Park Transmission Line 15 Minute Limit","512 MVA","Disconnector","No",""]
[null,"92B Sydney North to Lane Cove tee Macquarie Park Transmission Line 10 Minute Limit","512 MVA","Disconnector","No",""]
[null,"92B Sydney North to Lane Cove tee Macquarie Park Transmission Line 5 Minute Limit","512 MVA","Disconnector","No",""]
[null,"92E Haymarket to City North  Transmission Line Normal Limit","225 MVA","Underground cable","No",""]
[null,"92E Haymarket to City North  Transmission Line Contingency Limit","225 MVA","Underground cable","No",""]
[null,"92E Haymarket to City North  Transmission Line 15 Minute Limit","240 MVA","Secondary of CT (protection metering or indication)","No",""]
[null,"92E Haymarket to City North  Transmission Line 10 Minute Limit","240 MVA","Secondary of CT (protection metering or indication)","No",""]
[null,"92E Haymarket to City North  Transmission Line 5 Minute Limit","240 MVA","Secondary of CT (protection metering or indication)","No",""]
[null,"92P Beaconsfield South to Belmore Parks Transmission Line Normal Limit","145 MVA","Underground cable","No",""]
[null,"92P Beaconsfield South to Belmore Parks  Transmission Line Contingency Limit","165 MVA","Underground cable","No",""]
[null,"92P Beaconsfield South to Belmore Parks  Transmission Line 15 Minute Limit","329 MVA","Secondary of CT (protection metering or indication)","No",""]
[null,"92P Beaconsfield South to Belmore Parks  Transmission Line 10 Minute Limit","329 MVA","Secondary of CT (protection metering or indication)","No",""]
[null,"92P Beaconsfield South to Belmore Parks  Transmission Line 5 Minute Limit","329 MVA","Secondary of CT (protection metering or indication)","No",""]
[null,"92X Chullora to St Peter Transmission Line Normal Limit","105 MVA","Underground cable","No",""]
[null,"92X Chullora to St Peter Transmission Line Contingency Limit","125 MVA","Underground cable","No",""]
[null,"92Z Sydney North to Sydney East Transmission Line Normal Limit","243 MVA","Overhead transmission line","No",""]
[null,"92Z Sydney North to Sydney East Transmission Line Contingency Limit","286 MVA","Overhead transmission line","No",""]
[null,"92Z Sydney North to Sydney East Transmission Line 15 Minute Limit","317 MVA","Overhead transmission line","No",""]
[null,"92Z Sydney North to Sydney East Transmission Line 10 Minute Limit","338 MVA","Overhead transmission line","No",""]
[null,"92Z Sydney North to Sydney East Transmission Line 5 Minute Limit","387 MVA","Overhead transmission line","No",""]
[null,"932 Sydney West to Mt Druitt Transmission Line Normal Limit","366 MVA","Overhead transmission line","No",""]
[null,"932 Sydney West to Mt Druitt Transmission Line Contingency Limit","366 MVA","Overhead transmission line","No",""]
[null,"932 Sydney West to Mt Druitt Transmission Line 15 Minute Limit","629 MVA","Disconnector","No",""]
[null,"932 Sydney West to Mt Druitt Transmission Line 10 Minute Limit","657 MVA","Disconnector","No",""]
[null,"932 Sydney West to Mt Druitt Transmission Line 5 Minute Limit","658 MVA","Secondary of CT (protection metering or indication)","No",""]
[null,"937 Regentville to Warragamba Transmission Line Normal Limit","62 MVA","Overhead transmission line","No",""]
[null,"937 Regentville to Warragamba Transmission Line Contingency Limit","62 MVA","Overhead transmission line","No",""]
[null,"937 Regentville to Warragamba Transmission Line 15 Minute Limit","183 MVA","Secondary of CT (protection metering or indication)","No",""]
[null,"937 Regentville to Warragamba Transmission Line 10 Minute Limit","183 MVA","Secondary of CT (protection metering or indication)","No",""]
[null,"937 Regentville to Warragamba Transmission Line 5 Minute Limit","183 MVA","Secondary of CT (protection metering or indication)","No",""]
[null,"938 Vineyard to Rouse Hill Transmission Line Normal Limit","495 MVA","High voltage connections","No",""]
[null,"938 Vineyard to Rouse Hill Transmission Line Contingency Limit","495 MVA","High voltage connections","No",""]
[null,"938 Vineyard to Rouse Hill Transmission Line 15 Minute Limit","495 MVA","High voltage connections","No",""]
[null,"938 Vineyard to Rouse Hill Transmission Line 10 Minute Limit","495 MVA","High voltage connections","No",""]
[null,"938 Vineyard to Rouse Hill Transmission Line 5 Minute Limit","495 MVA","High voltage connections","No",""]
[null,"939 Sydney West to Mamre Transmission Line Normal Limit","145 MVA","Overhead transmission line","No",""]
[null,"939 Sydney West to Mamre Transmission Line Contingency Limit","230 MVA","Overhead transmission line","No",""]
[null,"939 Sydney West to Mamre Transmission Line 15 Minute Limit","274 MVA","Disconnector","No",""]
[null,"939 Sydney West to Mamre Transmission Line 10 Minute Limit","274 MVA","Disconnector","No",""]
[null,"939 Sydney West to Mamre Transmission Line 5 Minute Limit","274 MVA","Disconnector","No",""]
[null,"93A Sydney West to Blacktown Transmission Line Normal Limit","504 MVA","Secondary of CT (protection metering or indication)","No",""]
[null,"93A Sydney West to Blacktown Transmission Line Contingency Limit","504 MVA","Secondary of CT (protection metering or indication)","No",""]
[null,"93A Sydney West to Blacktown Transmission Line 15 Minute Limit","504 MVA","Secondary of CT (protection metering or indication)","No",""]
[null,"93A Sydney West to Blacktown Transmission Line 10 Minute Limit","504 MVA","Secondary of CT (protection metering or indication)","No",""]
[null,"93A Sydney West to Blacktown Transmission Line 5 Minute Limit","504 MVA","Secondary of CT (protection metering or indication)","No",""]
[null,"93B Liverpool to West Liverpool Transmission Line Normal Limit","375 MVA","Overhead transmission line","No",""]
[null,"93B Liverpool to West Liverpool Transmission Line Contingency Limit","375 MVA","Overhead transmission line","No",""]
[null,"93B Liverpool to West Liverpool Transmission Line 15 Minute Limit","604 MVA","Secondary of CT (protection metering or indication)","No",""]
[null,"93B Liverpool to West Liverpool Transmission Line 10 Minute Limit","604 MVA","Secondary of CT (protection metering or indication)","No",""]
[null,"93B Liverpool to West Liverpool Transmission Line 5 Minute Limit","604 MVA","Secondary of CT (protection metering or indication)","No",""]
[null,"93C Haymarket to City North  Transmission Line Normal Limit","225 MVA","Underground cable","No",""]
[null,"93C Haymarket to City North  Transmission Line Contingency Limit","225 MVA","Underground cable","No",""]
[null,"93C Haymarket to City North  Transmission Line 15 Minute Limit","240 MVA","Secondary of CT (protection metering or indication)","No",""]
[null,"93C Haymarket to City North  Transmission Line 10 Minute Limit","240 MVA","Secondary of CT (protection metering or indication)","No",""]
[null,"93C Haymarket to City North  Transmission Line 5 Minute Limit","240 MVA","Secondary of CT (protection metering or indication)","No",""]
[null,"93F Holroyd to Guildford Transmission Line Normal Limit","424 MVA","Overhead transmission line","No",""]
[null,"93F Holroyd to Guildford Transmission Line Contingency Limit","424 MVA","Overhead transmission line","No",""]
[null,"93F Holroyd to Guildford Transmission Line 15 Minute Limit","571 MVA","High voltage connections","No",""]
[null,"93F Holroyd to Guildford Transmission Line 10 Minute Limit","571 MVA","High voltage connections","No",""]
[null,"93F Holroyd to Guildford Transmission Line 5 Minute Limit","571 MVA","High voltage connections","No",""]
[null,"93H Haymarket to Belmore Park Transmission Line Normal Limit","240 MVA","Secondary of CT (protection metering or indication)","No",""]
[null,"93H Haymarket to Belmore Park Transmission Line Contingency Limit","240 MVA","Secondary of CT (protection metering or indication)","No",""]
[null,"93H Haymarket to Belmore Park Transmission Line 15 Minute Limit","240 MVA","Secondary of CT (protection metering or indication)","No",""]
[null,"93H Haymarket to Belmore Park Transmission Line 10 Minute Limit","240 MVA","Secondary of CT (protection metering or indication)","No",""]
[null,"93H Haymarket to Belmore Park Transmission Line 5 Minute Limit","240 MVA","Secondary of CT (protection metering or indication)","No",""]
[null,"93J Sydney West to Guildford Transmission Line Normal Limit","183 MVA","Overhead transmission line","No",""]
[null,"93J Sydney West to Guildford Transmission Line Contingency Limit","183 MVA","Overhead transmission line","No",""]
[null,"93J Sydney West to Guildford Transmission Line 15 Minute Limit","504 MVA","Secondary of CT (protection metering or indication)","No",""]
[null,"93J Sydney West to Guildford Transmission Line 10 Minute Limit","504 MVA","Secondary of CT (protection metering or indication)","No",""]
[null,"93J Sydney West to Guildford Transmission Line 5 Minute Limit","504 MVA","Secondary of CT (protection metering or indication)","No",""]
[null,"93L Holroyd to Guildford Transmission Line Normal Limit","424 MVA","Overhead transmission line","No",""]
[null,"93L Holroyd to Guildford Transmission Line Contingency Limit","424 MVA","Overhead transmission line","No",""]
[null,"93L Holroyd to Guildford Transmission Line 15 Minute Limit","571 MVA","High voltage connections","No",""]
[null,"93L Holroyd to Guildford Transmission Line 10 Minute Limit","571 MVA","High voltage connections","No",""]
[null,"93L Holroyd to Guildford Transmission Line 5 Minute Limit","571 MVA","High voltage connections","No",""]
[null,"93M Sydney West to West Wetherill Park Transmission Line Normal Limit","504 MVA","Secondary of CT (protection metering or indication)","No",""]
[null,"93M Sydney West to West Wetherill Park Transmission Line Contingency Limit","504 MVA","Secondary of CT (protection metering or indication)","No",""]
[null,"93M Sydney West to West Wetherill Park Transmission Line 15 Minute Limit","504 MVA","Secondary of CT (protection metering or indication)","No",""]
[null,"93M Sydney West to West Wetherill Park Transmission Line 10 Minute Limit","504 MVA","Secondary of CT (protection metering or indication)","No",""]
[null,"93M Sydney West to West Wetherill Park Transmission Line 5 Minute Limit","504 MVA","Secondary of CT (protection metering or indication)","No",""]
[null,"93N Liverpool to West Liverpool Transmission Line Normal Limit","375 MVA","Overhead transmission line","No",""]
[null,"93N Liverpool to West Liverpool Transmission Line Contingency Limit","375 MVA","Overhead transmission line","No",""]
[null,"93N Liverpool to West Liverpool Transmission Line 15 Minute Limit","604 MVA","Secondary of CT (protection metering or indication)","No",""]
[null,"93N Liverpool to West Liverpool Transmission Line 10 Minute Limit","604 MVA","Secondary of CT (protection metering or indication)","No",""]
[null,"93N Liverpool to West Liverpool Transmission Line 5 Minute Limit","604 MVA","Secondary of CT (protection metering or indication)","No",""]
[null,"93R Liverpool to West Liverpool Transmission Line Normal Limit","375 MVA","Overhead transmission line","No",""]
[null,"93R Liverpool to West Liverpool Transmission Line Contingency Limit","375 MVA","Overhead transmission line","No",""]
[null,"93R Liverpool to West Liverpool Transmission Line 15 Minute Limit","572 MVA","High voltage connections","No",""]
[null,"93R Liverpool to West Liverpool Transmission Line 10 Minute Limit","572 MVA","High voltage connections","No",""]
[null,"93R Liverpool to West Liverpool Transmission Line 5 Minute Limit","572 MVA","High voltage connections","No",""]
[null,"93U Sydney West to West Liverpool Transmission Line Normal Limit","328 MVA","Secondary of CT (protection metering or indication)","No",""]
[null,"93U Sydney West to West Liverpool Transmission Line Contingency Limit","328 MVA","Secondary of CT (protection metering or indication)","No",""]
[null,"93U Sydney West to West Liverpool Transmission Line 15 Minute Limit","328 MVA","Secondary of CT (protection metering or indication)","No",""]
[null,"93U Sydney West to West Liverpool Transmission Line 10 Minute Limit","328 MVA","Secondary of CT (protection metering or indication)","No",""]
[null,"93U Sydney West to West Liverpool Transmission Line 5 Minute Limit","328 MVA","Secondary of CT (protection metering or indication)","No",""]
[null,"93X Sydney West to Nepean Transmission Line Normal Limit","113 MVA","Overhead transmission line","No",""]
[null,"93X Sydney West to Nepean Transmission Line Contingency Limit","142 MVA","Overhead transmission line","No",""]
[null,"93X Sydney West to Nepean Transmission Line 15 Minute Limit","256 MVA","High voltage connections","No",""]
[null,"93X Sydney West to Nepean Transmission Line 10 Minute Limit","256 MVA","High voltage connections","No",""]
[null,"93X Sydney West to Nepean Transmission Line 5 Minute Limit","256 MVA","High voltage connections","No",""]
[null,"93Z Sydney West to Blacktown Transmission Line Normal Limit","504 MVA","Overhead transmission line","No",""]
[null,"93Z Sydney West to Blacktown Transmission Line Contingency Limit","504 MVA","Overhead transmission line","No",""]
[null,"93Z Sydney West to Blacktown Transmission Line 15 Minute Limit","512 MVA","High voltage connections","No",""]
[null,"93Z Sydney West to Blacktown Transmission Line 10 Minute Limit","512 MVA","High voltage connections","No",""]
[null,"93Z Sydney West to Blacktown Transmission Line 5 Minute Limit","512 MVA","High voltage connections","No",""]
[null,"940 Wallerawang to Warrimoo Transmission Line Normal Limit","102 MVA","Overhead transmission line","No",""]
[null,"940 Wallerawang to Warrimoo Transmission Line Contingency Limit","102 MVA","Overhead transmission line","No",""]
[null,"940 Wallerawang to Warrimoo Transmission Line 15 Minute Limit","229 MVA","Secondary of CT (protection metering or indication)","No",""]
[null,"940 Wallerawang to Warrimoo Transmission Line 10 Minute Limit","229 MVA","Secondary of CT (protection metering or indication)","No",""]
[null,"940 Wallerawang to Warrimoo Transmission Line 5 Minute Limit","229 MVA","Secondary of CT (protection metering or indication)","No",""]
[null,"941 Wallerawang to Lawson tee Transmission Line Normal Limit","109 MVA","Overhead transmission line","No",""]
[null,"941 Wallerawang to Lawson tee Transmission Line Contingency Limit","109 MVA","Overhead transmission line","No",""]
[null,"941 Wallerawang to Lawson tee Transmission Line 15 Minute Limit","176 MVA","Protection trip setting","No",""]
[null,"941 Wallerawang to Lawson tee Transmission Line 10 Minute Limit","176 MVA","Protection trip setting","No",""]
[null,"941 Wallerawang to Lawson tee Transmission Line 5 Minute Limit","176 MVA","Protection trip setting","No",""]
[null,"944 Orange North to New Wallerawang Transmission Line Normal Limit","97 MVA","Overhead transmission line","No",""]
[null,"944 Orange North to New Wallerawang Transmission Line Contingency Limit","104 MVA","Overhead transmission line","No",""]
[null,"944 Orange North to New Wallerawang Transmission Line 15 Minute Limit","104 MVA","Overhead transmission line","No",""]
[null,"944 Orange North to New Wallerawang Transmission Line 10 Minute Limit","104 MVA","Overhead transmission line","No",""]
[null,"944 Orange North to New Wallerawang Transmission Line 5 Minute Limit","107 MVA","Overhead transmission line","No",""]
[null,"945/1 Molong to tee Transmission Line Normal Limit","112 MVA","Overhead transmission line","No",""]
[null,"945/1 Molong to tee Transmission Line Contingency Limit","120 MVA","Overhead transmission line","No",""]
[null,"945/1 Molong to tee Transmission Line 15 Minute Limit","120 MVA","Overhead transmission line","No",""]
[null,"945/1 Molong to tee Transmission Line 10 Minute Limit","120 MVA","Overhead transmission line","No",""]
[null,"945/1 Molong to tee Transmission Line 5 Minute Limit","122 MVA","Overhead transmission line","No",""]
[null,"945/2 Wellington to tee Transmission Line Normal Limit","112 MVA","Overhead transmission line","No",""]
[null,"945/2 Wellington to tee Transmission Line Contingency Limit","120 MVA","Overhead transmission line","No",""]
[null,"945/2 Wellington to tee Transmission Line 15 Minute Limit","120 MVA","Overhead transmission line","No",""]
[null,"945/2 Wellington to tee Transmission Line 10 Minute Limit","120 MVA","Overhead transmission line","No",""]
[null,"945/2 Wellington to tee Transmission Line 5 Minute Limit","122 MVA","Overhead transmission line","No",""]
[null,"945/3 tee to Wellington Town Transmission Line Normal Limit","112 MVA","Overhead transmission line","No",""]
[null,"945/3 tee to Wellington Town Transmission Line Contingency Limit","120 MVA","Overhead transmission line","No",""]
[null,"945/3 tee to Wellington Town Transmission Line 15 Minute Limit","120 MVA","Overhead transmission line","No",""]
[null,"945/3 tee to Wellington Town Transmission Line 10 Minute Limit","120 MVA","Overhead transmission line","No",""]
[null,"945/3 tee to Wellington Town Transmission Line 5 Minute Limit","122 MVA","Overhead transmission line","No",""]
[null,"947 Wellington to Orange North Transmission Line Normal Limit","134 MVA","Overhead transmission line","No",""]
[null,"947 Wellington to Orange North Transmission Line Contingency Limit","143 MVA","Overhead transmission line","No",""]
[null,"947 Wellington to Orange North Transmission Line 15 Minute Limit","143 MVA","Overhead transmission line","No",""]
[null,"947 Wellington to Orange North Transmission Line 10 Minute Limit","143 MVA","Overhead transmission line","No",""]
[null,"947 Wellington to Orange North Transmission Line 5 Minute Limit","152 MVA","Overhead transmission line","No",""]
[null,"948 Panorama to Orange North Transmission Line Normal Limit","134 MVA","Overhead transmission line","No",""]
[null,"948 Panorama to Orange North Transmission Line Contingency Limit","143 MVA","Overhead transmission line","No",""]
[null,"948 Panorama to Orange North Transmission Line 15 Minute Limit","143 MVA","Overhead transmission line","No",""]
[null,"948 Panorama to Orange North Transmission Line 10 Minute Limit","143 MVA","Overhead transmission line","No",""]
[null,"948 Panorama to Orange North Transmission Line 5 Minute Limit","152 MVA","Overhead transmission line","No",""]
[null,"949 Mt Piper 132 kV to Orange North Transmission Line Normal Limit","134 MVA","Overhead transmission line","No",""]
[null,"949 Mt Piper 132 kV to Orange North Transmission Line Contingency Limit","143 MVA","Overhead transmission line","No",""]
[null,"949 Mt Piper 132 kV to Orange North Transmission Line 15 Minute Limit","143 MVA","Overhead transmission line","No",""]
[null,"949 Mt Piper 132 kV to Orange North Transmission Line 10 Minute Limit","143 MVA","Overhead transmission line","No",""]
[null,"949 Mt Piper 132 kV to Orange North Transmission Line 5 Minute Limit","152 MVA","Overhead transmission line","No",""]
[null,"94B Wellington to Beryl tee Bodangora Wind Farm Transmission Line Normal Limit","134 MVA","Overhead transmission line","No",""]
[null,"94B Wellington to Beryl tee Bodangora Wind Farml Transmission Line Contingency Limit","143 MVA","Overhead transmission line","No",""]
[null,"94B Wellington to Beryl tee Bodangora Wind Farm Transmission Line 15 Minute Limit","143 MVA","Overhead transmission line","No",""]
[null,"94B Wellington to Beryl tee Bodangora Wind Farm Transmission Line 10 Minute Limit","143 MVA","Overhead transmission line","No",""]
[null,"94B Wellington to Beryl tee Bodangora Wind Farm Transmission Line 5 Minute Limit","152 MVA","Overhead transmission line","No",""]
[null,"94C Wallerawang New to Oberon Transmission Line Normal Limit","82 MVA","Secondary of CT (protection metering or indication)","No",""]
[null,"94C Wallerawang New to Oberon Transmission Line Contingency Limit","85 MVA","Secondary of CT (protection metering or indication)","No",""]
[null,"94C Wallerawang New to Oberon Transmission Line 15 Minute Limit","85 MVA","Secondary of CT (protection metering or indication)","No",""]
[null,"94C Wallerawang New to Oberon Transmission Line 10 Minute Limit","85 MVA","Secondary of CT (protection metering or indication)","No",""]
[null,"94C Wallerawang New to Oberon Transmission Line 5 Minute Limit","85 MVA","Secondary of CT (protection metering or indication)","No",""]
[null,"94E Wallerawang 132 kV to Mt Piper 132 kV Transmission Line Normal Limit","244 MVA","Overhead transmission line","No",""]
[null,"94E Wallerawang 132 kV to Mt Piper 132 kV Transmission Line Contingency Limit","287 MVA","Overhead transmission line","No",""]
[null,"94E Wallerawang 132 kV to Mt Piper 132 kV Transmission Line 15 Minute Limit","316 MVA","Overhead transmission line","No",""]
[null,"94E Wallerawang 132 kV to Mt Piper 132 kV Transmission Line 10 Minute Limit","340 MVA","Overhead transmission line","No",""]
[null,"94E Wallerawang 132 kV to Mt Piper 132 kV Transmission Line 5 Minute Limit","391 MVA","Overhead transmission line","No",""]
[null,"94F Wellington to Dubbo Transmission Line Normal Limit","180 MVA","Overhead transmission line","No",""]
[null,"94F Wellington to Dubbo Transmission Line Contingency Limit","213 MVA","Overhead transmission line","No",""]
[null,"94F Wellington to Dubbo Transmission Line 15 Minute Limit","229 MVA","Secondary of CT (protection metering or indication)","No",""]
[null,"94F Wellington to Dubbo Transmission Line 10 Minute Limit","229 MVA","Secondary of CT (protection metering or indication)","No",""]
[null,"94F Wellington to Dubbo Transmission Line 5 Minute Limit","229 MVA","Secondary of CT (protection metering or indication)","No",""]
[null,"94G Orange to Cadia Transmission Line Normal Limit","142 MVA","Overhead transmission line","No",""]
[null,"94G Orange to Cadia Transmission Line Contingency Limit","152 MVA","Overhead transmission line","No",""]
[null,"94G Orange to Cadia Transmission Line 15 Minute Limit","184 MVA","Overhead transmission line","No",""]
[null,"94G Orange to Cadia Transmission Line 10 Minute Limit","185 MVA","Overhead transmission line","No",""]
[null,"94G Orange to Cadia Transmission Line 5 Minute Limit","198 MVA","Overhead transmission line","No",""]
[null,"94H Parkes to Manildra Transmission Line Normal Limit","134 MVA","Overhead transmission line","No",""]
[null,"94H Parkes to Manildra Transmission Line Contingency Limit","143 MVA","Overhead transmission line","No",""]
[null,"94H Parkes to Manildra Transmission Line 15 Minute Limit","143 MVA","Overhead transmission line","No",""]
[null,"94H Parkes to Manildra Transmission Line 10 Minute Limit","143 MVA","Overhead transmission line","No",""]
[null,"94H Parkes to Manildra Transmission Line 5 Minute Limit","152 MVA","Overhead transmission line","No",""]
[null,"94J Wellington to Dubbo Transmission Line Normal Limit","180 MVA","Overhead transmission line","No",""]
[null,"94J Wellington to Dubbo Transmission Line Contingency Limit","202 MVA","Secondary of CT (protection metering or indication)","No",""]
[null,"94J Wellington to Dubbo Transmission Line 15 Minute Limit","202 MVA","Secondary of CT (protection metering or indication)","No",""]
[null,"94J Wellington to Dubbo Transmission Line 10 Minute Limit","202 MVA","Secondary of CT (protection metering or indication)","No",""]
[null,"94J Wellington to Dubbo Transmission Line 5 Minute Limit","202 MVA","Secondary of CT (protection metering or indication)","No",""]
[null,"94K/1 Wellington to 94K tee Transmission Line Normal Limit","134 MVA","Overhead transmission line","No",""]
[null,"94K/1 Wellington to 94K tee Transmission Line Contingency Limit","143 MVA","Overhead transmission line","No",""]
[null,"94K/1 Wellington to 94K tee Transmission Line 15 Minute Limit","143 MVA","Overhead transmission line","No",""]
[null,"94K/1 Wellington to 94K tee Transmission Line 10 Minute Limit","143 MVA","Overhead transmission line","No",""]
[null,"94K/1 Wellington to 94K tee Transmission Line 5 Minute Limit","152 MVA","Overhead transmission line","No",""]
[null,"94K/2 Parkes to 94K tee Transmission Line Normal Limit","134 MVA","Overhead transmission line","No",""]
[null,"94K/2 Parkes to 94K tee Transmission Line Contingency Limit","143 MVA","Overhead transmission line","No",""]
[null,"94K/2 Parkes to 94K tee Transmission Line 15 Minute Limit","143 MVA","Overhead transmission line","No",""]
[null,"94K/2 Parkes to 94K tee Transmission Line 10 Minute Limit","143 MVA","Overhead transmission line","No",""]
[null,"94K/2 Parkes to 94K tee Transmission Line 5 Minute Limit","152 MVA","Overhead transmission line","No",""]
[null,"94K/3 Wellington West to 94K tee Transmission Line Normal Limit","134 MVA","Overhead transmission line","No",""]
[null,"94K/3 Wellington West to 94K tee Transmission Line Contingency Limit","143 MVA","Overhead transmission line","No",""]
[null,"94K/3 Wellington West to 94K tee Transmission Line 15 Minute Limit","143 MVA","Overhead transmission line","No",""]
[null,"94K/3 Wellington West to 94K tee Transmission Line 10 Minute Limit","143 MVA","Overhead transmission line","No",""]
[null,"94K/3 Wellington West to 94K tee Transmission Line 5 Minute Limit","144 MVA","High voltage connections","No",""]
[null,"94M Mt Piper 132 kV to Beryl Transmission Line Normal Limit","134 MVA","Overhead transmission line","No",""]
[null,"94M Mt Piper 132 kV to Beryl Transmission Line Contingency Limit","143 MVA","Overhead transmission line","No",""]
[null,"94M Mt Piper 132 kV to Beryl Transmission Line 15 Minute Limit","143 MVA","Overhead transmission line","No",""]
[null,"94M Mt Piper 132 kV to Beryl Transmission Line 10 Minute Limit","143 MVA","Overhead transmission line","No",""]
[null,"94M Mt Piper 132 kV to Beryl Transmission Line 5 Minute Limit","152 MVA","Overhead transmission line","No",""]
[null,"94P Molong to Manildra Transmission Line Normal Limit","145 MVA","Overhead transmission line","No",""]
[null,"94P Molong to Manildra Transmission Line Contingency Limit","155 MVA","Overhead transmission line","No",""]
[null,"94P Molong to Manildra Transmission Line 15 Minute Limit","155 MVA","Overhead transmission line","No",""]
[null,"94P Molong to Manildra Transmission Line 10 Minute Limit","155 MVA","Overhead transmission line","No",""]
[null,"94P Molong to Manildra Transmission Line 5 Minute Limit","165 MVA","Overhead transmission line","No",""]
[null,"94T Orange North to Molong Transmission Line Normal Limit","112 MVA","Overhead transmission line","Yes","Need N2470"]
[null,"94T Orange North to Molong Transmission Line Contingency Limit","120 MVA","Overhead transmission line","No",""]
[null,"94T Orange North to Molong Transmission Line 15 Minute Limit","120 MVA","Overhead transmission line","No",""]
[null,"94T Orange North to Molong Transmission Line 10 Minute Limit","120 MVA","Overhead transmission line","No",""]
[null,"94T Orange North to Molong Transmission Line 5 Minute Limit","122 MVA","Overhead transmission line","No",""]
[null,"94U Parkes to Forbes Transmission Line Normal Limit","134 MVA","Overhead transmission line","No",""]
[null,"94U Parkes to Forbes Transmission Line Contingency Limit","143 MVA","Overhead transmission line","No",""]
[null,"94U Parkes to Forbes Transmission Line 15 Minute Limit","143 MVA","Overhead transmission line","No",""]
[null,"94U Parkes to Forbes Transmission Line 10 Minute Limit","143 MVA","Overhead transmission line","No",""]
[null,"94U Parkes to Forbes Transmission Line 5 Minute Limit","152 MVA","Overhead transmission line","No",""]
[null,"94X Wallerawang to Panorama Transmission Line Normal Limit","134 MVA","Overhead transmission line","No",""]
[null,"94X Wallerawang to Panorama Transmission Line Contingency Limit","143 MVA","Overhead transmission line","No",""]
[null,"94X Wallerawang to Panorama Transmission Line 15 Minute Limit","143 MVA","Overhead transmission line","No",""]
[null,"94X Wallerawang to Panorama Transmission Line 10 Minute Limit","143 MVA","Overhead transmission line","No",""]
[null,"94X Wallerawang to Panorama Transmission Line 5 Minute Limit","152 MVA","Overhead transmission line","No",""]
[null,"94Y Mt. Piper 330 kV to Mt. Piper 132 kV Transmission Line Normal Limit","407 MVA","Overhead transmission line","No",""]
[null,"94Y Mt. Piper 330 kV to Mt. Piper 132 kV Transmission Line Contingency Limit","479 MVA","Overhead transmission line","No",""]
[null,"94Y Mt. Piper 330 kV to Mt. Piper 132 kV Transmission Line 15 Minute Limit","512 MVA","High voltage connections","No",""]
[null,"94Y Mt. Piper 330 kV to Mt. Piper 132 kV Transmission Line 10 Minute Limit","512 MVA","High voltage connections","No",""]
[null,"94Y Mt. Piper 330 kV to Mt. Piper 132 kV Transmission Line 5 Minute Limit","512 MVA","High voltage connections","No",""]
[null,"959 Sydney North to Sydney East Transmission Line Normal Limit","243 MVA","Overhead transmission line","No",""]
[null,"959 Sydney North to Sydney East Transmission Line Contingency Limit","286 MVA","Overhead transmission line","No",""]
[null,"959 Sydney North to Sydney East Transmission Line 15 Minute Limit","317 MVA","Overhead transmission line","No",""]
[null,"959 Sydney North to Sydney East Transmission Line 10 Minute Limit","338 MVA","Overhead transmission line","No",""]
[null,"959 Sydney North to Sydney East Transmission Line 5 Minute Limit","378 MVA","Secondary of CT (protection metering or indication)","No",""]
[null,"980 Dapto to Bellambi Creek Transmission Line Normal Limit","163 MVA","Overhead transmission line","No",""]
[null,"980 Dapto to Bellambi Creek Transmission Line Contingency Limit","163 MVA","Overhead transmission line","No",""]
[null,"980 Dapto to Bellambi Creek Transmission Line 15 Minute Limit","202 MVA","Secondary of CT (protection metering or indication)","No",""]
[null,"980 Dapto to Bellambi Creek Transmission Line 10 Minute Limit","202 MVA","Secondary of CT (protection metering or indication)","No",""]
[null,"980 Dapto to Bellambi Creek Transmission Line 5 Minute Limit","202 MVA","Secondary of CT (protection metering or indication)","No",""]
[null,"981 Dapto to Bellambi Creek Transmission Line Normal Limit","163 MVA","Overhead transmission line","No",""]
[null,"981 Dapto to Bellambi Creek Transmission Line Contingency Limit","163 MVA","Overhead transmission line","No",""]
[null,"981 Dapto to Bellambi Creek Transmission Line 15 Minute Limit","202 MVA","Secondary of CT (protection metering or indication)","No",""]
[null,"981 Dapto to Bellambi Creek Transmission Line 10 Minute Limit","202 MVA","Secondary of CT (protection metering or indication)","No",""]
[null,"981 Dapto to Bellambi Creek Transmission Line 5 Minute Limit","202 MVA","Secondary of CT (protection metering or indication)","No",""]
[null,"982 Dapto to Springhill Transmission Line Normal Limit","256 MVA","High voltage connections","No",""]
[null,"982 Dapto to Springhill Transmission Line Contingency Limit","256 MVA","High voltage connections","No",""]
[null,"982 Dapto to Springhill Transmission Line 15 Minute Limit","256 MVA","High voltage connections","No",""]
[null,"982 Dapto to Springhill Transmission Line 10 Minute Limit","256 MVA","High voltage connections","No",""]
[null,"982 Dapto to Springhill Transmission Line 5 Minute Limit","256 MVA","High voltage connections","No",""]
[null,"983 Dapto to Tallawarra Transmission Line Normal Limit","256 MVA","High voltage connections","No",""]
[null,"983 Dapto to Tallawarra Transmission Line Contingency Limit","256 MVA","High voltage connections","No",""]
[null,"983 Dapto to Tallawarra Transmission Line 15 Minute Limit","256 MVA","High voltage connections","No",""]
[null,"983 Dapto to Tallawarra Transmission Line 10 Minute Limit","256 MVA","High voltage connections","No",""]
[null,"983 Dapto to Tallawarra Transmission Line 5 Minute Limit","256 MVA","High voltage connections","No",""]
[null,"984 Dapto to Tallawarra Transmission Line Normal Limit","256 MVA","High voltage connections","No",""]
[null,"984 Dapto to Tallawarra Transmission Line Contingency Limit","256 MVA","High voltage connections","No",""]
[null,"984 Dapto to Tallawarra Transmission Line 15 Minute Limit","256 MVA","High voltage connections","No",""]
[null,"984 Dapto to Tallawarra Transmission Line 10 Minute Limit","256 MVA","High voltage connections","No",""]
[null,"984 Dapto to Tallawarra Transmission Line 5 Minute Limit","256 MVA","High voltage connections","No",""]
[null,"987 Dapto to Tallawarra Transmission Line Normal Limit","343 MVA","Overhead transmission line","No",""]
[null,"987 Dapto to Tallawarra Transmission Line Contingency Limit","343 MVA","Overhead transmission line","No",""]
[null,"987 Dapto to Tallawarra Transmission Line 15 Minute Limit","572 MVA","High voltage connections","No",""]
[null,"987 Dapto to Tallawarra Transmission Line 10 Minute Limit","572 MVA","High voltage connections","No",""]
[null,"987 Dapto to Tallawarra Transmission Line 5 Minute Limit","572 MVA","High voltage connections","No",""]
[null,"988 Dapto to Fairfax Lane Transmission Line Normal Limit","133 MVA","Overhead transmission line","No",""]
[null,"988 Dapto to Fairfax Lane Transmission Line Contingency Limit","133 MVA","Overhead transmission line","No",""]
[null,"988 Dapto to Fairfax Lane Transmission Line 15 Minute Limit","256 MVA","High voltage connections","No",""]
[null,"988 Dapto to Fairfax Lane Transmission Line 10 Minute Limit","256 MVA","High voltage connections","No",""]
[null,"988 Dapto to Fairfax Lane Transmission Line 5 Minute Limit","256 MVA","High voltage connections","No",""]
[null,"98F Dapto to Mt Terry Transmission Line Normal Limit","343 MVA","Overhead transmission line","No",""]
[null,"98F Dapto to Mt Terry Transmission Line Contingency Limit","343 MVA","Overhead transmission line","No",""]
[null,"98F Dapto to Mt Terry Transmission Line 15 Minute Limit","512 MVA","High voltage connections","No",""]
[null,"98F Dapto to Mt Terry Transmission Line 10 Minute Limit","512 MVA","High voltage connections","No",""]
[null,"98F Dapto to Mt Terry Transmission Line 5 Minute Limit","512 MVA","High voltage connections","No",""]
[null,"98W Dapto to Mt Terry Transmission Line Normal Limit","343 MVA","Overhead transmission line","No",""]
[null,"98W Dapto to Mt Terry Transmission Line Contingency Limit","343 MVA","Overhead transmission line","No",""]
[null,"98W Dapto to Mt Terry Transmission Line 15 Minute Limit","512 MVA","High voltage connections","No",""]
[null,"98W Dapto to Mt Terry Transmission Line 10 Minute Limit","512 MVA","High voltage connections","No",""]
[null,"98W Dapto to Mt Terry Transmission Line 5 Minute Limit","512 MVA","High voltage connections","No",""]
[null,"98Y Dapto to Springhill Transmission Line Normal Limit","256 MVA","High voltage connections","No",""]
[null,"98Y Dapto to Springhill Transmission Line Contingency Limit","256 MVA","High voltage connections","No",""]
[null,"98Y Dapto to Springhill Transmission Line 15 Minute Limit","256 MVA","High voltage connections","No",""]
[null,"98Y Dapto to Springhill Transmission Line 10 Minute Limit","256 MVA","High voltage connections","No",""]
[null,"98Y Dapto to Springhill Transmission Line 5 Minute Limit","256 MVA","High voltage connections","No",""]
[null,"998 Cowra to Forbes Transmission Line Normal Limit","102 MVA","Overhead transmission line","No",""]
[null,"998 Cowra to Forbes Transmission Line Contingency Limit","112 MVA","Overhead transmission line","No",""]
[null,"998 Cowra to Forbes Transmission Line 15 Minute Limit","112 MVA","Overhead transmission line","No",""]
[null,"998 Cowra to Forbes Transmission Line 10 Minute Limit","112 MVA","Overhead transmission line","No",""]
[null,"998 Cowra to Forbes Transmission Line 5 Minute Limit","115 MVA","Overhead transmission line","No",""]
[null,"9E1 Sydney East to Kuringai Transmission Line Normal Limit","185 MVA","Underground cable","No",""]
[null,"9E1 Sydney East to Kuringai Transmission Line Contingency Limit","250 MVA","Underground cable","No",""]
[null,"9E1 Sydney East to Kuringai Transmission Line 15 Minute Limit","286 MVA","High voltage connections","No",""]
[null,"9E1 Sydney East to Kuringai Transmission Line 10 Minute Limit","286 MVA","High voltage connections","No",""]
[null,"9E1 Sydney East to Kuringai Transmission Line 5 Minute Limit","286 MVA","High voltage connections","No",""]
[null,"9E2 Sydney East to Kuringai Transmission Line Normal Limit","185 MVA","Underground cable","No",""]
[null,"9E2 Sydney East to Kuringai Transmission Line Contingency Limit","250 MVA","Underground cable","No",""]
[null,"9E2 Sydney East to Kuringai Transmission Line 15 Minute Limit","286 MVA","High voltage connections","No",""]
[null,"9E2 Sydney East to Kuringai Transmission Line 10 Minute Limit","286 MVA","High voltage connections","No",""]
[null,"9E2 Sydney East to Kuringai Transmission Line 5 Minute Limit","286 MVA","High voltage connections","No",""]
[null,"9E3 Sydney  East to Willoughby Transmission Line Normal Limit","185 MVA","Underground cable","No",""]
[null,"9E3 Sydney  East to Willoughby Transmission Line Contingency Limit","250 MVA","Underground cable","No",""]
[null,"9E3 Sydney  East to Willoughby Transmission Line 15 Minute Limit","285 MVA","High voltage connections","No",""]
[null,"9E3 Sydney  East to Willoughby Transmission Line 10 Minute Limit","285 MVA","High voltage connections","No",""]
[null,"9E3 Sydney  East to Willoughby Transmission Line 5 Minute Limit","285 MVA","High voltage connections","No",""]
[null,"9E4 Sydney  East to Willoughby Transmission Line Normal Limit","185 MVA","Underground cable","No",""]
[null,"9E4 Sydney  East to Willoughby Transmission Line Contingency Limit","250 MVA","Underground cable","No",""]
[null,"9E4 Sydney  East to Willoughby Transmission Line 15 Minute Limit","286 MVA","High voltage connections","No",""]
[null,"9E4 Sydney  East to Willoughby Transmission Line 10 Minute Limit","286 MVA","High voltage connections","No",""]
[null,"9E4 Sydney  East to Willoughby Transmission Line 5 Minute Limit","286 MVA","High voltage connections","No",""]
[null,"9E5 Sydney  East to Willoughby Transmission Line Normal Limit","225 MVA","Underground cable","No",""]
[null,"9E5 Sydney  East to Willoughby Transmission Line Contingency Limit","240 MVA","Contingencies Reactor","No",""]
[null,"9E5 Sydney  East to Willoughby Transmission Line 15 Minute Limit","240 MVA","Contingencies Reactor","No",""]
[null,"9E5 Sydney  East to Willoughby Transmission Line 10 Minute Limit","240 MVA","Contingencies Reactor","No",""]
[null,"9E5 Sydney  East to Willoughby Transmission Line 5 Minute Limit","240 MVA","Contingencies Reactor","No",""]
[null,"9F6 Beaconsfield to Marrickville Transmission Line Normal Limit","230 MVA","Underground cable","No",""]
[null,"9F6 Beaconsfield to Marrickville Transmission Line Contingency Limit","230 MVA","Underground cable","No",""]
[null,"9F6 Beaconsfield to Marrickville Transmission Line 15 Minute Limit","300 MVA","Secondary of CT (protection metering or indication)","No",""]
[null,"9F6 Beaconsfield to Marrickville Transmission Line 10 Minute Limit","300 MVA","Secondary of CT (protection metering or indication)","No",""]
[null,"9F6 Beaconsfield to Marrickville Transmission Line 5 Minute Limit","300 MVA","Secondary of CT (protection metering or indication)","No",""]
[null,"9J1 Sydney West to Blacktown Transmission Line Normal Limit","504 MVA","Overhead transmission line","No",""]
[null,"9J1 Sydney West to Blacktown Transmission Line Contingency Limit","504 MVA","Overhead transmission line","No",""]
[null,"9J1 Sydney West to Blacktown Transmission Line 15 Minute Limit","512 MVA","High voltage connections","No",""]
[null,"9J1 Sydney West to Blacktown Transmission Line 10 Minute Limit","512 MVA","High voltage connections","No",""]
[null,"9J1 Sydney West to Blacktown Transmission Line 5 Minute Limit","512 MVA","High voltage connections","No",""]
[null,"9J2 Sydney West to Blacktown Transmission Line Normal Limit","504 MVA","Secondary of CT (protection metering or indication)","No",""]
[null,"9J2 Sydney West to Blacktown Transmission Line Contingency Limit","504 MVA","Secondary of CT (protection metering or indication)","No",""]
[null,"9J2 Sydney West to Blacktown Transmission Line 15 Minute Limit","504 MVA","Secondary of CT (protection metering or indication)","No",""]
[null,"9J2 Sydney West to Blacktown Transmission Line 10 Minute Limit","504 MVA","Secondary of CT (protection metering or indication)","No",""]
[null,"9J2 Sydney West to Blacktown Transmission Line 5 Minute Limit","504 MVA","Secondary of CT (protection metering or indication)","No",""]
[null,"9JA Vineyard to Rouse Hill Transmission Line Normal Limit","495 MVA","Overhead transmission line","No",""]
[null,"9JA Vineyard to Rouse Hill Transmission Line Contingency Limit","495 MVA","Overhead transmission line","No",""]
[null,"9JA Vineyard to Rouse Hill Transmission Line 15 Minute Limit","504 MVA","Secondary of CT (protection metering or indication)","No",""]
[null,"9JA Vineyard to Rouse Hill Transmission Line 10 Minute Limit","504 MVA","Secondary of CT (protection metering or indication)","No",""]
[null,"9JA Vineyard to Rouse Hill Transmission Line 5 Minute Limit","504 MVA","Secondary of CT (protection metering or indication)","No",""]
[null,"9L1 Macarthur to Nepean Transmission Line Normal Limit","232 MVA","Overhead transmission line","No",""]
[null,"9L1 Macarthur to Nepeanl Transmission Line Contingency Limit","358 MVA","Overhead transmission line","No",""]
[null,"9L1 Macarthur to Nepean Transmission Line 15 Minute Limit","375 MVA","High voltage connections","No",""]
[null,"9L1 Macarthur to Nepean Transmission Line 10 Minute Limit","375 MVA","High voltage connections","No",""]
[null,"9L1 Macarthur to Nepean Transmission Line 5 Minute Limit","375 MVA","High voltage connections","No",""]
[null,"9M1 Sydney East to Warringah Transmission Line Normal Limit","140 MVA","Underground cable","No",""]
[null,"9M1 Sydney East to Warringah Transmission Line Contingency Limit","165 MVA","Underground cable","No",""]
[null,"9M1 Sydney East to Warringah Transmission Line 15 Minute Limit","286 MVA","High voltage connections","No",""]
[null,"9M1 Sydney East to Warringah Transmission Line 10 Minute Limit","286 MVA","High voltage connections","No",""]
[null,"9M1 Sydney East to Warringah Transmission Line 5 Minute Limit","286 MVA","High voltage connections","No",""]
[null,"9M2 Sydney East to Warringah Transmission Line Normal Limit","125 MVA","Underground cable","No",""]
[null,"9M2 Sydney East to Warringah Transmission Line Contingency Limit","125 MVA","Underground cable","No",""]
[null,"9M2 Sydney East to Warringah Transmission Line 15 Minute Limit","256 MVA","High voltage connections","No",""]
[null,"9M2 Sydney East to Warringah Transmission Line 10 Minute Limit","256 MVA","High voltage connections","No",""]
[null,"9M2 Sydney East to Warringah Transmission Line 5 Minute Limit","256 MVA","High voltage connections","No",""]
[null,"9M3 Sydney East to Warringah Transmission Line Normal Limit","454 MVA","Secondary of CT (protection metering or indication)","No",""]
[null,"9M3 Sydney East to Warringah Transmission Line Contingency Limit","454 MVA","Secondary of CT (protection metering or indication)","No",""]
[null,"9M3 Sydney East to Warringah Transmission Line 15 Minute Limit","454 MVA","Secondary of CT (protection metering or indication)","No",""]
[null,"9M3 Sydney East to Warringah Transmission Line 10 Minute Limit","454 MVA","Secondary of CT (protection metering or indication)","No",""]
[null,"9M3 Sydney East to Warringah Transmission Line 5 Minute Limit","454 MVA","Secondary of CT (protection metering or indication)","No",""]
[null,"9M4 Sydney East to Warringah Transmission Line Normal Limit","455 MVA","Overhead transmission line","No",""]
[null,"9M4 Sydney East to Warringah Transmission Line Contingency Limit","500 MVA","Overhead transmission line","No",""]
[null,"9M4 Sydney East to Warringah Transmission Line 15 Minute Limit","504 MVA","Secondary of CT (protection metering or indication)","No",""]
[null,"9M4 Sydney East to Warringah Transmission Line 10 Minute Limit","504 MVA","Secondary of CT (protection metering or indication)","No",""]
[null,"9M4 Sydney East to Warringah Transmission Line 5 Minute Limit","504 MVA","Secondary of CT (protection metering or indication)","No",""]
[null,"9ML Crudine Ridge Wind Farm to Mt Piper 132 tee Ilford Transmission Line Normal Limit","134 MVA","Overhead transmission line","No",""]
[null,"9ML Crudine Ridge Wind Farm to Mt Piper 132 tee Ilfordh Transmission Line Contingency Limit","143 MVA","Overhead transmission line","No",""]
[null,"9ML Crudine Ridge Wind Farm to Mt Piper 132 tee Ilford Transmission Line 15 Minute Limit","143 MVA","Overhead transmission line","No",""]
[null,"9ML Crudine Ridge Wind Farm to Mt Piper 132 tee Ilford Transmission Line 10 Minute Limit","143 MVA","Overhead transmission line","No",""]
[null,"9ML Crudine Ridge Wind Farm to Mt Piper 132 tee Ilford Transmission Line 5 Minute Limit","152 MVA","Overhead transmission line","No",""]
[null,"9RF Beaconsfield South to Alexandria Transmission Line Normal Limit","270 MVA","Underground cable","No",""]
[null,"9RF Beaconsfield South to Alexandria Transmission Line Contingency Limit","285 MVA","Underground cable","No",""]
[null,"9RF Beaconsfield South to Alexandria Transmission Line 15 Minute Limit","329 MVA","Secondary of CT (protection metering or indication)","No",""]
[null,"9RF Beaconsfield South to Alexandria Transmission Line 10 Minute Limit","329 MVA","Secondary of CT (protection metering or indication)","No",""]
[null,"9RF Beaconsfield South to Alexandria Transmission Line 5 Minute Limit","329 MVA","Secondary of CT (protection metering or indication)","No",""]
[null,"9RT Beaconsfield North to Peakhurst Transmission Line Normal Limit","155 MVA","Underground cable","No",""]
[null,"9RT Beaconsfield North to Peakhurst Transmission Line Contingency Limit","195 MVA","Underground cable","No",""]
[null,"9RT Beaconsfield North to Peakhurst Transmission Line 15 Minute Limit","329 MVA","Protection trip setting","No",""]
[null,"9RT Beaconsfield North to Peakhurst Transmission Line 10 Minute Limit","329 MVA","Protection trip setting","No",""]
[null,"9RT Beaconsfield North to Peakhurst Transmission Line 5 Minute Limit","329 MVA","Protection trip setting","No",""]
[null,"9S2 Haymarket to Beaconsfield Transmission Line Normal Limit","225 MVA","Underground cable","No",""]
[null,"9S2 Haymarket to Beaconsfield Transmission Line Contingency Limit","230 MVA","Underground cable","No",""]
[null,"9S2 Haymarket to Beaconsfield Transmission Line 15 Minute Limit","320 MVA","Protection trip setting","No",""]
[null,"9S2 Haymarket to Beaconsfield Transmission Line 10 Minute Limit","320 MVA","Protection trip setting","No",""]
[null,"9S2 Haymarket to Beaconsfield Transmission Line 5 Minute Limit","320 MVA","Protection trip setting","No",""]
[null,"9S4 Haymarket to Beaconsfield Transmission Line Normal Limit","245 MVA","Underground cable","No",""]
[null,"9S4 Haymarket to Beaconsfield Transmission Line Contingency Limit","275 MVA","Underground cable","No",""]
[null,"9S4 Haymarket to Beaconsfield Transmission Line 15 Minute Limit","329 MVA","Secondary of CT (protection metering or indication)","No",""]
[null,"9S4 Haymarket to Beaconsfield Transmission Line 10 Minute Limit","329 MVA","Secondary of CT (protection metering or indication)","No",""]
[null,"9S4 Haymarket to Beaconsfield Transmission Line 5 Minute Limit","329 MVA","Secondary of CT (protection metering or indication)","No",""]
[null,"9S6/1 Haymarket to Pyrmont tee Darling Harbour tee City Central Transmission Line Normal Limit","210 MVA","Underground cable","No",""]
[null,"9S6/1 Haymarket to Pyrmont tee Darling Harbour tee City Central Transmission Line Contingency Limit","210 MVA","Underground cable","No",""]
[null,"9S6/1 Haymarket to Pyrmont tee Darling Harbour tee City Central Transmission Line 15 Minute Limit","366 MVA","Breaker","No",""]
[null,"9S6/1 Haymarket to Pyrmont tee Darling Harbour tee City Central Transmission Line 10 Minute Limit","366 MVA","Breaker","No",""]
[null,"9S6/1 Haymarket to Pyrmont tee Darling Harbour tee City Central Transmission Line 5 Minute Limit","366 MVA","Breaker","No",""]
[null,"9S9/1 Haymarket to Pyrmont tee Darling Harbour Transmission Line Normal Limit","225 MVA","Underground cable","No",""]
[null,"9S9/1 Haymarket to Pyrmont tee Darling Harbour Transmission Line Contingency Limit","225 MVA","Underground cable","No",""]
[null,"9S9/1 Haymarket to Pyrmont tee Darling Harbour Transmission Line 15 Minute Limit","366 MVA","Breaker","No",""]
[null,"9S9/1 Haymarket to Pyrmont tee Darling Harbour Transmission Line 10 Minute Limit","366 MVA","Breaker","No",""]
[null,"9S9/1 Haymarket to Pyrmont tee Darling Harbour Transmission Line 5 Minute Limit","366 MVA","Breaker","No",""]
[null,"9SA Beaconsfield to Campbell St Transmission Line Normal Limit","135 MVA","Underground cable","No",""]
[null,"9SA Beaconsfield to Campbell St Transmission Line Contingency Limit","165 MVA","Underground cable","No",""]
[null,"9SA Beaconsfield to Campbell St Transmission Line 15 Minute Limit","329 MVA","Secondary of CT (protection metering or indication)","No",""]
[null,"9SA Beaconsfield to Campbell St Transmission Line 10 Minute Limit","329 MVA","Secondary of CT (protection metering or indication)","No",""]
[null,"9SA Beaconsfield to Campbell St Transmission Line 5 Minute Limit","329 MVA","Secondary of CT (protection metering or indication)","No",""]
[null,"9SC Haymarket to Campbell St Transmission Line Normal Limit","295 MVA","Underground cable","No",""]
[null,"9SC Haymarket to Campbell St Transmission Line Contingency Limit","295 MVA","Underground cable","No",""]
[null,"9SC Haymarket to Campbell St Transmission Line 15 Minute Limit","366 MVA","Breaker","No",""]
[null,"9SC Haymarket to Campbell St Transmission Line 10 Minute Limit","366 MVA","Breaker","No",""]
[null,"9SC Haymarket to Campbell St Transmission Line 5 Minute Limit","366 MVA","Breaker","No",""]
[null,"9SE Beaconsfield to Green Square Transmission Line Normal Limit","225 MVA","Underground cable","No",""]
[null,"9SE Beaconsfield to Green Square Transmission Line Contingency Limit","225 MVA","Underground cable","No",""]
[null,"9SE Beaconsfield to Green Square Transmission Line 15 Minute Limit","329 MVA","Secondary of CT (protection metering or indication)","No",""]
[null,"9SE Beaconsfield to Green Square Transmission Line 10 Minute Limit","329 MVA","Secondary of CT (protection metering or indication)","No",""]
[null,"9SE Beaconsfield to Green Square Transmission Line 5 Minute Limit","329 MVA","Secondary of CT (protection metering or indication)","No",""]
[null,"No.1 Tie Beaconsfield South to Beaconsfield North Transmission Line Normal Limit","720 MVA","Breaker","No",""]
[null,"No.1 Tie Beaconsfield South to Beaconsfield North Transmission Line Contingency Limit","720 MVA","Breaker","No",""]
[null,"No.1 Tie Beaconsfield South to Beaconsfield North Transmission Line 15 Minute Limit","720 MVA","Breaker","No",""]
[null,"No.1 Tie Beaconsfield South to Beaconsfield North Transmission Line 10 Minute Limit","720 MVA","Breaker","No",""]
[null,"No.1 Tie Beaconsfield South to Beaconsfield North Transmission Line 5 Minute Limit","720 MVA","Breaker","No",""]
[null,"No.2 Tie Beaconsfield South to Beaconsfield North Transmission Line Normal Limit","720 MVA","Breaker","No",""]
[null,"No.2 Tie Beaconsfield South to Beaconsfield North Transmission Line Contingency Limit","720 MVA","Breaker","No",""]
[null,"No.2 Tie Beaconsfield South to Beaconsfield North Transmission Line 15 Minute Limit","720 MVA","Breaker","No",""]
[null,"No.2 Tie Beaconsfield South to Beaconsfield North Transmission Line 10 Minute Limit","720 MVA","Breaker","No",""]
[null,"No.2 Tie Beaconsfield South to Beaconsfield North Transmission Line 5 Minute Limit","720 MVA","Breaker","No",""]
[null,"No.3 Tie Beaconsfield South to Beaconsfield North Transmission Line Normal Limit","720 MVA","Breaker","No",""]
[null,"No.3 Tie Beaconsfield South to Beaconsfield North Transmission Line Contingency Limit","720 MVA","Breaker","No",""]
[null,"No.3 Tie Beaconsfield South to Beaconsfield North Transmission Line 15 Minute Limit","720 MVA","Breaker","No",""]
[null,"No.3 Tie Beaconsfield South to Beaconsfield North Transmission Line 10 Minute Limit","720 MVA","Breaker","No",""]
[null,"No.3 Tie Beaconsfield South to Beaconsfield North Transmission Line 5 Minute Limit","720 MVA","Breaker","No",""]
[null,"No.4 Tie Beaconsfield South to Beaconsfield North Transmission Line Normal Limit","720 MVA","Breaker","No",""]
[null,"No.4 Tie Beaconsfield South to Beaconsfield North Transmission Line Contingency Limit","720 MVA","Breaker","No",""]
[null,"No.4 Tie Beaconsfield South to Beaconsfield North Transmission Line 15 Minute Limit","720 MVA","Breaker","No",""]
[null,"No.4 Tie Beaconsfield South to Beaconsfield North Transmission Line 10 Minute Limit","720 MVA","Breaker","No",""]
[null,"No.4 Tie Beaconsfield South to Beaconsfield North Transmission Line 5 Minute Limit","720 MVA","Breaker","No",""]
[null,"No.2 Tie New Wallerawang to Wallerawang Transmission Line Normal Limit","82 MVA","Secondary of CT (protection metering or indication)","No",""]
[null,"No.2 Tie New Wallerawang to Wallerawang Transmission Line Contingency Limit","86 MVA","Secondary of CT (protection metering or indication)","No",""]
[null,"No.2 Tie New Wallerawang to Wallerawang Transmission Line 15 Minute Limit","86 MVA","Secondary of CT (protection metering or indication)","No",""]
[null,"No.2 Tie New Wallerawang to Wallerawang Transmission Line 10 Minute Limit","86 MVA","Secondary of CT (protection metering or indication)","No",""]
[null,"No.2 Tie New Wallerawang to Wallerawang Transmission Line 5 Minute Limit","86 MVA","Secondary of CT (protection metering or indication)","No",""]
[null,"No.7Tx Sydney East 330 kV to Sydney East Transmission Line Normal Limit","110 MVA","Underground cable","No",""]
[null,"No.7Tx Sydney East 330 kV to Sydney East Transmission Line Contingency Limit","120 MVA","Secondary of CT (protection metering or indication)","No",""]
[null,"No.7Tx Sydney East 330 kV to Sydney East Transmission Line 15 Minute Limit","120 MVA","Secondary of CT (protection metering or indication)","No",""]
[null,"No.7Tx Sydney East 330 kV to Sydney East Transmission Line 10 Minute Limit","120 MVA","Secondary of CT (protection metering or indication)","No",""]
[null,"No.7Tx Sydney East 330 kV to Sydney East Transmission Line 5 Minute Limit","120 MVA","Secondary of CT (protection metering or indication)","No",""]
[null,"No.8Tx Sydney East 330 kV to Sydney East Transmission Line Normal Limit","110 MVA","Underground cable","No",""]
[null,"No.8Tx Sydney East 330 kV to Sydney East Transmission Line Contingency Limit","120 MVA","Secondary of CT (protection metering or indication)","No",""]
[null,"No.8Tx Sydney East 330 kV to Sydney East Transmission Line 15 Minute Limit","120 MVA","Secondary of CT (protection metering or indication)","No",""]
[null,"No.8Tx Sydney East 330 kV to Sydney East Transmission Line 10 Minute Limit","120 MVA","Secondary of CT (protection metering or indication)","No",""]
[null,"No.8Tx Sydney East 330 kV to Sydney East Transmission Line 5 Minute Limit","120 MVA","Secondary of CT (protection metering or indication)","No",""]
[null,"TT1 Orange North to Orange Transmission Line Normal Limit","165 MVA","High voltage connections","No",""]
[null,"TT1 Orange North to Orange Transmission Line Contingency Limit","165 MVA","High voltage connections","No",""]
[null,"TT1 Orange North to Orange Transmission Line 15 Minute Limit","165 MVA","High voltage connections","No",""]
[null,"TT1 Orange North to Orange Transmission Line 10 Minute Limit","165 MVA","High voltage connections","No",""]
[null,"TT1 Orange North to Orange Transmission Line 5 Minute Limit","165 MVA","High voltage connections","No",""]
[null,"TT2 Orange North to Orange Transmission Line Normal Limit","165 MVA","High voltage connections","No",""]
[null,"TT2 Orange North to Orange Transmission Line Contingency Limit","165 MVA","High voltage connections","No",""]
[null,"TT2 Orange North to Orange Transmission Line 15 Minute Limit","165 MVA","High voltage connections","No",""]
[null,"TT2 Orange North to Orange Transmission Line 10 Minute Limit","165 MVA","High voltage connections","No",""]
[null,"TT2 Orange North to Orange Transmission Line 5 Minute Limit","165 MVA","High voltage connections","No",""]
[null,"TT3 Orange North to Orange Transmission Line Normal Limit","171 MVA","Overhead transmission line","No",""]
[null,"TT3 Orange North to Orange Transmission Line Contingency Limit","183 MVA","Overhead transmission line","No",""]
[null,"TT3 Orange North to Orange Transmission Line 15 Minute Limit","184 MVA","Overhead transmission line","No",""]
[null,"TT3 Orange North to Orange Transmission Line 10 Minute Limit","185 MVA","Overhead transmission line","No",""]
[null,"TT3 Orange North to Orange Transmission Line 5 Minute Limit","191 MVA","High voltage connections","No",""]
[null,"82A Queanbeyan to Lorn Rd Transmission Line Normal Limit","30 MVA","Overhead transmission line","No",""]
[null,"82A Queanbeyan to Lorn Rd Transmission Line Contingency Limit","37 MVA","Overhead transmission line","No",""]
[null,"82A Queanbeyan to Lorn Rd Transmission Line 15 Minute Limit","43 MVA","Secondary of CT (protection metering or indication)","No",""]
[null,"82A Queanbeyan to Lorn Rd Transmission Line 10 Minute Limit","43 MVA","Secondary of CT (protection metering or indication)","No",""]
[null,"82A Queanbeyan to Lorn Rd Transmission Line 5 Minute Limit","43 MVA","Secondary of CT (protection metering or indication)","No",""]
[null,"82B Queanbeyan to High Street Transmission Line Normal Limit","30 MVA","Overhead transmission line","No",""]
[null,"82B Queanbeyan to High Street Transmission Line Contingency Limit","37 MVA","Overhead transmission line","No",""]
[null,"82B Queanbeyan to High Street Transmission Line 15 Minute Limit","43 MVA","Secondary of CT (protection metering or indication)","No",""]
[null,"82B Queanbeyan to High Street Transmission Line 10 Minute Limit","43 MVA","Secondary of CT (protection metering or indication)","No",""]
[null,"82B Queanbeyan to High Street Transmission Line 5 Minute Limit","43 MVA","Secondary of CT (protection metering or indication)","No",""]
[null,"82F Queanbeyan to Oaks Estate Transmission Line Normal Limit","41 MVA","Secondary of CT (protection metering or indication)","No",""]
[null,"82F Queanbeyan to Oaks Estate Transmission Line Contingency Limit","43 MVA","Secondary of CT (protection metering or indication)","No",""]
[null,"82F Queanbeyan to Oaks Estate Transmission Line 15 Minute Limit","43 MVA","Secondary of CT (protection metering or indication)","No",""]
[null,"82F Queanbeyan to Oaks Estate Transmission Line 10 Minute Limit","43 MVA","Secondary of CT (protection metering or indication)","No",""]
[null,"82F Queanbeyan to Oaks Estate Transmission Line 5 Minute Limit","43 MVA","Secondary of CT (protection metering or indication)","No",""]
[null,"82G Queanbeyan to Captains Flat Transmission Line Normal Limit","8 MVA","Protection trip setting","No",""]
[null,"82G Queanbeyan to Captains Flat Transmission Line Contingency Limit","8 MVA","Protection trip setting","No",""]
[null,"82G Queanbeyan to Captains Flat Transmission Line 15 Minute Limit","8 MVA","Protection trip setting","No",""]
[null,"82G Queanbeyan to Captains Flat Transmission Line 10 Minute Limit","8 MVA","Protection trip setting","No",""]
[null,"82G Queanbeyan to Captains Flat Transmission Line 5 Minute Limit","8 MVA","Protection trip setting","No",""]
[null,"82K Queanbeyan to Bungendore Transmission Line Normal Limit","15 MVA","Overhead transmission line","No",""]
[null,"82K Queanbeyan to Bungendore Transmission Line Contingency Limit","21 MVA","Overhead transmission line","No",""]
[null,"82K Queanbeyan to Bungendore Transmission Line 15 Minute Limit","22 MVA","Protection trip setting","No",""]
[null,"82K Queanbeyan to Bungendore Transmission Line 10 Minute Limit","22 MVA","Protection trip setting","No",""]
[null,"82K Queanbeyan to Bungendore Transmission Line 5 Minute Limit","22 MVA","Protection trip setting","No",""]
[null,"82M Queanbeyan to Oaks Estate Transmission Line Normal Limit","22 MVA","Protection trip setting","No",""]
[null,"82M Queanbeyan to Oaks Estate Transmission Line Contingency Limit","43 MVA","Secondary of CT (protection metering or indication)","No",""]
[null,"82M Queanbeyan to Oaks Estate Transmission Line 15 Minute Limit","43 MVA","Secondary of CT (protection metering or indication)","No",""]
[null,"82M Queanbeyan to Oaks Estate Transmission Line 10 Minute Limit","43 MVA","Secondary of CT (protection metering or indication)","No",""]
[null,"82M Queanbeyan to Oaks Estate Transmission Line 5 Minute Limit","43 MVA","Secondary of CT (protection metering or indication)","No",""]
[null,"83A Murrumburrah to Murrumburrah 66kV SS Transmission Line Normal Limit","27 MVA","Secondary of CT (protection metering or indication)","No",""]
[null,"83A Murrumburrah to Murrumburrah 66kV SS Transmission Line Contingency Limit","46 MVA","Secondary of CT (protection metering or indication)","No",""]
[null,"83A Murrumburrah to Murrumburrah 66kV SS Transmission Line 15 Minute Limit","46 MVA","Secondary of CT (protection metering or indication)","No",""]
[null,"83A Murrumburrah to Murrumburrah 66kV SS Transmission Line 10 Minute Limit","46 MVA","Secondary of CT (protection metering or indication)","No",""]
[null,"83A Murrumburrah to Murrumburrah 66kV SS Transmission Line 5 Minute Limit","46 MVA","Secondary of CT (protection metering or indication)","No",""]
[null,"83C Wagga North to Oura Transmission Line Normal Limit","19 MVA","Protection trip setting","No",""]
[null,"83C Wagga North to Oura Transmission Line Contingency Limit","19 MVA","Protection trip setting","No",""]
[null,"83C Wagga North to Oura Transmission Line 15 Minute Limit","19 MVA","Protection trip setting","No",""]
[null,"83C Wagga North to Oura Transmission Line 10 Minute Limit","19 MVA","Protection trip setting","No",""]
[null,"83C Wagga North to Oura Transmission Line 5 Minute Limit","19 MVA","Protection trip setting","No",""]
[null,"83D Murrumburrah to Murrumburrah 66kV SS Transmission Line Normal Limit","27 MVA","Secondary of CT (protection metering or indication)","No",""]
[null,"83D Murrumburrah to Murrumburrah 66kV SS Transmission Line Contingency Limit","46 MVA","Secondary of CT (protection metering or indication)","No",""]
[null,"83D Murrumburrah to Murrumburrah 66kV SS Transmission Line 15 Minute Limit","46 MVA","Secondary of CT (protection metering or indication)","No",""]
[null,"83D Murrumburrah to Murrumburrah 66kV SS Transmission Line 10 Minute Limit","46 MVA","Secondary of CT (protection metering or indication)","No",""]
[null,"83D Murrumburrah to Murrumburrah 66kV SS Transmission Line 5 Minute Limit","46 MVA","Secondary of CT (protection metering or indication)","No",""]
[null,"83G Wagga North to Bomen Transmission Line Normal Limit","78 MVA","Secondary of CT (protection metering or indication)","No",""]
[null,"83G Wagga North to Bomen Transmission Line Contingency Limit","78 MVA","Secondary of CT (protection metering or indication)","No",""]
[null,"83G Wagga North to Bomen Transmission Line 15 Minute Limit","78 MVA","Secondary of CT (protection metering or indication)","No",""]
[null,"83G Wagga North to Bomen Transmission Line 10 Minute Limit","78 MVA","Secondary of CT (protection metering or indication)","No",""]
[null,"83G Wagga North to Bomen Transmission Line 5 Minute Limit","78 MVA","Secondary of CT (protection metering or indication)","No",""]
[null,"83M Wagga 132 to Uranquinty Transmission Line Normal Limit","27 MVA","Secondary of CT (protection metering or indication)","No",""]
[null,"83M Wagga 132 to Uranquinty Transmission Line Contingency Limit","27 MVA","Secondary of CT (protection metering or indication)","No",""]
[null,"83M Wagga 132 to Uranquinty Transmission Line 15 Minute Limit","27 MVA","Secondary of CT (protection metering or indication)","No",""]
[null,"83M Wagga 132 to Uranquinty Transmission Line 10 Minute Limit","27 MVA","Secondary of CT (protection metering or indication)","No",""]
[null,"83M Wagga 132 to Uranquinty Transmission Line 5 Minute Limit","27 MVA","Secondary of CT (protection metering or indication)","No",""]
[null,"840/1 Wagga 132 to Lockhart Regulator tee Bulgary Transmission Line Normal Limit","27 MVA","Secondary of CT (protection metering or indication)","No",""]
[null,"840/1 Wagga 132 to Lockhart Regulator tee Bulgary Transmission Line Contingency Limit","27 MVA","Secondary of CT (protection metering or indication)","No",""]
[null,"840/1 Wagga 132 to Lockhart Regulator tee Bulgary Transmission Line 15 Minute Limit","27 MVA","Secondary of CT (protection metering or indication)","No",""]
[null,"840/1 Wagga 132 to Lockhart Regulator tee Bulgary Transmission Line 10 Minute Limit","27 MVA","Secondary of CT (protection metering or indication)","No",""]
[null,"840/1 Wagga 132 to Lockhart Regulator tee Bulgary Transmission Line 5 Minute Limit","27 MVA","Secondary of CT (protection metering or indication)","No",""]
[null,"844 Queanbeyan to Fyshwick Transmission Line Normal Limit","41 MVA","Secondary of CT (protection metering or indication)","No",""]
[null,"844 Queanbeyan to Fyshwick Transmission Line Contingency Limit","43 MVA","Secondary of CT (protection metering or indication)","No",""]
[null,"844 Queanbeyan to Fyshwick Transmission Line 15 Minute Limit","43 MVA","Secondary of CT (protection metering or indication)","No",""]
[null,"844 Queanbeyan to Fyshwick Transmission Line 10 Minute Limit","43 MVA","Secondary of CT (protection metering or indication)","No",""]
[null,"844 Queanbeyan to Fyshwick Transmission Line 5 Minute Limit","43 MVA","Secondary of CT (protection metering or indication)","No",""]
[null,"845 Deniliquin to Deniliquin Transmission Line Normal Limit","38 MVA","Overhead transmission line","No",""]
[null,"845 Deniliquin to Deniliquin Transmission Line Contingency Limit","43 MVA","Secondary of CT (protection metering or indication)","No",""]
[null,"845 Deniliquin to Deniliquin Transmission Line 15 Minute Limit","43 MVA","Secondary of CT (protection metering or indication)","No",""]
[null,"845 Deniliquin to Deniliquin Transmission Line 10 Minute Limit","43 MVA","Secondary of CT (protection metering or indication)","No",""]
[null,"845 Deniliquin to Deniliquin Transmission Line 5 Minute Limit","43 MVA","Secondary of CT (protection metering or indication)","No",""]
[null,"845 Queanbeyan to Fyshwick Transmission Line Normal Limit","41 MVA","Secondary of CT (protection metering or indication)","No",""]
[null,"845 Queanbeyan to Fyshwick Transmission Line Contingency Limit","43 MVA","Secondary of CT (protection metering or indication)","No",""]
[null,"845 Queanbeyan to Fyshwick Transmission Line 15 Minute Limit","43 MVA","Secondary of CT (protection metering or indication)","No",""]
[null,"845 Queanbeyan to Fyshwick Transmission Line 10 Minute Limit","43 MVA","Secondary of CT (protection metering or indication)","No",""]
[null,"845 Queanbeyan to Fyshwick Transmission Line 5 Minute Limit","43 MVA","Secondary of CT (protection metering or indication)","No",""]
[null,"847 Murrumburrah to Boorowa Transmission Line Normal Limit","10 MVA","Overhead transmission line","No",""]
[null,"847 Murrumburrah to Boorowa Transmission Line Contingency Limit","14 MVA","Overhead transmission line","No",""]
[null,"847 Murrumburrah to Boorowa Transmission Line 15 Minute Limit","16 MVA","Protection trip setting","No",""]
[null,"847 Murrumburrah to Boorowa Transmission Line 10 Minute Limit","16 MVA","Protection trip setting","No",""]
[null,"847 Murrumburrah to Boorowa Transmission Line 5 Minute Limit","16 MVA","Protection trip setting","No",""]
[null,"84A Finley to Jerilderie Transmission Line Normal Limit","15 MVA","Overhead transmission line","No",""]
[null,"84A Finley to Jerilderie Transmission Line Contingency Limit","20 MVA","Overhead transmission line","No",""]
[null,"84A Finley to Jerilderie Transmission Line 15 Minute Limit","30 MVA","Protection trip setting","No",""]
[null,"84A Finley to Jerilderie Transmission Line 10 Minute Limit","30 MVA","Protection trip setting","No",""]
[null,"84A Finley to Jerilderie Transmission Line 5 Minute Limit","30 MVA","Protection trip setting","No",""]
[null,"84B Finley to Finley Transmission Line Normal Limit","27 MVA","Protection trip setting","No",""]
[null,"84B Finley to Finley Transmission Line Contingency Limit","27 MVA","Protection trip setting","No",""]
[null,"84B Finley to Finley Transmission Line 15 Minute Limit","27 MVA","Protection trip setting","No",""]
[null,"84B Finley to Finley Transmission Line 10 Minute Limit","27 MVA","Protection trip setting","No",""]
[null,"84B Finley to Finley Transmission Line 5 Minute Limit","27 MVA","Protection trip setting","No",""]
[null,"84C Finley to Finley Transmission Line Normal Limit","29 MVA","Secondary of CT (protection metering or indication)","No",""]
[null,"84C Finley to Finley Transmission Line Contingency Limit","46 MVA","Secondary of CT (protection metering or indication)","No",""]
[null,"84C Finley to Finley Transmission Line 15 Minute Limit","46 MVA","Secondary of CT (protection metering or indication)","No",""]
[null,"84C Finley to Finley Transmission Line 10 Minute Limit","46 MVA","Secondary of CT (protection metering or indication)","No",""]
[null,"84C Finley to Finley Transmission Line 5 Minute Limit","46 MVA","Secondary of CT (protection metering or indication)","No",""]
[null,"8WG Wagga 132 to Kooringal Transmission Line Normal Limit","41 MVA","Secondary of CT (protection metering or indication)","No",""]
[null,"8WG Wagga 132 to Kooringal Transmission Line Contingency Limit","41 MVA","Secondary of CT (protection metering or indication)","No",""]
[null,"8WG Wagga 132 to Kooringal Transmission Line 15 Minute Limit","41 MVA","Secondary of CT (protection metering or indication)","No",""]
[null,"8WG Wagga 132 to Kooringal Transmission Line 10 Minute Limit","41 MVA","Secondary of CT (protection metering or indication)","No",""]
[null,"8WG Wagga 132 to Kooringal Transmission Line 5 Minute Limit","41 MVA","Secondary of CT (protection metering or indication)","No",""]
[null,"8WJ Wagga North to Forest Hill Transmission Line Normal Limit","20 MVA","Protection trip setting","No",""]
[null,"8WJ Wagga North to Forest Hill Transmission Line Contingency Limit","20 MVA","Protection trip setting","No",""]
[null,"8WJ Wagga North to Forest Hill Transmission Line 15 Minute Limit","20 MVA","Protection trip setting","No",""]
[null,"8WJ Wagga North to Forest Hill Transmission Line 10 Minute Limit","20 MVA","Protection trip setting","No",""]
[null,"8WJ Wagga North to Forest Hill Transmission Line 5 Minute Limit","20 MVA","Protection trip setting","No",""]
[null,"8WR Wagga 132 to Hammond Ave Transmission Line Normal Limit","41 MVA","Secondary of CT (protection metering or indication)","No",""]
[null,"8WR Wagga 132 to Hammond Ave Transmission Line Contingency Limit","41 MVA","Secondary of CT (protection metering or indication)","No",""]
[null,"8WR Wagga 132 to Hammond Ave Transmission Line 15 Minute Limit","41 MVA","Secondary of CT (protection metering or indication)","No",""]
[null,"8WR Wagga 132 to Hammond Ave Transmission Line 10 Minute Limit","41 MVA","Secondary of CT (protection metering or indication)","No",""]
[null,"8WR Wagga 132 to Hammond Ave Transmission Line 5 Minute Limit","41 MVA","Secondary of CT (protection metering or indication)","No",""]
[null,"8WT Wagga 132 to Hammond Ave Transmission Line Normal Limit","41 MVA","Secondary of CT (protection metering or indication)","No",""]
[null,"8WT Wagga 132 to Hammond Ave Transmission Line Contingency Limit","41 MVA","Secondary of CT (protection metering or indication)","No",""]
[null,"8WT Wagga 132 to Hammond Ave Transmission Line 15 Minute Limit","41 MVA","Secondary of CT (protection metering or indication)","No",""]
[null,"8WT Wagga 132 to Hammond Ave Transmission Line 10 Minute Limit","41 MVA","Secondary of CT (protection metering or indication)","No",""]
[null,"8WT Wagga 132 to Hammond Ave Transmission Line 5 Minute Limit","41 MVA","Secondary of CT (protection metering or indication)","No",""]
[null,"8W9 Wagga 132 to Ashmont Transmission Line Normal Limit","41 MVA","Secondary of CT (protection metering or indication)","No",""]
[null,"8W9 Wagga 132 to Ashmont Transmission Line Contingency Limit","41 MVA","Secondary of CT (protection metering or indication)","No",""]
[null,"8W9 Wagga 132 to Ashmont Transmission Line 15 Minute Limit","41 MVA","Secondary of CT (protection metering or indication)","No",""]
[null,"8W9 Wagga 132 to Ashmont Transmission Line 10 Minute Limit","41 MVA","Secondary of CT (protection metering or indication)","No",""]
[null,"8W9 Wagga 132 to Ashmont Transmission Line 5 Minute Limit","41 MVA","Secondary of CT (protection metering or indication)","No",""]
[null,"8WF Wagga 132 to Bourkelands Transmission Line Normal Limit","41 MVA","Secondary of CT (protection metering or indication)","No",""]
[null,"8WF Wagga 132 to Bourkelands Transmission Line Contingency Limit","41 MVA","Secondary of CT (protection metering or indication)","No",""]
[null,"8WF Wagga 132 to Bourkelands Transmission Line 15 Minute Limit","41 MVA","Secondary of CT (protection metering or indication)","No",""]
[null,"8WF Wagga 132 to Bourkelands Transmission Line 10 Minute Limit","41 MVA","Secondary of CT (protection metering or indication)","No",""]
[null,"8WF Wagga 132 to Bourkelands Transmission Line 5 Minute Limit","41 MVA","Secondary of CT (protection metering or indication)","No",""]
[null,"8WW Wagga North 132 to Wagga North SF Transmission Line Normal Limit","69 MVA","Secondary of CT (protection metering or indication)","No",""]
[null,"8WW Wagga North 132 to Wagga North SF Transmission Line Contingency Limit","69 MVA","Secondary of CT (protection metering or indication)","No",""]
[null,"8WW Wagga North 132 to Wagga North SF Transmission Line 15 Minute Limit","69 MVA","Secondary of CT (protection metering or indication)","No",""]
[null,"8WW Wagga North 132 to Wagga North SF Transmission Line 10 Minute Limit","69 MVA","Secondary of CT (protection metering or indication)","No",""]
[null,"8WW Wagga North 132 to Wagga North SF Transmission Line 5 Minute Limit","69 MVA","Secondary of CT (protection metering or indication)","No",""]
[null,"MLN1 Deer Park to Melton Transmission Line Normal Limit","59 MVA","Protection trip setting","No",""]
[null,"MLN1 Deer Park to Melton Transmission Line Contingency Limit","59 MVA","Protection trip setting","No",""]
[null,"MLN1 Deer Park to Melton Transmission Line 15 Minute Limit","59 MVA","Protection trip setting","No",""]
[null,"MLN1 Deer Park to Melton Transmission Line 10 Minute Limit","59 MVA","Protection trip setting","No",""]
[null,"MLN1 Deer Park to Melton Transmission Line 5 Minute Limit","59 MVA","Protection trip setting","No",""]
[null,"MLN2 Deer Park to Melton Transmission Line Normal Limit","60 MVA","Protection trip setting","No",""]
[null,"MLN2 Deer Park to Melton Transmission Line Contingency Limit","60 MVA","Protection trip setting","No",""]
[null,"MLN2 Deer Park to Melton Transmission Line 15 Minute Limit","60 MVA","Protection trip setting","No",""]
[null,"MLN2 Deer Park to Melton Transmission Line 10 Minute Limit","60 MVA","Protection trip setting","No",""]
[null,"MLN2 Deer Park to Melton Transmission Line 5 Minute Limit","60 MVA","Protection trip setting","No",""]
[null,"SU1 Deer Park to Sunshine Transmission Line Normal Limit","160 MVA","Secondary of CT (protection metering or indication)","No",""]
[null,"SU1 Deer Park to Sunshine Transmission Line Contingency Limit","160 MVA","Secondary of CT (protection metering or indication)","No",""]
[null,"SU1 Deer Park to Sunshine Transmission Line 15 Minute Limit","160 MVA","Secondary of CT (protection metering or indication)","No",""]
[null,"SU1 Deer Park to Sunshine Transmission Line 10 Minute Limit","160 MVA","Secondary of CT (protection metering or indication)","No",""]
[null,"SU1 Deer Park to Sunshine Transmission Line 5 Minute Limit","160 MVA","Secondary of CT (protection metering or indication)","No",""]
[null,"SU2 Deer Park to Sunshine Transmission Line Normal Limit","160 MVA","Secondary of CT (protection metering or indication)","No",""]
[null,"SU2 Deer Park to Sunshine Transmission Line Contingency Limit","160 MVA","Secondary of CT (protection metering or indication)","No",""]
[null,"SU2 Deer Park to Sunshine Transmission Line 15 Minute Limit","160 MVA","Secondary of CT (protection metering or indication)","No",""]
[null,"SU2 Deer Park to Sunshine Transmission Line 10 Minute Limit","160 MVA","Secondary of CT (protection metering or indication)","No",""]
[null,"SU2 Deer Park to Sunshine Transmission Line 5 Minute Limit","160 MVA","Secondary of CT (protection metering or indication)","No",""]
[null,"TNA1 Deer Park to Truganina Transmission Line Normal Limit","160 MVA","Secondary of CT (protection metering or indication)","No",""]
[null,"TNA1 Deer Park to Truganina Transmission Line Contingency Limit","160 MVA","Secondary of CT (protection metering or indication)","No",""]
[null,"TNA1 Deer Park to Truganina Transmission Line 15 Minute Limit","160 MVA","Secondary of CT (protection metering or indication)","No",""]
[null,"TNA1 Deer Park to Truganina Transmission Line 10 Minute Limit","160 MVA","Secondary of CT (protection metering or indication)","No",""]
[null,"TNA1 Deer Park to Truganina Transmission Line 5 Minute Limit","160 MVA","Secondary of CT (protection metering or indication)","No",""]
[null,"TNA2 Deer Park to Truganina Transmission Line Normal Limit","160 MVA","Secondary of CT (protection metering or indication)","No",""]
[null,"TNA2 Deer Park to Truganina Transmission Line Contingency Limit","160 MVA","Secondary of CT (protection metering or indication)","No",""]
[null,"TNA2 Deer Park to Truganina Transmission Line 15 Minute Limit","160 MVA","Secondary of CT (protection metering or indication)","No",""]
[null,"TNA2 Deer Park to Truganina Transmission Line 10 Minute Limit","160 MVA","Secondary of CT (protection metering or indication)","No",""]
[null,"TNA2 Deer Park to Truganina Transmission Line 5 Minute Limit","160 MVA","Secondary of CT (protection metering or indication)","No",""]
[null,"970 Yass to Burrinjuck Transmission Line Normal Limit","125 MVA","Overhead transmission line","No",""]
[null,"970 Yass to Burrinjuck Transmission Line Contingency Limit","137 MVA","Overhead transmission line","No",""]
[null,"970 Yass to Burrinjuck Transmission Line 15 Minute Limit","144 MVA","High voltage connections","No",""]
[null,"970 Yass to Burrinjuck Transmission Line 10 Minute Limit","144 MVA","High voltage connections","No",""]
[null,"970 Yass to Burrinjuck Transmission Line 5 Minute Limit","144 MVA","High voltage connections","No",""]
[null,"971/1 Yass to Cullerin Range WF Transmission Line Normal Limit","180 MVA","Secondary of CT (protection metering or indication)","No",""]
[null,"971/1 Yass to Cullerin Range WF Transmission Line Contingency Limit","180 MVA","Secondary of CT (protection metering or indication)","No",""]
[null,"971/1 Yass to Cullerin Range WF Transmission Line 15 Minute Limit","180 MVA","Secondary of CT (protection metering or indication)","No",""]
[null,"971/1 Yass to Cullerin Range WF Transmission Line 10 Minute Limit","180 MVA","Secondary of CT (protection metering or indication)","No",""]
[null,"971/1 Yass to Cullerin Range WF Transmission Line 5 Minute Limit","180 MVA","Secondary of CT (protection metering or indication)","No",""]
[null,"972 Marulan to Goulburn Transmission Line Normal Limit","110 MVA","Secondary of CT (protection metering or indication)","No",""]
[null,"972 Marulan to Goulburn Transmission Line Contingency Limit","110 MVA","Secondary of CT (protection metering or indication)","No",""]
[null,"972 Marulan to Goulburn Transmission Line 15 Minute Limit","110 MVA","Secondary of CT (protection metering or indication)","No",""]
[null,"972 Marulan to Goulburn Transmission Line 10 Minute Limit","110 MVA","Secondary of CT (protection metering or indication)","No",""]
[null,"972 Marulan to Goulburn Transmission Line 5 Minute Limit","110 MVA","Secondary of CT (protection metering or indication)","No",""]
[null,"973 Yass to Cowra Transmission Line Normal Limit","125 MVA","Overhead transmission line","No",""]
[null,"973 Yass to Cowra Transmission Line Contingency Limit","137 MVA","Overhead transmission line","No",""]
[null,"973 Yass to Cowra Transmission Line 15 Minute Limit","144 MVA","Overhead transmission line","No",""]
[null,"973 Yass to Cowra Transmission Line 10 Minute Limit","146 MVA","Overhead transmission line","No",""]
[null,"973 Yass to Cowra Transmission Line 5 Minute Limit","153 MVA","Overhead transmission line","No",""]
[null,"974 Cooma to Bega Transmission Line Normal Limit","110 MVA","Secondary of CT (protection metering or indication)","No",""]
[null,"974 Cooma to Bega Transmission Line Contingency Limit","110 MVA","Secondary of CT (protection metering or indication)","No",""]
[null,"974 Cooma to Bega Transmission Line 15 Minute Limit","110 MVA","Secondary of CT (protection metering or indication)","No",""]
[null,"974 Cooma to Bega Transmission Line 10 Minute Limit","110 MVA","Secondary of CT (protection metering or indication)","No",""]
[null,"974 Cooma to Bega Transmission Line 5 Minute Limit","110 MVA","Secondary of CT (protection metering or indication)","No",""]
[null,"975 Queanbeyan to Googong Town Transmission Line Normal Limit","27 MVA","Secondary of CT (protection metering or indication)","No",""]
[null,"975 Queanbeyan to Googong Town Transmission Line Contingency Limit","27 MVA","Secondary of CT (protection metering or indication)","No",""]
[null,"975 Queanbeyan to Googong Town Transmission Line 15 Minute Limit","27 MVA","Secondary of CT (protection metering or indication)","No",""]
[null,"975 Queanbeyan to Googong Town Transmission Line 10 Minute Limit","27 MVA","Secondary of CT (protection metering or indication)","No",""]
[null,"975 Queanbeyan to Googong Town Transmission Line 5 Minute Limit","27 MVA","Secondary of CT (protection metering or indication)","No",""]
[null,"976/1 Canberra to Spring Flat Transmission Line Normal Limit","168 MVA","Overhead transmission line","No",""]
[null,"976/1 Canberra to Spring Flat Transmission Line Contingency Limit","184 MVA","Overhead transmission line","No",""]
[null,"976/1 Canberra to Spring Flat Transmission Line 15 Minute Limit","194 MVA","Overhead transmission line","No",""]
[null,"976/1 Canberra to Spring Flat Transmission Line 10 Minute Limit","198 MVA","Overhead transmission line","No",""]
[null,"976/1 Canberra to Spring Flat Transmission Line 5 Minute Limit","207 MVA","Overhead transmission line","No",""]
[null,"976/2 Yass to Spring Flat Transmission Line Normal Limit","133 MVA","Overhead transmission line","No",""]
[null,"976/2 Yass to Spring Flat Transmission Line Contingency Limit","157 MVA","Overhead transmission line","No",""]
[null,"976/2 Yass to Spring Flat Transmission Line 15 Minute Limit","157 MVA","Overhead transmission line","No",""]
[null,"976/2 Yass to Spring Flat Transmission Line 10 Minute Limit","163 MVA","Overhead transmission line","No",""]
[null,"976/2 Yass to Spring Flat Transmission Line 5 Minute Limit","178 MVA","Overhead transmission line","No",""]
[null,"976/3 Spring Flat to Queanbeyan Transmission Line Normal Limit","133 MVA","Overhead transmission line","No",""]
[null,"976/3 Spring Flat to Queanbeyan Transmission Line Contingency Limit","157 MVA","Overhead transmission line","No",""]
[null,"976/3 Spring Flat to Queanbeyan Transmission Line 15 Minute Limit","157 MVA","Overhead transmission line","No",""]
[null,"976/3 Spring Flat to Queanbeyan Transmission Line 10 Minute Limit","163 MVA","Overhead transmission line","No",""]
[null,"976/3 Spring Flat to Queanbeyan Transmission Line 5 Minute Limit","178 MVA","Overhead transmission line","No",""]
[null,"977 Canberra to Queanbeyan Transmission Line Normal Limit","125 MVA","Overhead transmission line","No",""]
[null,"977 Canberra to Queanbeyan Transmission Line Contingency Limit","137 MVA","Overhead transmission line","No",""]
[null,"977 Canberra to Queanbeyan Transmission Line 15 Minute Limit","144 MVA","Overhead transmission line","No",""]
[null,"977 Canberra to Queanbeyan Transmission Line 10 Minute Limit","146 MVA","Overhead transmission line","No",""]
[null,"977 Canberra to Queanbeyan Transmission Line 5 Minute Limit","153 MVA","Overhead transmission line","No",""]
[null,"978 Williamsdale to Cooma Transmission Line Normal Limit","183 MVA","Overhead transmission line","No",""]
[null,"978 Williamsdale to Cooma Transmission Line Contingency Limit","199 MVA","Overhead transmission line","No",""]
[null,"978 Williamsdale to Cooma Transmission Line 15 Minute Limit","199 MVA","Overhead transmission line","No",""]
[null,"978 Williamsdale to Cooma Transmission Line 10 Minute Limit","199 MVA","Overhead transmission line","No",""]
[null,"978 Williamsdale to Cooma Transmission Line 5 Minute Limit","200 MVA","Overhead transmission line","No",""]
[null,"979 Munyang to Guthega Transmission Line Normal Limit","100 MVA","Secondary of CT (protection metering or indication)","No",""]
[null,"979 Munyang to Guthega Transmission Line Contingency Limit","100 MVA","Secondary of CT (protection metering or indication)","No",""]
[null,"979 Munyang to Guthega Transmission Line 15 Minute Limit","100 MVA","Secondary of CT (protection metering or indication)","No",""]
[null,"979 Munyang to Guthega Transmission Line 10 Minute Limit","100 MVA","Secondary of CT (protection metering or indication)","No",""]
[null,"979 Munyang to Guthega Transmission Line 5 Minute Limit","100 MVA","Secondary of CT (protection metering or indication)","No",""]
[null,"097B Tumut to Blowering Transmission Line Normal Limit","110 MVA","Secondary of CT (protection metering or indication)","No",""]
[null,"097B Tumut to Blowering Transmission Line Contingency Limit","110 MVA","Secondary of CT (protection metering or indication)","No",""]
[null,"097B Tumut to Blowering Transmission Line 15 Minute Limit","110 MVA","Secondary of CT (protection metering or indication)","No",""]
[null,"097B Tumut to Blowering Transmission Line 10 Minute Limit","110 MVA","Secondary of CT (protection metering or indication)","No",""]
[null,"097B Tumut to Blowering Transmission Line 5 Minute Limit","110 MVA","Secondary of CT (protection metering or indication)","No",""]
[null,"97D Williamsdale to Cooma Transmission Line Normal Limit","183 MVA","Overhead transmission line","No",""]
[null,"97D Williamsdale to Cooma Transmission Line Contingency Limit","199 MVA","Overhead transmission line","No",""]
[null,"97D Williamsdale to Cooma Transmission Line 15 Minute Limit","199 MVA","Overhead transmission line","No",""]
[null,"97D Williamsdale to Cooma Transmission Line 10 Minute Limit","199 MVA","Overhead transmission line","No",""]
[null,"97D Williamsdale to Cooma Transmission Line 5 Minute Limit","200 MVA","Overhead transmission line","No",""]
[null,"97F Williamsdale to Gilmore Transmission Line Normal Limit","222 MVA","Overhead transmission line","No",""]
[null,"97F Williamsdale to Gilmore Transmission Line Contingency Limit","334 MVA","Overhead transmission line","No",""]
[null,"97F Williamsdale to Gilmore Transmission Line 15 Minute Limit","512 MVA","High voltage connections","No",""]
[null,"97F Williamsdale to Gilmore Transmission Line 10 Minute Limit","512 MVA","High voltage connections","No",""]
[null,"97F Williamsdale to Gilmore Transmission Line 5 Minute Limit","512 MVA","High voltage connections","No",""]
[null,"97G Murray to Guthega Transmission Line Normal Limit","89 MVA","Overhead transmission line","No",""]
[null,"97G Murray to Guthega Transmission Line Contingency Limit","96 MVA","Overhead transmission line","No",""]
[null,"97G Murray to Guthega Transmission Line 15 Minute Limit","96 MVA","Overhead transmission line","No",""]
[null,"97G Murray to Guthega Transmission Line 10 Minute Limit","96 MVA","Overhead transmission line","No",""]
[null,"97G Murray to Guthega Transmission Line 5 Minute Limit","96 MVA","Overhead transmission line","No",""]
[null,"97H Williamsdale to Theodore Transmission Line Normal Limit","222 MVA","Overhead transmission line","No",""]
[null,"97H Williamsdale to Theodore Transmission Line Contingency Limit","334 MVA","Overhead transmission line","No",""]
[null,"97H Williamsdale to Theodore Transmission Line 15 Minute Limit","512 MVA","High voltage connections","No",""]
[null,"97H Williamsdale to Theodore Transmission Line 10 Minute Limit","512 MVA","High voltage connections","No",""]
[null,"97H Williamsdale to Theodore Transmission Line 5 Minute Limit","512 MVA","High voltage connections","No",""]
[null,"97K Cooma to Munyang Transmission Line Normal Limit","69 MVA","Overhead transmission line","No",""]
[null,"97K Cooma to Munyang Transmission Line Contingency Limit","104 MVA","Overhead transmission line","No",""]
[null,"97K Cooma to Munyang Transmission Line 15 Minute Limit","109 MVA","Overhead transmission line","No",""]
[null,"97K Cooma to Munyang Transmission Line 10 Minute Limit","111 MVA","Overhead transmission line","No",""]
[null,"97K Cooma to Munyang Transmission Line 5 Minute Limit","116 MVA","Overhead transmission line","No",""]
[null,"97R Cooma to Bega Tee Steeple Transmission Line Normal Limit","110 MVA","Secondary of CT (protection metering or indication)","No",""]
[null,"97R Cooma to Bega Tee Steeple Transmission Line Contingency Limit","114 MVA","Secondary of CT (protection metering or indication)","No",""]
[null,"97R Cooma to Bega Tee Steeple Transmission Line 15 Minute Limit","114 MVA","Secondary of CT (protection metering or indication)","No",""]
[null,"97R Cooma to Bega Tee Steeple Transmission Line 10 Minute Limit","114 MVA","Secondary of CT (protection metering or indication)","No",""]
[null,"97R Cooma to Bega Tee Steeple Transmission Line 5 Minute Limit","114 MVA","Secondary of CT (protection metering or indication)","No",""]
[null,"97Y Williamsdale to Googong Town Transmission Line Normal Limit","27 MVA","Secondary of CT (protection metering or indication)","No",""]
[null,"97Y Williamsdale to Googong Town Transmission Line Contingency Limit","27 MVA","Secondary of CT (protection metering or indication)","No",""]
[null,"97Y Williamsdale to Googong Town Transmission Line 15 Minute Limit","27 MVA","Secondary of CT (protection metering or indication)","No",""]
[null,"97Y Williamsdale to Googong Town Transmission Line 10 Minute Limit","27 MVA","Secondary of CT (protection metering or indication)","No",""]
[null,"97Y Williamsdale to Googong Town Transmission Line 5 Minute Limit","27 MVA","Secondary of CT (protection metering or indication)","No",""]
[null,"98C Marulan to Fairfax Lane Transmission Line Normal Limit","110 MVA","Secondary of CT (protection metering or indication)","No",""]
[null,"98C Marulan to Fairfax Lane Transmission Line Contingency Limit","110 MVA","Secondary of CT (protection metering or indication)","No",""]
[null,"98C Marulan to Fairfax Lane Transmission Line 15 Minute Limit","110 MVA","Secondary of CT (protection metering or indication)","No",""]
[null,"98C Marulan to Fairfax Lane Transmission Line 10 Minute Limit","110 MVA","Secondary of CT (protection metering or indication)","No",""]
[null,"98C Marulan to Fairfax Lane Transmission Line 5 Minute Limit","110 MVA","Secondary of CT (protection metering or indication)","No",""]
[null,"990 Yass to Wagga 132 Transmission Line Normal Limit","125 MVA","Overhead transmission line","No",""]
[null,"990 Yass to Wagga 132 Transmission Line Contingency Limit","137 MVA","Overhead transmission line","No",""]
[null,"990 Yass to Wagga 132 Transmission Line 15 Minute Limit","144 MVA","Overhead transmission line","No",""]
[null,"990 Yass to Wagga 132 Transmission Line 10 Minute Limit","146 MVA","Overhead transmission line","No",""]
[null,"990 Yass to Wagga 132 Transmission Line 5 Minute Limit","153 MVA","Overhead transmission line","No",""]
[null,"991 Murrumburrah to Wagga North Transmission Line Normal Limit","125 MVA","Overhead transmission line","No",""]
[null,"991 Murrumburrah to Wagga North Transmission Line Contingency Limit","137 MVA","Overhead transmission line","No",""]
[null,"991 Murrumburrah to Wagga North Transmission Line 15 Minute Limit","144 MVA","Overhead transmission line","No",""]
[null,"991 Murrumburrah to Wagga North Transmission Line 10 Minute Limit","146 MVA","Overhead transmission line","No",""]
[null,"991 Murrumburrah to Wagga North Transmission Line 5 Minute Limit","153 MVA","Overhead transmission line","No",""]
[null,"992 Burrinjuck to Tumut Transmission Line Normal Limit","125 MVA","Secondary of CT (protection metering or indication)","No",""]
[null,"992 Burrinjuck to Tumut Transmission Line Contingency Limit","133 MVA","High voltage connections","No",""]
[null,"992 Burrinjuck to Tumut Transmission Line 15 Minute Limit","133 MVA","High voltage connections","No",""]
[null,"992 Burrinjuck to Tumut Transmission Line 10 Minute Limit","133 MVA","High voltage connections","No",""]
[null,"992 Burrinjuck to Tumut Transmission Line 5 Minute Limit","133 MVA","High voltage connections","No",""]
[null,"993 Wagga 330 to Gadara Transmission Line Normal Limit","125 MVA","Overhead transmission line","No",""]
[null,"993 Wagga 330 to Gadara Transmission Line Contingency Limit","137 MVA","Overhead transmission line","No",""]
[null,"993 Wagga 330 to Gadara Transmission Line 15 Minute Limit","144 MVA","Overhead transmission line","No",""]
[null,"993 Wagga 330 to Gadara Transmission Line 10 Minute Limit","146 MVA","Overhead transmission line","No",""]
[null,"993 Wagga 330 to Gadara Transmission Line 5 Minute Limit","153 MVA","Overhead transmission line","No",""]
[null,"994  Yanco 330 to Wagga 330 Transmission Line Normal Limit","125 MVA","Overhead transmission line","No",""]
[null,"994  Yanco 330 to Wagga 330 Transmission Line Contingency Limit","137 MVA","Overhead transmission line","No",""]
[null,"994  Yanco 330 to Wagga 330 Transmission Line 15 Minute Limit","144 MVA","Overhead transmission line","No",""]
[null,"994  Yanco 330 to Wagga 330 Transmission Line 10 Minute Limit","146 MVA","Overhead transmission line","No",""]
[null,"994  Yanco 330 to Wagga 330 Transmission Line 5 Minute Limit","153 MVA","Overhead transmission line","No",""]
[null,"994 Wagga 330 to Yanco Transmission Line Normal Limit","125 MVA","Overhead transmission line","No",""]
[null,"994 Wagga 330 to Yanco Transmission Line Contingency Limit","137 MVA","Overhead transmission line","No",""]
[null,"994 Wagga 330 to Yanco Transmission Line 15 Minute Limit","140 MVA","Protection trip setting","No",""]
[null,"994 Wagga 330 to Yanco Transmission Line 10 Minute Limit","140 MVA","Protection trip setting","No",""]
[null,"994 Wagga 330 to Yanco Transmission Line 5 Minute Limit","140 MVA","Protection trip setting","No",""]
[null,"995 Albury to Hume Transmission Line Normal Limit","86 MVA","Secondary of CT (protection metering or indication)","No",""]
[null,"995 Albury to Hume Transmission Line Contingency Limit","86 MVA","Secondary of CT (protection metering or indication)","No",""]
[null,"995 Albury to Hume Transmission Line 15 Minute Limit","86 MVA","Secondary of CT (protection metering or indication)","No",""]
[null,"995 Albury to Hume Transmission Line 10 Minute Limit","86 MVA","Secondary of CT (protection metering or indication)","No",""]
[null,"995 Albury to Hume Transmission Line 5 Minute Limit","86 MVA","Secondary of CT (protection metering or indication)","No",""]
[null,"996 Wagga 330 to ANM Transmission Line Normal Limit","125 MVA","Overhead transmission line","No",""]
[null,"996 Wagga 330 to ANM Transmission Line Contingency Limit","137 MVA","Overhead transmission line","No",""]
[null,"996 Wagga 330 to ANM Transmission Line 15 Minute Limit","144 MVA","Overhead transmission line","No",""]
[null,"996 Wagga 330 to ANM Transmission Line 10 Minute Limit","146 MVA","Overhead transmission line","No",""]
[null,"996 Wagga 330 to ANM Transmission Line 5 Minute Limit","153 MVA","Overhead transmission line","No",""]
[null,"997 Albury to Corowa Transmission Line Normal Limit","110 MVA","Secondary of CT (protection metering or indication)","No",""]
[null,"997 Albury to Corowa Transmission Line Contingency Limit","110 MVA","Secondary of CT (protection metering or indication)","No",""]
[null,"997 Albury to Corowa Transmission Line 15 Minute Limit","110 MVA","Secondary of CT (protection metering or indication)","No",""]
[null,"997 Albury to Corowa Transmission Line 10 Minute Limit","110 MVA","Secondary of CT (protection metering or indication)","No",""]
[null,"997 Albury to Corowa Transmission Line 5 Minute Limit","110 MVA","Secondary of CT (protection metering or indication)","No",""]
[null,"999 Yass to Cowra Transmission Line Normal Limit","36 MVA","Overhead transmission line","No",""]
[null,"999 Yass to Cowra Transmission Line Contingency Limit","45 MVA","Overhead transmission line","No",""]
[null,"99A Uranquinty to Finley Transmission Line Normal Limit","125 MVA","Overhead transmission line","No",""]
[null,"99A Uranquinty to Finley Transmission Line Contingency Limit","129 MVA","Protection trip setting","No",""]
[null,"99A Uranquinty to Finley Transmission Line 15 Minute Limit","129 MVA","Protection trip setting","No",""]
[null,"99A Uranquinty to Finley Transmission Line 10 Minute Limit","129 MVA","Protection trip setting","No",""]
[null,"99A Uranquinty to Finley Transmission Line 5 Minute Limit","129 MVA","Protection trip setting","No",""]
[null,"9R3 Finley to Deniliquin Transmission Line Normal Limit","125 MVA","Overhead transmission line","No",""]
[null,"9R3 Finley to Deniliquin Transmission Line Contingency Limit","137 MVA","Overhead transmission line","No",""]
[null,"9R3 Finley to Deniliquin Transmission Line 15 Minute Limit","144 MVA","Overhead transmission line","No",""]
[null,"9R3 Finley to Deniliquin Transmission Line 10 Minute Limit","146 MVA","Overhead transmission line","No",""]
[null,"9R3 Finley to Deniliquin Transmission Line 5 Minute Limit","153 MVA","Overhead transmission line","No",""]
[null,"9R4 Finley to Mulwala Transmission Line Normal Limit","110 MVA","Secondary of CT (protection metering or indication)","No",""]
[null,"9R4 Finley to Mulwala Transmission Line Contingency Limit","110 MVA","Secondary of CT (protection metering or indication)","No",""]
[null,"9R4 Finley to Mulwala Transmission Line 15 Minute Limit","110 MVA","Secondary of CT (protection metering or indication)","No",""]
[null,"9R4 Finley to Mulwala Transmission Line 10 Minute Limit","110 MVA","Secondary of CT (protection metering or indication)","No",""]
[null,"9R4 Finley to Mulwala Transmission Line 5 Minute Limit","110 MVA","Secondary of CT (protection metering or indication)","No",""]
[null,"99B Jindera to Albury Transmission Line Normal Limit","256 MVA","Overhead transmission line","No",""]
[null,"99B Jindera to Albury Transmission Line Contingency Limit","256 MVA","High voltage connections","No",""]
[null,"99B Jindera to Albury Transmission Line 15 Minute Limit","256 MVA","High voltage connections","No",""]
[null,"99B Jindera to Albury Transmission Line 10 Minute Limit","256 MVA","High voltage connections","No",""]
[null,"99B Jindera to Albury Transmission Line 5 Minute Limit","256 MVA","High voltage connections","No",""]
[null,"99D Darlington Point to Yanco Transmission Line Normal Limit","183 MVA","Overhead transmission line","No",""]
[null,"99D Darlington Point to Yanco Transmission Line Contingency Limit","199 MVA","Overhead transmission line","No",""]
[null,"99D Darlington Point to Yanco Transmission Line 15 Minute Limit","199 MVA","Overhead transmission line","No",""]
[null,"99D Darlington Point to Yanco Transmission Line 10 Minute Limit","199 MVA","Overhead transmission line","No",""]
[null,"99D Darlington Point to Yanco Transmission Line 5 Minute Limit","200 MVA","Overhead transmission line","No",""]
[null,"99E Albury to Jelbart Transmission Line Normal Limit","109 MVA","Overhead transmission line","No",""]
[null,"99E Albury to Jelbart Transmission Line Contingency Limit","110 MVA","Secondary of CT (protection metering or indication)","No",""]
[null,"99E Albury to Jelbart Transmission Line 15 Minute Limit","110 MVA","Secondary of CT (protection metering or indication)","No",""]
[null,"99E Albury to Jelbart Transmission Line 10 Minute Limit","110 MVA","Secondary of CT (protection metering or indication)","No",""]
[null,"99E Albury to Jelbart Transmission Line 5 Minute Limit","110 MVA","Secondary of CT (protection metering or indication)","No",""]
[null,"99F Uranquinty to Yanco Transmission Line Normal Limit","137 MVA","Overhead transmission line","No",""]
[null,"99F Uranquinty to Yanco Transmission Line Contingency Limit","152 MVA","Overhead transmission line","No",""]
[null,"99F Uranquinty to Yanco Transmission Line 15 Minute Limit","152 MVA","Overhead transmission line","No",""]
[null,"99F Uranquinty to Yanco Transmission Line 10 Minute Limit","152 MVA","Overhead transmission line","No",""]
[null,"99F Uranquinty to Yanco Transmission Line 5 Minute Limit","167 MVA","Overhead transmission line","No",""]
[null,"99G Albury to Jelbart Transmission Line Normal Limit","109 MVA","Overhead transmission line","No",""]
[null,"99G Albury to Jelbart Transmission Line Contingency Limit","110 MVA","Secondary of CT (protection metering or indication)","No",""]
[null,"99G Albury to Jelbart Transmission Line 15 Minute Limit","110 MVA","Secondary of CT (protection metering or indication)","No",""]
[null,"99G Albury to Jelbart Transmission Line 10 Minute Limit","110 MVA","Secondary of CT (protection metering or indication)","No",""]
[null,"99G Albury to Jelbart Transmission Line 5 Minute Limit","110 MVA","Secondary of CT (protection metering or indication)","No",""]
[null,"99H Jindera to ANM Transmission Line Normal Limit","214 MVA","Secondary of CT (protection metering or indication)","No",""]
[null,"99H Jindera to ANM Transmission Line Contingency Limit","242 MVA","Overhead transmission line","No",""]
[null,"99H Jindera to ANM Transmission Line 15 Minute Limit","242 MVA","Overhead transmission line","No",""]
[null,"99H Jindera to ANM Transmission Line 10 Minute Limit","242 MVA","Overhead transmission line","No",""]
[null,"99H Jindera to ANM Transmission Line 5 Minute Limit","242 MVA","Overhead transmission line","No",""]
[null,"99J Yanco to Griffith Transmission Line Normal Limit","125 MVA","Overhead transmission line","No",""]
[null,"99J Yanco to Griffith Transmission Line Contingency Limit","137 MVA","Overhead transmission line","No",""]
[null,"99J Yanco to Griffith Transmission Line 15 Minute Limit","144 MVA","Overhead transmission line","No",""]
[null,"99J Yanco to Griffith Transmission Line 10 Minute Limit","146 MVA","Overhead transmission line","No",""]
[null,"99J Yanco to Griffith Transmission Line 5 Minute Limit","153 MVA","Overhead transmission line","No",""]
[null,"99K Darlington Point to Griffith Transmission Line Normal Limit","183 MVA","Overhead transmission line","No",""]
[null,"99K Darlington Point to Griffith Transmission Line Contingency Limit","183 MVA","Secondary of CT (protection metering or indication)","No",""]
[null,"99K Darlington Point to Griffith Transmission Line 15 Minute Limit","183 MVA","Secondary of CT (protection metering or indication)","No",""]
[null,"99K Darlington Point to Griffith Transmission Line 10 Minute Limit","183 MVA","Secondary of CT (protection metering or indication)","No",""]
[null,"99K Darlington Point to Griffith Transmission Line 5 Minute Limit","183 MVA","Secondary of CT (protection metering or indication)","No",""]
[null,"99L Deniliquin to Coleambally Transmission Line Normal Limit","125 MVA","Overhead transmission line","No",""]
[null,"99L Deniliquin to Coleambally Transmission Line Contingency Limit","137 MVA","Overhead transmission line","No",""]
[null,"99L Deniliquin to Coleambally Transmission Line 15 Minute Limit","144 MVA","High voltage connections","No",""]
[null,"99L Deniliquin to Coleambally Transmission Line 10 Minute Limit","144 MVA","High voltage connections","No",""]
[null,"99L Deniliquin to Coleambally Transmission Line 5 Minute Limit","144 MVA","High voltage connections","No",""]
[null,"99M Yass to Murrumburrah Transmission Line Normal Limit","125 MVA","Overhead transmission line","No",""]
[null,"99M Yass to Murrumburrah Transmission Line Contingency Limit","137 MVA","Overhead transmission line","No",""]
[null,"99M Yass to Murrumburrah Transmission Line 15 Minute Limit","144 MVA","Overhead transmission line","No",""]
[null,"99M Yass to Murrumburrah Transmission Line 10 Minute Limit","146 MVA","Overhead transmission line","No",""]
[null,"99M Yass to Murrumburrah Transmission Line 5 Minute Limit","153 MVA","Overhead transmission line","No",""]
[null,"99N Darlington Point to Hillston Transmission Line Normal Limit","72 MVA","Secondary of CT (protection metering or indication)","No",""]
[null,"99N Darlington Point to Hillston Transmission Line Contingency Limit","72 MVA","Secondary of CT (protection metering or indication)","No",""]
[null,"99N Darlington Point to Hillston Transmission Line 15 Minute Limit","72 MVA","Secondary of CT (protection metering or indication)","No",""]
[null,"99N Darlington Point to Hillston Transmission Line 10 Minute Limit","72 MVA","Secondary of CT (protection metering or indication)","No",""]
[null,"99N Darlington Point to Hillston Transmission Line 5 Minute Limit","72 MVA","Secondary of CT (protection metering or indication)","No",""]
[null,"99P Gadara to Tumut Transmission Line Normal Limit","125 MVA","Overhead transmission line","No",""]
[null,"99P Gadara to Tumut Transmission Line Contingency Limit","137 MVA","Overhead transmission line","No",""]
[null,"99P Gadara to Tumut Transmission Line 15 Minute Limit","144 MVA","Overhead transmission line","No",""]
[null,"99P Gadara to Tumut Transmission Line 10 Minute Limit","146 MVA","Overhead transmission line","No",""]
[null,"99P Gadara to Tumut Transmission Line 5 Minute Limit","153 MVA","Overhead transmission line","No",""]
[null,"99R Darlington Point to Hay Transmission Line Normal Limit","72 MVA","Secondary of CT (protection metering or indication)","No",""]
[null,"99R Darlington Point to Hay Transmission Line Contingency Limit","72 MVA","Secondary of CT (protection metering or indication)","No",""]
[null,"99R Darlington Point to Hay Transmission Line 15 Minute Limit","72 MVA","Secondary of CT (protection metering or indication)","No",""]
[null,"99R Darlington Point to Hay Transmission Line 10 Minute Limit","72 MVA","Secondary of CT (protection metering or indication)","No",""]
[null,"99R Darlington Point to Hay Transmission Line 5 Minute Limit","72 MVA","Secondary of CT (protection metering or indication)","No",""]
[null,"99T Darlington Point to Coleambally Transmission Line Normal Limit","191 MVA","Overhead transmission line","No",""]
[null,"99T Darlington Point to Coleambally Transmission Line Contingency Limit","191 MVA","Overhead transmission line","No",""]
[null,"99T Darlington Point to Coleambally Transmission Line 15 Minute Limit","191 MVA","Overhead transmission line","No",""]
[null,"99T Darlington Point to Coleambally Transmission Line 10 Minute Limit","191 MVA","Overhead transmission line","No",""]
[null,"99T Darlington Point to Coleambally Transmission Line 5 Minute Limit","191 MVA","Overhead transmission line","No",""]
[null,"99U Wagga North to Temora Transmission Line Normal Limit","227 MVA","Protection trip setting","No",""]
[null,"99U Wagga North to Temora Transmission Line Contingency Limit","227 MVA","Protection trip setting","No",""]
[null,"99U Wagga North to Temora Transmission Line 15 Minute Limit","227 MVA","Protection trip setting","No",""]
[null,"99U Wagga North to Temora Transmission Line 10 Minute Limit","227 MVA","Protection trip setting","No",""]
[null,"99U Wagga North to Temora Transmission Line 5 Minute Limit","227 MVA","Protection trip setting","No",""]
[null,"99W Wagga 330 to Wagga 132 Transmission Line Normal Limit","168 MVA","Overhead transmission line","No",""]
[null,"99W Wagga 330 to Wagga 132 Transmission Line Contingency Limit","183 MVA","Wave traps","No",""]
[null,"99W Wagga 330 to Wagga 132 Transmission Line 15 Minute Limit","183 MVA","Overhead transmission line","No",""]
[null,"99W Wagga 330 to Wagga 132 Transmission Line 10 Minute Limit","183 MVA","Overhead transmission line","No",""]
[null,"99W Wagga 330 to Wagga 132 Transmission Line 5 Minute Limit","185 MVA","Overhead transmission line","No",""]
[null,"99X Wagga 330 to Wagga 132 Transmission Line Normal Limit","137 MVA","Wave traps","No",""]
[null,"99X Wagga 330 to Wagga 132 Transmission Line Contingency Limit","137 MVA","Wave traps","No",""]
[null,"99X Wagga 330 to Wagga 132 Transmission Line 15 Minute Limit","144 MVA","Wave traps","No",""]
[null,"99X Wagga 330 to Wagga 132 Transmission Line 10 Minute Limit","148 MVA","Wave traps","No",""]
[null,"99X Wagga 330 to Wagga 132 Transmission Line 5 Minute Limit","151 MVA","Wave traps","No",""]
[null,"99Z Albury to ANM Transmission Line Normal Limit","224 MVA","Overhead transmission line","No",""]
[null,"99Z Albury to ANM Transmission Line Contingency Limit","242 MVA","Overhead transmission line","No",""]
[null,"99Z Albury to ANM Transmission Line 15 Minute Limit","256 MVA","High voltage connections","No",""]
[null,"99Z Albury to ANM Transmission Line 10 Minute Limit","256 MVA","High voltage connections","No",""]
[null,"99Z Albury to ANM Transmission Line 5 Minute Limit","256 MVA","High voltage connections","No",""]
[null,"9GL Yass to Bango Transmission Line Normal Limit","125 MVA","Overhead transmission line","No",""]
[null,"9GL Yass to Bango Transmission Line Contingency Limit","137 MVA","Overhead transmission line","No",""]
[null,"9GL Yass to Bango Transmission Line 15 Minute Limit","144 MVA","Overhead transmission line","No",""]
[null,"9GL Yass to Bango Transmission Line 10 Minute Limit","146 MVA","Overhead transmission line","No",""]
[null,"9GL Yass to Bango Transmission Line 5 Minute Limit","153 MVA","Overhead transmission line","No",""]
[null,"9GM Yass to Bango Transmission Line Normal Limit","89 MVA","Overhead transmission line","No",""]
[null,"9GM Yass to Bango Transmission Line Contingency Limit","89 MVA","Overhead transmission line","No",""]
[null,"9GM Yass to Bango Transmission Line 15 Minute Limit","89 MVA","Overhead transmission line","No",""]
[null,"9GM Yass to Bango Transmission Line 10 Minute Limit","89 MVA","Overhead transmission line","No",""]
[null,"9GM Yass to Bango Transmission Line 5 Minute Limit","90 MVA","Overhead transmission line","No",""]
[null,"9HC/1 Canberra to Stockdill Transmission Line Normal Limit","446 MVA","Overhead transmission line","No",""]
[null,"9HC/1 Canberra to Stockdill Transmission Line Contingency Limit","512 MVA","High voltage connections","No",""]
[null,"9HC/1 Canberra to Stockdill Transmission Line 15 Minute Limit","512 MVA","High voltage connections","No",""]
[null,"9HC/1 Canberra to Stockdill Transmission Line 10 Minute Limit","512 MVA","High voltage connections","No",""]
[null,"9HC/1 Canberra to Stockdill Transmission Line 5 Minute Limit","512 MVA","High voltage connections","No",""]
[null,"9HC/1 Stockdill to Canberra Transmission Line Normal Limit","446 MVA","Overhead transmission line","No",""]
[null,"9HC/1 Stockdill to Canberral Transmission Line Contingency Limit","499 MVA","Protection trip setting","No",""]
[null,"9HC/1 Stockdill to Canberra Transmission Line 15 Minute Limit","499 MVA","Protection trip setting","No",""]
[null,"9HC/1 Stockdill to Canberra Transmission Line 10 Minute Limit","499 MVA","Protection trip setting","No",""]
[null,"9HC/1 Stockdill to Canberra Transmission Line 5 Minute Limit","499 MVA","Protection trip setting","No",""]
[null,"9HC/2 Stockdill to Woden Transmission Line Normal Limit","446 MVA","Overhead transmission line","No",""]
[null,"9HC/2 Stockdill to Woden Transmission Line Contingency Limit","499 MVA","Protection trip setting","No",""]
[null,"9HC/2 Stockdill to Woden Transmission Line 15 Minute Limit","499 MVA","Protection trip setting","No",""]
[null,"9HC/2 Stockdill to Woden Transmission Line 10 Minute Limit","499 MVA","Protection trip setting","No",""]
[null,"9HC/2 Stockdill to Woden Transmission Line 5 Minute Limit","499 MVA","Protection trip setting","No",""]
[null,"9J5 Wagga North to Temora tee Junee Transmission Line Normal Limit","132 MVA","Protection trip setting","No",""]
[null,"9J5 Wagga North to Temora tee Junee Transmission Line Contingency Limit","132 MVA","Protection trip setting","No",""]
[null,"9J5 Wagga North to Temora tee Junee Transmission Line 15 Minute Limit","132 MVA","Protection trip setting","No",""]
[null,"9J5 Wagga North to Temora tee Junee Transmission Line 10 Minute Limit","132 MVA","Protection trip setting","No",""]
[null,"9J5 Wagga North to Temora tee Junee Transmission Line 5 Minute Limit","132 MVA","Protection trip setting","No",""]
[null,"9R1 Wagga 330 to Uranquinty Transmission Line Normal Limit","512 MVA","Overhead transmission line","No",""]
[null,"9R1 Wagga 330 to Uranquinty Transmission Line Contingency Limit","572 MVA","Wave traps","No",""]
[null,"9R1 Wagga 330 to Uranquinty Transmission Line 15 Minute Limit","572 MVA","Wave traps","No",""]
[null,"9R1 Wagga 330 to Uranquinty Transmission Line 10 Minute Limit","572 MVA","Wave traps","No",""]
[null,"9R1 Wagga 330 to Uranquinty Transmission Line 5 Minute Limit","572 MVA","Wave traps","No",""]
[null,"9R2 Wagga 330 to Uranquinty Transmission Line Normal Limit","512 MVA","Overhead transmission line","No",""]
[null,"9R2 Wagga 330 to Uranquinty Transmission Line Contingency Limit","604 MVA","Overhead transmission line","No",""]
[null,"9R2 Wagga 330 to Uranquinty Transmission Line 15 Minute Limit","604 MVA","Overhead transmission line","No",""]
[null,"9R2 Wagga 330 to Uranquinty Transmission Line 10 Minute Limit","604 MVA","Overhead transmission line","No",""]
[null,"9R2 Wagga 330 to Uranquinty Transmission Line 5 Minute Limit","604 MVA","Overhead transmission line","No",""]
[null,"9R5 Wagga 330 to Wagga North Transmission Line Normal Limit","125 MVA","Overhead transmission line","No",""]
[null,"9R5 Wagga 330 to Wagga North Transmission Line Contingency Limit","137 MVA","Overhead transmission line","No",""]
[null,"9R5 Wagga 330 to Wagga North Transmission Line 15 Minute Limit","144 MVA","Overhead transmission line","No",""]
[null,"9R5 Wagga 330 to Wagga North Transmission Line 10 Minute Limit","146 MVA","Overhead transmission line","No",""]
[null,"9R5 Wagga 330 to Wagga North Transmission Line 5 Minute Limit","153 MVA","Overhead transmission line","No",""]
[null,"9R6 Wagga 132 to Wagga North Transmission Line Normal Limit","125 MVA","Overhead transmission line","No",""]
[null,"9R6 Wagga 132 to Wagga North Transmission Line Contingency Limit","137 MVA","Overhead transmission line","No",""]
[null,"9R6 Wagga 132 to Wagga North Transmission Line 15 Minute Limit","144 MVA","Overhead transmission line","No",""]
[null,"9R6 Wagga 132 to Wagga North Transmission Line 10 Minute Limit","146 MVA","Overhead transmission line","No",""]
[null,"9R6 Wagga 132 to Wagga North Transmission Line 5 Minute Limit","153 MVA","Overhead transmission line","No",""]
[null,"9R6 Coleambally to Coleambally Solar Farm Transmission Line Normal Limit","219 MVA","Secondary of CT (protection metering or indication)","No",""]
[null,"9R6 Coleambally to Coleambally Solar Farm Transmission Line Contingency Limit","219 MVA","Secondary of CT (protection metering or indication)","No",""]
[null,"9R6 Coleambally to Coleambally Solar Farm Transmission Line 15 Minute Limit","219 MVA","Secondary of CT (protection metering or indication)","No",""]
[null,"9R6 Coleambally to Coleambally Solar Farm Transmission Line 10 Minute Limit","219 MVA","Secondary of CT (protection metering or indication)","No",""]
[null,"9R6 Coleambally to Coleambally Solar Farm Transmission Line 5 Minute Limit","219 MVA","Secondary of CT (protection metering or indication)","No",""]
[null,"9RH Wagga North to Bomen Solar Farm Transmission Line Normal Limit","137 MVA","Secondary of CT (protection metering or indication)","No",""]
[null,"9RH Wagga North to Bomen Solar Farm Transmission Line Contingency Limit","137 MVA","Secondary of CT (protection metering or indication)","No",""]
[null,"9RH Wagga North to Bomen Solar Farm Transmission Line 15 Minute Limit","137 MVA","Secondary of CT (protection metering or indication)","No",""]
[null,"9RH Wagga North to Bomen Solar Farm Transmission Line 10 Minute Limit","137 MVA","Secondary of CT (protection metering or indication)","No",""]
[null,"9RH Wagga North to Bomen Solar Farm Transmission Line 5 Minute Limit","137 MVA","Secondary of CT (protection metering or indication)","No",""]
[null,"9RX Darlington Point to Darlington Point Solar Farm Transmission Line Normal Limit","329 MVA","Secondary of CT (protection metering or indication)","No",""]
[null,"9RX Darlington Point to Darlington Point Solar Farm Transmission Line Contingency Limit","329 MVA","Secondary of CT (protection metering or indication)","No",""]
[null,"9RX Darlington Point to Darlington Point Solar Farm Transmission Line 15 Minute Limit","329 MVA","Secondary of CT (protection metering or indication)","No",""]
[null,"9RX Darlington Point to Darlington Point Solar Farm Transmission Line 10 Minute Limit","329 MVA","Secondary of CT (protection metering or indication)","No",""]
[null,"9RX Darlington Point to Darlington Point Solar Farm Transmission Line 5 Minute Limit","329 MVA","Secondary of CT (protection metering or indication)","No",""]
[null,"9UR Marulan to Taralga WF Transmission Line Normal Limit","140 MVA","Overhead transmission line","No",""]
[null,"9UR Marulan to Taralga WF Transmission Line Contingency Limit","166 MVA","Overhead transmission line","No",""]
[null,"9UR Marulan to Taralga WF Transmission Line 15 Minute Limit","180 MVA","Secondary of CT (protection metering or indication)","No",""]
[null,"9UR Marulan to Taralga WF Transmission Line 10 Minute Limit","180 MVA","Secondary of CT (protection metering or indication)","No",""]
[null,"9UR Marulan to Taralga WF Transmission Line 5 Minute Limit","180 MVA","Secondary of CT (protection metering or indication)","No",""]
[null,"A-2 Canberra to Latham Transmission Line Normal Limit","446 MVA","Overhead transmission line","No",""]
[null,"A-2 Canberra to Latham Transmission Line Contingency Limit","512 MVA","High voltage connections","No",""]
[null,"A-2 Canberra to Latham Transmission Line 15 Minute Limit","512 MVA","High voltage connections","No",""]
[null,"A-2 Canberra to Latham Transmission Line 10 Minute Limit","512 MVA","High voltage connections","No",""]
[null,"A-2 Canberra to Latham Transmission Line 5 Minute Limit","512 MVA","High voltage connections","No",""]
[null,"A-1 Canberra to Gold Creek Transmission Line Normal Limit","441 MVA","Overhead transmission line","No",""]
[null,"A-1 Canberra to Gold Creek Transmission Line Contingency Limit","549 MVA","Disconnectors","No",""]
[null,"A-1 Canberra to Gold Creek Transmission Line 15 Minute Limit","549 MVA","Disconnectors","No",""]
[null,"A-1 Canberra to Gold Creek Transmission Line 10 Minute Limit","549 MVA","Disconnectors","No",""]
[null,"A-1 Canberra to Gold Creek Transmission Line 5 Minute Limit","549 MVA","Disconnectors","No",""]
[null,"No.1 Guthega to Unit 2 Transmission Line Normal Limit","137 MVA","Disconnector","No",""]
[null,"No.2 Guthega to Unit 2 Transmission Line Normal Limit","137 MVA","Disconnector","No",""]
[null,"Armidale No.1 Transformer Continuous Rating","60 MVA","Transformer Thermal Rating","No",""]
[null,"Armidale No.1 Transformer Summer Two-Hour Rating","90 MVA","Transformer Thermal Rating","No",""]
[null,"Armidale No.1 Transformer Winter Two-Hour Rating","90 MVA","Transformer Thermal Rating","No",""]
[null,"Armidale No.2 Transformer Continuous Rating","60 MVA","Transformer Thermal Rating","No",""]
[null,"Armidale No.2 Transformer Summer Two-Hour Rating","82.7 MVA","Transformer Thermal Rating","No",""]
[null,"Armidale No.2 Transformer Winter Two-Hour Rating","89.3 MVA","Transformer Thermal Rating","No",""]
[null,"Armidale No.3 Transformer Continuous Rating","375 MVA","Transformer Thermal Rating","No",""]
[null,"Armidale No.3 Transformer Summer Two-Hour Rating","511  MVA","High voltage connections","No",""]
[null,"Armidale No.3 Transformer Winter Two-Hour Rating","511  MVA","High voltage connections","No",""]
[null,"Armidale No.6 Transformer Continuous Rating","375 MVA","Transformer Thermal Rating","No",""]
[null,"Armidale No.6 Transformer Summer Two-Hour Rating","511  MVA","High voltage connections","No",""]
[null,"Armidale No.6 Transformer Winter Two-Hour Rating","547  MVA","High voltage connections","No",""]
[null,"Bayswater No.1 Tie Transformer Continuous Rating","1500 MVA","Transformer Thermal Rating","No",""]
[null,"Bayswater No.1 Tie Transformer Summer Two-Hour Rating","1800  MVA","Disconnector","No",""]
[null,"Bayswater No.1 Tie Transformer Winter Two-Hour Rating","1800  MVA","Disconnector","No",""]
[null,"Bayswater No.2 Tie Transformer Continuous Rating","1500 MVA","Transformer Thermal Rating","No",""]
[null,"Bayswater No.2 Tie Transformer Summer Two-Hour Rating","1800  MVA","Primary of CT","No",""]
[null,"Bayswater No.2 Tie Transformer Winter Two-Hour Rating","1800  MVA","Primary of CT","No",""]
[null,"Coffs Harbour No.2 Transformer Continuous Rating","120 MVA","Transformer Thermal Rating","No",""]
[null,"Coffs Harbour No.2 Transformer Summer Two-Hour Rating","150.8  MVA","Transformer Thermal Rating","No",""]
[null,"Coffs Harbour No.2 Transformer Winter Two-Hour Rating","157.3  MVA","Transformer Thermal Rating","No",""]
[null,"Coffs Harbour No.3 Transformer Continuous Rating","120 MVA","Transformer Thermal Rating","No",""]
[null,"Coffs Harbour No.3 Transformer Summer Two-Hour Rating","128 MVA","High voltage connections","No",""]
[null,"Coffs Harbour No.3 Transformer Winter Two-Hour Rating","128 MVA","High voltage connections","No",""]
[null,"Coffs Harbour No.4 Transformer Continuous Rating","375 MVA","Transformer Thermal Rating","No",""]
[null,"Coffs Harbour No.4 Transformer Summer Two-Hour Rating","449.4 MVA","Transformer Thermal Rating","No",""]
[null,"Coffs Harbour No.4 Transformer Winter Two-Hour Rating","468.9 MVA","Transformer Thermal Rating","No",""]
[null,"Eraring No.2 Transformer Continuous Rating","1200 MVA","Transformer Thermal Rating","No",""]
[null,"Eraring No.2 Transformer Summer Two-Hour Rating","1655 MVA","Transformer Thermal Rating","No",""]
[null,"Eraring No.2 Transformer Winter Two-Hour Rating","1708 MVA","Transformer Thermal Rating","No",""]
[null,"Glen Innes No.1 Transformer Continuous Rating","60 MVA","Transformer Thermal Rating","No",""]
[null,"Glen Innes No.1 Transformer Summer Two-Hour Rating","74.7 MVA","Transformer Thermal Rating","No",""]
[null,"Glen Innes No.1 Transformer Winter Two-Hour Rating","81.5 MVA","Transformer Thermal Rating","No",""]
[null,"Glen Innes No.2 Transformer Continuous Rating","60 MVA","Transformer Thermal Rating","No",""]
[null,"Glen Innes No.2 Transformer Summer Two-Hour Rating","80 MVA","Transformer Thermal Rating","No",""]
[null,"Glen Innes No.2 Transformer Winter Two-Hour Rating","87 MVA","Transformer Thermal Rating","No",""]
[null,"Grafton East No.1 Transformer Continuous Rating","12.5 MVA","Transformer Thermal Rating","No",""]
[null,"Grafton East No.1 Transformer Summer Two-Hour Rating","16.8 MVA","Transformer Thermal Rating","No",""]
[null,"Grafton East No.1 Transformer Winter Two-Hour Rating","16.8 MVA","Transformer Thermal Rating","No",""]
[null,"Grafton East No.1 Transformer Continuous Rating","12.5 MVA","Transformer Thermal Rating","No",""]
[null,"Grafton East No.1 Transformer Summer Two-Hour Rating","16.3 MVA","Transformer Thermal Rating","No",""]
[null,"Grafton East No.1 Transformer Winter Two-Hour Rating","16.3 MVA","Transformer Thermal Rating","No",""]
[null,"Gunnedah No.1 Transformer Continuous Rating","60 MVA","Transformer Thermal Rating","No",""]
[null,"Gunnedah No.1 Transformer Summer Two-Hour Rating","70 MVA","Transformer Thermal Rating","No",""]
[null,"Gunnedah No.1 Transformer Winter Two-Hour Rating","75 MVA","Transformer Thermal Rating","No",""]
[null,"Gunnedah No.2 Transformer Continuous Rating","60 MVA","Transformer Thermal Rating","No",""]
[null,"Gunnedah No.2 Transformer Summer Two-Hour Rating","71 MVA","Transformer Thermal Rating","No",""]
[null,"Gunnedah No.2 Transformer Winter Two-Hour Rating","77 MVA","Transformer Thermal Rating","No",""]
[null,"Gunnedah East No.1 Transformer Continuous Rating","130 MVA","Transformer Thermal Rating","No",""]
[null,"Gunnedah East No.1 Transformer Summer Two-Hour Rating","155.8 MVA","Transformer Thermal Rating","No",""]
[null,"Gunnedah East No.1 Transformer Winter Two-Hour Rating","168.1 MVA","Transformer Thermal Rating","No",""]
[null,"Inverell No.1 Transformer Continuous Rating","114  MVA","Secondary of CT (protection metering or indication)","No",""]
[null,"Inverell No.1 Transformer Summer Two-Hour Rating","114  MVA","Secondary of CT (protection metering or indication)","No",""]
[null,"Inverell No.1 Transformer Winter Two-Hour Rating","114  MVA","Secondary of CT (protection metering or indication)","No",""]
[null,"Inverell No.2 Transformer Continuous Rating","114  MVA","Secondary of CT (protection metering or indication)","No",""]
[null,"Inverell No.2 Transformer Summer Two-Hour Rating","114  MVA","Secondary of CT (protection metering or indication)","No",""]
[null,"Inverell No.2 Transformer Winter Two-Hour Rating","114  MVA","Secondary of CT (protection metering or indication)","No",""]
[null,"Kempsey No.1 Transformer Continuous Rating","60 MVA","Transformer Thermal Rating","No",""]
[null,"Kempsey No.1 Transformer Summer Two-Hour Rating","60  MVA","High voltage connections","No",""]
[null,"Kempsey No.1 Transformer Winter Two-Hour Rating","60  MVA","High voltage connections","No",""]
[null,"Kempsey No.2 Transformer Continuous Rating","60 MVA","Transformer Thermal Rating","No",""]
[null,"Kempsey No.2 Transformer Summer Two-Hour Rating","60  MVA","Secondary of CT (protection metering or indication)","No",""]
[null,"Kempsey No.2 Transformer Winter Two-Hour Rating","60  MVA","Secondary of CT (protection metering or indication)","No",""]
[null,"Koolkhan No.1 Transformer Continuous Rating","60 MVA","Transformer Thermal Rating","No",""]
[null,"Koolkhan No.1 Transformer Summer Two-Hour Rating","83.1 MVA","Transformer Thermal Rating","No",""]
[null,"Koolkhan No.1 Transformer Winter Two-Hour Rating","83.1 MVA","Transformer Thermal Rating","No",""]
[null,"Koolkhan No.3 Transformer Continuous Rating","60 MVA","Transformer Thermal Rating","No",""]
[null,"Koolkhan No.3 Transformer Summer Two-Hour Rating","80.3 MVA","Transformer Thermal Rating","No",""]
[null,"Koolkhan No.3 Transformer Winter Two-Hour Rating","80.3 MVA","Transformer Thermal Rating","No",""]
[null,"Lismore No.1 Transformer Continuous Rating","365  MVA","Secondary of CT (protection metering or indication)","No",""]
[null,"Lismore No.1 Transformer Summer Two-Hour Rating","365  MVA","Secondary of CT (protection metering or indication)","No",""]
[null,"Lismore No.1 Transformer Winter Two-Hour Rating","365  MVA","Secondary of CT (protection metering or indication)","No",""]
[null,"Lismore No.2 Transformer Continuous Rating","365  MVA","Secondary of CT (protection metering or indication)","No",""]
[null,"Lismore No.2 Transformer Summer Two-Hour Rating","365  MVA","Secondary of CT (protection metering or indication)","No",""]
[null,"Lismore No.2 Transformer Winter Two-Hour Rating","365  MVA","Secondary of CT (protection metering or indication)","No",""]
[null,"Metz Solar Farm No.1 Transformer Continuous Rating","130 MVA","Transformer Thermal Rating","No",""]
[null,"Metz Solar Farm No.1 Transformer Summer Two-Hour Rating","135 MVA","High voltage connections","No",""]
[null,"Metz Solar Farm No.1 Transformer Winter Two-Hour Rating","135 MVA","High voltage connections","No",""]
[null,"Moree No.1 Transformer Continuous Rating","50  MVA","Secondary of CT (protection metering or indication)","No",""]
[null,"Moree No.1 Transformer Summer Two-Hour Rating","50  MVA","Secondary of CT (protection metering or indication)","No",""]
[null,"Moree No.1 Transformer Winter Two-Hour Rating","50  MVA","Secondary of CT (protection metering or indication)","No",""]
[null,"Moree No.2 Transformer Continuous Rating","50  MVA","Secondary of CT (protection metering or indication)","No",""]
[null,"Moree No.2 Transformer Summer Two-Hour Rating","50  MVA","Secondary of CT (protection metering or indication)","No",""]
[null,"Moree No.2 Transformer Winter Two-Hour Rating","50  MVA","Secondary of CT (protection metering or indication)","No",""]
[null,"Munmorah No.3 Transformer Continuous Rating","366  MVA","Secondary of CT (protection metering or indication)","No",""]
[null,"Munmorah No.3 Transformer Summer Two-Hour Rating","366  MVA","Secondary of CT (protection metering or indication)","No",""]
[null,"Munmorah No.3 Transformer Winter Two-Hour Rating","366  MVA","Secondary of CT (protection metering or indication)","No",""]
[null,"Muswellbrook No.1 Transformer Continuous Rating","375 MVA","Transformer Thermal Rating","No",""]
[null,"Muswellbrook No.1 Transformer Summer Two-Hour Rating","379.6 MVA","Transformer Thermal Rating","No",""]
[null,"Muswellbrook No.1 Transformer Winter Two-Hour Rating","410.7 MVA","Transformer Thermal Rating","No",""]
[null,"Muswellbrook No.2 Transformer Continuous Rating","375 MVA","Transformer Thermal Rating","No",""]
[null,"Muswellbrook No.2 Transformer Summer Two-Hour Rating","384.1 MVA","Transformer Thermal Rating","No",""]
[null,"Muswellbrook No.2 Transformer Winter Two-Hour Rating","416.7 MVA","Transformer Thermal Rating","No",""]
[null,"Nambucca No.1 Transformer Continuous Rating","60 MVA","Transformer Thermal Rating","No",""]
[null,"Nambucca No.2 Transformer Continuous Rating","60 MVA","Transformer Thermal Rating","No",""]
[null,"Nambucca No.2 Transformer Summer Two-Hour Rating","73 MVA","Transformer Thermal Rating","No",""]
[null,"Nambucca No.2 Transformer Winter Two-Hour Rating","76 MVA","Transformer Thermal Rating","No",""]
[null,"Narrabri No.1 Transformer Continuous Rating","60 MVA","Transformer Thermal Rating","No",""]
[null,"Narrabri No.3 Transformer Continuous Rating","60 MVA","Transformer Thermal Rating","No",""]
[null,"Newcastle No.1 Transformer Continuous Rating","375 MVA","Transformer Thermal Rating","No",""]
[null,"Newcastle No.1 Transformer Summer Two-Hour Rating","455.7 MVA","Transformer Thermal Rating","No",""]
[null,"Newcastle No.1 Transformer Winter Two-Hour Rating","476.4 MVA","Transformer Thermal Rating","No",""]
[null,"Newcastle No.2 Transformer Continuous Rating","375 MVA","Transformer Thermal Rating","No",""]
[null,"Newcastle No.2 Transformer Summer Two-Hour Rating","563 MVA","Transformer Thermal Rating","No",""]
[null,"Newcastle No.2 Transformer Winter Two-Hour Rating","563 MVA","Transformer Thermal Rating","No",""]
[null,"Newcastle No.3 Transformer Continuous Rating","375 MVA","Transformer Thermal Rating","No",""]
[null,"Newcastle No.3 Transformer Summer Two-Hour Rating","549 MVA","Transformer Thermal Rating","No",""]
[null,"Newcastle No.3 Transformer Winter Two-Hour Rating","549 MVA","Transformer Thermal Rating","No",""]
[null,"Newcastle No.4 Transformer Continuous Rating","375 MVA","Transformer Thermal Rating","No",""]
[null,"Newcastle No.4 Transformer Summer Two-Hour Rating","563 MVA","Transformer Thermal Rating","No",""]
[null,"Newcastle No.4 Transformer Winter Two-Hour Rating","563 MVA","Transformer Thermal Rating","No",""]
[null,"Port Macquarie No.1 Transformer Continuous Rating","60 MVA","Transformer Thermal Rating","No",""]
[null,"Port Macquarie No.1 Transformer Summer Two-Hour Rating","71.4  MVA","Bay Rating","No",""]
[null,"Port Macquarie No.1 Transformer Winter Two-Hour Rating","71.4  MVA","Bay Rating","No",""]
[null,"Port Macquarie No.2 Transformer Continuous Rating","60 MVA","Transformer Thermal Rating","No",""]
[null,"Port Macquarie No.2 Transformer Summer Two-Hour Rating","71.4  MVA","Bay Rating","No",""]
[null,"Port Macquarie No.2 Transformer Winter Two-Hour Rating","71.4  MVA","Bay Rating","No",""]
[null,"Port Macquarie No.3 Transformer Continuous Rating","60 MVA","Transformer Thermal Rating","No",""]
[null,"Port Macquarie No.3 Transformer Summer Two-Hour Rating","71.4  MVA","Bay Rating","No",""]
[null,"Port Macquarie No.3 Transformer Winter Two-Hour Rating","71.4  MVA","Bay Rating","No",""]
[null,"Sapphire Wind Farm No.1A Transformer Continuous Rating","190 MVA","Transformer Thermal Rating","No",""]
[null,"Sapphire Wind Farm No.1A Transformer Summer Two-Hour Rating","229 MVA","Disconnectors","No",""]
[null,"Sapphire Wind Farm No.1A Transformer Winter Two-Hour Rating","229 MVA","Disconnectors","No",""]
[null,"Sapphire Wind Farm No.1B Transformer Continuous Rating","137 MVA","Secondary of CT (protection metering or indication)","No",""]
[null,"Sapphire Wind Farm No.1B Transformer Summer Two-Hour Rating","137 MVA","Secondary of CT (protection metering or indication)","No",""]
[null,"Sapphire Wind Farm No.1B Transformer Winter Two-Hour Rating","137 MVA","Secondary of CT (protection metering or indication)","No",""]
[null,"Tamworth No.1 Transformer Continuous Rating","150 MVA","Transformer Thermal Rating","No",""]
[null,"Tamworth No.1 Transformer Summer Two-Hour Rating","188.5 MVA","Transformer Thermal Rating","No",""]
[null,"Tamworth No.1 Transformer Winter Two-Hour Rating","195.4 MVA","Transformer Thermal Rating","No",""]
[null,"Tamworth No.2 Transformer Continuous Rating","150 MVA","Transformer Thermal Rating","No",""]
[null,"Tamworth No.2 Transformer Summer Two-Hour Rating","189.3 MVA","Transformer Thermal Rating","No",""]
[null,"Tamworth No.2 Transformer Winter Two-Hour Rating","196.6 MVA","Transformer Thermal Rating","No",""]
[null,"Tamworth No.3 Transformer Continuous Rating","200 MVA","Transformer Thermal Rating","No",""]
[null,"Tamworth No.3 Transformer Summer Two-Hour Rating","215 MVA","Transformer Thermal Rating","No",""]
[null,"Tamworth No.3 Transformer Winter Two-Hour Rating","240 MVA","Transformer Thermal Rating","No",""]
[null,"Tamworth 132 No.1 Transformer Continuous Rating","120 MVA","Transformer Thermal Rating","No",""]
[null,"Tamworth 132 No.1 Transformer Summer Two-Hour Rating","143.1 MVA","Transformer Thermal Rating","No",""]
[null,"Tamworth 132 No.1 Transformer Winter Two-Hour Rating","149.7 MVA","Transformer Thermal Rating","No",""]
[null,"Tamworth 132 No.3 Transformer Continuous Rating","120 MVA","Transformer Thermal Rating","No",""]
[null,"Tamworth 132 No.3 Transformer Summer Two-Hour Rating","161.2 MVA","Transformer Thermal Rating","No",""]
[null,"Tamworth 132 No.3 Transformer Winter Two-Hour Rating","165 MVA","Transformer Thermal Rating","No",""]
[null,"Taree No.1 Transformer Continuous Rating","41 MVA","Secondary of CT (protection metering or indication)","No",""]
[null,"Taree No.1 Transformer Summer Two-Hour Rating","41 MVA","Secondary of CT (protection metering or indication)","No",""]
[null,"Taree No.1 Transformer Winter Two-Hour Rating","41 MVA","Secondary of CT (protection metering or indication)","No",""]
[null,"Taree No.2 Transformer Continuous Rating","41 MVA","Secondary of CT (protection metering or indication)","No",""]
[null,"Taree No.2 Transformer Summer Two-Hour Rating","41 MVA","Secondary of CT (protection metering or indication)","No",""]
[null,"Taree No.2 Transformer Winter Two-Hour Rating","41 MVA","Secondary of CT (protection metering or indication)","No",""]
[null,"Taree No.3 Transformer Continuous Rating","57 MVA","Transformer Thermal Rating","No",""]
[null,"Taree No.3 Transformer Summer Two-Hour Rating","57 MVA","Transformer Thermal Rating","No",""]
[null,"Taree No.3 Transformer Winter Two-Hour Rating","57 MVA","Transformer Thermal Rating","No",""]
[null,"Taree No.4 Transformer Continuous Rating","57 MVA","Transformer Thermal Rating","No",""]
[null,"Taree No.4 Transformer Summer Two-Hour Rating","57 MVA","Transformer Thermal Rating","No",""]
[null,"Taree No.4 Transformer Winter Two-Hour Rating","57 MVA","Transformer Thermal Rating","No",""]
[null,"Tenterfield No.1 Transformer Continuous Rating","9  MVA","Secondary of CT (protection metering or indication)","No",""]
[null,"Tenterfield No.1 Transformer Summer Two-Hour Rating","9  MVA","Secondary of CT (protection metering or indication)","No",""]
[null,"Tenterfield No.1 Transformer Winter Two-Hour Rating","9  MVA","Secondary of CT (protection metering or indication)","No",""]
[null,"Tenterfield No.2 Transformer Continuous Rating","9  MVA","Secondary of CT (protection metering or indication)","No",""]
[null,"Tenterfield No.2 Transformer Summer Two-Hour Rating","9  MVA","Secondary of CT (protection metering or indication)","No",""]
[null,"Tenterfield No.2 Transformer Winter Two-Hour Rating","9  MVA","Secondary of CT (protection metering or indication)","No",""]
[null,"Tomago No.1 & 1A Transformer Continuous Rating","313 MVA","Transformer Thermal Rating","No",""]
[null,"Tomago No.2 Transformer Continuous Rating","447 MVA","Transformer Thermal Rating","No",""]
[null,"Tomago No.3 Transformer Continuous Rating","447 MVA","Transformer Thermal Rating","No",""]
[null,"Tomago No.4 & 4A Transformer Continuous Rating","313 MVA","Transformer Thermal Rating","No",""]
[null,"Tomago No.6 Transformer Continuous Rating","375 MVA","Transformer Thermal Rating","No",""]
[null,"Tomago No.7 Transformer Continuous Rating","375 MVA","Transformer Thermal Rating","No",""]
[null,"Tomago No.7 Transformer Summer Two-Hour Rating","425.2 MVA","Transformer Thermal Rating","No",""]
[null,"Tomago No.7 Transformer Winter Two-Hour Rating","444.8 MVA","Transformer Thermal Rating","No",""]
[null,"Tomago No.8 Transformer Continuous Rating","375 MVA","Transformer Thermal Rating","No",""]
[null,"Tuggerah No.1 Transformer Continuous Rating","375 MVA","Transformer Thermal Rating","No",""]
[null,"Tuggerah No.1 Transformer Summer Two-Hour Rating","439  MVA","Secondary of CT (protection metering or indication)","No",""]
[null,"Tuggerah No.1 Transformer Winter Two-Hour Rating","439  MVA","Secondary of CT (protection metering or indication)","No",""]
[null,"Tuggerah No.2 Transformer Continuous Rating","375 MVA","Transformer Thermal Rating","No",""]
[null,"Tuggerah No.2 Transformer Summer Two-Hour Rating","439  MVA","Secondary of CT (protection metering or indication)","No",""]
[null,"Tuggerah No.2 Transformer Winter Two-Hour Rating","439  MVA","Secondary of CT (protection metering or indication)","No",""]
[null,"Vales Point No.1 Transformer Continuous Rating","200 MVA","Transformer Thermal Rating","No",""]
[null,"Vales Point No.1 Transformer Summer Two-Hour Rating","246.9 MVA","Transformer Thermal Rating","No",""]
[null,"Vales Point No.1 Transformer Winter Two-Hour Rating","256  MVA","High voltage connections","No",""]
[null,"Vales Point No.2 Transformer Continuous Rating","200 MVA","Transformer Thermal Rating","No",""]
[null,"Vales Point No.2 Transformer Summer Two-Hour Rating","265 MVA","Transformer Thermal Rating","No",""]
[null,"Vales Point No.2 Transformer Winter Two-Hour Rating","274  MVA","Disconnector","No",""]
[null,"Waratah West No.1 Transformer Continuous Rating","375 MVA","Transformer Thermal Rating","No",""]
[null,"Waratah West No.1 Transformer Summer Two-Hour Rating","419 MVA","Transformer Thermal Rating","No",""]
[null,"Waratah West No.1 Transformer Winter Two-Hour Rating","437 MVA","Transformer Thermal Rating","No",""]
[null,"Waratah West No.3 Transformer Continuous Rating","375 MVA","Transformer Thermal Rating","No",""]
[null,"Waratah West No.3 Transformer Summer Two-Hour Rating","562.5 MVA","Transformer Thermal Rating","No",""]
[null,"Waratah West No.3 Transformer Winter Two-Hour Rating","562.5 MVA","Transformer Thermal Rating","No",""]
[null,"White Rock No.1 Transformer Continuous Rating","183 MVA ","Transformer Thermal Rating","No",""]
[null,"White Rock No.1 Transformer Summer Two-Hour Rating","204 MVA","Transformer Thermal Rating","No",""]
[null,"White Rock No.1 Transformer Winter Two-Hour Rating","211.6 MVA","Transformer Thermal Rating","No",""]
[null,"Beaconsfield No.3 Transformer Continuous Rating","375 MVA","Transformer Thermal Rating","No",""]
[null,"Beaconsfield No.3 Transformer Summer Two-Hour Rating","439 MVA","Transformer Thermal Rating","No",""]
[null,"Beaconsfield No.3 Transformer Winter Two-Hour Rating","439 MVA","Transformer Thermal Rating","No",""]
[null,"Beaconsfield No.5 Transformer Continuous Rating","375 MVA","Transformer Thermal Rating","No",""]
[null,"Beaconsfield No.5 Transformer Summer Two-Hour Rating","469 MVA","Transformer Thermal Rating","No",""]
[null,"Beaconsfield No.5 Transformer Winter Two-Hour Rating","469 MVA","Transformer Thermal Rating","No",""]
[null,"Beryl No.2 Transformer Continuous Rating","120 MVA","Transformer Thermal Rating","No",""]
[null,"Beryl No.2 Transformer Summer Two-Hour Rating","137  MVA","Bay Rating","No",""]
[null,"Beryl No.2 Transformer Winter Two-Hour Rating","137  MVA","Bay Rating","No",""]
[null,"Beryl No.3 Transformer Continuous Rating","120 MVA","Transformer Thermal Rating","No",""]
[null,"Beryl No.3 Transformer Summer Two-Hour Rating","143 MVA","Transformer Thermal Rating","No",""]
[null,"Beryl No.3 Transformer Winter Two-Hour Rating","148 MVA","Transformer Thermal Rating","No",""]
[null,"Beryl Solar Farm  No.1 Transformer Continuous Rating","105 MVA","Transformer Thermal Rating","No",""]
[null,"Beryl Solar Farm  No.1 Transformer Summer Two-Hour Rating","105 MVA","High voltage connections","No",""]
[null,"Beryl Solar Farm  No.1 Transformer Winter Two-Hour Rating","105 MVA","High voltage connections","No",""]
[null,"Bodangora No.1 Transformer Continuous Rating","145 MVA","Transformer Thermal Rating","No",""]
[null,"Bodangora Transformer Summer Two-Hour Rating","177 MVA","High voltage connections","No",""]
[null,"Bodangora Transformer Winter Two-Hour Rating","177 MVA","High voltage connections","No",""]
[null,"Cowra No.1 Transformer Continuous Rating","60 MVA","Transformer Thermal Rating","No",""]
[null,"Cowra No.1 Transformer Summer Two-Hour Rating","69  MVA","Secondary of CT (protection metering or indication)","No",""]
[null,"Cowra No.1 Transformer Winter Two-Hour Rating","69  MVA","Secondary of CT (protection metering or indication)","No",""]
[null,"Cowra No.3 Transformer Continuous Rating","60 MVA","Transformer Thermal Rating","No",""]
[null,"Cowra No.3 Transformer Summer Two-Hour Rating","69  MVA","Secondary of CT (protection metering or indication)","No",""]
[null,"Cowra No.3 Transformer Winter Two-Hour Rating","69  MVA","Secondary of CT (protection metering or indication)","No",""]
[null,"Crudine Ridge Wind Farm No.1 Transformer Continuous Rating",137,"Secondary of CT (protection metering or indication)","No",""]
[null,"Crudine Ridge Wind Farm No.1 Transformer Summer Two-Hour Rating",137,"Secondary of CT (protection metering or indication)","No",""]
[null,"Crudine Ridge Wind Farm No.1 Transformer Winter Two-Hour Rating",137,"Secondary of CT (protection metering or indication)","No",""]
[null,"Dapto No.1 Transformer Continuous Rating","375 MVA","Transformer Thermal Rating","No",""]
[null,"Dapto No.1 Transformer Summer Two-Hour Rating","421 MVA","Transformer Thermal Rating","No",""]
[null,"Dapto No.1 Transformer Winter Two-Hour Rating","421 MVA","Transformer Thermal Rating","No",""]
[null,"Dapto No.2 Transformer Continuous Rating","375 MVA","Transformer Thermal Rating","No",""]
[null,"Dapto No.2 Transformer Summer Two-Hour Rating","439  MVA","Secondary of CT (protection metering or indication)","No",""]
[null,"Dapto No.2 Transformer Winter Two-Hour Rating","439  MVA","Secondary of CT (protection metering or indication)","No",""]
[null,"Dapto No.3 Transformer Continuous Rating","375 MVA","Transformer Thermal Rating","No",""]
[null,"Dapto No.3 Transformer Summer Two-Hour Rating","422 MVA","Transformer Thermal Rating","No",""]
[null,"Dapto No.3 Transformer Winter Two-Hour Rating","422 MVA","Transformer Thermal Rating","No",""]
[null,"Dapto No.4 Transformer Continuous Rating","375 MVA","Transformer Thermal Rating","No",""]
[null,"Dapto No.4 Transformer Summer Two-Hour Rating","420 MVA","Transformer Thermal Rating","No",""]
[null,"Dapto No.4 Transformer Winter Two-Hour Rating","420 MVA","Transformer Thermal Rating","No",""]
[null,"Forbes No.1 Transformer Continuous Rating","60 MVA","Transformer Thermal Rating","No",""]
[null,"Forbes No.1 Transformer Summer Two-Hour Rating","77 MVA","Transformer Thermal Rating","No",""]
[null,"Forbes No.1 Transformer Winter Two-Hour Rating","80 MVA","Transformer Thermal Rating","No",""]
[null,"Forbes No.2 Transformer Continuous Rating","60 MVA","Transformer Thermal Rating","No",""]
[null,"Forbes No.2 Transformer Summer Two-Hour Rating","78 MVA","Transformer Thermal Rating","No",""]
[null,"Forbes No.2 Transformer Winter Two-Hour Rating","81 MVA","Transformer Thermal Rating","No",""]
[null,"Haymarket No.1 Transformer Continuous Rating","400 MVA","Transformer Thermal Rating","No",""]
[null,"Haymarket No.1 Transformer Summer Two-Hour Rating","460 MVA","Transformer Thermal Rating","No",""]
[null,"Haymarket No.1 Transformer Winter Two-Hour Rating","460 MVA","Transformer Thermal Rating","No",""]
[null,"Haymarket No.2 Transformer Continuous Rating","400 MVA","Transformer Thermal Rating","No",""]
[null,"Haymarket No.2 Transformer Summer Two-Hour Rating","460 MVA","Transformer Thermal Rating","No",""]
[null,"Haymarket No.2 Transformer Winter Two-Hour Rating","460 MVA","Transformer Thermal Rating","No",""]
[null,"Haymarket No.3 Transformer Continuous Rating","400 MVA","Transformer Thermal Rating","No",""]
[null,"Haymarket No.3 Transformer Summer Two-Hour Rating","460 MVA","Transformer Thermal Rating","No",""]
[null,"Haymarket No.3 Transformer Winter Two-Hour Rating","460 MVA","Transformer Thermal Rating","No",""]
[null,"Holroyd No.1 Transformer Continuous Rating","375 MVA","Transformer Thermal Rating","No",""]
[null,"Holroyd No.1 Transformer Summer Two-Hour Rating","562.5 MVA","Transformer Thermal Rating","No",""]
[null,"Holroyd No.1 Transformer Winter Two-Hour Rating","562.5 MVA","Transformer Thermal Rating","No",""]
[null,"Holroyd No.2 Transformer Continuous Rating","375 MVA","Transformer Thermal Rating","No",""]
[null,"Holroyd No.2 Transformer Summer Two-Hour Rating","562.5 MVA","Transformer Thermal Rating","No",""]
[null,"Holroyd No.2 Transformer Winter Two-Hour Rating","562.5 MVA","Transformer Thermal Rating","No",""]
[null,"Ingleburn No.1 Transformer Continuous Rating","219  MVA","Secondary of CT (protection metering or indication)","No",""]
[null,"Ingleburn No.1 Transformer Summer Two-Hour Rating","219  MVA","Secondary of CT (protection metering or indication)","No",""]
[null,"Ingleburn No.1 Transformer Winter Two-Hour Rating","219  MVA","Secondary of CT (protection metering or indication)","No",""]
[null,"Ingleburn No.2 Transformer Continuous Rating","219  MVA","Secondary of CT (protection metering or indication)","No",""]
[null,"Ingleburn No.2 Transformer Summer Two-Hour Rating","219  MVA","Secondary of CT (protection metering or indication)","No",""]
[null,"Ingleburn No.2 Transformer Winter Two-Hour Rating","219  MVA","Secondary of CT (protection metering or indication)","No",""]
[null,"Kemps Creek No.2 Transformer Continuous Rating","1200 MVA","Transformer Thermal Rating","No",""]
[null,"Kemps Creek No.2 Transformer Summer Two-Hour Rating","1584 MVA","Transformer Thermal Rating","No",""]
[null,"Kemps Creek No.2 Transformer Winter Two-Hour Rating","1684 MVA","Transformer Thermal Rating","No",""]
[null,"Kemps Creek No.3 Transformer Continuous Rating","1200 MVA","Transformer Thermal Rating","No",""]
[null,"Kemps Creek No.3 Transformer Summer Two-Hour Rating","1574 MVA","Transformer Thermal Rating","No",""]
[null,"Kemps Creek No.3 Transformer Winter Two-Hour Rating","1638 MVA","Transformer Thermal Rating","No",""]
[null,"Liverpool No.1 Transformer Continuous Rating","375 MVA","Transformer Thermal Rating","No",""]
[null,"Liverpool No.1 Transformer Summer Two-Hour Rating","407 MVA","Transformer Thermal Rating","No",""]
[null,"Liverpool No.1 Transformer Winter Two-Hour Rating","422 MVA","Transformer Thermal Rating","No",""]
[null,"Liverpool No.2 Transformer Continuous Rating","375 MVA","Transformer Thermal Rating","No",""]
[null,"Liverpool No.2 Transformer Summer Two-Hour Rating","412 MVA","Transformer Thermal Rating","No",""]
[null,"Liverpool No.2 Transformer Winter Two-Hour Rating","428 MVA","Transformer Thermal Rating","No",""]
[null,"Liverpool No.3 Transformer Continuous Rating","375 MVA","Transformer Thermal Rating","No",""]
[null,"Liverpool No.3 Transformer Summer Two-Hour Rating","446 MVA","Transformer Thermal Rating","No",""]
[null,"Liverpool No.3 Transformer Winter Two-Hour Rating","465 MVA","Transformer Thermal Rating","No",""]
[null,"Macarthur No.1 Transformer Continuous Rating","375 MVA","Transformer Thermal Rating","No",""]
[null,"Macarthur No.1 Transformer Summer Two-Hour Rating","483.5 MVA","Transformer Thermal Rating","No",""]
[null,"Macarthur No.1 Transformer Winter Two-Hour Rating","504.6 MVA","Transformer Thermal Rating","No",""]
[null,"Macarthur No.3 Transformer Continuous Rating","250 MVA","Transformer Thermal Rating","No",""]
[null,"Macarthur No.3 Transformer Summer Two-Hour Rating","279.2 MVA","Transformer Thermal Rating","No",""]
[null,"Macarthur No.3 Transformer Winter Two-Hour Rating","291.3 MVA","Transformer Thermal Rating","No",""]
[null,"Molong No.1 Transformer Continuous Rating","30 MVA","Transformer Thermal Rating","No",""]
[null,"Molong No.1 Transformer Summer Two-Hour Rating","40.4 MVA","Transformer Thermal Rating","No",""]
[null,"Molong No.1 Transformer Winter Two-Hour Rating","40.5 MVA","Transformer Thermal Rating","No",""]
[null,"Mt Piper No.1 Transformer Continuous Rating","120 MVA","Transformer Thermal Rating","No",""]
[null,"Mt Piper No.1 Transformer Summer Two-Hour Rating","124.8 MVA","Transformer Thermal Rating","No",""]
[null,"Mt Piper No.1 Transformer Winter Two-Hour Rating","130.2 MVA","Transformer Thermal Rating","No",""]
[null,"Mt Piper No.2 Transformer Continuous Rating","120 MVA","Transformer Thermal Rating","No",""]
[null,"Mt Piper No.2 Transformer Summer Two-Hour Rating","134 MVA","Transformer Thermal Rating","No",""]
[null,"Mt Piper No.2 Transformer Winter Two-Hour Rating","139 MVA","Transformer Thermal Rating","No",""]
[null,"Mt Piper 330 No.1 Tie Transformer Continuous Rating","1500 MVA","Transformer Thermal Rating","No",""]
[null,"Mt Piper 330 No.1 Tie Transformer Summer Two-Hour Rating","1715 MVA","Transformer Thermal Rating","No",""]
[null,"Mt Piper 330 No.1 Tie Transformer Winter Two-Hour Rating","1715 MVA","Transformer Thermal Rating","No",""]
[null,"Mt Piper 330 No.2 Tie Transformer Continuous Rating","1143 MVA","Transformer Thermal Rating","No",""]
[null,"Mt Piper 330 No.2 Tie Transformer Summer Two-Hour Rating","1143 MVA","Transformer Thermal Rating","No",""]
[null,"Mt Piper 330 No.2 Tie Transformer Winter Two-Hour Rating","1143 MVA","Transformer Thermal Rating","No",""]
[null,"Mt Piper 330 No.3 Transformer Continuous Rating","375 MVA","Transformer Thermal Rating","No",""]
[null,"Mt Piper 330 No.3 Transformer Summer Two-Hour Rating","429 MVA","Transformer Thermal Rating","No",""]
[null,"Mt Piper 330 No.3 Transformer Winter Two-Hour Rating","458 MVA","Transformer Thermal Rating","No",""]
[null,"Orange No.1 Transformer Continuous Rating","60 MVA","Transformer Thermal Rating","No",""]
[null,"Orange No.1 Transformer Summer Two-Hour Rating","74 MVA","Transformer Thermal Rating","No",""]
[null,"Orange No.1 Transformer Winter Two-Hour Rating","74 MVA","Transformer Thermal Rating","No",""]
[null,"Orange No.3 Transformer Continuous Rating","60 MVA","Transformer Thermal Rating","No",""]
[null,"Orange No.3 Transformer Summer Two-Hour Rating","89 MVA","Transformer Thermal Rating","No",""]
[null,"Orange No.3 Transformer Winter Two-Hour Rating","89 MVA","Transformer Thermal Rating","No",""]
[null,"Panorama No.1 Transformer Continuous Rating","97  MVA","Secondary of CT (protection metering or indication)","No",""]
[null,"Panorama No.1 Transformer Summer Two-Hour Rating","97  MVA","Secondary of CT (protection metering or indication)","No",""]
[null,"Panorama No.1 Transformer Winter Two-Hour Rating","97  MVA","Secondary of CT (protection metering or indication)","No",""]
[null,"Panorama No.2 Transformer Continuous Rating","86  MVA","Secondary of CT (protection metering or indication)","No",""]
[null,"Panorama No.2 Transformer Summer Two-Hour Rating","86  MVA","Secondary of CT (protection metering or indication)","No",""]
[null,"Panorama No.2 Transformer Winter Two-Hour Rating","86  MVA","Secondary of CT (protection metering or indication)","No",""]
[null,"Parkes No.1 Transformer Continuous Rating","60 MVA","Transformer Thermal Rating","No",""]
[null,"Parkes No.1 Transformer Summer Two-Hour Rating","69.9 MVA","Transformer Thermal Rating","No",""]
[null,"Parkes No.1 Transformer Winter Two-Hour Rating","73 MVA","Transformer Thermal Rating","No",""]
[null,"Parkes No.2 Transformer Continuous Rating","60 MVA","Transformer Thermal Rating","No",""]
[null,"Parkes No.2 Transformer Summer Two-Hour Rating","72  MVA","High voltage connections","No",""]
[null,"Parkes No.2 Transformer Winter Two-Hour Rating","72  MVA","High voltage connections","No",""]
[null,"Regentville No.1 Transformer Continuous Rating","375 MVA","Transformer Thermal Rating","No",""]
[null,"Regentville No.1 Transformer Summer Two-Hour Rating","413 MVA","Transformer Thermal Rating","No",""]
[null,"Regentville No.1 Transformer Winter Two-Hour Rating","429 MVA","Transformer Thermal Rating","No",""]
[null,"Regentville No.2 Transformer Continuous Rating","375 MVA","Transformer Thermal Rating","No",""]
[null,"Regentville No.2 Transformer Summer Two-Hour Rating","457 MVA","Transformer Thermal Rating","No",""]
[null,"Regentville No.2 Transformer Winter Two-Hour Rating","475 MVA","Transformer Thermal Rating","No",""]
[null,"Rookwood Rd No.1 Transformer Continuous Rating","375 MVA","Transformer Thermal Rating","No",""]
[null,"Rookwood Rd No. 3 Transformer Continuous Rating","375 MVA","Transformer Thermal Rating","No",""]
[null,"Sydney East No.2 Transformer Continuous Rating","375 MVA","Transformer Thermal Rating","No",""]
[null,"Sydney East No.3 Transformer Continuous Rating","400 MVA","Transformer Thermal Rating","No",""]
[null,"Sydney East No.3 Transformer Summer Two-Hour Rating","480 MVA","Transformer Thermal Rating","No",""]
[null,"Sydney East No.3 Transformer Winter Two-Hour Rating","498 MVA","Transformer Thermal Rating","No",""]
[null,"Sydney East No.4 Transformer Continuous Rating","375 MVA","Transformer Thermal Rating","No",""]
[null,"Sydney East No.4 Transformer Summer Two-Hour Rating","520 MVA","Transformer Thermal Rating","No",""]
[null,"Sydney East No.4 Transformer Winter Two-Hour Rating","540 MVA","Transformer Thermal Rating","No",""]
[null,"Sydney North No.1 Transformer Continuous Rating","375 MVA","Transformer Thermal Rating","No",""]
[null,"Sydney North No.1 Transformer Summer Two-Hour Rating","394.8 MVA","Transformer Thermal Rating","No",""]
[null,"Sydney North No.1 Transformer Winter Two-Hour Rating","410.9 MVA","Transformer Thermal Rating","No",""]
[null,"Sydney North No.2 Transformer Continuous Rating","375 MVA","Transformer Thermal Rating","No",""]
[null,"Sydney North No.2 Transformer Summer Two-Hour Rating","421 MVA","Transformer Thermal Rating","No",""]
[null,"Sydney North No.2 Transformer Winter Two-Hour Rating","435 MVA","Transformer Thermal Rating","No",""]
[null,"Sydney North No.3 Transformer Continuous Rating","375 MVA","Transformer Thermal Rating","No",""]
[null,"Sydney North No.3 Transformer Summer Two-Hour Rating","394 MVA","Transformer Thermal Rating","No",""]
[null,"Sydney North No.3 Transformer Winter Two-Hour Rating","410 MVA","Transformer Thermal Rating","No",""]
[null,"Sydney North No.4 Transformer Continuous Rating","375 MVA","Transformer Thermal Rating","No",""]
[null,"Sydney North No.4 Transformer Summer Two-Hour Rating","428 MVA","Transformer Thermal Rating","No",""]
[null,"Sydney North No.4 Transformer Winter Two-Hour Rating","442 MVA","Transformer Thermal Rating","No",""]
[null,"Sydney North No.5 Transformer Continuous Rating","375 MVA","Transformer Thermal Rating","No",""]
[null,"Sydney North No.5 Transformer Summer Two-Hour Rating","439 MVA","Secondary of CT (protection metering or indication)","No",""]
[null,"Sydney North No.5 Transformer Winter Two-Hour Rating","439 MVA","Secondary of CT (protection metering or indication)","No",""]
[null,"Sydney South No.1 Transformer Continuous Rating","375 MVA","Transformer Thermal Rating","No",""]
[null,"Sydney South No.1 Transformer Summer Two-Hour Rating","512  MVA","High voltage connections and Secondary of CT","No",""]
[null,"Sydney South No.1 Transformer Winter Two-Hour Rating","512  MVA","High voltage connections and Secondary of CT","No",""]
[null,"Sydney South No.2 Transformer Continuous Rating","375 MVA","Transformer Thermal Rating","No",""]
[null,"Sydney South No.2 Transformer Summer Two-Hour Rating","477 MVA","Transformer Thermal Rating","No",""]
[null,"Sydney South No.2 Transformer Winter Two-Hour Rating","497 MVA","Transformer Thermal Rating","No",""]
[null,"Sydney South No.3 Transformer Continuous Rating","375 MVA","Transformer Thermal Rating","No",""]
[null,"Sydney South No.3 Transformer Summer Two-Hour Rating","430  MVA","Secondary of CT (protection metering or indication)","No",""]
[null,"Sydney South No.3 Transformer Winter Two-Hour Rating","430  MVA","Secondary of CT (protection metering or indication)","No",""]
[null,"Sydney South No.4 Transformer Continuous Rating","375 MVA","Transformer Thermal Rating","No",""]
[null,"Sydney South No.4 Transformer Summer Two-Hour Rating","549  MVA","Secondary of CT (protection metering or indication)","No",""]
[null,"Sydney South No.4 Transformer Winter Two-Hour Rating","549  MVA","Secondary of CT (protection metering or indication)","No",""]
[null,"Sydney South No.5 Transformer Continuous Rating","375 MVA","Transformer Thermal Rating","No",""]
[null,"Sydney South No.5 Transformer Summer Two-Hour Rating","457  MVA","Secondary of CT (protection metering or indication)","No",""]
[null,"Sydney South No.5 Transformer Winter Two-Hour Rating","457  MVA","Secondary of CT (protection metering or indication)","No",""]
[null,"Sydney South No.6 Transformer Continuous Rating","375 MVA","Transformer Thermal Rating","No",""]
[null,"Sydney South No.6 Transformer Summer Two-Hour Rating","457  MVA","Secondary of CT (protection metering or indication)","No",""]
[null,"Sydney South No.6 Transformer Winter Two-Hour Rating","457  MVA","Secondary of CT (protection metering or indication)","No",""]
[null,"Sydney West No.1 Transformer Continuous Rating","375 MVA","Transformer Thermal Rating","No",""]
[null,"Sydney West No.1 Transformer Summer Two-Hour Rating","549  MVA","Secondary of CT (protection metering or indication)","No",""]
[null,"Sydney West No.1 Transformer Winter Two-Hour Rating","549  MVA","Secondary of CT (protection metering or indication)","No",""]
[null,"Sydney West No.2 Transformer Continuous Rating","375 MVA","Transformer Thermal Rating","No",""]
[null,"Sydney West No.2 Transformer Summer Two-Hour Rating","462 MVA","Transformer Thermal Rating","No",""]
[null,"Sydney West No.2 Transformer Winter Two-Hour Rating","483 MVA","Transformer Thermal Rating","No",""]
[null,"Sydney West No.3 Transformer Continuous Rating","375 MVA","Transformer Thermal Rating","No",""]
[null,"Sydney West No.3 Transformer Summer Two-Hour Rating","544  MVA","Transformer Thermal Rating","No",""]
[null,"Sydney West No.3 Transformer Winter Two-Hour Rating","549  MVA","Secondary of CT (protection metering or indication)","No",""]
[null,"Sydney West No.4 Transformer Continuous Rating","375 MVA","Transformer Thermal Rating","No",""]
[null,"Sydney West No.4 Transformer Summer Two-Hour Rating","525  MVA","Transformer Thermal Rating","No",""]
[null,"Sydney West No.4 Transformer Winter Two-Hour Rating","549  MVA","Secondary of CT (protection metering or indication)","No",""]
[null,"Sydney West No.5 Transformer Continuous Rating","375 MVA","Transformer Thermal Rating","No",""]
[null,"Sydney West No.5 Transformer Summer Two-Hour Rating","449 MVA","Transformer Thermal Rating","No",""]
[null,"Sydney West No.5 Transformer Winter Two-Hour Rating","457  MVA","Secondary of CT (protection metering or indication)","No",""]
[null,"Vineyard No.1 Transformer Continuous Rating","375 MVA","Transformer Thermal Rating","No",""]
[null,"Vineyard No.1 Transformer Summer Two-Hour Rating","562 MVA","Transformer Thermal Rating","No",""]
[null,"Vineyard No.1 Transformer Winter Two-Hour Rating","562 MVA","Transformer Thermal Rating","No",""]
[null,"Vineyard No.2 Transformer Continuous Rating","375 MVA","Transformer Thermal Rating","No",""]
[null,"Vineyard No.2 Transformer Summer Two-Hour Rating","439 MVA","Secondary of CT (protection metering or indication)","No",""]
[null,"Vineyard No.2 Transformer Winter Two-Hour Rating","439 MVA","Secondary of CT (protection metering or indication)","No",""]
[null,"Vineyard No.3 Transformer Continuous Rating","375 MVA","Transformer Thermal Rating","No",""]
[null,"Vineyard No.3 Transformer Summer Two-Hour Rating","437 MVA","Transformer Thermal Rating","No",""]
[null,"Vineyard No.3 Transformer Winter Two-Hour Rating","454 MVA","Transformer Thermal Rating","No",""]
[null,"Wallerawang 132 No.1 Transformer Continuous Rating","60 MVA","Transformer Thermal Rating","No",""]
[null,"Wallerawang 132No.1 Transformer Summer Two-Hour Rating","88.8 MVA","Transformer Thermal Rating","No",""]
[null,"Wallerawang 132 No.1 Transformer Winter Two-Hour Rating","90 MVA","Transformer Thermal Rating","No",""]
[null,"Wallerawang 132 No.2 Transformer Continuous Rating","60 MVA","Transformer Thermal Rating","No",""]
[null,"Wallerawang 132No.1 Transformer Summer Two-Hour Rating","86.4 MVA","Transformer Thermal Rating","No",""]
[null,"Wallerawang 132 No.1 Transformer Winter Two-Hour Rating","90 MVA","Transformer Thermal Rating","No",""]
[null,"Wallerawang 330 No.3 Transformer Continuous Rating","375 MVA","Transformer Thermal Rating","No",""]
[null,"Wallerawang 330 No.3 Transformer Summer Two-Hour Rating","465 MVA","Transformer Thermal Rating","No",""]
[null,"Wallerawang 330 No.3 Transformer Winter Two-Hour Rating","480 MVA","Transformer Thermal Rating","No",""]
[null,"Wallerawang 330 No.4 Transformer Continuous Rating","375 MVA","Transformer Thermal Rating","No",""]
[null,"Wallerawang 330 No.4 Transformer Summer Two-Hour Rating","469 MVA","Transformer Thermal Rating","No",""]
[null,"Wallerawang 330 No.4 Transformer Winter Two-Hour Rating","487 MVA","Transformer Thermal Rating","No",""]
[null,"Wellington No.1 Transformer Continuous Rating","375 MVA","Transformer Thermal Rating","No",""]
[null,"Wellington No.1 Transformer Summer Two-Hour Rating","512  MVA","High voltage connections","No",""]
[null,"Wellington No.1 Transformer Winter Two-Hour Rating","512  MVA","High voltage connections","No",""]
[null,"Wellington No.2 Transformer Continuous Rating","375 MVA","Transformer Thermal Rating","No",""]
[null,"Wellington No.2 Transformer Summer Two-Hour Rating","458 MVA","Transformer Thermal Rating","No",""]
[null,"Wellington No.2 Transformer Winter Two-Hour Rating","478.4 MVA","Transformer Thermal Rating","No",""]
[null,"Wellington No.4 Transformer Continuous Rating","200 MVA","Transformer Thermal Rating","No",""]
[null,"Wellington No.4 Transformer Summer Two-Hour Rating","219 MVA","Secondary of CT (protection metering or indication)","No",""]
[null,"Wellington No.4 Transformer Winter Two-Hour Rating","219 MVA","Secondary of CT (protection metering or indication)","No",""]
[null,"Wollar No.1 Transformer Continuous Rating","1143 MVA","Secondary of CT (protection metering or indication)","No",""]
[null,"Bango No.1 Transformer Continuous Rating","180 MVA","Transformer Thermal Rating","No",""]
[null,"Bango No.1 Transformer Summer Two-Hour Rating","210.8 MVA","Transformer Thermal Rating","No",""]
[null,"Bango No.1 Transformer Winter Two-Hour Rating","219 MVA","Secondary of CT (protection metering or indication)","No",""]
[null,"Bango No.2 Transformer Continuous Rating","100 MVA","Transformer Thermal Rating","No",""]
[null,"Bango No.2 Transformer Summer Two-Hour Rating","123 MVA","Secondary of CT (protection metering or indication)","No",""]
[null,"Bango No.2 Transformer Winter Two-Hour Rating","123 MVA","Secondary of CT (protection metering or indication)","No",""]
[null,"Bannaby No.1 Transformer Continuous Rating","1500 MVA","Transformer Thermal Rating","No",""]
[null,"Bannaby No.1 Transformer Summer Two-Hour Rating","1617  MVA","High voltage connections","No",""]
[null,"Bannaby No.1 Transformer Winter Two-Hour Rating","1617  MVA","High voltage connections","No",""]
[null,"Bannaby No.2 Transformer Continuous Rating","1500 MVA","Transformer Thermal Rating","No",""]
[null,"Bannaby No.2 Transformer Summer Two-Hour Rating","1617  MVA","High voltage connections","No",""]
[null,"Bannaby No.2 Transformer Winter Two-Hour Rating","1617  MVA","High voltage connections","No",""]
[null,"Balranald No.1 Transformer Continuous Rating","30 MVA","Transformer Thermal Rating","No",""]
[null,"Balranald No.1 Transformer Summer Two-Hour Rating","36.3 MVA","Transformer Thermal Rating","No",""]
[null,"Balranald No.1 Transformer Winter Two-Hour Rating","37 MVA","Transformer Thermal Rating","No",""]
[null,"Berrybank Wind Farm No.1 Transformer Continuous Rating","120 MVA","Transformer Thermal Rating","No",""]
[null,"Berrybank Wind Farm No.1 Transformer Summer Two-Hour Rating","160.1 MVA","Transformer Thermal Rating","No",""]
[null,"Berrybank Wind Farm No.1 Transformer Winter Two-Hour Rating","174.5 MVA","Transformer Thermal Rating","No",""]
[null,"Berrybank Wind Farm No.2 Transformer Continuous Rating","120 MVA","Transformer Thermal Rating","No",""]
[null,"Berrybank Wind Farm No.2 Transformer Summer Two-Hour Rating","155.5 MVA","Transformer Thermal Rating","No",""]
[null,"Berrybank Wind Farm No.2 Transformer Winter Two-Hour Rating","169.1 MVA","Transformer Thermal Rating","No",""]
[null,"Broken Hill No.1 Transformer Continuous Rating","76  MVA","Bay Rating","No",""]
[null,"Broken Hill No.2 Transformer Continuous Rating","61  MVA","Bay Rating","No",""]
[null,"Canberra No.1 Transformer Continuous Rating","375 MVA","Transformer Thermal Rating","No",""]
[null,"Canberra No.1 Transformer Summer Two-Hour Rating","426 MVA","Transformer Thermal Rating","No",""]
[null,"Canberra No.1 Transformer Winter Two-Hour Rating","439  MVA","Secondary of CT (protection metering or indication)","No",""]
[null,"Canberra No.4 Transformer Continuous Rating","375 MVA","Transformer Thermal Rating","No",""]
[null,"Canberra No.4 Transformer Summer Two-Hour Rating","403  MVA","Secondary of CT (protection metering or indication)","No",""]
[null,"Canberra No.4 Transformer Winter Two-Hour Rating","403  MVA","Secondary of CT (protection metering or indication)","No",""]
[null,"Collector Wind Farm No.1 Transformer Continuous Rating","145 MVA","Transformer Thermal Rating","No",""]
[null,"Collector Wind Farm No.1 Transformer Summer Two-Hour Rating","192 MVA","High voltage connections","No",""]
[null,"Collector Wind Farm No.1 Transformer Winter Two-Hour Rating","192 MVA","High voltage connections","No",""]
[null,"Collector Wind Farm No.2 Transformer Continuous Rating","145 MVA","Transformer Thermal Rating","No",""]
[null,"Collector Wind Farm No.2 Transformer Summer Two-Hour Rating","186.9 MVA","Transformer Thermal Rating","No",""]
[null,"Collector Wind Farm No.2 Transformer Winter Two-Hour Rating","192 MVA","High voltage connections","No",""]
[null,"Cooma 132 (New) No.1 Transformer Continuous Rating","60 MVA","Transformer Thermal Rating","No",""]
[null,"Cooma 132 (New) No.1 Transformer Summer Two-Hour Rating","90 MVA","Transformer Thermal Rating","No",""]
[null,"Cooma 132 (New) No.1 Transformer Winter Two-Hour Rating","90 MVA","Transformer Thermal Rating","No",""]
[null,"Cooma 132 (New) No.2 Transformer Continuous Rating","60 MVA","Transformer Thermal Rating","No",""]
[null,"Cooma 132 (New) No.2 Transformer Summer Two-Hour Rating","90 MVA","Transformer Thermal Rating","No",""]
[null,"Cooma 132 (New) No.2 Transformer Winter Two-Hour Rating","90 MVA","Transformer Thermal Rating","No",""]
[null,"Crookwell No.1 Transformer Continuous Rating","180 MVA","Transformer Thermal Rating","No",""]
[null,"Crookwell No.1 Transformer Summer Two-Hour Rating","211.9 MVA","Transformer Thermal Rating","No",""]
[null,"Crookwell No.1 Transformer Winter Two-Hour Rating","230 MVA","Transformer Thermal Rating","No",""]
[null,"Darlington Point No.1 Transformer Continuous Rating","280  MVA","Transformer Thermal Rating","Yes","Need N2176"]
[null,"Darlington Point No.1 Transformer Summer Two-Hour Rating","281.3 MVA","Transformer Thermal Rating","Yes","Need N2176"]
[null,"Darlington Point No.1 Transformer Winter Two-Hour Rating","306.5 MVA","Transformer Thermal Rating","Yes","Need N2176"]
[null,"Darlington Point No.2 Transformer Continuous Rating","280  MVA","Transformer Thermal Rating","Yes","Need N2176"]
[null,"Darlington Point No.2 Transformer Summer Two-Hour Rating","280  MVA","Transformer Thermal Rating","Yes","Need N2176"]
[null,"Darlington Point No.2 Transformer Winter Two-Hour Rating","280  MVA","Transformer Thermal Rating","Yes","Need N2176"]
[null,"Darlington Point No.3 Transformer Continuous Rating","200 MVA","Transformer Thermal Rating","Yes","Need N2631"]
[null,"Darlington Point No.3 Transformer Summer Two-Hour Rating","220 MVA","Transformer Thermal Rating","Yes","Need N2631"]
[null,"Darlington Point No.3 Transformer Winter Two-Hour Rating","238 MVA","Transformer Thermal Rating","Yes","Need N2631"]
[null,"Darlington Point No.4 Transformer Continuous Rating","200 MVA","Transformer Thermal Rating","Yes","Need N2631"]
[null,"Darlington Point No.4 Transformer Summer Two-Hour Rating","220 MVA","Transformer Thermal Rating","Yes","Need N2631"]
[null,"Darlington Point No.4 Transformer Winter Two-Hour Rating","238 MVA","Transformer Thermal Rating","Yes","Need N2631"]
[null,"Deer Park No.2 Transformer Continuous Rating","225 MVA","Transformer Thermal Rating","No",""]
[null,"Deer Park No.2 Transformer Summer Two-Hour Rating","295.5 MVA","Transformer Thermal Rating","No",""]
[null,"Deer Park No.2 Transformer Winter Two-Hour Rating","312 MVA","Transformer Thermal Rating","No",""]
[null,"Deer Park No.4 Transformer Continuous Rating","225 MVA","Transformer Thermal Rating","No",""]
[null,"Deer Park No.4 Transformer Summer Two-Hour Rating","297 MVA","Transformer Thermal Rating","No",""]
[null,"Deer Park No.4 Transformer Winter Two-Hour Rating","313.2 MVA","Transformer Thermal Rating","No",""]
[null,"Deniliquin No.1 Transformer Continuous Rating","60 MVA","Transformer Thermal Rating","No",""]
[null,"Deniliquin No.1 Transformer Summer Two-Hour Rating","65 MVA","Transformer Thermal Rating","No",""]
[null,"Deniliquin No.1 Transformer Winter Two-Hour Rating","72.7 MVA","Transformer Thermal Rating","No",""]
[null,"Deniliquin No.2 Transformer Continuous Rating","60 MVA","Transformer Thermal Rating","No",""]
[null,"Deniliquin No.2 Transformer Summer Two-Hour Rating","60 MVA","Transformer Thermal Rating","No",""]
[null,"Deniliquin No.2 Transformer Winter Two-Hour Rating","60 MVA","Transformer Thermal Rating","No",""]
[null,"Finley No.1 Transformer Continuous Rating","60 MVA","Transformer Thermal Rating","No",""]
[null,"Finley No.1 Transformer Summer Two-Hour Rating","75  MVA","High voltage connections","No",""]
[null,"Finley No.1 Transformer Winter Two-Hour Rating","75  MVA","High voltage connections","No",""]
[null,"Finley No.2 Transformer Continuous Rating","60 MVA","Transformer Thermal Rating","No",""]
[null,"Finley No.2 Transformer Summer Two-Hour Rating","75  MVA","High voltage connections","No",""]
[null,"Finley No.2 Transformer Winter Two-Hour Rating","75  MVA","High voltage connections","No",""]
[null,"Finley No.3 Transformer Continuous Rating","160 MVA","Transformer Thermal Rating","No",""]
[null,"Finley No.3 Transformer Summer Two-Hour Rating","165 MVA","Secondary of CT (protection metering or indication)","No",""]
[null,"Finley No.3 Transformer Winter Two-Hour Rating","165 MVA","Secondary of CT (protection metering or indication)","No",""]
[null,"Gadara No.1 Transformer Continuous Rating","31.5 MVA","Transformer Thermal Rating","No",""]
[null,"Gadara No.1 Transformer Summer Two-Hour Rating","47.3 MVA","Transformer Thermal Rating","No",""]
[null,"Gadara No.1 Transformer Winter Two-Hour Rating","47.3 MVA","Transformer Thermal Rating","No",""]
[null,"Griffith No.1 Transformer Continuous Rating","40 MVA","Transformer Thermal Rating","No",""]
[null,"Griffith No.1 Transformer Summer Two-Hour Rating","71 MVA","Breaker","No",""]
[null,"Griffith No.1 Transformer Winter Two-Hour Rating","71 MVA","Breaker","No",""]
[null,"Griffith No.2 Transformer Continuous Rating","60 MVA","Transformer Thermal Rating","No",""]
[null,"Griffith No.2 Transformer Summer Two-Hour Rating","71 MVA","Breaker","No",""]
[null,"Griffith No.2 Transformer Winter Two-Hour Rating","71 MVA","Breaker","No",""]
[null,"Griffith No.3 Transformer Continuous Rating","60 MVA","Transformer Thermal Rating","No",""]
[null,"Griffith No.3 Transformer Summer Two-Hour Rating","64 MVA","High voltage connections","No",""]
[null,"Griffith No.3 Transformer Winter Two-Hour Rating","64 MVA","High voltage connections","No",""]
[null,"Jindera No.1 Transformer Continuous Rating","375 MVA","Transformer Thermal Rating","No",""]
[null,"Jindera No.1 Transformer Summer Two-Hour Rating","402.8 MVA","Transformer Thermal Rating","No",""]
[null,"Jindera No.1 Transformer Winter Two-Hour Rating","403 MVA","Secondary of CT (protection metering or indication)","No",""]
[null,"Jindera No.2 Transformer Continuous Rating","375 MVA","Transformer Thermal Rating","No",""]
[null,"Jindera No.2 Transformer Summer Two-Hour Rating","393 MVA","Transformer Thermal Rating","No",""]
[null,"Jindera No.2 Transformer Winter Two-Hour Rating","403 MVA","Secondary of CT (protection metering or indication)","No",""]
[null,"Kiamal No.1 Transformer Continuous Rating","180 MVA","Transformer Thermal Rating","No",""]
[null,"Kiamal No.1 Transformer Summer Two-Hour Rating","192 MVA","High voltage connections","No",""]
[null,"Kiamal No.1 Transformer Winter Two-Hour Rating","192 MVA","High voltage connections","No",""]
[null,"Kiamal No.2 Transformer Continuous Rating","180 MVA","Transformer Thermal Rating","No",""]
[null,"Kiamal No.2 Transformer Summer Two-Hour Rating","192 MVA","High voltage connections","No",""]
[null,"Kiamal No.2 Transformer Winter Two-Hour Rating","192 MVA","High voltage connections","No",""]
[null,"Limondale No.1 Transformer Continuous Rating","250 MVA","Transformer Thermal Rating","No",""]
[null,"Limondale No.1 Transformer Summer Two-Hour Rating","274 MVA","Secondary of CT (protection metering or indication)","No",""]
[null,"Limondale No.1 Transformer Winter Two-Hour Rating","274 MVA","Secondary of CT (protection metering or indication)","No",""]
[null,"Marulan No.3 Transformer Continuous Rating","200 MVA","Transformer Thermal Rating","No",""]
[null,"Marulan No.3 Transformer Summer Two-Hour Rating","231.7  MVA","Transformer Thermal Rating","No",""]
[null,"Marulan No.3 Transformer Winter Two-Hour Rating","255.8  MVA","Transformer Thermal Rating","No",""]
[null,"Munyang No.1 Transformer Continuous Rating","34  MVA","Protection trip setting","No",""]
[null,"Munyang No.2 Transformer Continuous Rating","34  MVA","Protection trip setting","No",""]
[null,"Murray No.1 Transformer Continuous Rating","40 MVA","Transformer Thermal Rating","No",""]
[null,"Murray No.1 Transformer Summer Two-Hour Rating","53 MVA","Transformer Thermal Rating","No",""]
[null,"Murray No.1 Transformer Winter Two-Hour Rating","58.9 MVA","Transformer Thermal Rating","No",""]
[null,"Murray No.2 Transformer Continuous Rating","40 MVA","Transformer Thermal Rating","No",""]
[null,"Murray No.2 Transformer Summer Two-Hour Rating","50 MVA","Transformer Thermal Rating","No",""]
[null,"Murray No.2 Transformer Winter Two-Hour Rating","56 MVA","Transformer Thermal Rating","No",""]
[null,"Murrumburrah No.1 Transformer Continuous Rating","50  MVA","Secondary of CT (protection metering or indication)","No",""]
[null,"Murrumburrah No.1 Transformer Summer Two-Hour Rating","50 MVA","Secondary of CT (protection metering or indication)","No",""]
[null,"Murrumburrah No.1 Transformer Winter Two-Hour Rating","50 MVA","Secondary of CT (protection metering or indication)","No",""]
[null,"Murrumburrah No.2 Transformer Continuous Rating","50  MVA","Secondary of CT (protection metering or indication)","No",""]
[null,"Murrumburrah No.2 Transformer Summer Two-Hour Rating","50 MVA","Secondary of CT (protection metering or indication)","No",""]
[null,"Murrumburrah No.2 Transformer Winter Two-Hour Rating","50 MVA","Secondary of CT (protection metering or indication)","No",""]
[null,"Queanbeyan No.1 Transformer Continuous Rating","120 MVA","Transformer Thermal Rating","No",""]
[null,"Queanbeyan No.1 Transformer Summer Two-Hour Rating","128  MVA","High voltage connections","No",""]
[null,"Queanbeyan No.1 Transformer Winter Two-Hour Rating","143  MVA","High voltage connections","No",""]
[null,"Queanbeyan No.2 Transformer Continuous Rating","120 MVA","Transformer Thermal Rating","No",""]
[null,"Queanbeyan No.2 Transformer Summer Two-Hour Rating","128  MVA","High voltage connections","No",""]
[null,"Queanbeyan No.2 Transformer Winter Two-Hour Rating","143  MVA","High voltage connections","No",""]
[null,"Ravine No.1 Transformer Continuous Rating","80 MVA","Transformer Thermal Rating","No",""]
[null,"Ravine No.1 Transformer Summer Two-Hour Rating","91 MVA","Secondary of CT (protection metering or indication)","No",""]
[null,"Ravine No.1 Transformer Winter Two-Hour Rating","91 MVA","Secondary of CT (protection metering or indication)","No",""]
[null,"Ravine No.2 Transformer Continuous Rating","80 MVA","Transformer Thermal Rating","No",""]
[null,"Ravine No.2 Transformer Summer Two-Hour Rating","91 MVA","Secondary of CT (protection metering or indication)","No",""]
[null,"Ravine No.2 Transformer Winter Two-Hour Rating","91 MVA","Secondary of CT (protection metering or indication)","No",""]
[null,"Stockdill No.1 Transformer Continuous Rating","375 MVA","Transformer Thermal Rating","No",""]
[null,"Stockdill No.1 Transformer Summer Two-Hour Rating","512 MVA","High voltage connections","No",""]
[null,"Stockdill No.1 Transformer Winter Two-Hour Rating","512 MVA","High voltage connections","No",""]
[null,"Sunraysia No.1 Transformer Continuous Rating","280 MVA","Transformer Thermal Rating","No",""]
[null,"Sunraysia No.1 Transformer Summer Two-Hour Rating","317 MVA","High voltage connections","No",""]
[null,"Sunraysia No.1 Transformer Winter Two-Hour Rating","317 MVA","High voltage connections","No",""]
[null,"Tumut No.1 Transformer Continuous Rating","45  MVA","High voltage connections","No",""]
[null,"Tumut No.1 Transformer Summer Two-Hour Rating","45 MVA","High voltage connections","No",""]
[null,"Tumut No.1 Transformer Winter Two-Hour Rating","55 MVA","High voltage connections","No",""]
[null,"Tumut No.2 Transformer Continuous Rating","45  MVA","High voltage connections","No",""]
[null,"Tumut No.2 Transformer Summer Two-Hour Rating","45 MVA","High voltage connections","No",""]
[null,"Tumut No.2 Transformer Winter Two-Hour Rating","58 MVA","High voltage connections","No",""]
[null,"Williamsdale No.1 Transformer Continuous Rating","375 MVA","Transformer Thermal Rating","No",""]
[null,"Williamsdale No.1 Transformer Summer Two-Hour Rating","475 MVA","Transformer Thermal Rating","No",""]
[null,"Williamsdale No.1 Transformer Winter Two-Hour Rating","504 MVA","Transformer Thermal Rating","No",""]
[null,"Williamsdale No.3 Transformer Continuous Rating","375 MVA","Transformer Thermal Rating","No",""]
[null,"Williamsdale No.3 Transformer Summer Two-Hour Rating","456 MVA","Transformer Thermal Rating","No",""]
[null,"Williamsdale No.3 Transformer Winter Two-Hour Rating","494 MVA","Transformer Thermal Rating","No",""]
[null,"Wagga 330 No.2 Transformer Continuous Rating","375 MVA","Transformer Thermal Rating","No",""]
[null,"Wagga 330 No.2 Transformer Summer Two-Hour Rating","452 MVA","Transformer Thermal Rating","No",""]
[null,"Wagga 330 No.2 Transformer Winter Two-Hour Rating","490 MVA","Transformer Thermal Rating","No",""]
[null,"Wagga 330 No.3 Transformer Continuous Rating","375 MVA","Transformer Thermal Rating","No",""]
[null,"Wagga 330 No.3 Transformer Summer Two-Hour Rating","473 MVA","Transformer Thermal Rating","No",""]
[null,"Wagga 330 No.3 Transformer Winter Two-Hour Rating","512 MVA","Transformer Thermal Rating","No",""]
[null,"Wagga 132 No.1 Transformer Continuous Rating","120 MVA","Transformer Thermal Rating","No",""]
[null,"Wagga 132 No.1 Transformer Summer Two-Hour Rating","154.3 MVA","Transformer Thermal Rating","No",""]
[null,"Wagga 132 No.1 Transformer Winter Two-Hour Rating","165 MVA","Secondary of CT (protection metering or indication)","No",""]
[null,"Wagga 132 No.3 Transformer Continuous Rating","120 MVA","Transformer Thermal Rating","No",""]
[null,"Wagga 132 No.3 Transformer Summer Two-Hour Rating","149.7 MVA","Transformer Thermal Rating","No",""]
[null,"Wagga 132 No.3 Transformer Winter Two-Hour Rating","165 MVA","Secondary of CT (protection metering or indication)","No",""]
[null,"Wagga North No.2 Transformer Continuous Rating","60 MVA","Transformer Thermal Rating","No",""]
[null,"Wagga North No.2 Transformer Summer Two-Hour Rating","73.4 MVA","Transformer Thermal Rating","No",""]
[null,"Wagga North No.2 Transformer Winter Two-Hour Rating","79.8 MVA","Transformer Thermal Rating","No",""]
[null,"Yanco No.1 Transformer Continuous Rating","60 MVA","Transformer Thermal Rating","No",""]
[null,"Yanco No.1 Transformer Summer Two-Hour Rating","64 MVA","High voltage connections","No",""]
[null,"Yanco No.1 Transformer Winter Two-Hour Rating","64 MVA","High voltage connections","No",""]
[null,"Yanco No.2 Transformer Continuous Rating","60 MVA","Transformer Thermal Rating","No",""]
[null,"Yanco No.2 Transformer Summer Two-Hour Rating","64 MVA","High voltage connections","No",""]
[null,"Yanco No.2 Transformer Winter Two-Hour Rating","64 MVA","High voltage connections","No",""]
[null,"Yass No.1 Transformer Continuous Rating","200 MVA","Transformer Thermal Rating","No",""]
[null,"Yass No.1 Transformer Summer Two-Hour Rating","299 MVA","Transformer Thermal Rating","No",""]
[null,"Yass No.1 Transformer Winter Two-Hour Rating","300 MVA","Transformer Thermal Rating","No",""]
[null,"Yass No.2 Transformer Continuous Rating","200 MVA","Transformer Thermal Rating","No",""]
[null,"Yass No.2 Transformer Summer Two-Hour Rating","255 MVA","Transformer Thermal Rating","No",""]
[null,"Yass No.2 Transformer Winter Two-Hour Rating","276 MVA","Transformer Thermal Rating","No",""]
[null,"Voltage stability limit on X5 line","Low volts at Balranald Substation","Increased generation in the Far West NSW 220 kV network means a contingency can overload the X5 line beyond its capability","Yes","Need N2575"]
[]
[]
[]
[]
[]
[]
[]
[]
[]
[]
[]
[]
[]
[]
[]
[]
[]
[]
[]
[]
[]
[]
[]
[]
[]
[]
[]
[]
[]
[]
[]
[]
[]
[]
[]
[]
[]
[]
[]
[]
[]
[]
[]
[]
[]
[]
[null,"7.9.4 - Market impact component"]
[]
[null,null,null,"Market impact parameter"]
[null,null,null,"Planned outage count(DI)",null,"Unplanned outage count (DI) "]
[null,"Year","Month","without exclusions","with exclusions","without exclusions","with exclusions","Market impact parameters"]
[null,2014,"January"]
[null,{"$f":"B3061","v":2014},"February"]
[null,{"$f":"B3062","v":2014},"March"]
[null,2014,"April"]
[null,2014,"May"]
[null,2014,"June"]
[null,2014,"July"]
[null,2014,"August"]
[null,2014,"September"]
[null,2014,"October"]
[null,2014,"November"]
[null,2014,"December"]
[null,{"$f":"\"Total \"&B3061","v":"Total 2014"},null,{"$f":"+SUM(D3061:D3072)","v":0},{"$f":"+SUM(E3061:E3072)","v":0},{"$f":"+SUM(F3061:F3072)","v":0},{"$f":"+SUM(G3061:G3072)","v":0},{"$f":"+SUM(H3061:H3072)","v":0}]
[null,{"$f":"B3061+1","v":2015},"January",3,3,0,0,{"$f":"+E3074/12","v":0.25}]
[null,{"$f":"B3062+1","v":2015},"February",98,12,0,0,1]
[null,2015,"March",253,205,0,0,17.083333333333332]
[null,2015,"April",266,128,0,0,10.666666666666666]
[null,2015,"May",358,190,66,66,15.833333333333334]
[null,2015,"June",34,17,0,0,1.4166666666666667]
[null,2015,"July",113,2,0,0,0.16666666666666666]
[null,2015,"August",181,66,0,0,5.5]
[null,2015,"September",240,183,14,14,15.25]
[null,2015,"October",327,150,0,0,12.5]
[null,2015,"November",429,205,26,26,17.083333333333332]
[null,2015,"December",110,29,1,1,2.4166666666666665]
[null,{"$f":"\"Total \"&B3074","v":"Total 2015"},null,{"$f":"+SUM(D3074:D3085)","v":2412},{"$f":"+SUM(E3074:E3085)","v":1190},{"$f":"+SUM(F3074:F3085)","v":107},{"$f":"+SUM(G3074:G3085)","v":107},{"$f":"+SUM(H3074:H3085)","v":99.166666666666657}]
[null,{"$f":"B3074+1","v":2016},"January",7,0,0,0,0]
[null,{"$f":"B3075+1","v":2016},"February",136,77,0,0,6.416666666666667]
[null,2016,"March",581,431,0,0,35.916666666666664]
[null,2016,"April",768,554,20,20,46.166666666666664]
[null,2016,"May",619,308,1,0,25.666666666666668]
[null,2016,"June",269,173,0,0,14.416666666666666]
[null,2016,"July",121,0,0,0,0]
[null,2016,"August",76,1,0,0,8.3333333333333329E-2]
[null,2016,"September",224,74,0,0,6.166666666666667]
[null,2016,"October",157,37,28,28,3.0833333333333335]
[null,2016,"November",1342,1129,0,0,94.083333333333329]
[null,2016,"December",372,224,0,0,18.666666666666668]
[null,{"$f":"\"Total \"&B3087","v":"Total 2016"},null,{"$f":"+SUM(D3087:D3098)","v":4672},{"$f":"+SUM(E3087:E3098)","v":3008},{"$f":"+SUM(F3087:F3098)","v":49},{"$f":"+SUM(G3087:G3098)","v":48},{"$f":"+SUM(H3087:H3098)","v":250.66666666666666}]
[null,{"$f":"B3087+1","v":2017},"January",466,390,57,54,32.5]
[null,{"$f":"B3088+1","v":2017},"February",497,472,200,200,39.333333333333336]
[null,2017,"March",1048.5,873.5,35,11,72.791666666666671]
[null,2017,"April",209,170,13,13,14.166666666666666]
[null,2017,"May",395,343,96,96,28.583333333333332]
[null,2017,"June",239,135,0,0,11.25]
[null,2017,"July",39,0,0,0,0]
[null,2017,"August",188,136,284,284,11.333333333333334]
[null,2017,"September",131,69,6,6,5.75]
[null,2017,"October",2816,2694,0,0,224.5]
[null,2017,"November",871,745,0,0,62.083333333333336]
[null,2017,"December",145,107,11,11,8.9166666666666661]
[null,{"$f":"\"Total \"&B3100","v":"Total 2017"},null,{"$f":"+SUM(D3100:D3111)","v":7044.5},{"$f":"+SUM(E3100:E3111)","v":6134.5},{"$f":"+SUM(F3100:F3111)","v":702},{"$f":"+SUM(G3100:G3111)","v":675},{"$f":"+SUM(H3100:H3111)","v":511.20833333333337}]
[null,{"$f":"B3100+1","v":2018},"January",173,155,140,140,12.916666666666666]
[null,{"$f":"B3101+1","v":2018},"February",75,57,92,92,4.75]
[null,2018,"March",100,45,71,71,3.75]
[null,2018,"April",1695,1653,22,22,137.75]
[null,2018,"May",1372,1308,9,9,109]
[null,2018,"June",1221,1107,0,0,92.25]
[null,2018,"July",85,0,43,43,0]
[null,2018,"August",190,12,462,12,1]
[null,2018,"September",571,2,68,68,0.16666666666666666]
[null,2018,"October",677,10,150,3,0.83333333333333337]
[null,2018,"November",359,139,926,926,11.583333333333334]
[null,2018,"December",190,0,1203,1203,0]
[null,{"$f":"CONCATENATE(\"Total \", LEFT(CRCP_y1,4))","v":"Total 2018"},null,{"$f":"+SUM(D3113:D3124)","v":6708},{"$f":"+SUM(E3113:E3124)","v":4488},{"$f":"+SUM(F3113:F3124)","v":3186},{"$f":"+SUM(G3113:G3124)","v":2589},{"$f":"+SUM(H3113:H3124)","v":373.99999999999994}]
[null,{"$f":"LEFT(CRCP_y2,4)","v":"2019"},"January",239,3,67,66,0.25]
[null,"2019","February",167,40,143,0,3.3333333333333335]
[null,"2019","March",394,77,0,0,6.416666666666667]
[null,"2019","April",325,37,0,0,3.0833333333333335]
[null,"2019","May",951,14,0,0,1.1666666666666667]
[null,"2019","June",857,85,0,0,7.083333333333333]
[null,"2019","July",400,0,0,0,0]
[null,"2019","August",565,18,36,36,1.5]
[null,"2019","September",1740,618,367,1,51.5]
[null,"2019","October",1308,50,39,39,4.166666666666667]
[null,"2019","November",437,69,2,2,5.75]
[null,"2019","December",219,12,288,265,1]
[null,{"$f":"CONCATENATE(\"Total \", LEFT(CRCP_y2,4))","v":"Total 2019"},null,{"$f":"+SUM(D3126:D3137)","v":7602},{"$f":"+SUM(E3126:E3137)","v":1023},{"$f":"+SUM(F3126:F3137)","v":942},{"$f":"+SUM(G3126:G3137)","v":409},{"$f":"+SUM(H3126:H3137)","v":85.25}]
[null,{"$f":"LEFT(CRCP_y3,4)","v":"2020"},"January",251,0,766,6,0]
[null,"2020","February",294,27,11,0,{"$f":"+E3140/12","v":2.25}]
[null,"2020","March",484,79,55,55,6.583333333333333]
[null,"2020","April",530,76,85,84,6.333333333333333]
[null,"2020","May",1065,801,986,986,66.75]
[null,"2020","June",2284,1890,88,88,157.5]
[null,"2020","July",1908,1386,206,206,115.5]
[null,"2020","August",3471,1938,0,0,161.5]
[null,"2020","September",2846,2528,2,2,210.66666666666666]
[null,"2020","October",4182,3166,6,6,263.83333333333331]
[null,"2020","November",4174,2419,45,10,201.58333333333334]
[null,"2020","December",754,342,624,624,28.5]
[null,{"$f":"CONCATENATE(\"Total \", LEFT(CRCP_y3,4))","v":"Total 2020"},null,{"$f":"+SUM(D3139:D3150)","v":22243},{"$f":"+SUM(E3139:E3150)","v":14652},{"$f":"+SUM(F3139:F3150)","v":2874},{"$f":"+SUM(G3139:G3150)","v":2067},{"$f":"+SUM(H3139:H3150)","v":1220.9999999999998}]
[null,{"$f":"LEFT(CRCP_y4,4)","v":"2021"},"January",867,113,14,14,{"$f":"+E3152/12","v":9.4166666666666661}]
[null,"2021","February",1073,621,0,0,51.75]
[null,"2021","March",1504,558,0,0,46.5]
[null,"2021","April",5189,4172,15,15,347.66666666666669]
[null,"2021","May",4157,3466,487,168,288.83333333333331]
[null,"2021","June",4754,3364,239,239,280.33333333333331]
[null,"2021","July",4687,3446,0,0,287.16666666666669]
[null,"2021","August",3555,1669,155,155,139.08333333333334]
[null,"2021","September",5001,4204,139,14,350.33333333333331]
[null,"2021","October",5922,5413,0,0,451.08333333333331]
[null,"2021","November",14000,6554,0,0,546.16666666666663]
[null,"2021","December",792,237,4,0,19.75]
[null,{"$f":"CONCATENATE(\"Total \", LEFT(CRCP_y4,4))","v":"Total 2021"},null,{"$f":"+SUM(D3152:D3163)","v":51501},{"$f":"+SUM(E3152:E3163)","v":33817},{"$f":"+SUM(F3152:F3163)","v":1053},{"$f":"+SUM(G3152:G3163)","v":605},{"$f":"+SUM(H3152:H3163)","v":2818.083333333333}]